Workbook

Sheet Menu
L3: Demande d'aide financière | AY3: AVIS
L4: ="Version " & PARM_VERSION_DAF&"C" -> Version 12.2.00C
F5: Formulaire en date du | G5: =TODAY() -> 2024-10-04
B6: Menu principal - Accès aux formulaires | AY6: Ce fichier informatique et la documentation qui l'accompagne n'ont pour but que de faciliter la production d'une demande d'aide financière en vertu du programme AccèsLogis Québec de la Société d'habitation du Québec. Toute autre utilisation de ce fichier ou des documents qui l'accompagnent n'engage pas la responsabilité des auteurs ni de la Société. La Société d'habitation du Québec fournit gracieusement aux utilisateurs le fichier sur son site web ainsi que la documentation d'accompagnement dans la forme où ils se trouvent sans aucune garantie. Ni la Société d'habitation du Québec, ni les auteurs, ne sauraient être tenus responsables de quelque dommage que ce soit, causé de façon directe, indirecte ou circonstancielle par l'utilisation du fichier informatique, y compris la perte de revenus et le manque à gagner. La Société d'habitation du Québec ne fait aucune déclaration implicite ou explicite concernant l'emploi ou les résultats découlant de l'emploi du fichier informatique ou de la documentation quant à leur fiabilité et leur exactitude. Société d'habitation du Québec (SHQ)
C8: Module général
T11: Saisie des informations générales :
T12: ="Programme, projet, organisme, " & PARM_OSD_ABRG & ", professionnels, taux d'intérêt." -> Programme, projet, organisme, OSD, professionnels, taux d'intérêt.
C16: Module réalisation
D20: Saisie des informations relatives aux terrains et bâtiments actuels. Sommaire de l'information spécifique à chacun des bâtiments et des terrains. | P20: Sommaire de l'information spécifique à chacun des bâtiments. Saisie des types de logement et clientèle. Logements adaptés. | AB20: Saisie et calcul du budget de réalisation : résidentiel et non résidentiel.
C28: Module financement
G32: Saisie des contributions : secteur privé, secteur public, municipalité, organisme, et aides complémentaires. | W32: Saisie des informations liées au financement du projet : apport en capital, calcul des subventions, terme de l'hypothèque, coût du financement intérimaire.
C41: Module exploitation
T45: Saisie et calcul du budget d'exploitation : résidentiel et non résidentiel.
T47: L'utilisation du genre masculin a été adoptée afin d'alléger le texte et n'a aucune intention discriminatoire.

Sheet Général
CE1: G_PROJET_ETAPES | CF1: G_PROJET_TYPES_INTERVENTION | CH1: G_ORGANISME_TYPES | CJ1: G_DEVELOPPEUR_TYPES | CL1: G_DEVELOPPEUR_TYPES_SERVICE | CO1: G_PROJET_REGIONS | CP1: G_PROJET_REGION_ELOIGNEE | CR1: G_PROJET_TERRITOIRES | CU1: G_PARM_TAUX_REMB_TPS | CV1: G_PARM_TAUX_REMB_TVQ | CX1: G_PROJET_MRCS | CZ1: G_ORGANISME_FREQ_REMB | DB1: VILLES CENTRES | DE1: G_ORGANISME_STAT_MUNICIPALITE | DH1: No | DI1: Nom
CL2: DEV : Développement | CP2: 0 | DB2: 23027 | DC2: Québec | DH2: 12 | DI2: Décembre
L3: Demande d'aide financière | CE3: EL : Élaboration | CF3: AJ : Achat rénovation - Majeure | CH3: COOP | CJ3: GRT : Groupes de ressources techniques | CL3: DAC : Développement et accompagnement | CO3: 01 - Bas-Saint-Laurent | CP3: 0 | CR3: Tout territoire | CU3: 100,00 | CV3: 50,00 | CX3: 000 - Autre | CZ3: Mensuelle | DB3: 25213 | DC3: Lévis | DE3: Admissible | DF3: ADM | DH3: 11 | DI3: Novembre
L4: =MP_VERSION -> Version 12.2.00C | CE4: AP : Analyse préliminaire | CF4: AR : Achat rénovation - Mineure | CH4: OBNL | CJ4: OH : Offices municipales d'habitation | CO4: 02 - Saguenay-Lac-St-Jean | CP4: 0 | CR4: Plan nord/ Îles-de-la-Madeleine | CU4: 90,00 | CV4: 36,00 | CX4: 972 - Caniapiscau | CZ4: Trimestrielle | DB4: 58007 | DC4: Brossard | DE4: Non-admissible | DF4: NADM | DH4: 10 | DI4: Octobre
F5: Formulaire en date du | G5: =TODAY() -> 2024-10-04 | X5: Dernière mise à jour | Y5: 2024-10-10 | AU5: ="Code dernière intégration : " & PARM_CODE_EXPORT_ACL -> Code dernière intégration : | CE5: EC : Engagement conditionnel | CF5: CN : Construction neuve | CH5: OH | CJ5: SA : Sociétés acheteuses | CO5: 03 - Capitale nationale | CP5: 0 | CR5: Québec/ Gatineau/ Laval/ Longueil/ Lévis | CU5: 50,00 | CV5: 0,00 | CX5: 981 - Minganie | CZ5: Annuelle | DB5: 58033 | DC5: Boucherville | DE5: Demandé | DF5: DEM | DH5: 9 | DI5: Septembre
B6: Page 1 - GÉNÉRAL | CE6: ED : Engagement définitif | CF6: TR : Transformation-recyclage | CH6: PROP : Propriétaire | CJ6: DSR : Développeurs spécifiquement reconnus | CO6: 04 - Mauricie | CP6: 0 | CR6: Territoire de Montréal | CU6: 36,00 | DB6: 58227 | DC6: Longueuil | DE6: Reçu | DF6: RECU | DH6: 8 | DI6: Août
CE7: DA : Date d'ajustement des intérêts | CJ7: AUT : Auto développeurs | CO7: 05 - Estrie | CP7: 0 | CU7: 0,00 | DB7: 65005 | DC7: Laval | DH7: 7 | DI7: Juillet
B8: PROJET | I8: Date de recommandation (ED) : | Z8: 54 | AE8: Date d'approbation | AM8: : | AN8: 47 | AU8: 48 | CH8: PROP RETIRÉ DE LA LISTE 20051128 | CO8: 06 - Montréal | CP8: 0 | DB8: 66007 | DC8: Montréal-Est | DH8: 6 | DI8: Juin
CO9: 07 - Outaouais | CP9: 1 | DB9: 66023 | DC9: Montréal | DH9: 5 | DI9: Mai
B10: Numéro du projet | J10: : | K10: =ProgrammePour(G_PROGRAMME_ACL,G_PROGRAMME_LAQ) -> ACL | M10: - | Q10: 1 | W10: 55 | AC10: Étape du projet : | AP10: =Q10+1 -> 2 | AU10: =AP10+1 -> 3 | BZ10: FALSE | CB10: FALSE | CC10: =RIGHT("00000000" & G_PROJET_NO,5) -> 00000 | CD10: =G_PROGRAMME & "-" & G_PROJET_NUMERO -> ACL-00000 | CO10: 08 - Abitibi-Témiscamingue | CP10: 1 | DB10: 66047 | DC10: Montréal-Ouest | DH10: 4 | DI10: Avril
CO11: 09 - Côte-Nord | CP11: 1 | DB11: 66058 | DC11: Côte-Saint-Luc | DH11: 3 | DI11: Mars
B12: Nom du projet | J12: : | AL12: =AU10+1 -> 4 | AU12: 70 | CB12: FALSE | CO12: 10 - Nord-du-Québec | CP12: 1 | DB12: 66107 | DC12: Beaconsfield | DH12: 2 | DI12: Février
CO13: 11 - Gaspésie - Iles-de-la-Madeleine | CP13: 0 | DB13: 81017 | DC13: Gatineau | DH13: 1 | DI13: Janvier
B14: Municipalité | I14: No | J14: : | O14: 59 | AL14: =AL12+1 -> 5 | AQ14: Arrondissement | AR14: : | AU14: =AL14+1 -> 6 | CO14: 12 - Chaudière - Appalaches | CP14: 0
CO15: 13 - Laval | CP15: 0
B16: C. E. P. | J16: : | O16: 60 | AO16: Le projet est conforme à la Loi canadienne sur l'évaluation environnementale : | AU16: 67 | CA16: FALSE | CB16: FALSE | CO16: 14 - Lanaudière | CP16: 0
CO17: 15 - Laurentides | CP17: 0
K18: Municipalité participante | S18: : | Y18: 7 | AA18: Type d'intervention | AG18: : | AU18: =Y18+1 -> 8 | CA18: FALSE | CB18: FALSE | CE18: =TRIM(LEFT(G_PROJET_TYPE_INTERVENTION,2)) ->  | CO18: 16 - Montérégie | CP18: 0
CO19: 17 - Centre-du-Québec
K20: Moins de 2000 habitants | S20: : | Y20: 9 | AU20: 50 | CA20: FALSE | CB20: FALSE | CE20: FALSE
K22: Moins de 2500 habitants | S22: : | Y22: 56 | AA22: Tableau - unités / volet : | AJ22: =Y24+1 -> 12 | AK22: Nb Unités | AO22: Unités SUAL | AR22: Unités SAD | CA22: FALSE | CB22: FALSE
K24: Territoire de Fédération | S24: : | Y24: 11 | AA24: Projet clés en main: | AH24: Volet I | AK24: =IP_NBRE_UNITES_I -> 0 | AO24: 0 | AR24: 0 | CA24: FALSE | CB24: FALSE
R26: Le projet comporte une partie non résidentielle | S26: : | Y26: 22b | AF26: 80 | AH26: Volet II | AK26: =IP_NBRE_UNITES_II -> 0 | AO26: 0 | AR26: 0 | CA26: FALSE | CB26: FALSE | CC26: FALSE | CD26: FALSE
B28: Région administrative | J28: : | W28: 13 | X28: M.R.C. : | AG28: 100 | AH28: Volet III | AK28: =IP_NBRE_UNITES_III -> 0 | AO28: 0 | AR28: 0
B30: Sélection du barème | J30: : | Y30: 14 | Z30: =IF(EstRegionEloignee(G_PROJET_REGION),"Région éloignée","") ->  | AH30: Total | AK30: =IP_NBRE_UNITES -> 0 | AO30: =G_UNITES_SPH_I+G_UNITES_SPH_II+G_UNITES_SPH_III -> 0 | AR30: =G_UNITES_SAD_I+G_UNITES_SAD_II+G_UNITES_SAD_III -> 0 | CB30: =NOT(ISNA(VLOOKUP(G_PROJET_MUNICIPALITE_NO,G_PROJET_MUN_VILLES_CENTRES,1,FALSE))) -> FALSE
B32: Date prise de possession (Prévue) | N32: : | Y32: 14b | Z32: Date prise de poss. (Réelle) | AJ32: : | AU32: 61
B34: Date prévue de la DAI | N34: : | Y34: 53 | Z34: Date ajust. Intérêts (Réelle) | AJ34: : | AU34: 49
B36: Adresse courriel de l'approbateur | N36: : | AJ36: 65 | AQ36: Chargé de projet SHQ | AR36: : | AU36: 66
B41: PROGRAMME DE SUBVENTION
AF43: 10 | AP43: Année de programmation | AQ43: : | AU43: 16 | CA43: TRUE | CB43: FALSE
AF45: 72 | AU45: 74 | CA45: FALSE | CB45: FALSE | CC45: FALSE | CD45: FALSE
B48: ORGANISME
AL50: Type d'organisme | AM50: : | AU50: 18 | CB50: FALSE
B52: Nom de l'organisme | J52: : | AU52: 19
K53: (Inscrire le nom exact se trouvant sur votre charte ou sur le document de demande d'incorporation)
B54: Adresse | J54: : | Z54: 62 | AD54: Municipalité | AE54: : | AU54: 63
AL55: Code postal | AM55: : | AU55: 64
B57: Nom du répondant | J57: : | Z57: 20 | AD57: Prénom | AE57: : | AU57: 57
B59: L'année financière se termine à la fin du mois de | R59: : | Z59: 22 | AL59: Téléphone | AM59: : | AU59: 21
B61: TPS et TVQ
B63: Statut de municipalité | N63: : | W63: 81 | AL63: Résidentiel | AR63: Non rés. | CB63: =IF(ISNA(VLOOKUP(G_ORGANISME_STAT_MUN,G_ORGANISME_CODE_STAT_MUNICIPALITE,2,FALSE)),"",VLOOKUP(G_ORGANISME_STAT_MUN,G_ORGANISME_CODE_STAT_MUNICIPALITE,2,FALSE)) -> 
B65: Fourniture à soi-même | N65: : | U65: 24 | AK65: Taux de remboursement T.P.S. % | AL65: : | AP65: 25 | AU65: 26 | CA65: FALSE | CB65: FALSE | CD65: =G_ORGANISME_TPS_RES_SAISI/100 -> 0
B67: Admissible aux remboursements | N67: : | U67: 27 | AK67: Taux de remboursement T.V.Q. % | AL67: : | AP67: 28 | AU67: 29 | CA67: FALSE | CB67: FALSE | CD67: =G_ORGANISME_TVQ_RES_SAISI/100 -> 0
B69: Organisme de bienfaisance | N69: : | U69: 30 | AA69: C.T.I / R.T.I. | AN69: Organisme inscrit | AO69: : | AU69: 23 | CA69: FALSE | CB69: FALSE | CE69: FALSE | CF69: FALSE
D71: Numéro d'enregistrement | N71: : | V71: 31 | AA71: Numéro de T.P.S. | AG71: : | AU71: 82 | CA71: =G_ORGANISME_NO_TPS_1&G_ORGANISME_NO_TPS_2&G_ORGANISME_NO_TPS_3 -> 
D73: Date entrée en vigueur du statut | N73: : | V73: 71 | AA73: Numéro de T.V.Q. | AG73: : | AU73: 83 | CA73: =G_ORGANISME_NO_TVQ_1&G_ORGANISME_NO_TVQ_2&G_ORGANISME_NO_TVQ_3 -> 
B75: Projet comportant un bâtiment reconnu exempt de taxes foncières | AA75: Fréquence | AG75: : | AP75: 84 | CB75: =UPPER(LEFT(G_ORGANISME_FREQ_REMB,4)) -> 
U76: 51 | CA76: FALSE | CB76: FALSE
E77: (Décision de la Commission municipale du Québec) | AB77: (Conseil municipal)
E78: Numéro de dossier | N78: : | O78: CMQ- | V78: 52 | AB78: Numéro de résolution | AI78: : | AQ78: 68
B82: =UPPER(PARM_OSD & " (" & PARM_OSD_ABRG & ")") -> ORGANISME DE SOUTIEN AU DÉVELOPPEMENT (OSD)
B84: ="Numéro de l'" & PARM_OSD_ABRG -> Numéro de l'OSD | J84: : | O84: 32 | AL84: ="Type de l'" & PARM_OSD_ABRG -> Type de l'OSD | AM84: : | AU84: 33
B86: ="Nom de l'" & PARM_OSD_ABRG -> Nom de l'OSD | J86: : | AU86: 34
B88: Nom du répondant | J88: : | Z88: 35 | AD88: Prénom | AE88: : | AU88: 58
B90: Type de services projet | J90: : | AH90: 37 | AL90: Téléphone | AM90: : | AU90: 36
B92: Adresse courriel | J92: : | AH92: 69
B96: PROFESSIONNELS
B98: Services d'un architecte | N98: : | U98: 38 | AC98: Services d'un arpenteur-géomètre | AO98: : | AU98: 39 | CA98: FALSE | CB98: FALSE | CC98: FALSE | CD98: FALSE
B100: Services d'un ingénieur | J100: (Structure) | N100: : | U100: 40 | AC100: Nombre de certificats de localisation | AO100: : | AT100: 41
CA101: FALSE | CB101: FALSE
M102: (Mécanique et électricité) | N102: : | U102: 42 | AN102: Topographie et subdivision cadastrale ($) | AO102: : | AT102: 43
CA103: FALSE | CB103: FALSE
CA105: FALSE
B108: TAUX D'INTÉRÊTS
AD110: Organisme | AJ110: SHQ
E111: Taux du financement à long terme (hypothèque) : | AI111: 44
E113: Taux du financement intérimaire : | AI113: 45
E115: Rendement des obligations du Canada - Échéance de 30 ans : | AI115: 46 | AJ115: (Emphytéose)
E117: Taux référence FQHC - obligations 5 ans : | AI117: 75
E119: Taux référence FQHC - obligations 10 ans : | AI119: 76
E121: Taux prêts - Capital patient : | AI121: 78
B123: Date : | E123: =TODAY() -> 2024-10-04
B126: PRÉCISIONS - Page 1 - Général
C128: Numéro de projet | P128: : | Q128: Champ réservé à la SHQ ou à la ville mandataire.
Q129: Peut être modifié uniquement à l'étape de l'Élaboration ou de l'Analyse préliminaire.
C131: Nom du projet | P131: : | Q131: Ce champ peut être modifié par l'OSD uniquement à l'étape de l'Élaboration.
C133: Municipalité | P133: : | Q133: Ce champ peut être modifié par l'OSD uniquement à l'étape de l'Élaboration.
Q134: Ce champ sert à la saisie du numéro de la municipalité tel qu'il apparaît au Répertoire des
Q135: municipalités du Québec du Ministère des Affaires municipales et de l'Occupation du territoire.
C137: Arrondissement | P137: : | Q137: Ce champ peut être modifié par l'OSD uniquement à l'étape de l'Élaboration.
C139: C.E.P. | P139: : | Q139: Ce champ sert à la saisie du numéro de la C.E.P. tel qu'il apparaît au Répertoire des
C140: (Circonscription électorale provinciale) | Q140: municipalités du Québec du Ministère des Affaires municipales et de l'Occupation du territoire.
C142: Type d'intervention | P142: : | Q142: Ce champ peut être modifié par l'OSD uniquement avant l'étape de l'Engagement définitif.
E144: AJ - achat rénovation majeure | P144: : | Q144: Réparation ou transformation d'un bâtiment existant, au point où la totalité ou presque (90 %
Q145: ou plus) a été enlevée ou remplacée, à l'exception des fondations, des murs extérieurs,
Q146: des murs intérieurs de soutien, des planchers, du toit et des escaliers.
C148: Projet Clé en main | P148: : | Q148: Ce champ est non modifiable.
Q149: Sa valeur est « oui » si la case « clé en main » est cochée dans au moins une fiche « bâtiment prévu ».
C151: Région administrative | P151: : | Q151: Le choix d'une région administrative désignée comme région éloignée, affiche « Région éloignée »
E152: Région éloignée | Q152: et, si toutes les conditions requises sont rencontrées, engage le calcul automatique de la subvention.
Q153: Ce champ peut être modifié par l'OSD uniquement à l'étape de l'Élaboration.
C155: Barème | P155: : | Q155: Ce champ peut être modifié par l'OSD uniquement si le projet n'est pas à l'étape de la date d'ajustement des intérêts (DAI).
C157: Date de prise de possession | P157: : | Q157: Pour les interventions « Construction neuve » et « Transformation recyclage », lors d'une occupation
Q158: progressive, la date de prise de possession correspond à la date où 50% des logements sont occupés.
Q159: Pour les interventions « Achat simple » et « Achat-rénovation » (mineure ou majeure),
Q160: cette date correspond à la date de la DAI.
Q161: La date de prise de possession réelle est obligatoire pour franchir l'étape de la « DAI ».
C163: Année de programmation | P163: : | Q163: Champ réservé à la SHQ ou à la ville mandataire. Il permet d'associer le projet
Q164: à une programmation déterminée.
C166: Nom de l'organisme | P166: : | Q166: Ce champ peut être modifié par l'OSD uniquement à l'étape de l'Élaboration.
C168: ="Téléphone (organisme / " & PARM_OSD_ABRG & ")" -> Téléphone (organisme / OSD) | P168: : | Q168: Champ pré-formaté : saisir les 10 chiffres (incluant l'indicatif régional) de façon continue sans
Q169: parenthèse, tiret ou espace.
C171: Taux de remboursement (TPS / TVQ) | P171: : | Q171: L'organisme doit compléter ces champs conformément aux dispositions fiscales qui lui sont propres.
Q172: Ces taux varient en fonction de divers facteurs tels le type d'organisme (statut), la proportion
Q173: de ses revenus provenant de sources publiques, le type d'intervention, etc.
C175: Numéro d'enregistrement | P175: : | Q175: Le numéro d'enregistrement est assigné par Revenu Canada et correspond généralement au
E176: organisme de charité | Q176: format: 99999 9999 RR99999.
C178: Numéro de dossier | P178: : | Q178: Le numéro doit correspondre au dossier de Demande de reconnaissance aux fins d'exemption des taxes
Q179: foncières pour lequel la Commission municipale du Québec accorde à l'organisme une telle
Q180: reconnaissance à l'égard du ou des immeubles visé(s); ce numéro correspond généralement au
Q181: format : CMQ- XXXXX.
C183: =B84 -> Numéro de l'OSD | P183: : | Q183: Champ réservé à la SHQ.
C185: Type de services
D187: Développement (DEV) | S187: : | T187: Services spécifiques aux phases d'élaboration et de réalisation tels: analyse des divers
T188: éléments du projet, préparation du dossier de présentation, coordination des
T189: professionnels et des intervenants au dossier, suivi administratif et de la réalisation
T190: physique du projet jusqu'à la DAI inclusivement.
D192: Développement et accompagnement (DAC) | S192: : | T192: En sus des services afférents aux phases élaboration et réalisation, l'OSD assure, au
T193: cours de la première année d'exploitation, un support au niveau de la gestion des
T194: immeubles, de la constitution et du suivi des réserves, de la formation du conseil
T195: d'administration, etc.
C197: Services d'un architecte | P197: : | Q197: Ce champ ne peut être modifié par l'OSD après l'étape de l'Engagement définitif.
C199: Services d'un ingénieur | P199: : | Q199: Ce champ ne peut être modifié par l'OSD après l'étape de l'Engagement définitif.
C201: Services d'un arpenteur-géomètre | P201: : | Q201: Ce champ ne peut être modifié par l'OSD après l'étape de l'Engagement définitif.
C203: Nombre de certificats de localisation | P203: : | Q203: Ce champ ne peut être modifié par l'OSD après l'étape de l'Engagement définitif.
C205: Topographie et subdivision cadastrale | P205: : | Q205: Ce champ ne peut être modifié par l'OSD après l'étape de l'Engagement définitif.
C207: Rendement des obligations du Canada - 30 ans
P208: : | Q208: Ce taux est applicable sur la partie du prêt organisme associée à une emphythéose.
Q209: Cette information est disponible dans le « Tableau 3 » des taux de référence publiés
Q210: mensuellement sur le site internet de la SHQ.

Sheet Immeubles - Actuels
L3: Demande d'aide financière
L4: =MP_VERSION -> Version 12.2.00C
F5: Formulaire en date du | G5: =TODAY() -> 2024-10-04
B6: Page 2 - IMMEUBLES - ACTUELS
B8: PROJET | AP8: Date de la DAF : | AQ8: =G_PROJET_ETAPE_APPROUVE -> 00:00:00 | AS8: =G_APPRO_DATE -> 00:00:00
B10: Numéro du projet | J10: : | K10: =G_PROJET_NO_COMPLET -> ACL-00000 | O10: 1 | AG10: Étape du projet : | AM10: =G_PROJET_ETAPE -> 0 | AU10: 2
B12: Nom du projet | J12: : | K12: =G_PROJET_NOM -> 0 | AU12: 3
B15: TERRAINS ET BÂTIMENTS ACTUELS (Sommaire)
C17: Type | E17: No | H17: Adresse | X17: Année | AA17: Superf. | AD17: Syst | AF17: Syst | AH17: Hist | AJ17: Évaluation foncière R | AP17: Évaluation marchande R
E18: ter | H18: (Numéro civique et rue ou Lots) | X18: const. | AA18: (m2) | AD18: aque | AF18: égout | AH18: sol | AJ18: Organisme | AM18: SHQ | AP18: Organisme | AS18: SHQ
AV21: FALSE
AJ31: Évaluation foncière | AP31: Évaluation marchande | CA31: 1 | CB31: 1
AJ32: Organisme | AM32: SHQ | AP32: Organisme | AS32: SHQ
AI34: Partie résidentielle : | AJ34: 0 | AM34: 0 | AO34: 4 | AP34: 0 | AS34: 0 | AU34: 5 | CD34: 232400 | CE34: 232400 | CG34: 0 | CH34: 0 | CJ34: 0 | CK34: 0 | CL34: 0 | CM34: 0
AI36: Partie non résidentielle : | AJ36: 0 | AM36: 0 | AO36: 6 | AP36: 0 | AS36: 0 | AU36: 7 | CD36: 0 | CE36: 0 | CG36: 0 | CH36: 0
CH37: 0
AI38: Total de l'évaluation : | AJ38: 0 | AM38: 0 | AO38: 8 | AP38: 0 | AS38: 0 | AU38: 9
F42: Typologie actuelle et ménages à reloger
M44: 10 | O44: Chambre | R44: Studio | U44: 1CC | X44: 2CC | AA44: 3CC | AD44: 4CC | AG44: 5CC | AJ44: Total | AN44: Total - Nbre de lots | AS44: 11
G46: Nombre d'unités | O46: 0 | R46: 0 | U46: 0 | X46: 0 | AA46: 0 | AD46: 0 | AG46: 0 | AJ46: =IA_UNI_CH+IA_UNI_ST+IA_UNI_1C+IA_UNI_2C+IA_UNI_3C+IA_UNI_4C+IA_UNI_5C -> 0 | AN46: 0
G48: Ménages à reloger | O48: 0 | R48: 0 | U48: 0 | X48: 0 | AA48: 0 | AD48: 0 | AG48: 0 | AJ48: =IA_MNG_CH+IA_MNG_ST+IA_MNG_1C+IA_MNG_2C+IA_MNG_3C+IA_MNG_4C+IA_MNG_5C -> 0
B53: EMPHYTÉOSE TAUX AJUSTÉ
F55: Rendement des obligations du Canada à échéance 30 ans | AE55: =G_TAUX_OBL -> 0 | AJ55: 12
L57: Ajustement - Facteur de risque à long terme | AE57: =PARM_AJUS_FACT_RISQUE -> -0.01 | AJ57: 13
L59: Taux ajusté - 30 ans | AE59: =IF(ISERR(IA_REND_OBLIG_CANADA30+IA_AJUS_FACT_RISQUE),0,IA_REND_OBLIG_CANADA30+IA_AJUS_FACT_RISQUE) -> -0.01 | AJ59: 14
B71: PRÉCISIONS - Page 2 - Immeubles actuels
C73: Terrains et bâtiments actuels - (sommaire)
D75: Type | R75: : | S75: Identifie le type d'immeuble soit, « T00 » pour un terrain et « B00 » pour un bâtiment, pour lequel
S76: une fiche a été enregistrée.
D78: No ter (numéro de terrain) | R78: : | S78: Identifie le terrain « T00 » qui est associé à un bâtiment.
D80: Total - Nbre de lots | R80: : | S80: Présente la somme des lots associés aux terrains ayant fait l'objet d'une fiche
S81: d'enregistrement. Cette donnée est utilisée pour établir, en partie, les frais juridiques.
S82: Pour assurer un bon calcul des frais juridiques, chaque lot doit être saisi individuellement.
D84: Évaluation foncière R | R84: : | S84: Évaluation foncière de la partie résidentielle.
D86: Évaluation marchande R | R86: : | S86: Évaluation marchande de la partie résidentielle.
C88: Terrain / Bâtiment actuel - (Fiches de saisie)
D90: No. de terrain / bâtiment | R90: : | S90: Numéro attribué séquentiellement par le système; il permet d'associer les terrains et bâtiments, actuels ou prévus.
D92: Adresse principale de projet | R92: : | S92: Identifie le terrain ou bâtiment auquel est associée l'adresse principale du projet (non celle de l'organisme).
S93: Une seule des fiches (terrain actuel ou bâtiment actuel) peut être désignée comme adresse principale du projet.
S94: Cette donnée est un critère de discrimination pour la compilation et la publication de rapports statistiques.
S95: Dans le cas d'une intervention de type « Construction neuve », l'adresse principale doit être signifiée au niveau
S96: du terrain actuel qui sera associé au bâtiment prévu.
D98: Facteur comparatif (administratif) | R98: : | S98: Le facteur administratif sert à uniformiser l'évaluation foncière afin d'établir les droits de mutation.
S99: Différent du facteur inscrit sur le compte de taxes, vous devez l'obtenir auprès de la municipalité.
D101: Proportion - partie résidentielle | R101: : | S101: Cette valeur correspond théoriquement au ratio:
S102: évaluation foncière de la partie résidentielle / évaluation foncière totale de l'immeuble (terrain, bâtiment).
S103: Si un rapport d'évaluation a été produit par un évaluateur agréé, la valeur théorique correspond au ratio:
S104: valeur marchande avant travaux de la partie résidentielle / valeur marchande totale avant travaux de l'immeuble
S105: (bâtiment, terrain).
D107: Application de la loi 72 | R107: : | S107: Suite à l'adoption du projet de loi no 72, certaines situations (contamination) décrites dans la section IV.2.1
S108: du chapitre I de la Loi sur la qualité de l'environnement doivent être inscrites au Registre foncier.
C110: Terrain actuel - (Fiche de saisie)
D112: Numéro du lot - Ajouter un lot | R112: : | S112: Champ de saisie servant à l'inscription des lots composant un terrain.
S113: Pour assurer l'exactitude des calculs des frais juridiques (notaire), chaque lot
S114: doit faire l'objet d'une entrée distincte (un seul lot par ligne de saisie).
D116: Emphytéose - Rente constante | R116: : | S116: Rente dont le montant des annuités est constant pendant la durée de l'emphytéose.
D118: Emphytéose - Valeur de l'actif | R118: : | S118: Valeur marchande du terrain reconnue par la SHQ.
D120: Emphytéose - Durée | R120: : | S120: Assujettie à un minimum de 50 ans et à un maximum de 99 ans.
D122: Emphytéose - Valeur actualisée | R122: : | S122: Valeur actualisée de la rente basée sur un taux ajusté des Obligations du Canada d'un terme de 30 ans
D124: Boutons radios : | R124: : | S124: Ces boutons doivent être cochés à « oui » uniquement lorsque l'OSD a les rapports en mains.
E125: Rapport de l'historique des sols
E126: Rapport de caractérisation
E127: Rapport de capacité portante
C129: Bâtiment actuel - (Fiche de saisie)
D131: Immeubles non résidentiel | R131: : | S131: Un immeuble ou une partie d'un immeuble qui n'est pas conçu pour être habité par des personnes ou qui n'est
S132: pas destiné à des fins résidentielles tels : des bâtiments industriels, commerciaux, à bureaux, édifices
S133: gouvernementaux désaffectés et des bases militaires ou un immeuble ou une partie de celui-ci non destiné
S134: à ou non conçu pour des logements locatifs permanents incluant des hôtels, des motels, des
S135: chambres d'hôtes et des hôpitaux.
D137: Superficie totale du bâtiment | R137: : | S137: Superficie brute totale de tous les planchers incluant les faces externes des murs extérieurs.
D139: Boutons radios : | R139: : | S139: Ce bouton doit être coché à « oui » uniquement lorsque l'OSD a les rapports en mains.
E140: Analyse environnementale

Sheet Immeubles - Prévus
CG1: IP_TYPES_CHAUFFAGE | CU1: IP_TYPES_ELECTRICITE | DC1: IP_TYPES_EAU
L3: Demande d'aide financière | CG3: Non | CU3: Non | DC3: Non
L4: =MP_VERSION -> Version 12.2.00C | CG4: Oui | CU4: Oui | DC4: Oui
F5: Formulaire en date du | G5: =TODAY() -> 2024-10-04
B6: Page 3 - IMMEUBLES - PRÉVUS
B8: PROJET | AO8: Date de la DAF : | AP8: =G_PROJET_ETAPE_APPROUVE -> 00:00:00 | AQ8: =G_APPRO_DATE -> 00:00:00
B10: Numéro du projet | J10: : | K10: =G_PROJET_NO_COMPLET -> ACL-00000 | O10: 1 | AH10: Étape du projet : | AI10: =G_PROJET_ETAPE -> 0 | AU10: 2
B12: Nom du projet | J12: : | K12: =G_PROJET_NOM -> 0 | AU12: 3
B15: BÂTIMENTS PRÉVUS (Sommaire)
C18: Résumé des informations
C20: Bâtiment | F20: Volet | H20: Nb Unités | K20: Typologie | N20: Clientèle | U20: Occupation | Z20: SUAL | AC20: SAD | AI20: App. | AK20: Coûts d'adaptation
AK21: Organisme | AO21: SHQ
CO29: Superficie totale | CQ29: Cout Supplémentaire maximum admissible - V1 | CR29: Cout Supplémentaire maximum admissible - V2 | CS29: Cout Supplémentaire maximum admissible - V3Reg | CT29: Cout Supplémentaire maximum admissible - V3Urg | CU29: Cout Supplémentaire maximum admissible
CE39: Frais Chauffage | CF39: Frais eau chaude | CG39: Frais électricité | CH39: Frais applicables | CJ39: Nombre d'unités par typologie | CK39: Valeur de remplacement | CL39: Revenus sans service - Org | CM39: Revenus sans service - SHQ | CN39: Revenus sans service - Ind
C41: 0 | F41: 24 | H41: 0 | K41: 4 | AG41: Total : | AK41: 0 | AN41: 0 | AT41: 5 | CA41: 0
C45: Sommaire des typologies - Services - Loyers médians | AY45: Ajustements
D46: Table de loyers médians : | BB46: Loyer médian avec services | CB46: =INT(LEFT(IP_NOM_TABLE_LOYER_MEDIAN & "00",2)) -> 0 | DD46: Clientèle PAMH | DE46: FALSE
C47: 7 | D47: Type de | I47: Nombre d'unités | R47: Super- ficie (m2) | S47: Services offerts | AD47: Loyer médian : Organisme | AK47: SHQ | AN47: Indicateur | AZ47: Organisme | BC47: SHQ | BJ47: Typologie | BK47: Majoration | BL47: Total | CY47: FALSE | CZ47: FALSE | DA47: FALSE | DD47: Exemption de taxe | DE47: FALSE
D48: Logement | I48: Volet I | L48: Volet II | O48: Volet III | S48: Chauffage | V48: Eau chaude | Z48: Électricité | AD48: Avec serv. | AH48: Sans serv. | AK48: Avec serv. | AM48: Sans serv. | AN48: Avec serv. | AQ48: Sans serv. | BJ48: 1 c.c. | BK48: 5600 | BL48: =IP_TYPOLOGIE_1C_1*BK48 -> 0 | DD48: Plus d'un volet | DE48: =AND(IP_VOLET_I_SEULEMENT=IP_VOLET_II_SEULEMENT,IP_VOLET_I_SEULEMENT=IP_VOLET_III_SEULEMENT,NOT(IP_VOLET_AUCUN)) -> FALSE | DF48: Aucun volet | DG48: =AND(IP_NBRE_UNITES=0) -> TRUE
D49: Chambre | I49: 0 | L49: 0 | O49: 0 | AD49: =IndicateurAjuste(IP_CH_AV_SERVC_ORG_AJ) ->  | AE49: =Ajuster(IP_CH_AV_SERVC_ORG_AJ,IP_CH_AV_SERVC_IND) -> 0 | AH49: =MAX(0,IF(""=IP_CH_AV_SERVC_ORG,"",IP_CH_AV_SERVC_ORG-INDEX(PARM_FRS_MENS_SRVC,1,4))) -> 0 | AK49: =IndicateurAjuste(IP_CH_AV_SERVC_SHQ_AJ) ->  | AL49: =Ajuster(IP_CH_AV_SERVC_SHQ_AJ,IP_CH_AV_SERVC_IND) -> 0 | AM49: =MAX(0,IF(""=IP_CH_AV_SERVC_SHQ,"",IP_CH_AV_SERVC_SHQ-INDEX(PARM_FRS_MENS_SRVC,1,4))) -> 0 | AN49: =IF(IP_TABLE_LOYER_MEDIAN=0,0,INDEX(T_LOYERS_MEDIANS,IP_TABLE_LOYER_MEDIAN,2)) -> 0 | AQ49: =MAX(0,IF(""=IP_CH_AV_SERVC_IND,"",IP_CH_AV_SERVC_IND-INDEX(PARM_FRS_MENS_SRVC,1,4))) -> 0 | BJ49: 2 c.c. | BK49: 7100 | BL49: =IP_TYPOLOGIE_2C_1*BK49 -> 0 | CE49: =IF(IP_CH_CHAUFFAGE="OUI",INDEX(PARM_FRS_MENS_SRVC,1,1),0) -> 0 | CF49: =IF(IP_CH_EAU_CHAUD="OUI",INDEX(PARM_FRS_MENS_SRVC,1,2),0) -> 0 | CG49: =IF(IP_CH_ELECTRCT="OUI",INDEX(PARM_FRS_MENS_SRVC,1,3),0) -> 0 | CH49: =IP_CH_FRAIS_CHAUFFAGE+IP_CH_FRAIS_EAU_CHAUD+IP_CH_FRAIS_ELECTRCT -> 0 | CJ49: =SUM(I49:Q49) -> 0 | CK49: =INDEX(PARM_VALEUR_REMPL,1) * IP_CH_NBRE_UNITES -> 0 | CL49: =IF(ISERR(IP_CH_SS_SERVC_ORG*IP_CH_NBRE_UNITES),0,IP_CH_SS_SERVC_ORG*IP_CH_NBRE_UNITES) -> 0 | CM49: =IF(ISERR(IP_CH_SS_SERVC_SHQ*IP_CH_NBRE_UNITES),0,IP_CH_SS_SERVC_SHQ*IP_CH_NBRE_UNITES) -> 0 | CN49: =IF(ISERR(IP_CH_SS_SERVC_IND*IP_CH_NBRE_UNITES),0,IP_CH_SS_SERVC_IND*IP_CH_NBRE_UNITES) -> 0 | CO49: =IP_CH_NBRE_UNITES*IP_CH_SUPERFICIE -> 0 | CQ49: =IP_TYPOLOGIE_CH_1 *IP_SUBV_UNITE/IP_TAUX_APP -> 0 | CR49: =IP_TYPOLOGIE_CH_2 *IP_SUBV_UNITE/IP_TAUX_APP -> 0 | CS49: =(IP_TYPOLOGIE_CH_3-IP_NBRE_CHAMBRE_URGENCE) *IP_SUBV_UNITE/IP_TAUX_APP -> 0 | CT49: =(IP_NBRE_CHAMBRE_URGENCE*IP_SUBV_UNITE/IF(G_PROGRAMME_LAQ,TauxSubventionApplicable(G_PROGRAMME_LAQ,G_PROJET_SUBVENTION_PAMH,TRUE),1)) -> 0 | CU49: =CQ49+CR49+CS49+CT49 -> 0 | CY49: =INDEX(PARM_VALEUR_REMPL,1) * IP_TYPOLOGIE_CH_1 -> 0 | CZ49: =INDEX(PARM_VALEUR_REMPL,1) * IP_TYPOLOGIE_CH_2 -> 0 | DA49: =INDEX(PARM_VALEUR_REMPL,1) * IP_TYPOLOGIE_CH_3 -> 0 | DD49: Volet I Seulement | DE49: =AND(IP_NBRE_UNITES_I>0,IP_NBRE_UNITES_I=IP_NBRE_UNITES) -> FALSE | DF49: Aucun | DG49: =AND(IP_NBRE_UNITES>0,IP_NBRE_UNITES_I=0) -> FALSE
D50: Studio | I50: 0 | L50: 0 | O50: 0 | AD50: =IndicateurAjuste(IP_ST_AV_SERVC_ORG_AJ) ->  | AE50: =Ajuster(IP_ST_AV_SERVC_ORG_AJ,IP_ST_AV_SERVC_IND) -> 0 | AH50: =MAX(0,IF(""=IP_ST_AV_SERVC_ORG,"",IP_ST_AV_SERVC_ORG-INDEX(PARM_FRS_MENS_SRVC,2,4))) -> 0 | AK50: =IndicateurAjuste(IP_ST_AV_SERVC_SHQ_AJ) ->  | AL50: =Ajuster(IP_ST_AV_SERVC_SHQ_AJ,IP_ST_AV_SERVC_IND) -> 0 | AM50: =MAX(0,IF(""=IP_ST_AV_SERVC_SHQ,"",IP_ST_AV_SERVC_SHQ-INDEX(PARM_FRS_MENS_SRVC,2,4))) -> 0 | AN50: =IF(IP_TABLE_LOYER_MEDIAN=0,0,INDEX(T_LOYERS_MEDIANS,IP_TABLE_LOYER_MEDIAN,3)) -> 0 | AQ50: =MAX(0,IF(""=IP_ST_AV_SERVC_IND,"",IP_ST_AV_SERVC_IND-INDEX(PARM_FRS_MENS_SRVC,2,4))) -> 0 | BJ50: 3 c.c. | BK50: 8900 | BL50: =IP_TYPOLOGIE_3C_1*BK50 -> 0 | CE50: =IF(IP_ST_CHAUFFAGE="OUI",INDEX(PARM_FRS_MENS_SRVC,2,1),0) -> 0 | CF50: =IF(IP_ST_EAU_CHAUD="OUI",INDEX(PARM_FRS_MENS_SRVC,2,2),0) -> 0 | CG50: =IF(IP_ST_ELECTRCT="OUI",INDEX(PARM_FRS_MENS_SRVC,2,3),0) -> 0 | CH50: =IP_ST_FRAIS_CHAUFFAGE+IP_ST_FRAIS_EAU_CHAUD+IP_ST_FRAIS_ELECTRCT -> 0 | CJ50: 0 | CK50: =INDEX(PARM_VALEUR_REMPL,2) * IP_ST_NBRE_UNITES -> 0 | CL50: =IF(ISERR(IP_ST_SS_SERVC_ORG*IP_ST_NBRE_UNITES),0,IP_ST_SS_SERVC_ORG*IP_ST_NBRE_UNITES) -> 0 | CM50: =IF(ISERR(IP_ST_SS_SERVC_SHQ*IP_ST_NBRE_UNITES),0,IP_ST_SS_SERVC_SHQ*IP_ST_NBRE_UNITES) -> 0 | CN50: =IF(ISERR(IP_ST_SS_SERVC_IND*IP_ST_NBRE_UNITES),0,IP_ST_SS_SERVC_IND*IP_ST_NBRE_UNITES) -> 0 | CO50: =IP_ST_NBRE_UNITES*IP_ST_SUPERFICIE -> 0 | CQ50: =IP_TYPOLOGIE_ST_1 *IP_SUBV_UNITE/IP_TAUX_APP -> 0 | CR50: =IP_TYPOLOGIE_ST_2 *IP_SUBV_UNITE/IP_TAUX_APP -> 0 | CS50: =IP_TYPOLOGIE_ST_3 *IP_SUBV_UNITE/IP_TAUX_APP -> 0 | CU50: 0 | CY50: =INDEX(PARM_VALEUR_REMPL,2) * IP_TYPOLOGIE_ST_1 -> 0 | CZ50: =INDEX(PARM_VALEUR_REMPL,2) * IP_TYPOLOGIE_ST_2 -> 0 | DA50: =INDEX(PARM_VALEUR_REMPL,2) * IP_TYPOLOGIE_ST_3 -> 0 | DD50: Volet II Seulement | DE50: =AND(IP_NBRE_UNITES_II>0,IP_NBRE_UNITES_II=IP_NBRE_UNITES) -> FALSE | DF50: Aucun | DG50: =AND(IP_NBRE_UNITES>0,IP_NBRE_UNITES_II=0) -> FALSE
D51: 1CC | I51: 0 | L51: 0 | O51: 0 | AD51: =IndicateurAjuste(IP_1C_AV_SERVC_ORG_AJ) ->  | AE51: =Ajuster(IP_1C_AV_SERVC_ORG_AJ,IP_1C_AV_SERVC_IND) -> 0 | AH51: =MAX(0,IF(""=IP_1C_AV_SERVC_ORG,"",IP_1C_AV_SERVC_ORG-INDEX(PARM_FRS_MENS_SRVC,3,4))) -> 0 | AK51: =IndicateurAjuste(IP_1C_AV_SERVC_SHQ_AJ) ->  | AL51: =Ajuster(IP_1C_AV_SERVC_SHQ_AJ,IP_1C_AV_SERVC_IND) -> 0 | AM51: =MAX(0,IF(""=IP_1C_AV_SERVC_SHQ,"",IP_1C_AV_SERVC_SHQ-INDEX(PARM_FRS_MENS_SRVC,3,4))) -> 0 | AN51: =IF(IP_TABLE_LOYER_MEDIAN=0,0,INDEX(T_LOYERS_MEDIANS,IP_TABLE_LOYER_MEDIAN,4)) -> 0 | AQ51: =MAX(0,IF(""=IP_1C_AV_SERVC_IND,"",IP_1C_AV_SERVC_IND-INDEX(PARM_FRS_MENS_SRVC,3,4))) -> 0 | BJ51: 4 c.c. | BK51: 10100 | BL51: =IP_TYPOLOGIE_4C_1*BK51 -> 0 | CE51: =IF(IP_1C_CHAUFFAGE="OUI",INDEX(PARM_FRS_MENS_SRVC,3,1),0) -> 0 | CF51: =IF(IP_1C_EAU_CHAUD="OUI",INDEX(PARM_FRS_MENS_SRVC,3,2),0) -> 0 | CG51: =IF(IP_1C_ELECTRCT="OUI",INDEX(PARM_FRS_MENS_SRVC,3,3),0) -> 0 | CH51: =IP_1C_FRAIS_CHAUFFAGE+IP_1C_FRAIS_EAU_CHAUD+IP_1C_FRAIS_ELECTRCT -> 0 | CJ51: 0 | CK51: =INDEX(PARM_VALEUR_REMPL,3) * IP_1C_NBRE_UNITES -> 0 | CL51: =IF(ISERR(IP_1C_SS_SERVC_ORG*IP_1C_NBRE_UNITES),0,IP_1C_SS_SERVC_ORG*IP_1C_NBRE_UNITES) -> 0 | CM51: =IF(ISERR(IP_1C_SS_SERVC_SHQ*IP_1C_NBRE_UNITES),0,IP_1C_SS_SERVC_SHQ*IP_1C_NBRE_UNITES) -> 0 | CN51: =IF(ISERR(IP_1C_SS_SERVC_IND*IP_1C_NBRE_UNITES),0,IP_1C_SS_SERVC_IND*IP_1C_NBRE_UNITES) -> 0 | CO51: =IP_1C_NBRE_UNITES*IP_1C_SUPERFICIE -> 0 | CQ51: =IP_TYPOLOGIE_1C_1 *IP_SUBV_UNITE/IP_TAUX_APP -> 0 | CR51: =IP_TYPOLOGIE_1C_2 *IP_SUBV_UNITE/IP_TAUX_APP -> 0 | CS51: =IP_TYPOLOGIE_1C_3 *IP_SUBV_UNITE/IP_TAUX_APP -> 0 | CU51: 0 | CY51: =INDEX(PARM_VALEUR_REMPL,3) * IP_TYPOLOGIE_1C_1 -> 0 | CZ51: =INDEX(PARM_VALEUR_REMPL,3) * IP_TYPOLOGIE_1C_2 -> 0 | DA51: =INDEX(PARM_VALEUR_REMPL,3) * IP_TYPOLOGIE_1C_3 -> 0 | DD51: Volet III Seulement | DE51: =AND(IP_NBRE_UNITES_III>0,IP_NBRE_UNITES_III=IP_NBRE_UNITES) -> FALSE | DF51: Aucun | DG51: =AND(IP_NBRE_UNITES>0,IP_NBRE_UNITES_III=0) -> FALSE
D52: 2CC | I52: 0 | L52: 0 | O52: 0 | AD52: =IndicateurAjuste(IP_2C_AV_SERVC_ORG_AJ) ->  | AE52: =Ajuster(IP_2C_AV_SERVC_ORG_AJ,IP_2C_AV_SERVC_IND) -> 0 | AH52: =MAX(0,IF(""=IP_2C_AV_SERVC_ORG,"",IP_2C_AV_SERVC_ORG-INDEX(PARM_FRS_MENS_SRVC,4,4))) -> 0 | AK52: =IndicateurAjuste(IP_2C_AV_SERVC_SHQ_AJ) ->  | AL52: =Ajuster(IP_2C_AV_SERVC_SHQ_AJ,IP_2C_AV_SERVC_IND) -> 0 | AM52: =MAX(0,IF(""=IP_2C_AV_SERVC_SHQ,"",IP_2C_AV_SERVC_SHQ-INDEX(PARM_FRS_MENS_SRVC,4,4))) -> 0 | AN52: =IF(IP_TABLE_LOYER_MEDIAN=0,0,INDEX(T_LOYERS_MEDIANS,IP_TABLE_LOYER_MEDIAN,5)) -> 0 | AQ52: =MAX(0,IF(""=IP_2C_AV_SERVC_IND,"",IP_2C_AV_SERVC_IND-INDEX(PARM_FRS_MENS_SRVC,4,4))) -> 0 | BJ52: 5 c.c. | BK52: 11600 | BL52: =IP_TYPOLOGIE_5C_1*BK52 -> 0 | CE52: =IF(IP_2C_CHAUFFAGE="OUI",INDEX(PARM_FRS_MENS_SRVC,4,1),0) -> 0 | CF52: =IF(IP_2C_EAU_CHAUD="OUI",INDEX(PARM_FRS_MENS_SRVC,4,2),0) -> 0 | CG52: =IF(IP_2C_ELECTRCT="OUI",INDEX(PARM_FRS_MENS_SRVC,4,3),0) -> 0 | CH52: =IP_2C_FRAIS_CHAUFFAGE+IP_2C_FRAIS_EAU_CHAUD+IP_2C_FRAIS_ELECTRCT -> 0 | CJ52: 0 | CK52: =INDEX(PARM_VALEUR_REMPL,4) * IP_2C_NBRE_UNITES -> 0 | CL52: =IF(ISERR(IP_2C_SS_SERVC_ORG*IP_2C_NBRE_UNITES),0,IP_2C_SS_SERVC_ORG*IP_2C_NBRE_UNITES) -> 0 | CM52: =IF(ISERR(IP_2C_SS_SERVC_SHQ*IP_2C_NBRE_UNITES),0,IP_2C_SS_SERVC_SHQ*IP_2C_NBRE_UNITES) -> 0 | CN52: =IF(ISERR(IP_2C_SS_SERVC_IND*IP_2C_NBRE_UNITES),0,IP_2C_SS_SERVC_IND*IP_2C_NBRE_UNITES) -> 0 | CO52: =IP_2C_NBRE_UNITES*IP_2C_SUPERFICIE -> 0 | CQ52: =IP_TYPOLOGIE_2C_1 *IP_SUBV_UNITE/IP_TAUX_APP -> 0 | CR52: =IP_TYPOLOGIE_2C_2 *IP_SUBV_UNITE/IP_TAUX_APP -> 0 | CS52: =IP_TYPOLOGIE_2C_3 *IP_SUBV_UNITE/IP_TAUX_APP -> 0 | CU52: 0 | CY52: =INDEX(PARM_VALEUR_REMPL,4) * IP_TYPOLOGIE_2C_1 -> 0 | CZ52: =INDEX(PARM_VALEUR_REMPL,4) * IP_TYPOLOGIE_2C_2 -> 0 | DA52: =INDEX(PARM_VALEUR_REMPL,4) * IP_TYPOLOGIE_2C_3 -> 0 | DD52: Volet I et II Seulement | DE52: =AND(NOT(IP_VOLET_AUCUN),IP_VOLET_III_AUCUN) -> FALSE
D53: 3CC | I53: 0 | L53: 0 | O53: 0 | AD53: =IndicateurAjuste(IP_3C_AV_SERVC_ORG_AJ) ->  | AE53: =Ajuster(IP_3C_AV_SERVC_ORG_AJ,IP_3C_AV_SERVC_IND) -> 0 | AH53: =MAX(0,IF(""=IP_3C_AV_SERVC_ORG,"",IP_3C_AV_SERVC_ORG-INDEX(PARM_FRS_MENS_SRVC,5,4))) -> 0 | AK53: =IndicateurAjuste(IP_3C_AV_SERVC_SHQ_AJ) ->  | AL53: =Ajuster(IP_3C_AV_SERVC_SHQ_AJ,IP_3C_AV_SERVC_IND) -> 0 | AM53: =MAX(0,IF(""=IP_3C_AV_SERVC_SHQ,"",IP_3C_AV_SERVC_SHQ-INDEX(PARM_FRS_MENS_SRVC,5,4))) -> 0 | AN53: =IF(IP_TABLE_LOYER_MEDIAN=0,0,INDEX(T_LOYERS_MEDIANS,IP_TABLE_LOYER_MEDIAN,6)) -> 0 | AQ53: =MAX(0,IF(""=IP_3C_AV_SERVC_IND,"",IP_3C_AV_SERVC_IND-INDEX(PARM_FRS_MENS_SRVC,5,4))) -> 0 | BK53: Total | BL53: =SUM(BL48:BL52) -> 0 | CE53: =IF(IP_3C_CHAUFFAGE="OUI",INDEX(PARM_FRS_MENS_SRVC,5,1),0) -> 0 | CF53: =IF(IP_3C_EAU_CHAUD="OUI",INDEX(PARM_FRS_MENS_SRVC,5,2),0) -> 0 | CG53: =IF(IP_3C_ELECTRCT="OUI",INDEX(PARM_FRS_MENS_SRVC,5,3),0) -> 0 | CH53: =IP_3C_FRAIS_CHAUFFAGE+IP_3C_FRAIS_EAU_CHAUD+IP_3C_FRAIS_ELECTRCT -> 0 | CJ53: 0 | CK53: =INDEX(PARM_VALEUR_REMPL,5) * IP_3C_NBRE_UNITES -> 0 | CL53: =IF(ISERR(IP_3C_SS_SERVC_ORG*IP_3C_NBRE_UNITES),0,IP_3C_SS_SERVC_ORG*IP_3C_NBRE_UNITES) -> 0 | CM53: =IF(ISERR(IP_3C_SS_SERVC_SHQ*IP_3C_NBRE_UNITES),0,IP_3C_SS_SERVC_SHQ*IP_3C_NBRE_UNITES) -> 0 | CN53: =IF(ISERR(IP_3C_SS_SERVC_IND*IP_3C_NBRE_UNITES),0,IP_3C_SS_SERVC_IND*IP_3C_NBRE_UNITES) -> 0 | CO53: =IP_3C_NBRE_UNITES*IP_3C_SUPERFICIE -> 0 | CQ53: =IP_TYPOLOGIE_3C_1 *IP_SUBV_UNITE/IP_TAUX_APP -> 0 | CR53: =IP_TYPOLOGIE_3C_2 *IP_SUBV_UNITE/IP_TAUX_APP -> 0 | CS53: =IP_TYPOLOGIE_3C_3 *IP_SUBV_UNITE/IP_TAUX_APP -> 0 | CU53: 0 | CY53: =INDEX(PARM_VALEUR_REMPL,5) * IP_TYPOLOGIE_3C_1 -> 0 | CZ53: =INDEX(PARM_VALEUR_REMPL,5) * IP_TYPOLOGIE_3C_2 -> 0 | DA53: =INDEX(PARM_VALEUR_REMPL,5) * IP_TYPOLOGIE_3C_3 -> 0 | DD53: Volet II ou III | DE53: =OR(NOT(IP_VOLET_II_AUCUN),NOT(IP_VOLET_III_AUCUN)) -> TRUE
D54: 4CC | I54: 0 | L54: 0 | O54: 0 | AD54: =IndicateurAjuste(IP_4C_AV_SERVC_ORG_AJ) ->  | AE54: =Ajuster(IP_4C_AV_SERVC_ORG_AJ,IP_4C_AV_SERVC_IND) -> 0 | AH54: =MAX(0,IF(""=IP_4C_AV_SERVC_ORG,"",IP_4C_AV_SERVC_ORG-INDEX(PARM_FRS_MENS_SRVC,6,4))) -> 0 | AK54: =IndicateurAjuste(IP_4C_AV_SERVC_SHQ_AJ) ->  | AL54: =Ajuster(IP_4C_AV_SERVC_SHQ_AJ,IP_4C_AV_SERVC_IND) -> 0 | AM54: =MAX(0,IF(""=IP_4C_AV_SERVC_SHQ,"",IP_4C_AV_SERVC_SHQ-INDEX(PARM_FRS_MENS_SRVC,6,4))) -> 0 | AN54: =IF(IP_TABLE_LOYER_MEDIAN=0,0,INDEX(T_LOYERS_MEDIANS,IP_TABLE_LOYER_MEDIAN,7)) -> 0 | AQ54: =MAX(0,IF(""=IP_4C_AV_SERVC_IND,"",IP_4C_AV_SERVC_IND-INDEX(PARM_FRS_MENS_SRVC,6,4))) -> 0 | CE54: =IF(IP_4C_CHAUFFAGE="OUI",INDEX(PARM_FRS_MENS_SRVC,6,1),0) -> 0 | CF54: =IF(IP_4C_EAU_CHAUD="OUI",INDEX(PARM_FRS_MENS_SRVC,6,2),0) -> 0 | CG54: =IF(IP_4C_ELECTRCT="OUI",INDEX(PARM_FRS_MENS_SRVC,6,3),0) -> 0 | CH54: =IP_4C_FRAIS_CHAUFFAGE+IP_4C_FRAIS_EAU_CHAUD+IP_4C_FRAIS_ELECTRCT -> 0 | CJ54: 0 | CK54: =INDEX(PARM_VALEUR_REMPL,6) * IP_4C_NBRE_UNITES -> 0 | CL54: =IF(ISERR(IP_4C_SS_SERVC_ORG*IP_4C_NBRE_UNITES),0,IP_4C_SS_SERVC_ORG*IP_4C_NBRE_UNITES) -> 0 | CM54: =IF(ISERR(IP_4C_SS_SERVC_SHQ*IP_4C_NBRE_UNITES),0,IP_4C_SS_SERVC_SHQ*IP_4C_NBRE_UNITES) -> 0 | CN54: =IF(ISERR(IP_4C_SS_SERVC_IND*IP_4C_NBRE_UNITES),0,IP_4C_SS_SERVC_IND*IP_4C_NBRE_UNITES) -> 0 | CO54: =IP_4C_NBRE_UNITES*IP_4C_SUPERFICIE -> 0 | CQ54: =IP_TYPOLOGIE_4C_1 *IP_SUBV_UNITE/IP_TAUX_APP -> 0 | CR54: =IP_TYPOLOGIE_4C_2 *IP_SUBV_UNITE/IP_TAUX_APP -> 0 | CS54: =IP_TYPOLOGIE_4C_3 *IP_SUBV_UNITE/IP_TAUX_APP -> 0 | CU54: 0 | CY54: =INDEX(PARM_VALEUR_REMPL,6) * IP_TYPOLOGIE_4C_1 -> 0 | CZ54: =INDEX(PARM_VALEUR_REMPL,6) * IP_TYPOLOGIE_4C_2 -> 0 | DA54: =INDEX(PARM_VALEUR_REMPL,6) * IP_TYPOLOGIE_4C_3 -> 0 | DD54: Nombre de chambre d'urgence | DE54: 0
D55: 5CC | I55: 0 | L55: 0 | O55: 0 | AD55: =IndicateurAjuste(IP_5C_AV_SERVC_ORG_AJ) ->  | AE55: =Ajuster(IP_5C_AV_SERVC_ORG_AJ,IP_5C_AV_SERVC_IND) -> 0 | AH55: =MAX(0,IF(""=IP_5C_AV_SERVC_ORG,"",IP_5C_AV_SERVC_ORG-INDEX(PARM_FRS_MENS_SRVC,7,4))) -> 0 | AK55: =IndicateurAjuste(IP_5C_AV_SERVC_SHQ_AJ) ->  | AL55: =Ajuster(IP_5C_AV_SERVC_SHQ_AJ,IP_5C_AV_SERVC_IND) -> 0 | AM55: =MAX(0,IF(""=IP_5C_AV_SERVC_SHQ,"",IP_5C_AV_SERVC_SHQ-INDEX(PARM_FRS_MENS_SRVC,7,4))) -> 0 | AN55: =IF(IP_TABLE_LOYER_MEDIAN=0,0,INDEX(T_LOYERS_MEDIANS,IP_TABLE_LOYER_MEDIAN,8)) -> 0 | AQ55: =MAX(0,IF(""=IP_5C_AV_SERVC_IND,"",IP_5C_AV_SERVC_IND-INDEX(PARM_FRS_MENS_SRVC,7,4))) -> 0 | CE55: =IF(IP_5C_CHAUFFAGE="OUI",INDEX(PARM_FRS_MENS_SRVC,7,1),0) -> 0 | CF55: =IF(IP_5C_EAU_CHAUD="OUI",INDEX(PARM_FRS_MENS_SRVC,7,2),0) -> 0 | CG55: =IF(IP_5C_ELECTRCT="OUI",INDEX(PARM_FRS_MENS_SRVC,7,3),0) -> 0 | CH55: =IP_5C_FRAIS_CHAUFFAGE+IP_5C_FRAIS_EAU_CHAUD+IP_5C_FRAIS_ELECTRCT -> 0 | CJ55: 0 | CK55: =INDEX(PARM_VALEUR_REMPL,7) * IP_5C_NBRE_UNITES -> 0 | CL55: =IF(ISERR(IP_5C_SS_SERVC_ORG*IP_5C_NBRE_UNITES),0,IP_5C_SS_SERVC_ORG*IP_5C_NBRE_UNITES) -> 0 | CM55: =IF(ISERR(IP_5C_SS_SERVC_SHQ*IP_5C_NBRE_UNITES),0,IP_5C_SS_SERVC_SHQ*IP_5C_NBRE_UNITES) -> 0 | CN55: =IF(ISERR(IP_5C_SS_SERVC_IND*IP_5C_NBRE_UNITES),0,IP_5C_SS_SERVC_IND*IP_5C_NBRE_UNITES) -> 0 | CO55: =IP_5C_NBRE_UNITES*IP_5C_SUPERFICIE -> 0 | CQ55: =IP_TYPOLOGIE_5C_1 *IP_SUBV_UNITE/IP_TAUX_APP -> 0 | CR55: =IP_TYPOLOGIE_5C_2 *IP_SUBV_UNITE/IP_TAUX_APP -> 0 | CS55: =IP_TYPOLOGIE_5C_3 *IP_SUBV_UNITE/IP_TAUX_APP -> 0 | CU55: 0 | CY55: =INDEX(PARM_VALEUR_REMPL,7) * IP_TYPOLOGIE_5C_1 -> 0 | CZ55: =INDEX(PARM_VALEUR_REMPL,7) * IP_TYPOLOGIE_5C_2 -> 0 | DA55: =INDEX(PARM_VALEUR_REMPL,7) * IP_TYPOLOGIE_5C_3 -> 0 | DD55: Chambre d'urgence seulement | DE55: =IP_NBRE_CHAMBRE_URGENCE=IP_NBRE_UNITES -> TRUE
D56: Total | I56: =SUM(I49:I55) -> 0 | L56: =SUM(L49:L55) -> 0 | O56: =SUM(O49:Q55) -> 0 | CY56: =SUM(CY49:CY55) -> 0 | CZ56: =SUM(CZ49:CZ55) -> 0 | DA56: =SUM(DA49:DA55) -> 0 | DD56: Au moins une Chambre d'urgence | DE56: =IP_NBRE_CHAMBRE_URGENCE>0 -> FALSE
D57: Grand total | I57: =IP_NBRE_UNITES_I+IP_NBRE_UNITES_II+IP_NBRE_UNITES_III -> 0 | CL57: =SUM(CL49:CL55) -> 0 | CM57: =SUM(CM49:CM55) -> 0 | CN57: =SUM(CN49:CN55) -> 0
CR59: Ratio coût supp max | DD59: Coûts de réalisation admissibles de la SHQ - Volet 1 | DE59: =Ajuster(F_SUBVENTIONS_COUT_REALISATION_MAX_I_ORG_AJ,CoutsRealisationAdmissibleShqParVolet(G_PROGRAMME,G_PROJET_TYPE_INTERVENTION,1,G_PROJET_TERRITOIRE,IP_TYPOLOGIE_CH_1,IP_TYPOLOGIE_ST_1,IP_TYPOLOGIE_1C_1,IP_TYPOLOGIE_2C_1,IP_TYPOLOGIE_3C_1,IP_TYPOLOGIE_4C_1,IP_TYPOLOGIE_5C_1,"ORG",F_TAUX_MAJ_CMA_ORG)) -> 0 | DF59: =Ajuster(F_SUBVENTIONS_COUT_REALISATION_MAX_I_SHQ_AJ,CoutsRealisationAdmissibleShqParVolet(G_PROGRAMME,G_PROJET_TYPE_INTERVENTION,1,G_PROJET_TERRITOIRE,IP_TYPOLOGIE_CH_1,IP_TYPOLOGIE_ST_1,IP_TYPOLOGIE_1C_1,IP_TYPOLOGIE_2C_1,IP_TYPOLOGIE_3C_1,IP_TYPOLOGIE_4C_1,IP_TYPOLOGIE_5C_1,"SHQ",F_TAUX_MAJ_CMA_SHQ)) -> 0
C61: Unités de supplément au loyer | V61: Valeurs de l'immeuble prévu | AY61: Ajustements | CP61: Cout Supplémentaire maximum admissible - V1 : | CQ61: =SUM(CQ$49:CQ$55) -> 0 | CR61: =IP_COUT_SUPP_MAX_ADM_V1/IP_COUT_SUPP_MAX_ADM ->  | DD61: Coûts de réalisation admissibles de la SHQ - Volet 2 | DE61: =Ajuster(F_SUBVENTIONS_COUT_REALISATION_MAX_II_ORG_AJ,CoutsRealisationAdmissibleShqParVolet(G_PROGRAMME,G_PROJET_TYPE_INTERVENTION,2,G_PROJET_TERRITOIRE,IP_TYPOLOGIE_CH_2,IP_TYPOLOGIE_ST_2,IP_TYPOLOGIE_1C_2,IP_TYPOLOGIE_2C_2,IP_TYPOLOGIE_3C_2,IP_TYPOLOGIE_4C_2,IP_TYPOLOGIE_5C_2,"ORG",F_TAUX_MAJ_CMA_ORG)) -> 0 | DF61: =Ajuster(F_SUBVENTIONS_COUT_REALISATION_MAX_II_SHQ_AJ,CoutsRealisationAdmissibleShqParVolet(G_PROGRAMME,G_PROJET_TYPE_INTERVENTION,2,G_PROJET_TERRITOIRE,IP_TYPOLOGIE_CH_2,IP_TYPOLOGIE_ST_2,IP_TYPOLOGIE_1C_2,IP_TYPOLOGIE_2C_2,IP_TYPOLOGIE_3C_2,IP_TYPOLOGIE_4C_2,IP_TYPOLOGIE_5C_2,"SHQ",F_TAUX_MAJ_CMA_SHQ)) -> 0
D63: Nombre d'unités | O63: Proportion | AJ63: Organisme ($) | AN63: SHQ ($) | CP63: Cout Supplémentaire maximum admissible - V2 : | CQ63: =SUM(CR$49:CR$55) -> 0 | CR63: =IP_COUT_SUPP_MAX_ADM_V2/IP_COUT_SUPP_MAX_ADM ->  | DD63: Coûts de réalisation admissibles de la SHQ - Volet 3 | DE63: =IF(AND(ISBLANK(F_SUBVENTIONS_COUT_REALISATION_MAX_III_REG_ORG_AJ),ISBLANK(F_SUBVENTIONS_COUT_REALISATION_MAX_III_URG_ORG_AJ)),CoutsRealisationAdmissibleShqParVolet(G_PROGRAMME,G_PROJET_TYPE_INTERVENTION,3,G_PROJET_TERRITOIRE,IP_TYPOLOGIE_CH_3,IP_TYPOLOGIE_ST_3,IP_TYPOLOGIE_1C_3,IP_TYPOLOGIE_2C_3,IP_TYPOLOGIE_3C_3,IP_TYPOLOGIE_4C_3,IP_TYPOLOGIE_5C_3,"ORG",F_TAUX_MAJ_CMA_ORG),F_SUBVENTIONS_COUT_REALISATION_MAX_III_REG_ORG_AJ+F_SUBVENTIONS_COUT_REALISATION_MAX_III_URG_ORG_AJ) -> 0 | DF63: =IF(AND(ISBLANK(F_SUBVENTIONS_COUT_REALISATION_MAX_III_REG_SHQ_AJ),ISBLANK(F_SUBVENTIONS_COUT_REALISATION_MAX_III_URG_SHQ_AJ)),CoutsRealisationAdmissibleShqParVolet(G_PROGRAMME,G_PROJET_TYPE_INTERVENTION,3,G_PROJET_TERRITOIRE,IP_TYPOLOGIE_CH_3,IP_TYPOLOGIE_ST_3,IP_TYPOLOGIE_1C_3,IP_TYPOLOGIE_2C_3,IP_TYPOLOGIE_3C_3,IP_TYPOLOGIE_4C_3,IP_TYPOLOGIE_5C_3,"SHQ",F_TAUX_MAJ_CMA_SHQ),F_SUBVENTIONS_COUT_REALISATION_MAX_III_REG_SHQ_AJ+F_SUBVENTIONS_COUT_REALISATION_MAX_III_URG_SHQ_AJ) -> 0 | DG63: Total : | DH63: =IP_CRAS_VI_ORG+IP_CRAS_V2_ORG+IP_CRAS_V3_ORG -> 0 | DI63: =IP_CRAS_VI_SHQ+IP_CRAS_V2_SHQ+IP_CRAS_V3_SHQ -> 0
I65: 10 | O65: =IF(IP_NBRE_UNITES=0,0,ROUND(IP_UNITES_NOMBRE/IP_NBRE_UNITES,2)) -> 0 | S65: 11 | V65: Valeur de remplacement (assurances) (Sans terrain) | AJ65: =IndicateurAjuste(IP_VALEUR_REMPLACEMENT_ORG_AJ) ->  | AK65: =Ajuster(IP_VALEUR_REMPLACEMENT_ORG_AJ,IP_CH_VALEUR_REMPL+IP_ST_VALEUR_REMPL+IP_1C_VALEUR_REMPL+IP_2C_VALEUR_REMPL+IP_3C_VALEUR_REMPL+IP_4C_VALEUR_REMPL+IP_5C_VALEUR_REMPL) -> 0 | AN65: 8 | AO65: =IndicateurAjuste(IP_VALEUR_REMPLACEMENT_SHQ_AJ) ->  | AP65: =Ajuster(IP_VALEUR_REMPLACEMENT_SHQ_AJ,IP_CH_VALEUR_REMPL+IP_ST_VALEUR_REMPL+IP_1C_VALEUR_REMPL+IP_2C_VALEUR_REMPL+IP_3C_VALEUR_REMPL+IP_4C_VALEUR_REMPL+IP_5C_VALEUR_REMPL) -> 0 | BB65: 8 | CP65: Cout Supplémentaire maximum admissible - V3 Régulier : | CQ65: =SUM(CS$49:CS$55) -> 0 | CR65: =IP_COUT_SUPP_MAX_ADM_V3Reg/IP_COUT_SUPP_MAX_ADM ->  | DD65: Ratio Cout de réalisation total pour subvention / cout maximal de réalisation | DE65: =IF(F_SUBVENTIONS_COUT_REAL_TOTAL_ORG>F_SUBVENTIONS_COUT_REALISATION_MAX_ORG,1,MIN(1,F_SUBVENTIONS_COUT_REAL_TOTAL_ORG/MAX(F_SUBVENTIONS_COUT_REALISATION_MAX_ORG,1))) -> 1 | DF65: =IF(F_SUBVENTIONS_COUT_REAL_TOTAL_SHQ>F_SUBVENTIONS_COUT_REALISATION_MAX_SHQ,1,MIN(1,F_SUBVENTIONS_COUT_REAL_TOTAL_SHQ/MAX(F_SUBVENTIONS_COUT_REALISATION_MAX_SHQ,1))) -> 1
C67: Taux de taxation actuel/prévu | V67: Valeur marchande avant travaux (rés.) | AK67: =IA_EVAL_MARCHANDE_RES_ORG -> 0 | AN67: 12 | AP67: =IA_EVAL_MARCHANDE_RES_SHQ -> 0 | CP67: Cout Supplémentaire maximum admissible - V3 Urgence : | CQ67: =SUM(CT$49:CT$55) -> 0 | CR67: =IP_COUT_SUPP_MAX_ADM_V3Urg/IP_COUT_SUPP_MAX_ADM ->  | DD67: Cout de réalisation de base - Volet 1 | DE67: =IP_CRAS_VI_ORG * IP_RATIO_CR_CMR_ORG -> 0 | DF67: =IP_CRAS_VI_SHQ * IP_RATIO_CR_CMR_SHQ -> 0
G69: Actuel | L69: Org | N69: Prévu | R69: SHQ | V69: Valeur marchande après travaux (rés.) | AJ69: =IndicateurAjuste(IP_VALEUR_AP_TRAVAUX_RES_ORG_AJ) ->  | AK69: =IF(IP_RAP_EVAL,Ajuster(IP_VALEUR_AP_TRAVAUX_RES_ORG_AJ,CalculerValeurMarchandeApresTravaux(G_PROJET_CODE_TYPE_INTERVENTION, IA_EVAL_MARCHANDE_RES_ORG, IA_ACQ_RES_ORG, BR_TRAVAUX_RES_ORG, BR_TRAVAUX_IMPREVUS_RES_ORG, IF(ISERR(BR_COUT_REALISATION_RES_ORG),0,BR_COUT_REALISATION_RES_ORG))),CalculerValeurMarchandeApresTravaux(G_PROJET_CODE_TYPE_INTERVENTION, IA_EVAL_MARCHANDE_RES_ORG, IA_ACQ_RES_ORG, BR_TRAVAUX_RES_ORG, BR_TRAVAUX_IMPREVUS_RES_ORG, IF(ISERR(BR_COUT_REALISATION_RES_ORG),0,BR_COUT_REALISATION_RES_ORG))) -> 0 | AN69: 14 | AO69: =IndicateurAjuste(IP_VALEUR_AP_TRAVAUX_RES_SHQ_AJ) ->  | AP69: =IF(IP_RAP_EVAL,Ajuster(IP_VALEUR_AP_TRAVAUX_RES_SHQ_AJ,CalculerValeurMarchandeApresTravaux(G_PROJET_CODE_TYPE_INTERVENTION, IA_EVAL_MARCHANDE_RES_SHQ, IA_ACQ_RES_SHQ, BR_TRAVAUX_RES_SHQ, BR_TRAVAUX_IMPREVUS_RES_SHQ, IF(ISERR(BR_COUT_REALISATION_RES_SHQ),0,BR_COUT_REALISATION_RES_SHQ))),CalculerValeurMarchandeApresTravaux(G_PROJET_CODE_TYPE_INTERVENTION, IA_EVAL_MARCHANDE_RES_SHQ, IA_ACQ_RES_SHQ, BR_TRAVAUX_RES_SHQ, BR_TRAVAUX_IMPREVUS_RES_SHQ, IF(ISERR(BR_COUT_REALISATION_RES_SHQ),0,BR_COUT_REALISATION_RES_SHQ))) -> 0 | BB69: 14 | DD69: Cout de réalisation de base - Volet 2 | DE69: =IP_CRAS_V2_ORG * IP_RATIO_CR_CMR_ORG -> 0 | DF69: =IP_CRAS_V2_SHQ * IP_RATIO_CR_CMR_SHQ -> 0
C71: Foncier : | F71: 18 | G71: 0 | J71: /100$ | K71: 19 | S71: /100$ | V71: Valeur marchande après travaux (non rés.) | AJ71: =IndicateurAjuste(IP_VALEUR_AP_TRAVAUX_NRES_ORG_AJ) ->  | AK71: =IF(IP_RAP_EVAL,Ajuster(IP_VALEUR_AP_TRAVAUX_NRES_ORG_AJ,CalculerValeurMarchandeApresTravaux(G_PROJET_CODE_TYPE_INTERVENTION, IA_EVAL_MARCHANDE_NRES_ORG, IA_ACQ_NRES_ORG, BR_TRAVAUX_NRES_ORG, BR_TRAVAUX_IMPREVUS_NRES_ORG, IF(ISERR(BR_COUT_REALISATION_NRES_ORG),0,BR_COUT_REALISATION_NRES_ORG))),CalculerValeurMarchandeApresTravaux(G_PROJET_CODE_TYPE_INTERVENTION, IA_EVAL_MARCHANDE_NRES_ORG, IA_ACQ_NRES_ORG, BR_TRAVAUX_NRES_ORG, BR_TRAVAUX_IMPREVUS_NRES_ORG, IF(ISERR(BR_COUT_REALISATION_NRES_ORG),0,BR_COUT_REALISATION_NRES_ORG))) -> 0 | AN71: 16 | AO71: =IndicateurAjuste(IP_VALEUR_AP_TRAVAUX_NRES_SHQ_AJ) ->  | AP71: =IF(IP_RAP_EVAL,Ajuster(IP_VALEUR_AP_TRAVAUX_NRES_SHQ_AJ,CalculerValeurMarchandeApresTravaux(G_PROJET_CODE_TYPE_INTERVENTION, IA_EVAL_MARCHANDE_NRES_SHQ, IA_ACQ_NRES_SHQ, BR_TRAVAUX_NRES_SHQ, BR_TRAVAUX_IMPREVUS_NRES_SHQ, IF(ISERR(BR_COUT_REALISATION_NRES_SHQ),0,BR_COUT_REALISATION_NRES_SHQ))),CalculerValeurMarchandeApresTravaux(G_PROJET_CODE_TYPE_INTERVENTION, IA_EVAL_MARCHANDE_NRES_SHQ, IA_ACQ_NRES_SHQ, BR_TRAVAUX_NRES_SHQ, BR_TRAVAUX_IMPREVUS_NRES_SHQ, IF(ISERR(BR_COUT_REALISATION_NRES_SHQ),0,BR_COUT_REALISATION_NRES_SHQ))) -> 0 | BB71: 16 | CP71: Superficie totale : | CQ71: =SUM(CO49:CO55) -> 0 | CR71: m2 | DD71: Cout de réalisation de base - Volet 3 | DE71: =IP_CRAS_V3_ORG * IP_RATIO_CR_CMR_ORG -> 0 | DF71: =IP_CRAS_V3_SHQ * IP_RATIO_CR_CMR_SHQ -> 0
C73: Services : | F73: 22 | G73: =IA_TAXES_SERVICES_ANNUEL -> 0 | K73: 23 | V73: Valeur marchande totale après travaux | AK73: =IP_VALEUR_AP_TRAVAUX_RES_ORG+IP_VALEUR_AP_TRAVAUX_NRES_ORG -> 0 | AN73: 20 | AP73: =IP_VALEUR_AP_TRAVAUX_RES_SHQ+IP_VALEUR_AP_TRAVAUX_NRES_SHQ -> 0
C75: Scolaire | F75: 25 | G75: 0 | J75: /100$ | K75: 26 | S75: /100$ | V75: Valeur foncière après travaux (rés.) | AJ75: =IndicateurAjuste(IP_VALEUR_FONC_AP_TRAVAUX_RES_ORG_AJ) ->  | AK75: =IF(IP_RAP_EVAL,Ajuster(IP_VALEUR_FONC_AP_TRAVAUX_RES_ORG_AJ,CalculerValeurMarchandeApresTravaux(G_PROJET_CODE_TYPE_INTERVENTION, IA_EVAL_MARCHANDE_RES_ORG, IA_ACQ_RES_ORG, BR_TRAVAUX_RES_ORG, BR_TRAVAUX_IMPREVUS_RES_ORG, IF(ISERR(BR_COUT_REALISATION_RES_ORG),0,BR_COUT_REALISATION_RES_ORG))),CalculerValeurMarchandeApresTravaux(G_PROJET_CODE_TYPE_INTERVENTION, IA_EVAL_MARCHANDE_RES_ORG, IA_ACQ_RES_ORG, BR_TRAVAUX_RES_ORG, BR_TRAVAUX_IMPREVUS_RES_ORG, IF(ISERR(BR_COUT_REALISATION_RES_ORG),0,BR_COUT_REALISATION_RES_ORG))) -> 0 | AN75: 27 | AO75: =IndicateurAjuste(IP_VALEUR_FONC_AP_TRAVAUX_RES_SHQ_AJ) ->  | AP75: =IF(IP_RAP_EVAL,Ajuster(IP_VALEUR_FONC_AP_TRAVAUX_RES_SHQ_AJ,CalculerValeurMarchandeApresTravaux(G_PROJET_CODE_TYPE_INTERVENTION, IA_EVAL_MARCHANDE_RES_SHQ, IA_ACQ_RES_SHQ, BR_TRAVAUX_RES_SHQ, BR_TRAVAUX_IMPREVUS_RES_SHQ, IF(ISERR(BR_COUT_REALISATION_RES_SHQ),0,BR_COUT_REALISATION_RES_SHQ))),CalculerValeurMarchandeApresTravaux(G_PROJET_CODE_TYPE_INTERVENTION, IA_EVAL_MARCHANDE_RES_SHQ, IA_ACQ_RES_SHQ, BR_TRAVAUX_RES_SHQ, BR_TRAVAUX_IMPREVUS_RES_SHQ, IF(ISERR(BR_COUT_REALISATION_RES_SHQ),0,BR_COUT_REALISATION_RES_SHQ))) -> 0 | DD75: Proportion des coûts admissibles - Volet 1 | DE75: =IF(F_SUBVENTIONS_COUT_REALISATION_MAX_ORG=0,0,IP_CRAS_VI_ORG/F_SUBVENTIONS_COUT_REALISATION_MAX_ORG) -> 0 | DF75: =IF(F_SUBVENTIONS_COUT_REALISATION_MAX_SHQ=0,0,IP_CRAS_VI_SHQ/F_SUBVENTIONS_COUT_REALISATION_MAX_SHQ) -> 0
V77: Valeur foncière après travaux (non rés.) | AJ77: =IndicateurAjuste(IP_VALEUR_FONC_AP_TRAVAUX_NRES_ORG_AJ) ->  | AK77: =IF(IP_RAP_EVAL,Ajuster(IP_VALEUR_FONC_AP_TRAVAUX_NRES_ORG_AJ,CalculerValeurMarchandeApresTravaux(G_PROJET_CODE_TYPE_INTERVENTION, IA_EVAL_MARCHANDE_NRES_ORG, IA_ACQ_NRES_ORG, BR_TRAVAUX_NRES_ORG, BR_TRAVAUX_IMPREVUS_NRES_ORG, IF(ISERR(BR_COUT_REALISATION_NRES_ORG),0,BR_COUT_REALISATION_NRES_ORG))),CalculerValeurMarchandeApresTravaux(G_PROJET_CODE_TYPE_INTERVENTION, IA_EVAL_MARCHANDE_NRES_ORG, IA_ACQ_NRES_ORG, BR_TRAVAUX_NRES_ORG, BR_TRAVAUX_IMPREVUS_NRES_ORG, IF(ISERR(BR_COUT_REALISATION_NRES_ORG),0,BR_COUT_REALISATION_NRES_ORG))) -> 0 | AN77: 28 | AO77: =IndicateurAjuste(IP_VALEUR_FONC_AP_TRAVAUX_NRES_SHQ_AJ) ->  | AP77: =IF(IP_RAP_EVAL,Ajuster(IP_VALEUR_FONC_AP_TRAVAUX_NRES_SHQ_AJ,CalculerValeurMarchandeApresTravaux(G_PROJET_CODE_TYPE_INTERVENTION, IA_EVAL_MARCHANDE_NRES_SHQ, IA_ACQ_NRES_SHQ, BR_TRAVAUX_NRES_SHQ, BR_TRAVAUX_IMPREVUS_NRES_SHQ, IF(ISERR(BR_COUT_REALISATION_NRES_SHQ),0,BR_COUT_REALISATION_NRES_SHQ))),CalculerValeurMarchandeApresTravaux(G_PROJET_CODE_TYPE_INTERVENTION, IA_EVAL_MARCHANDE_NRES_SHQ, IA_ACQ_NRES_SHQ, BR_TRAVAUX_NRES_SHQ, BR_TRAVAUX_IMPREVUS_NRES_SHQ, IF(ISERR(BR_COUT_REALISATION_NRES_SHQ),0,BR_COUT_REALISATION_NRES_SHQ))) -> 0
DD80: Proportion des coûts admissibles - Volet 2 | DE80: =IF(F_SUBVENTIONS_COUT_REALISATION_MAX_ORG=0,0,IP_CRAS_V2_ORG/F_SUBVENTIONS_COUT_REALISATION_MAX_ORG) -> 0 | DF80: =IF(F_SUBVENTIONS_COUT_REALISATION_MAX_SHQ=0,0,IP_CRAS_V2_SHQ/F_SUBVENTIONS_COUT_REALISATION_MAX_SHQ) -> 0
B82: PRÉCISIONS - Page 3 - Immeubles prévus | DD82: Proportion des coûts admissibles - Volet 3 | DE82: =IF(F_SUBVENTIONS_COUT_REALISATION_MAX_ORG=0,0,IP_CRAS_V3_ORG/F_SUBVENTIONS_COUT_REALISATION_MAX_ORG) -> 0 | DF82: =IF(F_SUBVENTIONS_COUT_REALISATION_MAX_SHQ=0,0,IP_CRAS_V3_SHQ/F_SUBVENTIONS_COUT_REALISATION_MAX_SHQ) -> 0
C84: Immeubles prévus - Sommaire | CQ84: Coût supp excédant | CR84: Min coût suppl | CS84: Subv coût supp excédant | DD84: Subvention par unité | DE84: =IF(G_PROGRAMME_LAQ,PARM_SUBVENTION_PAR_UNITE_LAQ,PARM_SUBVENTION_PAR_UNITE_ACL) -> 4000
D86: SUAL | Q86: : | R86: Logement qui bénéficie d'une subvention pour adaptabilité du logement. | CM86: SHQ | CP86: V1 : | CQ86: =IP_RATIO_COUT_SUPP_MAX_ADM_V1*IP_COUT_SUPP_ADM_EXE_MAX_REA_ADM_SHQ ->  | CR86: =MIN(IP_COUT_SUPP_MAX_ADM_V1,IP_COUT_SUPP_ADM_EXE_MAX_SHQ_V1) ->  | CS86: =IP_MIN_COUT_SUPP_ADM_EXE_MAX_SHQ_V1*IP_TAUX_APP ->  | DD86: Taux de subvention applicable | DE86: =IF(G_PROGRAMME_LAQ,TauxSubventionApplicable(G_PROGRAMME_LAQ,G_PROJET_SUBVENTION_PAMH,FALSE),1) -> 1
CP87: V2 : | CQ87: =IP_RATIO_COUT_SUPP_MAX_ADM_V2*IP_COUT_SUPP_ADM_EXE_MAX_REA_ADM_SHQ ->  | CR87: =MIN(IP_COUT_SUPP_MAX_ADM_V2,IP_COUT_SUPP_ADM_EXE_MAX_SHQ_V2) ->  | CS87: =IP_MIN_COUT_SUPP_ADM_EXE_MAX_SHQ_V2*IP_TAUX_APP -> 
D88: SAD | Q88: : | R88: Logement adapté qui bénéficie d'une subvention pour une adaptation de domicile | CP88: V3 Régulier : | CQ88: =IP_RATIO_COUT_SUPP_MAX_ADM_V3Reg*IP_COUT_SUPP_ADM_EXE_MAX_REA_ADM_SHQ ->  | CR88: =MIN(IP_COUT_SUPP_MAX_ADM_V3Reg,IP_COUT_SUPP_ADM_EXE_MAX_SHQ_V3Reg) ->  | CS88: =IP_MIN_COUT_SUPP_ADM_EXE_MAX_SHQ_V3Reg*IP_TAUX_APP ->  | DD88: Coût supplémentaire maximum admissible | DE88: =SUM(CU49:CU55) -> 0
R89: spécifique aux besoins particuliers d'une personne. | CP89: V3 Urgence : | CQ89: =IP_RATIO_COUT_SUPP_MAX_ADM_V3Urg*IP_COUT_SUPP_ADM_EXE_MAX_REA_ADM_SHQ ->  | CR89: =MIN(IP_COUT_SUPP_MAX_ADM_V3Urg,IP_COUT_SUPP_ADM_EXE_MAX_SHQ_V3Urg) ->  | CS89: =IP_MIN_COUT_SUPP_ADM_EXE_MAX_SHQ_V3Urg*IF(G_PROGRAMME_LAQ,TauxSubventionApplicable(G_PROGRAMME_LAQ,G_PROJET_SUBVENTION_PAMH,TRUE),1) -> 
CR90: Total subvention coût supplémentaire admissible excédant le maximum SHQ : | CS90: =IP_SUBV_COUT_SUPP_ADM_EXE_MAX_SHQ_V1+IP_SUBV_COUT_SUPP_ADM_EXE_MAX_SHQ_V2+IP_SUBV_COUT_SUPP_ADM_EXE_MAX_SHQ_V3Reg+IP_SUBV_COUT_SUPP_ADM_EXE_MAX_SHQ_V3Urg ->  | DD90: Coût supplémentaire admissibles exédant le maximum des coûts de réalisation admissible | DE90: =MIN(MAX(0,F_SUBVENTIONS_COUT_REAL_TOTAL_ORG-F_SUBVENTIONS_COUT_REALISATION_MAX_ORG),IP_COUT_SUPP_MAX_ADM) -> 0 | DF90: =MIN(MAX(0,F_SUBVENTIONS_COUT_REAL_TOTAL_SHQ-F_SUBVENTIONS_COUT_REALISATION_MAX_SHQ),IP_COUT_SUPP_MAX_ADM) -> 0
D91: Table des loyers médians | Q91: : | R91: Liste déroulante permettant l'affichage des indicateurs de loyers médians de base. | DH91: IP_COUT_SUPP_ADM_EXE_MAX_REA_ADM_ORG
R92: Ils sont établis en fonction de la région administrative et du découpage des municipalités en secteurs. | CM92: ORG | CP92: V1 : | CQ92: =IP_RATIO_COUT_SUPP_MAX_ADM_V1*IP_COUT_SUPP_ADM_EXE_MAX_REA_ADM_ORG ->  | CR92: =MIN(IP_COUT_SUPP_MAX_ADM_V1,IP_COUT_SUPP_ADM_EXE_MAX_ORG_V1) ->  | CS92: =IP_MIN_COUT_SUPP_ADM_EXE_MAX_ORG_V1*IP_TAUX_APP -> 
R93: Il n'existe aucune corrélation entre le bloc « Services offerts » et les colonnes « Loyers médians » du tableau. | CP93: V2 : | CQ93: =IP_RATIO_COUT_SUPP_MAX_ADM_V2*IP_COUT_SUPP_ADM_EXE_MAX_REA_ADM_ORG ->  | CR93: =MIN(IP_COUT_SUPP_MAX_ADM_V2,IP_COUT_SUPP_ADM_EXE_MAX_ORG_V2) ->  | CS93: =IP_MIN_COUT_SUPP_ADM_EXE_MAX_ORG_V2*IP_TAUX_APP -> 
CP94: V3 Régulier : | CQ94: =IP_RATIO_COUT_SUPP_MAX_ADM_V3Reg*IP_COUT_SUPP_ADM_EXE_MAX_REA_ADM_ORG ->  | CR94: =MIN(IP_COUT_SUPP_MAX_ADM_V3Reg,IP_COUT_SUPP_ADM_EXE_MAX_ORG_V3Reg) ->  | CS94: =IP_MIN_COUT_SUPP_ADM_EXE_MAX_ORG_V3Reg*IP_TAUX_APP -> 
D95: Superficie (m2) | Q95: : | R95: Superficie moyenne, en mètres carrés, des logements types. | CP95: V3 Urgence : | CQ95: =IP_RATIO_COUT_SUPP_MAX_ADM_V3Urg*IP_COUT_SUPP_ADM_EXE_MAX_REA_ADM_ORG ->  | CR95: =MIN(IP_COUT_SUPP_MAX_ADM_V3Urg,IP_COUT_SUPP_ADM_EXE_MAX_ORG_V3Urg) ->  | CS95: =IP_MIN_COUT_SUPP_ADM_EXE_MAX_ORG_V3Urg*IF(G_PROGRAMME_LAQ,TauxSubventionApplicable(G_PROGRAMME_LAQ,G_PROJET_SUBVENTION_PAMH,TRUE),1) -> 
CR96: Total subvention coût supplémentaire admissible excédant le maximum ORG : | CS96: =IP_SUBV_COUT_SUPP_ADM_EXE_MAX_ORG_V1+IP_SUBV_COUT_SUPP_ADM_EXE_MAX_ORG_V2+IP_SUBV_COUT_SUPP_ADM_EXE_MAX_ORG_V3Reg+IP_SUBV_COUT_SUPP_ADM_EXE_MAX_ORG_V3Urg -> 
D97: Taux de taxation / Foncier - Actuel | Q97: : | R97: Taux de taxation foncier (municipal et scolaire) le plus élevé enregistré lors
R98: de la saisie des fiches « Terrains actuels » et/ou « Bâtiments actuels ». | DD98: Taux de contribution minimum - Volet 1 - 5 | DE98: =IF(G_PROGRAMME_LAQ,PARM_TAUX_MIN_CM_15,PARM_TAUX_MIN_CM_5) -> 0.05
CR99: Combinaisons possibles pour les typologies | DD99: Taux de contribution minimum - Volet 1 - 15 | DE99: =PARM_TAUX_MIN_CM_15 -> 0.15
D100: Taux de taxation / Foncier - Prévu | Q100: : | R100: Taux de taxation foncier (municipal et scolaire) applicable au projet en exploitation. | CR100: I | CS100: Régulier | CT100: Chambre | CU100: =UPPER(LEFT(CR100,3)&LEFT(CS100,3)&LEFT(CT100,3)) -> IRÉGCHA | DD100: Taux de contribution minimum - Volet 2 | DE100: =PARM_TAUX_MIN_CM_15 -> 0.15
CR101: I | CS101: Régulier | CT101: Studio | CU101: =UPPER(LEFT(CR101,3)&LEFT(CS101,3)&LEFT(CT101,3)) -> IRÉGSTU | DD101: Taux de contribution minimum - Volet 3 | DE101: =PARM_TAUX_MIN_CM_15 -> 0.15
D102: Taux de taxation / Services - Actuel | Q102: : | R102: Somme des montants de taxes de services saisis sur les fiches « Terrains actuels » et « Bâtiments actuels ». | CR102: I | CS102: Régulier | CT102: 1 Chambre à coucher | CU102: IRÉG1 C
CR103: I | CS103: Régulier | CT103: 2 Chambres à coucher | CU103: IRÉG2 C | DD103: Minimum de contribution du milieu - Volet 1 - 5 | DE103: =(IP_COUT_REA_BASE_V1_ORG+IF(AND(G_PROGRAMME_LAQ,OR(F_CALC_SUBV_REG_ELOI_ORG,F_CALC_SUBV_PETITE_MUN_ORG)),IP_MIN_COUT_SUPP_ADM_EXE_MAX_ORG_V1,0))*IP_TAUX_MIN_CM_V1_5 -> 0 | DF103: =(IP_COUT_REA_BASE_V1_SHQ+IF(AND(G_PROGRAMME_LAQ,OR(F_CALC_SUBV_REG_ELOI_SHQ,F_CALC_SUBV_PETITE_MUN_SHQ)),IP_MIN_COUT_SUPP_ADM_EXE_MAX_SHQ_V1,0))*IP_TAUX_MIN_CM_V1_5 -> 0
D104: Taux de taxation / Services - Prévu | Q104: : | R104: Taxes de services affectées au projet en exploitation. | CR104: I | CS104: Régulier | CT104: 3 Chambres à coucher | CU104: IRÉG3 C | DD104: Minimum de contribution du milieu - Volet 1 - 15 | DE104: =(IP_COUT_REA_BASE_V1_ORG+IF(AND(G_PROGRAMME_LAQ,OR(F_CALC_SUBV_REG_ELOI_ORG,F_CALC_SUBV_PETITE_MUN_ORG)),IP_MIN_COUT_SUPP_ADM_EXE_MAX_ORG_V1,0))*IP_TAUX_MIN_CM_V1_15 -> 0 | DF104: =(IP_COUT_REA_BASE_V1_SHQ+IF(AND(G_PROGRAMME_LAQ,OR(F_CALC_SUBV_REG_ELOI_SHQ,F_CALC_SUBV_PETITE_MUN_SHQ)),IP_MIN_COUT_SUPP_ADM_EXE_MAX_SHQ_V1,0))*IP_TAUX_MIN_CM_V1_15 -> 0
CR105: I | CS105: Régulier | CT105: 4 Chambres à coucher | CU105: IRÉG4 C | DD105: Minimum de contribution du milieu - Volet 2 | DE105: =(IP_COUT_REA_BASE_V2_ORG+IF(AND(G_PROGRAMME_LAQ,OR(F_CALC_SUBV_REG_ELOI_ORG,F_CALC_SUBV_PETITE_MUN_ORG)),IP_MIN_COUT_SUPP_ADM_EXE_MAX_ORG_V2,0))*IP_TAUX_MIN_CM_V2 -> 0 | DF105: =(IP_COUT_REA_BASE_V2_SHQ+IF(AND(G_PROGRAMME_LAQ,OR(F_CALC_SUBV_REG_ELOI_SHQ,F_CALC_SUBV_PETITE_MUN_SHQ)),IP_MIN_COUT_SUPP_ADM_EXE_MAX_SHQ_V2,0))*IP_TAUX_MIN_CM_V2 -> 0
C106: Typologie et clientèle prévue | CR106: I | CS106: Régulier | CT106: 5 Chambres à coucher | CU106: IRÉG5 C
CR107: II | CS107: Régulier | CT107: Chambre | CU107: IIRÉGCHA | DD107: Minimum de contribution du milieu - Volet 3 | DE107: =(IP_COUT_REA_BASE_V3_ORG+IF(AND(G_PROGRAMME_LAQ,OR(F_CALC_SUBV_REG_ELOI_ORG,F_CALC_SUBV_PETITE_MUN_ORG)),IP_MIN_COUT_SUPP_ADM_EXE_MAX_ORG_V3Reg+IP_MIN_COUT_SUPP_ADM_EXE_MAX_ORG_V3Urg,0))*IP_TAUX_MIN_CM_V3 -> 0 | DF107: =(IP_COUT_REA_BASE_V3_SHQ+IF(AND(G_PROGRAMME_LAQ,OR(F_CALC_SUBV_REG_ELOI_SHQ,F_CALC_SUBV_PETITE_MUN_SHQ)),IP_MIN_COUT_SUPP_ADM_EXE_MAX_SHQ_V3Reg+IP_MIN_COUT_SUPP_ADM_EXE_MAX_SHQ_V3Urg,0))*IP_TAUX_MIN_CM_V3 -> 0
D108: Exemption de taxes | Q108: : | R108: Conditions d'éligibilité d'un bâtiment à une exemption de taxes: | CR108: II | CS108: Régulier | CT108: Studio | CU108: IIRÉGSTU
R109: - Le bâtiment est la propriété d'un organisme de charité reconnu (enregistré auprès de | CR109: II | CS109: Régulier | CT109: 1 Chambre à coucher | CU109: IIRÉG1 C | DD109: Contribution minimum requise - 5 | DE109: =IF(G_PROJET_SUBVENTION_PAMH,0,MIN_CM_V1_5_ORG+MIN_CM_V2_ORG+MIN_CM_V3_ORG) -> 0 | DF109: =IF(G_PROJET_SUBVENTION_PAMH,0,MIN_CM_V1_5_SHQ+MIN_CM_V2_SHQ+MIN_CM_V3_SHQ) -> 0
R110: Revenu Canada); | CR110: II | CS110: Régulier | CT110: 2 Chambres à coucher | CU110: IIRÉG2 C
R111: - La durée de l'exemption ne peut être moindre que 25 ans; | CR111: II | CS111: Régulier | CT111: 3 Chambres à coucher | CU111: IIRÉG3 C | DD111: Contribution minimum requise - 15 | DE111: =IF(G_PROJET_SUBVENTION_PAMH,0,MIN_CM_V1_15_ORG+MIN_CM_V2_ORG+MIN_CM_V3_ORG) -> 0 | DF111: =IF(G_PROJET_SUBVENTION_PAMH,0,MIN_CM_V1_15_SHQ+MIN_CM_V2_SHQ+MIN_CM_V3_SHQ) -> 0
R112: - L'exemption de taxes doit recevoir l'aval de la Commission municipale du Québec; | CR112: II | CS112: Régulier | CT112: 4 Chambres à coucher | CU112: IIRÉG4 C
R113: - Le bâtiment doit entièrement répondre à sa vocation déclarée; | CR113: II | CS113: Régulier | CT113: 5 Chambres à coucher | CU113: IIRÉG5 C
R114: - Le bâtiment ne devient admissible qu'une fois occupé. | CR114: III | CS114: Régulier | CT114: Chambre | CU114: IIIRÉGCHA
CR115: III | CS115: Régulier | CT115: Studio | CU115: IIIRÉGSTU
D116: Superficie totale du bâtiment | Q116: : | R116: Superficie brute totale de tous les planchers incluant les faces externes des murs extérieurs. | CR116: III | CS116: Régulier | CT116: 1 Chambre à coucher | CU116: IIIRÉG1 C
CR117: III | CS117: Régulier | CT117: 2 Chambres à coucher | CU117: IIIRÉG2 C
D118: Superficie des espaces communs | Q118: : | R118: Somme des superficies des espaces communs; ces derniers sont définis comme étant tout espace du | CR118: III | CS118: Régulier | CT118: 3 Chambres à coucher | CU118: IIIRÉG3 C
R119: bâtiment qui ne fait pas partie d'un logement et qui est chauffé (à titre d'exemple : corridors, cages d'escalier, | CR119: III | CS119: Régulier | CT119: 4 Chambres à coucher | CU119: IIIRÉG4 C
R120: salle communautaire, cuisine, vides techniques, etc.)
CR121: III | CS121: Régulier | CT121: 5 Chambres à coucher | CU121: IIIRÉG5 C
D122: Subvention pour adaptabilité | Q122: : | R122: Subvention par logement pour des travaux d'adaptation d'ordre général (Maximum de 8 000$/unité). | CR122: III | CS122: Transitoire | CT122: Chambre | CU122: IIITRACHA
D123: du logement (SUAL) | R123: Se référer à l'annexe 19 du guide d'élaboration et de réalisation des projets. (Cochez la case SUAL uniquement) | CR123: III | CS123: Transitoire | CT123: Studio | CU123: IIITRASTU
CR124: III | CS124: Transitoire | CT124: 1 Chambre à coucher | CU124: IIITRA1 C
D125: Subvention pour adaptation de | Q125: : | R125: Subvention par personne pour des travaux d'adaptation répondant aux besoins spécifiques | CR125: III | CS125: Transitoire | CT125: 2 Chambres à coucher | CU125: IIITRA2 C
D126: domicile (SAD) | R126: d'une personne dont le dossier doit faire l'objet d'une analyse par un ergothérapeute en conformité | CR126: III | CS126: Transitoire | CT126: 3 Chambres à coucher | CU126: IIITRA3 C
R127: avec l'annexe 19 du guide d'élaboration et de réalisation des projets. | CR127: III | CS127: Transitoire | CT127: 4 Chambres à coucher | CU127: IIITRA4 C
R128: (Cochez la case SAD uniquement) | CR128: III | CS128: Transitoire | CT128: 5 Chambres à coucher | CU128: IIITRA5 C
CR129: III | CS129: Urgent | CT129: Chambre | CU129: IIIURGCHA
D130: Coûts d'adaptation | Q130: : | R130: Montant du coût des travaux d'adaptation réalisés à l'intérieur d'un logement; il doit inclure les montants
R131: nets des taxes TPS et TVQ qui lui sont rattachés (montants de la TPS et de la TVQ réduits de leurs
R132: remboursements respectifs).
D134: No de dossier SAD | Q134: : | R134: Numéro de dossier obligatoire à l'étape de l'Engagement définitif.
D136: Appartement # | Q136: : | R136: Numéro du logement qui sera adapté et obligatoire à l'étape de l'Engagement définitif.
D138: Organisme ($) | Q138: : | R138: Coûts des travaux (prévus / réels) associés aux travaux d'adaptation (subvention SUAL ou SAD).
R139: Le montant de ces coûts doit inclure le montant net des taxes ((TPS + TVQ) - remboursements respectifs)
R140: qui leur est associé.

Sheet Budget de réalisation
L3: Demande d'aide financière
L4: =MP_VERSION -> Version 12.2.00C
F5: Formulaire en date du | G5: =TODAY() -> 2024-10-04
B6: Page 4 - BUDGET DE RÉALISATION
B8: PROJET | BF8: Date de la DAF : | BG8: =G_PROJET_ETAPE_APPROUVE -> 00:00:00 | BH8: =G_APPRO_DATE -> 00:00:00
B10: Numéro du projet | J10: : | K10: =G_PROJET_NO_COMPLET -> ACL-00000 | O10: 1 | AX10: Étape du projet : | BA10: Étape du projet : | BB10: =G_PROJET_ETAPE -> 0 | BL10: 2
B12: Nom du projet | J12: : | K12: =G_PROJET_NOM -> 0 | BL12: 3
CA14: 1080
B15: BUDGET
C17: Durée des travaux jusqu'à la D.A.I. | O17: : | Z17: Mois4
CR18: TOTAUX (SHQ)
C19: DÉPENSES DE RÉALISATION | P19: Résidentiel | AA19: Ajustement | AI19: Non résidentiel | AT19: Ajustement | BB19: Total | CR19: RES | CS19: NRES | CT19: COMPTE | DA19: No Compte GL
P20: Organisme | U20: SHQ | AA20: Organisme | AD20: SHQ | AI20: Organisme | AN20: SHQ | AT20: Organisme | AW20: SHQ | BB20: Organisme | BG20: SHQ
C23: Acquisition (déboursé réel) | O23: 5 | Q23: =IA_ACQ_RES_ORG -> 0 | V23: =IA_ACQ_RES_SHQ -> 0 | AH23: 6 | AJ23: =IA_ACQ_NRES_ORG -> 0 | AO23: =IA_ACQ_NRES_SHQ -> 0 | BA23: 7 | BB23: =BR_ACQUISITION_RES_ORG+BR_ACQUISITION_NRES_ORG -> 0 | BG23: =BR_ACQUISITION_RES_SHQ+BR_ACQUISITION_NRES_SHQ -> 0 | CA23: 0 | CB23: 0 | CC23: 0 | CD23: 0 | DA23: =1100 -> 1100
C24: Droits de mutation | O24: 8 | P24: =IndicateurAjuste(BR_MUTATION_RES_ORG_AJ) ->  | Q24: =Ajuster(BR_MUTATION_RES_ORG_AJ,0) -> 0 | U24: =IndicateurAjuste(BR_MUTATION_RES_SHQ_AJ) ->  | V24: =Ajuster(BR_MUTATION_RES_SHQ_AJ,0) -> 0 | AH24: 9 | AI24: =IndicateurAjuste(BR_MUTATION_NRES_ORG_AJ) ->  | AJ24: =Ajuster(BR_MUTATION_NRES_ORG_AJ,0) -> 0 | AN24: =IndicateurAjuste(BR_MUTATION_NRES_SHQ_AJ) ->  | AO24: =Ajuster(BR_MUTATION_NRES_SHQ_AJ,0) -> 0 | BA24: 10 | BB24: =BR_MUTATION_RES_ORG+BR_MUTATION_NRES_ORG -> 0 | BG24: =BR_MUTATION_RES_SHQ+BR_MUTATION_NRES_SHQ -> 0 | DA24: =1110 -> 1110
C27: Droits et permis
C28: Permis de construction | O28: 11 | P28: =IndicateurAjuste(BR_PERMIS_CONSTR_RES_ORG_AJ) ->  | U28: =IndicateurAjuste(BR_PERMIS_CONSTR_RES_SHQ_AJ) ->  | AH28: 12 | AI28: =IndicateurAjuste(BR_PERMIS_CONSTR_NRES_ORG_AJ) ->  | AN28: =IndicateurAjuste(BR_PERMIS_CONSTR_NRES_SHQ_AJ) ->  | BA28: 13 | BB28: =BR_PERMIS_CONSTR_RES_ORG+BR_PERMIS_CONSTR_NRES_ORG -> 0 | BG28: =BR_PERMIS_CONSTR_RES_SHQ+BR_PERMIS_CONSTR_NRES_SHQ -> 0 | CR28: =BR_PERMIS_CONSTR_RES_SHQ+BR_TAXE_SPECIALE_RES_SHQ+BR_DROIT_COMPENS_RES_SHQ+BR_DROIT_AUTRE_RES_SHQ -> 0 | CS28: =BR_PERMIS_CONSTR_NRES_SHQ+BR_TAXE_SPECIALE_NRES_SHQ+BR_DROIT_COMPENS_NRES_SHQ+BR_DROIT_AUTRE_NRES_SHQ -> 0 | CT28: 1300 | DA28: =1300 -> 1300
C29: Taxes vertes, taxes spéciales | O29: 14 | P29: =IndicateurAjuste(BR_TAXE_SPECIALE_RES_ORG_AJ) ->  | U29: =IndicateurAjuste(BR_TAXE_SPECIALE_RES_SHQ_AJ) ->  | AH29: 15 | AI29: =IndicateurAjuste(BR_TAXE_SPECIALE_NRES_ORG_AJ) ->  | AN29: =IndicateurAjuste(BR_TAXE_SPECIALE_NRES_SHQ_AJ) ->  | BA29: 16 | BB29: =BR_TAXE_SPECIALE_RES_ORG+BR_TAXE_SPECIALE_NRES_ORG -> 0 | BG29: =BR_TAXE_SPECIALE_RES_SHQ+BR_TAXE_SPECIALE_NRES_SHQ -> 0 | DA29: =1300 -> 1300
C30: Droits compensatoires | O30: 17 | P30: =IndicateurAjuste(BR_DROIT_COMPENS_RES_ORG_AJ) ->  | U30: =IndicateurAjuste(BR_DROIT_COMPENS_RES_SHQ_AJ) ->  | AH30: 18 | AI30: =IndicateurAjuste(BR_DROIT_COMPENS_NRES_ORG_AJ) ->  | AN30: =IndicateurAjuste(BR_DROIT_COMPENS_NRES_SHQ_AJ) ->  | BA30: 19 | BB30: =BR_DROIT_COMPENS_RES_ORG+BR_DROIT_COMPENS_NRES_ORG -> 0 | BG30: =BR_DROIT_COMPENS_RES_SHQ+BR_DROIT_COMPENS_NRES_SHQ -> 0 | DA30: =1300 -> 1300
C31: Autres - Droits et permis | O31: 20 | P31: =IndicateurAjuste(BR_DROIT_AUTRE_RES_ORG_AJ) ->  | U31: =IndicateurAjuste(BR_DROIT_AUTRE_RES_SHQ_AJ) ->  | AH31: 21 | AI31: =IndicateurAjuste(BR_DROIT_AUTRE_NRES_ORG_AJ) ->  | AN31: =IndicateurAjuste(BR_DROIT_AUTRE_NRES_SHQ_AJ) ->  | BA31: 22 | BB31: =BR_DROIT_AUTRE_RES_ORG+BR_DROIT_AUTRE_NRES_ORG -> 0 | BG31: =BR_DROIT_AUTRE_RES_SHQ+BR_DROIT_AUTRE_NRES_SHQ -> 0 | DA31: =1300 -> 1300
C32: Frais d'administration - Capital patient | O32: 150 | P32: =IndicateurAjuste(BR_ADMIN_CAP_PAT_RES_ORG_AJ) ->  | Q32: =Ajuster(BR_ADMIN_CAP_PAT_RES_ORG_AJ,F_CAP_PAT_RES_ORG * PARM_CAP_PAT_TAUX_FRAIS_ADMIN_BR) -> 0 | U32: =IndicateurAjuste(BR_ADMIN_CAP_PAT_RES_SHQ_AJ) ->  | V32: =Ajuster(BR_ADMIN_CAP_PAT_RES_SHQ_AJ,F_CAP_PAT_RES_SHQ * PARM_CAP_PAT_TAUX_FRAIS_ADMIN_BR) -> 0 | AH32: 151 | AI32: =IndicateurAjuste(BR_ADMIN_CAP_PAT_NRES_ORG_AJ) ->  | AJ32: =Ajuster(BR_ADMIN_CAP_PAT_NRES_ORG_AJ,F_CAP_PAT_NRES_ORG * PARM_CAP_PAT_TAUX_FRAIS_ADMIN_BR) -> 0 | AN32: =IndicateurAjuste(BR_ADMIN_CAP_PAT_NRES_SHQ_AJ) ->  | AO32: =Ajuster(BR_ADMIN_CAP_PAT_NRES_SHQ_AJ,F_CAP_PAT_NRES_SHQ * PARM_CAP_PAT_TAUX_FRAIS_ADMIN_BR) -> 0 | BA32: 152 | BB32: =BR_ADMIN_CAP_PAT_RES_ORG+BR_ADMIN_CAP_PAT_NRES_ORG -> 0 | BG32: =BR_ADMIN_CAP_PAT_RES_SHQ+BR_ADMIN_CAP_PAT_NRES_SHQ -> 0 | DA32: =1305 -> 1305
C35: ="Travaux " -> Travaux | O35: 23 | P35: =IndicateurAjuste(BR_TRAVAUX_RES_ORG_AJ) ->  | U35: =IndicateurAjuste(BR_TRAVAUX_RES_SHQ_AJ) ->  | AH35: 24 | AI35: =IndicateurAjuste(BR_TRAVAUX_NRES_ORG_AJ) ->  | AN35: =IndicateurAjuste(BR_TRAVAUX_NRES_SHQ_AJ) ->  | BA35: 25 | BB35: =BR_TRAVAUX_RES_ORG+BR_TRAVAUX_NRES_ORG -> 0 | BG35: =BR_TRAVAUX_RES_SHQ+BR_TRAVAUX_NRES_SHQ -> 0 | DA35: =1120 -> 1120
C36: Infrastructures | O36: 26 | P36: =IndicateurAjuste(BR_TRAVAUX_INFRASTRUCTURE_RES_ORG_AJ) ->  | U36: =IndicateurAjuste(BR_TRAVAUX_INFRASTRUCTURE_RES_SHQ_AJ) ->  | AH36: 27 | AI36: =IndicateurAjuste(BR_TRAVAUX_INFRASTRUCTURE_NRES_ORG_AJ) ->  | AN36: =IndicateurAjuste(BR_TRAVAUX_INFRASTRUCTURE_NRES_SHQ_AJ) ->  | BA36: 28 | BB36: =BR_TRAVAUX_INFRASTRUCTURE_RES_ORG+BR_TRAVAUX_INFRASTRUCTURE_NRES_ORG -> 0 | BG36: =BR_TRAVAUX_INFRASTRUCTURE_RES_SHQ+BR_TRAVAUX_INFRASTRUCTURE_NRES_SHQ -> 0 | DA36: =1140 -> 1140
C37: Imprévus sur travaux | I37: =IF(ISERROR(BR_TRAVAUX_IMPREVUS_RES_ORG/(BR_TRAVAUX_RES_ORG + IF(LEFT(G_PROJET_TYPE_INTERVENTION,2)="AS",0,BR_TRAVAUX_INFRASTRUCTURE_RES_ORG))),0,BR_TRAVAUX_IMPREVUS_RES_ORG/(BR_TRAVAUX_RES_ORG + IF(LEFT(G_PROJET_TYPE_INTERVENTION,2)="AS",0,BR_TRAVAUX_INFRASTRUCTURE_RES_ORG))) -> 0 | K37: =IF(ISERROR(BR_TRAVAUX_IMPREVUS_RES_SHQ/(BR_TRAVAUX_RES_SHQ + IF(LEFT(G_PROJET_TYPE_INTERVENTION,2)="AS",0,BR_TRAVAUX_INFRASTRUCTURE_RES_SHQ))),0,BR_TRAVAUX_IMPREVUS_RES_SHQ/(BR_TRAVAUX_RES_SHQ + IF(LEFT(G_PROJET_TYPE_INTERVENTION,2)="AS",0,BR_TRAVAUX_INFRASTRUCTURE_RES_SHQ))) -> 0 | M37: =BA36+1 -> 29 | O37: 30 | P37: =IndicateurAjuste(BR_TRAVAUX_IMPREVUS_RES_ORG_AJ) ->  | Q37: =Ajuster(BR_TRAVAUX_IMPREVUS_RES_ORG_AJ,(BR_TRAVAUX_RES_ORG + IF(LEFT(G_PROJET_TYPE_INTERVENTION,2)="AS",0,BR_TRAVAUX_INFRASTRUCTURE_RES_ORG)) * BR_TRAVAUX_IMPREVUS_PCT) -> 0 | U37: =IndicateurAjuste(BR_TRAVAUX_IMPREVUS_RES_SHQ_AJ) ->  | V37: =Ajuster(BR_TRAVAUX_IMPREVUS_RES_SHQ_AJ,(BR_TRAVAUX_RES_SHQ + IF(LEFT(G_PROJET_TYPE_INTERVENTION,2)="AS",0,BR_TRAVAUX_INFRASTRUCTURE_RES_SHQ)) * BR_TRAVAUX_IMPREVUS_PCT) -> 0 | AH37: 31 | AI37: =IndicateurAjuste(BR_TRAVAUX_IMPREVUS_NRES_ORG_AJ) ->  | AJ37: =Ajuster(BR_TRAVAUX_IMPREVUS_NRES_ORG_AJ,(BR_TRAVAUX_NRES_ORG + IF(LEFT(G_PROJET_TYPE_INTERVENTION,2)="AS",0,BR_TRAVAUX_INFRASTRUCTURE_NRES_ORG)) * BR_TRAVAUX_IMPREVUS_PCT) -> 0 | AN37: =IndicateurAjuste(BR_TRAVAUX_IMPREVUS_NRES_SHQ_AJ) ->  | AO37: =Ajuster(BR_TRAVAUX_IMPREVUS_NRES_SHQ_AJ,(BR_TRAVAUX_NRES_SHQ + IF(LEFT(G_PROJET_TYPE_INTERVENTION,2)="AS",0,BR_TRAVAUX_INFRASTRUCTURE_NRES_SHQ)) * BR_TRAVAUX_IMPREVUS_PCT) -> 0 | BA37: 32 | BB37: =BR_TRAVAUX_IMPREVUS_RES_ORG+BR_TRAVAUX_IMPREVUS_NRES_ORG -> 0 | BG37: =BR_TRAVAUX_IMPREVUS_RES_SHQ+BR_TRAVAUX_IMPREVUS_NRES_SHQ -> 0 | CA37: =INDEX(PARM_TAUX_IMPREVUS,TypeIntervention(G_PROJET_TYPE_INTERVENTION)+1,0) -> 0.1 | DA37: =1130 -> 1130
C38: Adaptation SAD hors contrat (ent. gén.) | O38: 148 | P38: =IndicateurAjuste(BR_ADAPTATION_SAD_HORS_CONTRAT_RES_ORG_AJ) ->  | U38: =IndicateurAjuste(BR_ADAPTATION_SAD_HORS_CONTRAT_RES_SHQ_AJ) ->  | BA38: 149 | BB38: =BR_ADAPTATION_SAD_HORS_CONTRAT_RES_ORG -> 0 | BG38: =BR_ADAPTATION_SAD_HORS_CONTRAT_RES_SHQ -> 0 | DA38: =1290 -> 1290
C41: Autres immobilisations
C42: Salle de lavage (Laveuse, sècheuse, ...) | O42: 33 | P42: =IndicateurAjuste(BR_SALLE_LAVAGE_RES_ORG_AJ) ->  | U42: =IndicateurAjuste(BR_SALLE_LAVAGE_RES_SHQ_AJ) ->  | BA42: 34 | BB42: =BR_SALLE_LAVAGE_RES_ORG -> 0 | BG42: =BR_SALLE_LAVAGE_RES_SHQ -> 0 | CR42: =BR_SALLE_LAVAGE_RES_SHQ+BR_MOBILIER_SALLE_COMMUNE_RES_SHQ+BR_MOBILIER_CLIENT_SPECIALE_RES_SHQ+BR_ELECTROMENAGERS_ADAPTES_RES_SHQ+BR_IMMOBILISATIONS_AUTRES_RES_SHQ -> 0 | CS42: =BR_IMMOBILISATIONS_AUTRES_NRES_SHQ -> 0 | CT42: 1290 | DA42: =1290 -> 1290
C43: Mobilier salle communautaire et cuisine | O43: 35 | P43: =IndicateurAjuste(BR_MOBILIER_SALLE_COMMUNE_RES_ORG_AJ) ->  | U43: =IndicateurAjuste(BR_MOBILIER_SALLE_COMMUNE_RES_SHQ_AJ) ->  | BA43: 36 | BB43: =BR_MOBILIER_SALLE_COMMUNE_RES_ORG -> 0 | BG43: =BR_MOBILIER_SALLE_COMMUNE_RES_SHQ -> 0 | DA43: =1290 -> 1290
C44: Mobiliers clientèles spéciales (chambres) | O44: 37 | P44: =IndicateurAjuste(BR_MOBILIER_CLIENT_SPECIALE_RES_ORG_AJ) ->  | U44: =IndicateurAjuste(BR_MOBILIER_CLIENT_SPECIALE_RES_SHQ_AJ) ->  | BA44: 38 | BB44: =BR_MOBILIER_CLIENT_SPECIALE_RES_ORG -> 0 | BG44: =BR_MOBILIER_CLIENT_SPECIALE_RES_SHQ -> 0 | DA44: =1290 -> 1290
C45: Équipement pour projets du volet II | O45: 39 | P45: =IndicateurAjuste(BR_ELECTROMENAGERS_ADAPTES_RES_ORG_AJ) ->  | U45: =IndicateurAjuste(BR_ELECTROMENAGERS_ADAPTES_RES_SHQ_AJ) ->  | BA45: 40 | BB45: =BR_ELECTROMENAGERS_ADAPTES_RES_ORG -> 0 | BG45: =BR_ELECTROMENAGERS_ADAPTES_RES_SHQ -> 0 | DA45: =1290 -> 1290
C46: Autres - Mobilier et équipement | O46: 41 | P46: =IndicateurAjuste(BR_IMMOBILISATIONS_AUTRES_RES_ORG_AJ) ->  | U46: =IndicateurAjuste(BR_IMMOBILISATIONS_AUTRES_RES_SHQ_AJ) ->  | AH46: 42 | AI46: =IndicateurAjuste(BR_IMMOBILISATIONS_AUTRES_NRES_ORG_AJ) ->  | AN46: =IndicateurAjuste(BR_IMMOBILISATIONS_AUTRES_NRES_SHQ_AJ) ->  | BA46: 43 | BB46: =BR_IMMOBILISATIONS_AUTRES_RES_ORG+BR_IMMOBILISATIONS_AUTRES_NRES_ORG -> 0 | BG46: =BR_IMMOBILISATIONS_AUTRES_RES_SHQ+BR_IMMOBILISATIONS_AUTRES_NRES_SHQ -> 0 | DA46: =1290 -> 1290
C48: Honoraires professionnels
C49: Arpenteur-géomètre | O49: 44 | P49: =IndicateurAjuste(BR_ARPENTEUR_RES_ORG_AJ) ->  | Q49: =Ajuster(BR_ARPENTEUR_RES_ORG_AJ,CalculerHonorairesArpenteur(G_PROFESSIONNELS_NBRE_CERT_LOC,PARM_COUT_ARPENTEUR_CERT,G_PROFESSIONNELS_TYPOGRAPHIE,G_PROFESSIONNELS_SRV_ARPENTEUR)) -> 0 | U49: =IndicateurAjuste(BR_ARPENTEUR_RES_SHQ_AJ) ->  | V49: =Ajuster(BR_ARPENTEUR_RES_SHQ_AJ,CalculerHonorairesArpenteur(G_PROFESSIONNELS_NBRE_CERT_LOC,PARM_COUT_ARPENTEUR_CERT,G_PROFESSIONNELS_TYPOGRAPHIE,G_PROFESSIONNELS_SRV_ARPENTEUR)) -> 0 | AH49: 45 | AI49: =IndicateurAjuste(BR_ARPENTEUR_NRES_ORG_AJ) ->  | AN49: =IndicateurAjuste(BR_ARPENTEUR_NRES_SHQ_AJ) ->  | BA49: 46 | BB49: =BR_ARPENTEUR_RES_ORG+BR_ARPENTEUR_NRES_ORG -> 0 | BG49: =BR_ARPENTEUR_RES_SHQ+BR_ARPENTEUR_NRES_SHQ -> 0 | DA49: =1160 -> 1160
C50: Ingénieur - structure / civile | O50: 140 | P50: =IndicateurAjuste(BR_ING_STRUC_RES_ORG_AJ) ->  | Q50: =Ajuster(BR_ING_STRUC_RES_ORG_AJ,CalculerHonorairesIngStru(G_PROJET_TYPE_INTERVENTION, BR_TRAVAUX_RES_ORG, BR_TRAVAUX_IMPREVUS_RES_ORG, IP_NBRE_UNITES, G_PROFESSIONNELS_SRV_ING_STRU)) -> 0 | U50: =IndicateurAjuste(BR_ING_STRUC_RES_SHQ_AJ) ->  | V50: =Ajuster(BR_ING_STRUC_RES_SHQ_AJ,CalculerHonorairesIngStru(G_PROJET_TYPE_INTERVENTION, BR_TRAVAUX_RES_SHQ, BR_TRAVAUX_IMPREVUS_RES_SHQ, IP_NBRE_UNITES, G_PROFESSIONNELS_SRV_ING_STRU)) -> 0 | AH50: 141 | AI50: =IndicateurAjuste(BR_ING_STRUC_NRES_ORG_AJ) ->  | AN50: =IndicateurAjuste(BR_ING_STRUC_NRES_SHQ_AJ) ->  | BA50: 142 | BB50: =BR_ING_STRUC_RES_ORG+BR_ING_STRUC_NRES_ORG -> 0 | BG50: =BR_ING_STRUC_RES_SHQ+BR_ING_STRUC_NRES_SHQ -> 0 | CR50: =BR_ING_STRUC_RES_SHQ+BR_ING_MECAL_RES_SHQ -> 0 | CS50: =BR_ING_STRUC_RES_SHQ+BR_ING_MECAL_RES_SHQ -> 0 | CT50: 1200 | DA50: =1200 -> 1200
C51: Ingénieur - mécanique / électricité | O51: 143 | P51: =IndicateurAjuste(BR_ING_MECAL_RES_ORG_AJ) ->  | Q51: =Ajuster(BR_ING_MECAL_RES_ORG_AJ,CalculerHonorairesIngMeca(G_PROJET_TYPE_INTERVENTION, BR_TRAVAUX_RES_ORG, BR_TRAVAUX_IMPREVUS_RES_ORG, IP_NBRE_UNITES, G_PROFESSIONNELS_SRV_ING_MECA)) -> 0 | U51: =IndicateurAjuste(BR_ING_MECAL_RES_SHQ_AJ) ->  | V51: =Ajuster(BR_ING_MECAL_RES_SHQ_AJ,CalculerHonorairesIngMeca(G_PROJET_TYPE_INTERVENTION, BR_TRAVAUX_RES_SHQ, BR_TRAVAUX_IMPREVUS_RES_SHQ, IP_NBRE_UNITES, G_PROFESSIONNELS_SRV_ING_MECA)) -> 0 | AH51: 144 | AI51: =IndicateurAjuste(BR_ING_MECAL_NRES_ORG_AJ) ->  | AN51: =IndicateurAjuste(BR_ING_MECAL_NRES_SHQ_AJ) ->  | BA51: 145 | BB51: =BR_ING_MECAL_RES_ORG+BR_ING_MECAL_NRES_ORG -> 0 | BG51: =BR_ING_MECAL_RES_SHQ+BR_ING_MECAL_NRES_SHQ -> 0 | DA51: =1200 -> 1200
C52: Architecte | O52: 50 | P52: =IndicateurAjuste(BR_ARCHITECTE_RES_ORG_AJ) ->  | Q52: =Ajuster(BR_ARCHITECTE_RES_ORG_AJ,CalculerHonorairesArchitectes(G_PROJET_TYPE_INTERVENTION, BR_TRAVAUX_RES_ORG, BR_TRAVAUX_IMPREVUS_RES_ORG, IP_NBRE_UNITES, G_PROFESSIONNELS_SRV_ARCHITECTE)) -> 0 | U52: =IndicateurAjuste(BR_ARCHITECTE_RES_SHQ_AJ) ->  | V52: =Ajuster(BR_ARCHITECTE_RES_SHQ_AJ,CalculerHonorairesArchitectes(G_PROJET_TYPE_INTERVENTION, BR_TRAVAUX_RES_SHQ, BR_TRAVAUX_IMPREVUS_RES_SHQ, IP_NBRE_UNITES, G_PROFESSIONNELS_SRV_ARCHITECTE)) -> 0 | AH52: 51 | AI52: =IndicateurAjuste(BR_ARCHITECTE_NRES_ORG_AJ) ->  | AN52: =IndicateurAjuste(BR_ARCHITECTE_NRES_SHQ_AJ) ->  | BA52: 52 | BB52: =BR_ARCHITECTE_RES_ORG+BR_ARCHITECTE_NRES_ORG -> 0 | BG52: =BR_ARCHITECTE_RES_SHQ+BR_ARCHITECTE_NRES_SHQ -> 0 | DA52: =1210 -> 1210
C53: Évaluateur | O53: 53 | P53: =IndicateurAjuste(BR_EVALUATEUR_RES_ORG_AJ) ->  | Q53: =Ajuster(BR_EVALUATEUR_RES_ORG_AJ,PARM_FRAIS_EVALUATEUR) -> 500 | U53: =IndicateurAjuste(BR_EVALUATEUR_RES_SHQ_AJ) ->  | V53: =Ajuster(BR_EVALUATEUR_RES_SHQ_AJ,PARM_FRAIS_EVALUATEUR) -> 500 | AH53: 54 | AI53: =IndicateurAjuste(BR_EVALUATEUR_NRES_ORG_AJ) ->  | AN53: =IndicateurAjuste(BR_EVALUATEUR_NRES_SHQ_AJ) ->  | BA53: 55 | BB53: =BR_EVALUATEUR_RES_ORG+BR_EVALUATEUR_NRES_ORG -> 500 | BG53: =BR_EVALUATEUR_RES_SHQ+BR_EVALUATEUR_NRES_SHQ -> 500 | DA53: =1220 -> 1220
C54: Vérificateur | O54: 56 | P54: =IndicateurAjuste(BR_VERIFICATEUR_RES_ORG_AJ) ->  | Q54: =Ajuster(BR_VERIFICATEUR_RES_ORG_AJ,PARM_FRAIS_VERIFICATEUR) -> 1200 | U54: =IndicateurAjuste(BR_VERIFICATEUR_RES_SHQ_AJ) ->  | V54: =Ajuster(BR_VERIFICATEUR_RES_SHQ_AJ,PARM_FRAIS_VERIFICATEUR) -> 1200 | AH54: 57 | AI54: =IndicateurAjuste(BR_VERIFICATEUR_NRES_ORG_AJ) ->  | AN54: =IndicateurAjuste(BR_VERIFICATEUR_NRES_SHQ_AJ) ->  | BA54: 58 | BB54: =BR_VERIFICATEUR_RES_ORG+BR_VERIFICATEUR_NRES_ORG -> 1200 | BG54: =BR_VERIFICATEUR_RES_SHQ+BR_VERIFICATEUR_NRES_SHQ -> 1200 | DA54: =1230 -> 1230
C55: Analyse environnementale | O55: 59 | P55: =IndicateurAjuste(BR_ANALYSE_ENVIRONNEMENTALE_RES_ORG_AJ) ->  | U55: =IndicateurAjuste(BR_ANALYSE_ENVIRONNEMENTALE_RES_SHQ_AJ) ->  | AH55: 60 | AI55: =IndicateurAjuste(BR_ANALYSE_ENVIRONNEMENTALE_NRES_ORG_AJ) ->  | AN55: =IndicateurAjuste(BR_ANALYSE_ENVIRONNEMENTALE_NRES_SHQ_AJ) ->  | BA55: 61 | BB55: =BR_ANALYSE_ENVIRONNEMENTALE_RES_ORG+BR_ANALYSE_ENVIRONNEMENTALE_NRES_ORG -> 0 | BG55: =BR_ANALYSE_ENVIRONNEMENTALE_RES_SHQ+BR_ANALYSE_ENVIRONNEMENTALE_NRES_SHQ -> 0 | DA55: =1170 -> 1170
C56: Tests de capacité portante | O56: 62 | P56: =IndicateurAjuste(BR_TEST_CAPACITE_PORTANTE_RES_ORG_AJ) ->  | U56: =IndicateurAjuste(BR_TEST_CAPACITE_PORTANTE_RES_SHQ_AJ) ->  | AH56: 63 | AI56: =IndicateurAjuste(BR_TEST_CAPACITE_PORTANTE_NRES_ORG_AJ) ->  | AN56: =IndicateurAjuste(BR_TEST_CAPACITE_PORTANTE_NRES_SHQ_AJ) ->  | BA56: 64 | BB56: =BR_TEST_CAPACITE_PORTANTE_RES_ORG+BR_TEST_CAPACITE_PORTANTE_NRES_ORG -> 0 | BG56: =BR_TEST_CAPACITE_PORTANTE_RES_SHQ+BR_TEST_CAPACITE_PORTANTE_NRES_SHQ -> 0 | DA56: =1180 -> 1180
C57: Frais juridiques | O57: 65 | P57: =IndicateurAjuste(BR_FRAIS_JURIDIQUES_RES_ORG_AJ) ->  | Q57: =Ajuster(BR_FRAIS_JURIDIQUES_RES_ORG_AJ,PARM_FRAIS_JURIDIQUE_BASE + PARM_FRAIS_JURIDIQUE_LOT * IA_LOT_NBRE) -> 2500 | U57: =IndicateurAjuste(BR_FRAIS_JURIDIQUES_RES_SHQ_AJ) ->  | V57: =Ajuster(BR_FRAIS_JURIDIQUES_RES_SHQ_AJ,PARM_FRAIS_JURIDIQUE_BASE + PARM_FRAIS_JURIDIQUE_LOT * IA_LOT_NBRE) -> 2500 | AH57: 66 | AI57: =IndicateurAjuste(BR_FRAIS_JURIDIQUES_NRES_ORG_AJ) ->  | AN57: =IndicateurAjuste(BR_FRAIS_JURIDIQUES_NRES_SHQ_AJ) ->  | BA57: 67 | BB57: =BR_FRAIS_JURIDIQUES_RES_ORG+BR_FRAIS_JURIDIQUES_NRES_ORG -> 2500 | BG57: =BR_FRAIS_JURIDIQUES_RES_SHQ+BR_FRAIS_JURIDIQUES_NRES_SHQ -> 2500 | DA57: =1190 -> 1190
C58: ="Honoraires de l'" & PARM_OSD_ABRG -> Honoraires de l'OSD | O58: 68 | P58: =IndicateurAjuste(BR_HONORAIRES_DEVELOPPEURS_RES_ORG_AJ) ->  | Q58: =Ajuster(BR_HONORAIRES_DEVELOPPEURS_RES_ORG_AJ,CalculerHonorairesDeveloppeur(BR_TOTAL_POUR_DEVELOPPEURS_RES_ORG, G_ORGANISME_TYPE, PARM_TAUX_CONTRIBUTION_SECTEUR,G_DEVELOPPEUR_TYPE,G_DEVELOPPEUR_TYPE_SERVICE)) -> 0 | U58: =IndicateurAjuste(BR_HONORAIRES_DEVELOPPEURS_RES_SHQ_AJ) ->  | V58: =Ajuster(BR_HONORAIRES_DEVELOPPEURS_RES_SHQ_AJ,CalculerHonorairesDeveloppeur(BR_TOTAL_POUR_DEVELOPPEURS_RES_SHQ, G_ORGANISME_TYPE, PARM_TAUX_CONTRIBUTION_SECTEUR,G_DEVELOPPEUR_TYPE,G_DEVELOPPEUR_TYPE_SERVICE)) -> 0 | AH58: 69 | AI58: =IndicateurAjuste(BR_HONORAIRES_DEVELOPPEURS_NRES_ORG_AJ) ->  | AN58: =IndicateurAjuste(BR_HONORAIRES_DEVELOPPEURS_NRES_SHQ_AJ) ->  | BA58: 70 | BB58: =BR_HONORAIRES_DEVELOPPEURS_RES_ORG+BR_HONORAIRES_DEVELOPPEURS_NRES_ORG -> 0 | BG58: =BR_HONORAIRES_DEVELOPPEURS_RES_SHQ+BR_HONORAIRES_DEVELOPPEURS_NRES_SHQ -> 0 | BZ58: Total des dépenses impliquées dans le Calcul des honoraires des OSD : | CA58: =BR_DEPENSES_TOTALES_RES_ORG-(BR_HONORAIRES_DEVELOPPEURS_RES_ORG*((1+PARM_TAUX_TPS+PARM_TAUX_TVQ)))-BR_CONTRIBUTION_SECTEUR_RES_ORG+F_SUBVENTIONS_VALEUR_MARCHANDE_ORG+F_SUBVENTIONS_VALEUR_CORVEE_ORG+F_SUBVENTIONS_EMPHYTEOSE_ORG -> 6881.2538 | CB58: =BR_DEPENSES_TOTALES_RES_SHQ-(BR_HONORAIRES_DEVELOPPEURS_RES_SHQ*((1+PARM_TAUX_TPS+PARM_TAUX_TVQ)))-BR_CONTRIBUTION_SECTEUR_RES_SHQ+F_SUBVENTIONS_VALEUR_MARCHANDE_SHQ+F_SUBVENTIONS_VALEUR_CORVEE_SHQ+F_SUBVENTIONS_EMPHYTEOSE_SHQ -> 6881.2538 | CC58: =BR_DEPENSES_TOTALES_NRES_ORG-(BR_HONORAIRES_DEVELOPPEURS_NRES_ORG*((1+PARM_TAUX_TPS+PARM_TAUX_TVQ)))-BR_CONTRIBUTION_SECTEUR_NRES_ORG+F_SUBVENTIONS_VALEUR_MARCHANDE_ORG+F_SUBVENTIONS_VALEUR_CORVEE_ORG+F_SUBVENTIONS_EMPHYTEOSE_ORG -> 0 | CD58: =BR_DEPENSES_TOTALES_NRES_SHQ-(BR_HONORAIRES_DEVELOPPEURS_NRES_SHQ*((1+PARM_TAUX_TPS+PARM_TAUX_TVQ)))-BR_CONTRIBUTION_SECTEUR_NRES_SHQ+F_SUBVENTIONS_VALEUR_MARCHANDE_SHQ+F_SUBVENTIONS_VALEUR_CORVEE_SHQ+F_SUBVENTIONS_EMPHYTEOSE_SHQ -> 0 | DA58: =1240 -> 1240
C59: Organisme sans expérience | O59: 151 | P59: =IndicateurAjuste(BR_ORGAN_SANS_EXPER_GESTI_RES_ORG_AJ) ->  | Q59: =Ajuster(BR_ORGAN_SANS_EXPER_GESTI_RES_ORG_AJ,IF(G_ORGAN_SANS_EXPER_GESTI=TRUE,0.25 * (BE_DEPENSES_TOTALES_RES_ORG - BE_REVENUS_TOTAUX_RES_ORG),0)) -> 0 | U59: =IndicateurAjuste(BR_ORGAN_SANS_EXPER_GESTI_RES_SHQ_AJ) ->  | V59: =Ajuster(BR_ORGAN_SANS_EXPER_GESTI_RES_SHQ_AJ,IF(G_ORGAN_SANS_EXPER_GESTI=TRUE,0.25 * (BE_DEPENSES_TOTALES_RES_SHQ - BE_REVENUS_TOTAUX_RES_SHQ),0)) -> 0 | AH59: 152 | BA59: 153 | BB59: =BR_ORGAN_SANS_EXPER_GESTI_RES_ORG+BR_ORGAN_SANS_EXPER_GESTI_NRES_ORG -> 0 | BG59: =BR_ORGAN_SANS_EXPER_GESTI_RES_SHQ+BR_ORGAN_SANS_EXPER_GESTI_NRES_SHQ -> 0 | DA59: 1241
C60: Frais professionnels divers | O60: 71 | P60: =IndicateurAjuste(BR_FRAIS_PROFESSIONNELS_DIVERS_RES_ORG_AJ) ->  | U60: =IndicateurAjuste(BR_FRAIS_PROFESSIONNELS_DIVERS_RES_SHQ_AJ) ->  | AH60: 72 | AI60: =IndicateurAjuste(BR_FRAIS_PROFESSIONNELS_DIVERS_NRES_ORG_AJ) ->  | AN60: =IndicateurAjuste(BR_FRAIS_PROFESSIONNELS_DIVERS_NRES_SHQ_AJ) ->  | BA60: 73 | BB60: =BR_FRAIS_PROFESSIONNELS_DIVERS_RES_ORG+BR_FRAIS_PROFESSIONNELS_DIVERS_NRES_ORG -> 0 | BG60: =BR_FRAIS_PROFESSIONNELS_DIVERS_RES_SHQ+BR_FRAIS_PROFESSIONNELS_DIVERS_NRES_SHQ -> 0 | DA60: =1250 -> 1250
C63: Organisation | O63: 74 | P63: =IndicateurAjuste(BR_ORGANISATION_RES_ORG_AJ) ->  | Q63: =Ajuster(BR_ORGANISATION_RES_ORG_AJ,MIN(PARM_ORGANISATION_MAX,PARM_ORGANISATION_MIN+PARM_ORGANISATION_UNITE * IP_NBRE_UNITES)) -> 1500 | U63: =IndicateurAjuste(BR_ORGANISATION_RES_SHQ_AJ) ->  | V63: =Ajuster(BR_ORGANISATION_RES_SHQ_AJ,MIN(PARM_ORGANISATION_MAX,PARM_ORGANISATION_MIN+PARM_ORGANISATION_UNITE * IP_NBRE_UNITES)) -> 1500 | AH63: 75 | AI63: =IndicateurAjuste(BR_ORGANISATION_NRES_ORG_AJ) ->  | AN63: =IndicateurAjuste(BR_ORGANISATION_NRES_SHQ_AJ) ->  | BA63: 76 | BB63: =BR_ORGANISATION_RES_ORG+BR_ORGANISATION_NRES_ORG -> 1500 | BG63: =BR_ORGANISATION_RES_SHQ+BR_ORGANISATION_NRES_SHQ -> 1500 | DA63: =1260 -> 1260
C64: Déménagement - entreposage | O64: 77 | P64: =IndicateurAjuste(BR_RELOCALISATION_RES_ORG_AJ) ->  | Q64: =Ajuster(BR_RELOCALISATION_RES_ORG_AJ,CalculerFraisRelocalisation(IA_MNG_CH,IA_MNG_ST,IA_MNG_1C,IA_MNG_2C,IA_MNG_3C,IA_MNG_4C,IA_MNG_5C)) -> 0 | U64: =IndicateurAjuste(BR_RELOCALISATION_RES_SHQ_AJ) ->  | V64: =Ajuster(BR_RELOCALISATION_RES_SHQ_AJ,CalculerFraisRelocalisation(IA_MNG_CH,IA_MNG_ST,IA_MNG_1C,IA_MNG_2C,IA_MNG_3C,IA_MNG_4C,IA_MNG_5C)) -> 0 | AH64: 78 | AI64: =IndicateurAjuste(BR_RELOCALISATION_NRES_ORG_AJ) ->  | AN64: =IndicateurAjuste(BR_RELOCALISATION_NRES_SHQ_AJ) ->  | BA64: 79 | BB64: =BR_RELOCALISATION_RES_ORG+BR_RELOCALISATION_NRES_ORG -> 0 | BG64: =BR_RELOCALISATION_RES_SHQ+BR_RELOCALISATION_NRES_SHQ -> 0 | DA64: =1270 -> 1270
C67: Taxes jusqu'à la DAI | O67: 80 | P67: =IndicateurAjuste(BR_TAXES_AVANT_DAI_RES_ORG_AJ) ->  | Q67: =Ajuster(BR_TAXES_AVANT_DAI_RES_ORG_AJ,(BR_TAXES_ANNUELLES_ORG + IF(LEFT(G_PROJET_TYPE_INTERVENTION,2)="CN",BR_SURTAXE_ANNUELLE_ORG,0)) * BR_DUREE_ORG / 12) -> 0 | U67: =IndicateurAjuste(BR_TAXES_AVANT_DAI_RES_SHQ_AJ) ->  | V67: =Ajuster(BR_TAXES_AVANT_DAI_RES_SHQ_AJ,(BR_TAXES_ANNUELLES_SHQ + IF(LEFT(G_PROJET_TYPE_INTERVENTION,2)="CN",BR_SURTAXE_ANNUELLE_SHQ,0)) * BR_DUREE_SHQ / 12) -> 0 | AH67: 81 | AI67: =IndicateurAjuste(BR_TAXES_AVANT_DAI_NRES_ORG_AJ) ->  | AN67: =IndicateurAjuste(BR_TAXES_AVANT_DAI_NRES_SHQ_AJ) ->  | BA67: 82 | BB67: =BR_TAXES_AVANT_DAI_RES_ORG+BR_TAXES_AVANT_DAI_NRES_ORG -> 0 | BG67: =BR_TAXES_AVANT_DAI_RES_SHQ+BR_TAXES_AVANT_DAI_NRES_SHQ -> 0 | BZ67: Taxes annuelles : | CA67: 0 | CB67: 0 | CC67: 0 | CD67: 0 | CF67: 0 | CG67: 0 | CH67: 0 | CI67: 0 | CJ67: Acquisitation taxable TPS | DA67: =1310 -> 1310
C68: Assurances jusqu'à la DAI | O68: 83 | P68: =IndicateurAjuste(BR_ASSURANCES_AVANT_DAI_RES_ORG_AJ) ->  | Q68: =Ajuster(BR_ASSURANCES_AVANT_DAI_RES_ORG_AJ,CalculerAssurancesAvDAI(G_PROJET_TERRITOIRE_FEDERATION,G_ORGANISME_TYPE,IP_VALEUR_REMPL_1+IP_VALEUR_REMPL_2,IP_VALEUR_REMPL_3,IP_NBRE_UNITES_I+IP_NBRE_UNITES_II,IP_NBRE_UNITES_III,BR_DUREE_ORG)) -> 0 | U68: =IndicateurAjuste(BR_ASSURANCES_AVANT_DAI_RES_SHQ_AJ) ->  | V68: =Ajuster(BR_ASSURANCES_AVANT_DAI_RES_SHQ_AJ,CalculerAssurancesAvDAI(G_PROJET_TERRITOIRE_FEDERATION,G_ORGANISME_TYPE,IP_VALEUR_REMPL_1+IP_VALEUR_REMPL_2,IP_VALEUR_REMPL_3,IP_NBRE_UNITES_I+IP_NBRE_UNITES_II,IP_NBRE_UNITES_III,BR_DUREE_SHQ)) -> 0 | AH68: 84 | AI68: =IndicateurAjuste(BR_ASSURANCES_AVANT_DAI_NRES_ORG_AJ) ->  | AN68: =IndicateurAjuste(BR_ASSURANCES_AVANT_DAI_NRES_SHQ_AJ) ->  | BA68: 85 | BB68: =BR_ASSURANCES_AVANT_DAI_RES_ORG+BR_ASSURANCES_AVANT_DAI_NRES_ORG -> 0 | BG68: =BR_ASSURANCES_AVANT_DAI_RES_SHQ+BR_ASSURANCES_AVANT_DAI_NRES_SHQ -> 0 | CF68: 0 | CG68: 0 | CH68: 0 | CI68: 0 | CJ68: Acquisitation taxable TVQ | DA68: =1320 -> 1320
C69: Autres dépenses avant la DAI | O69: 86 | P69: =IndicateurAjuste(BR_AUTRES_AVANT_DAI_RES_ORG_AJ) ->  | U69: =IndicateurAjuste(BR_AUTRES_AVANT_DAI_RES_SHQ_AJ) ->  | AH69: 87 | AI69: =IndicateurAjuste(BR_AUTRES_AVANT_DAI_NRES_ORG_AJ) ->  | AN69: =IndicateurAjuste(BR_AUTRES_AVANT_DAI_NRES_SHQ_AJ) ->  | BA69: 88 | BB69: =BR_AUTRES_AVANT_DAI_RES_ORG+BR_AUTRES_AVANT_DAI_NRES_ORG -> 0 | BG69: =BR_AUTRES_AVANT_DAI_RES_SHQ+BR_AUTRES_AVANT_DAI_NRES_SHQ -> 0 | DA69: =1330 -> 1330
C70: TPS | O70: 89 | P70: =IndicateurAjuste(BR_TPS_RES_ORG_AJ) ->  | Q70: =Ajuster(BR_TPS_RES_ORG_AJ,CalculerTaxes(G_PROJET_TYPE_INTERVENTION,IP_VALEUR_AP_TRAVAUX_RES_ORG,IF(ISERR(BR_TOTAL_POUR_TAXES_RES_ORG),0,BR_TOTAL_POUR_TAXES_RES_ORG)+IF(ISERR(BR_IMPREVUS_FRAIS_VARIABLES_RES_ORG),0,BR_IMPREVUS_FRAIS_VARIABLES_RES_ORG),PARM_TAUX_TPS, BR_ACQUISITION_TAX_TPS_RES_ORG)) -> 299.25 | U70: =IndicateurAjuste(BR_TPS_RES_SHQ_AJ) ->  | V70: =Ajuster(BR_TPS_RES_SHQ_AJ,CalculerTaxes(G_PROJET_TYPE_INTERVENTION,IP_VALEUR_AP_TRAVAUX_RES_SHQ,IF(ISERR(BR_TOTAL_POUR_TAXES_RES_SHQ),0,BR_TOTAL_POUR_TAXES_RES_SHQ)+IF(ISERR(BR_IMPREVUS_FRAIS_VARIABLES_RES_SHQ),0,BR_IMPREVUS_FRAIS_VARIABLES_RES_SHQ),PARM_TAUX_TPS, BR_ACQUISITION_TAX_TPS_RES_SHQ)) -> 299.25 | AH70: 90 | AI70: =IndicateurAjuste(BR_TPS_NRES_ORG_AJ) ->  | AJ70: =Ajuster(BR_TPS_NRES_ORG_AJ,CalculerTaxes(G_PROJET_TYPE_INTERVENTION,IP_VALEUR_AP_TRAVAUX_NRES_ORG,IF(ISERR(BR_TOTAL_POUR_TAXES_NRES_ORG),0,BR_TOTAL_POUR_TAXES_NRES_ORG)+IF(ISERR(BR_IMPREVUS_FRAIS_VARIABLES_NRES_ORG),0,BR_IMPREVUS_FRAIS_VARIABLES_NRES_ORG),PARM_TAUX_TPS, BR_ACQUISITION_TAX_TPS_NRES_ORG)) -> 0 | AN70: =IndicateurAjuste(BR_TPS_NRES_SHQ_AJ) ->  | AO70: =Ajuster(BR_TPS_NRES_SHQ_AJ,CalculerTaxes(G_PROJET_TYPE_INTERVENTION,IP_VALEUR_AP_TRAVAUX_NRES_SHQ,IF(ISERR(BR_TOTAL_POUR_TAXES_NRES_SHQ),0,BR_TOTAL_POUR_TAXES_NRES_SHQ)+IF(ISERR(BR_IMPREVUS_FRAIS_VARIABLES_NRES_SHQ),0,BR_IMPREVUS_FRAIS_VARIABLES_NRES_SHQ),PARM_TAUX_TPS, BR_ACQUISITION_TAX_TPS_NRES_SHQ)) -> 0 | BA70: 91 | BB70: =BR_TPS_RES_ORG+BR_TPS_NRES_ORG -> 299.25 | BG70: =BR_TPS_RES_SHQ+BR_TPS_NRES_SHQ -> 299.25 | BZ70: Total des dépenses taxables (Sans les IFV) : | CA70: =BR_TRAVAUX_RES_ORG+BR_TRAVAUX_INFRASTRUCTURE_RES_ORG+BR_TRAVAUX_IMPREVUS_RES_ORG+BR_ADAPTATION_SAD_HORS_CONTRAT_RES_ORG+BR_SALLE_LAVAGE_RES_ORG+BR_MOBILIER_SALLE_COMMUNE_RES_ORG+BR_MOBILIER_CLIENT_SPECIALE_RES_ORG+BR_ELECTROMENAGERS_ADAPTES_RES_ORG+BR_IMMOBILISATIONS_AUTRES_RES_ORG+BR_ARPENTEUR_RES_ORG+BR_ING_STRUC_RES_ORG+BR_ING_MECAL_RES_ORG+BR_ARCHITECTE_RES_ORG+BR_EVALUATEUR_RES_ORG+BR_VERIFICATEUR_RES_ORG+BR_ANALYSE_ENVIRONNEMENTALE_RES_ORG+BR_TEST_CAPACITE_PORTANTE_RES_ORG+BR_FRAIS_JURIDIQUES_RES_ORG+BR_HONORAIRES_DEVELOPPEURS_RES_ORG+BR_FRAIS_PROFESSIONNELS_DIVERS_RES_ORG+BR_ORGANISATION_RES_ORG+BR_RELOCALISATION_RES_ORG+BR_AUTRES_AVANT_DAI_RES_ORG -> 5700 | CB70: =BR_TRAVAUX_RES_SHQ+BR_TRAVAUX_INFRASTRUCTURE_RES_SHQ+BR_TRAVAUX_IMPREVUS_RES_SHQ+BR_ADAPTATION_SAD_HORS_CONTRAT_RES_SHQ+BR_SALLE_LAVAGE_RES_SHQ+BR_MOBILIER_SALLE_COMMUNE_RES_SHQ+BR_MOBILIER_CLIENT_SPECIALE_RES_SHQ+BR_ELECTROMENAGERS_ADAPTES_RES_SHQ+BR_IMMOBILISATIONS_AUTRES_RES_SHQ+BR_ARPENTEUR_RES_SHQ+BR_ING_STRUC_RES_SHQ+BR_ING_MECAL_RES_SHQ+BR_ARCHITECTE_RES_SHQ+BR_EVALUATEUR_RES_SHQ+BR_VERIFICATEUR_RES_SHQ+BR_ANALYSE_ENVIRONNEMENTALE_RES_SHQ+BR_TEST_CAPACITE_PORTANTE_RES_SHQ+BR_FRAIS_JURIDIQUES_RES_SHQ+BR_HONORAIRES_DEVELOPPEURS_RES_SHQ+BR_FRAIS_PROFESSIONNELS_DIVERS_RES_SHQ+BR_ORGANISATION_RES_SHQ+BR_RELOCALISATION_RES_SHQ+BR_AUTRES_AVANT_DAI_RES_SHQ -> 5700 | CC70: =BR_TRAVAUX_NRES_ORG+BR_TRAVAUX_INFRASTRUCTURE_NRES_ORG+BR_TRAVAUX_IMPREVUS_NRES_ORG+BR_ADAPTATION_SAD_HORS_CONTRAT_NRES_ORG+BR_SALLE_LAVAGE_NRES_ORG+BR_MOBILIER_SALLE_COMMUNE_NRES_ORG+BR_MOBILIER_CLIENT_SPECIALE_NRES_ORG+BR_ELECTROMENAGERS_ADAPTES_NRES_ORG+BR_IMMOBILISATIONS_AUTRES_NRES_ORG+BR_ARPENTEUR_NRES_ORG+BR_ING_STRUC_NRES_ORG+BR_ING_MECAL_NRES_ORG+BR_ARCHITECTE_NRES_ORG+BR_EVALUATEUR_NRES_ORG+BR_VERIFICATEUR_NRES_ORG+BR_ANALYSE_ENVIRONNEMENTALE_NRES_ORG+BR_TEST_CAPACITE_PORTANTE_NRES_ORG+BR_FRAIS_JURIDIQUES_NRES_ORG+BR_HONORAIRES_DEVELOPPEURS_NRES_ORG+BR_FRAIS_PROFESSIONNELS_DIVERS_NRES_ORG+BR_ORGANISATION_NRES_ORG+BR_RELOCALISATION_NRES_ORG+BR_AUTRES_AVANT_DAI_NRES_ORG -> 0 | CD70: =BR_TRAVAUX_NRES_SHQ+BR_TRAVAUX_INFRASTRUCTURE_NRES_SHQ+BR_TRAVAUX_IMPREVUS_NRES_SHQ+BR_ADAPTATION_SAD_HORS_CONTRAT_NRES_SHQ+BR_SALLE_LAVAGE_NRES_SHQ+BR_MOBILIER_SALLE_COMMUNE_NRES_SHQ+BR_MOBILIER_CLIENT_SPECIALE_NRES_SHQ+BR_ELECTROMENAGERS_ADAPTES_NRES_SHQ+BR_IMMOBILISATIONS_AUTRES_NRES_SHQ+BR_ARPENTEUR_NRES_SHQ+BR_ING_STRUC_NRES_SHQ+BR_ING_MECAL_NRES_SHQ+BR_ARCHITECTE_NRES_SHQ+BR_EVALUATEUR_NRES_SHQ+BR_VERIFICATEUR_NRES_SHQ+BR_ANALYSE_ENVIRONNEMENTALE_NRES_SHQ+BR_TEST_CAPACITE_PORTANTE_NRES_SHQ+BR_FRAIS_JURIDIQUES_NRES_SHQ+BR_HONORAIRES_DEVELOPPEURS_NRES_SHQ+BR_FRAIS_PROFESSIONNELS_DIVERS_NRES_SHQ+BR_ORGANISATION_NRES_SHQ+BR_RELOCALISATION_NRES_SHQ+BR_AUTRES_AVANT_DAI_NRES_SHQ -> 0 | CF70: 0 | CG70: 0 | CH70: 0 | CI70: 0 | CJ70: Montant taxes TPS | DA70: =1340 -> 1340
C71: TVQ | O71: 92 | P71: =IndicateurAjuste(BR_TVQ_RES_ORG_AJ) ->  | Q71: =Ajuster(BR_TVQ_RES_ORG_AJ,CalculerTaxes(G_PROJET_TYPE_INTERVENTION,IP_VALEUR_AP_TRAVAUX_RES_ORG,IF(ISERR(BR_TOTAL_POUR_TAXES_RES_ORG),0,BR_TOTAL_POUR_TAXES_RES_ORG)+IF(ISERR(BR_IMPREVUS_FRAIS_VARIABLES_RES_ORG),0,BR_IMPREVUS_FRAIS_VARIABLES_RES_ORG),PARM_TAUX_TVQ, BR_ACQUISITION_TAX_TVQ_RES_ORG)) -> 597.0038 | U71: =IndicateurAjuste(BR_TVQ_RES_SHQ_AJ) ->  | V71: =Ajuster(BR_TVQ_RES_SHQ_AJ,CalculerTaxes(G_PROJET_TYPE_INTERVENTION,IP_VALEUR_AP_TRAVAUX_RES_SHQ,IF(ISERR(BR_TOTAL_POUR_TAXES_RES_SHQ),0,BR_TOTAL_POUR_TAXES_RES_SHQ)+IF(ISERR(BR_IMPREVUS_FRAIS_VARIABLES_RES_SHQ),0,BR_IMPREVUS_FRAIS_VARIABLES_RES_SHQ),PARM_TAUX_TVQ, BR_ACQUISITION_TAX_TVQ_RES_SHQ)) -> 597.0038 | AH71: 93 | AI71: =IndicateurAjuste(BR_TVQ_NRES_ORG_AJ) ->  | AJ71: =Ajuster(BR_TVQ_NRES_ORG_AJ,CalculerTaxes(G_PROJET_TYPE_INTERVENTION,IP_VALEUR_AP_TRAVAUX_NRES_ORG,IF(ISERR(BR_TOTAL_POUR_TAXES_NRES_ORG),0,BR_TOTAL_POUR_TAXES_NRES_ORG)+IF(ISERR(BR_IMPREVUS_FRAIS_VARIABLES_NRES_ORG),0,BR_IMPREVUS_FRAIS_VARIABLES_NRES_ORG),PARM_TAUX_TVQ, BR_ACQUISITION_TAX_TVQ_NRES_ORG)) -> 0 | AN71: =IndicateurAjuste(BR_TVQ_NRES_SHQ_AJ) ->  | AO71: =Ajuster(BR_TVQ_NRES_SHQ_AJ,CalculerTaxes(G_PROJET_TYPE_INTERVENTION,IP_VALEUR_AP_TRAVAUX_NRES_SHQ,IF(ISERR(BR_TOTAL_POUR_TAXES_NRES_SHQ),0,BR_TOTAL_POUR_TAXES_NRES_SHQ)+IF(ISERR(BR_IMPREVUS_FRAIS_VARIABLES_NRES_SHQ),0,BR_IMPREVUS_FRAIS_VARIABLES_NRES_SHQ),PARM_TAUX_TVQ, BR_ACQUISITION_TAX_TVQ_NRES_SHQ)) -> 0 | BA71: 94 | BB71: =BR_TVQ_RES_ORG+BR_TVQ_NRES_ORG -> 597.0038 | BG71: =BR_TVQ_RES_SHQ+BR_TVQ_NRES_SHQ -> 597.0038 | CA71: =BR_ACQUISITION_RES_ORG-BR_ACQUISITION_NON_TAX_RES_ORG+BR_TRAVAUX_RES_ORG+BR_TRAVAUX_INFRASTRUCTURE_RES_ORG+BR_TRAVAUX_IMPREVUS_RES_ORG+BR_SALLE_LAVAGE_RES_ORG+BR_MOBILIER_SALLE_COMMUNE_RES_ORG+BR_MOBILIER_CLIENT_SPECIALE_RES_ORG+BR_ELECTROMENAGERS_ADAPTES_RES_ORG+BR_IMMOBILISATIONS_AUTRES_RES_ORG+BR_ARPENTEUR_RES_ORG+BR_ING_STRUC_RES_ORG+BR_ING_MECAL_RES_ORG+BR_ARCHITECTE_RES_ORG+BR_EVALUATEUR_RES_ORG+BR_VERIFICATEUR_RES_ORG+BR_ANALYSE_ENVIRONNEMENTALE_RES_ORG+BR_TEST_CAPACITE_PORTANTE_RES_ORG+BR_FRAIS_JURIDIQUES_RES_ORG+BR_HONORAIRES_DEVELOPPEURS_RES_ORG+BR_FRAIS_PROFESSIONNELS_DIVERS_RES_ORG+BR_ORGANISATION_RES_ORG+BR_RELOCALISATION_RES_ORG+BR_AUTRES_AVANT_DAI_RES_ORG -> 5700 | CB71: =BR_ACQUISITION_RES_SHQ-BR_ACQUISITION_NON_TAX_RES_SHQ+BR_TRAVAUX_RES_SHQ+BR_TRAVAUX_INFRASTRUCTURE_RES_SHQ+BR_TRAVAUX_IMPREVUS_RES_SHQ+BR_SALLE_LAVAGE_RES_SHQ+BR_MOBILIER_SALLE_COMMUNE_RES_SHQ+BR_MOBILIER_CLIENT_SPECIALE_RES_SHQ+BR_ELECTROMENAGERS_ADAPTES_RES_SHQ+BR_IMMOBILISATIONS_AUTRES_RES_SHQ+BR_ARPENTEUR_RES_SHQ+BR_ING_STRUC_RES_SHQ+BR_ING_MECAL_RES_SHQ+BR_ARCHITECTE_RES_SHQ+BR_EVALUATEUR_RES_SHQ+BR_VERIFICATEUR_RES_SHQ+BR_ANALYSE_ENVIRONNEMENTALE_RES_SHQ+BR_TEST_CAPACITE_PORTANTE_RES_SHQ+BR_FRAIS_JURIDIQUES_RES_SHQ+BR_HONORAIRES_DEVELOPPEURS_RES_SHQ+BR_FRAIS_PROFESSIONNELS_DIVERS_RES_SHQ+BR_ORGANISATION_RES_SHQ+BR_RELOCALISATION_RES_SHQ+BR_AUTRES_AVANT_DAI_RES_SHQ -> 5700 | CC71: =BR_ACQUISITION_NRES_ORG-BR_ACQUISITION_NON_TAX_NRES_ORG+BR_TRAVAUX_NRES_ORG+BR_TRAVAUX_INFRASTRUCTURE_NRES_ORG+BR_TRAVAUX_IMPREVUS_NRES_ORG+BR_SALLE_LAVAGE_NRES_ORG+BR_MOBILIER_SALLE_COMMUNE_NRES_ORG+BR_MOBILIER_CLIENT_SPECIALE_NRES_ORG+BR_ELECTROMENAGERS_ADAPTES_NRES_ORG+BR_IMMOBILISATIONS_AUTRES_NRES_ORG+BR_ARPENTEUR_NRES_ORG+BR_ING_STRUC_NRES_ORG+BR_ING_MECAL_NRES_ORG+BR_ARCHITECTE_NRES_ORG+BR_EVALUATEUR_NRES_ORG+BR_VERIFICATEUR_NRES_ORG+BR_ANALYSE_ENVIRONNEMENTALE_NRES_ORG+BR_TEST_CAPACITE_PORTANTE_NRES_ORG+BR_FRAIS_JURIDIQUES_NRES_ORG+BR_HONORAIRES_DEVELOPPEURS_NRES_ORG+BR_FRAIS_PROFESSIONNELS_DIVERS_NRES_ORG+BR_ORGANISATION_NRES_ORG+BR_RELOCALISATION_NRES_ORG+BR_AUTRES_AVANT_DAI_NRES_ORG -> 0 | CD71: =BR_ACQUISITION_NRES_SHQ-BR_ACQUISITION_NON_TAX_NRES_SHQ+BR_TRAVAUX_NRES_SHQ+BR_TRAVAUX_INFRASTRUCTURE_NRES_SHQ+BR_TRAVAUX_IMPREVUS_NRES_SHQ+BR_SALLE_LAVAGE_NRES_SHQ+BR_MOBILIER_SALLE_COMMUNE_NRES_SHQ+BR_MOBILIER_CLIENT_SPECIALE_NRES_SHQ+BR_ELECTROMENAGERS_ADAPTES_NRES_SHQ+BR_IMMOBILISATIONS_AUTRES_NRES_SHQ+BR_ARPENTEUR_NRES_SHQ+BR_ING_STRUC_NRES_SHQ+BR_ING_MECAL_NRES_SHQ+BR_ARCHITECTE_NRES_SHQ+BR_EVALUATEUR_NRES_SHQ+BR_VERIFICATEUR_NRES_SHQ+BR_ANALYSE_ENVIRONNEMENTALE_NRES_SHQ+BR_TEST_CAPACITE_PORTANTE_NRES_SHQ+BR_FRAIS_JURIDIQUES_NRES_SHQ+BR_HONORAIRES_DEVELOPPEURS_NRES_SHQ+BR_FRAIS_PROFESSIONNELS_DIVERS_NRES_SHQ+BR_ORGANISATION_NRES_SHQ+BR_RELOCALISATION_NRES_SHQ+BR_AUTRES_AVANT_DAI_NRES_SHQ -> 0 | CF71: 0 | CG71: 0 | CH71: 0 | CI71: 0 | CJ71: Montant taxes TVQ | DA71: =1350 -> 1350
C74: Réserve pour taxes | O74: 95 | P74: =IndicateurAjuste(BR_RESERVE_TAXES_RES_ORG_AJ) ->  | Q74: =Ajuster(BR_RESERVE_TAXES_RES_ORG_AJ,CalculerReservePourTaxes(G_ORGANISME_CHARITE,G_ORGANISME_NO_ENREGISTREMENT,G_ORGANISME_REC_EXEMP_TFONC,G_ORGANISME_NO_DOSSIER,IP_TAXE_EXEMP,IA_TAXES_SERVICES_ANNUEL,IP_TAXE_SERVICES_PREVU_ORG,IP_VALEUR_FONC_AP_TRAVAUX_RES_ORG,IP_TAUX_FONCIER_PREVU_ORG,IP_TAUX_SCOLAIRE_PREVU_ORG,C_MUNI_EXEMPTION_TAXE_FONCIERE_MONTANT_ANNUEL_ORG,C_MUNI_EXEMPTION_TAXE_FONCIERE_ANNEES_ORG,G_ORGANISME_DATE_ENTREE_VIGUEUR, G_ORGANISME_NO_RESOLUTION)) -> 0 | U74: =IndicateurAjuste(BR_RESERVE_TAXES_RES_SHQ_AJ) ->  | V74: =Ajuster(BR_RESERVE_TAXES_RES_SHQ_AJ,CalculerReservePourTaxes(G_ORGANISME_CHARITE,G_ORGANISME_NO_ENREGISTREMENT,G_ORGANISME_REC_EXEMP_TFONC,G_ORGANISME_NO_DOSSIER,IP_TAXE_EXEMP,IA_TAXES_SERVICES_ANNUEL,IP_TAXE_SERVICES_PREVU_SHQ,IP_VALEUR_FONC_AP_TRAVAUX_RES_SHQ,IP_TAUX_FONCIER_PREVU_SHQ,IP_TAUX_SCOLAIRE_PREVU_SHQ,C_MUNI_EXEMPTION_TAXE_FONCIERE_MONTANT_ANNUEL_SHQ,C_MUNI_EXEMPTION_TAXE_FONCIERE_ANNEES_SHQ,G_ORGANISME_DATE_ENTREE_VIGUEUR, G_ORGANISME_NO_RESOLUTION)) -> 0 | AH74: 96 | AI74: =IndicateurAjuste(BR_RESERVE_TAXES_NRES_ORG_AJ) ->  | AN74: =IndicateurAjuste(BR_RESERVE_TAXES_NRES_SHQ_AJ) ->  | BA74: 97 | BB74: =BR_RESERVE_TAXES_RES_ORG+BR_RESERVE_TAXES_NRES_ORG -> 0 | BG74: =BR_RESERVE_TAXES_RES_SHQ+BR_RESERVE_TAXES_NRES_SHQ -> 0 | DA74: =1360 -> 1360
C75: Réserve pour assurances | O75: 98 | P75: =IndicateurAjuste(BR_RESERVE_ASSURANCES_RES_ORG_AJ) ->  | Q75: =Ajuster(BR_RESERVE_ASSURANCES_RES_ORG_AJ,BE_TAXE_ASSURANCE_RES_ORG/2) -> 0 | U75: =IndicateurAjuste(BR_RESERVE_ASSURANCES_RES_SHQ_AJ) ->  | V75: =Ajuster(BR_RESERVE_ASSURANCES_RES_SHQ_AJ,BE_TAXE_ASSURANCE_RES_SHQ/2) -> 0 | AH75: 99 | AI75: =IndicateurAjuste(BR_RESERVE_ASSURANCES_NRES_ORG_AJ) ->  | AN75: =IndicateurAjuste(BR_RESERVE_ASSURANCES_NRES_SHQ_AJ) ->  | BA75: 100 | BB75: =BR_RESERVE_ASSURANCES_RES_ORG+BR_RESERVE_ASSURANCES_NRES_ORG -> 0 | BG75: =BR_RESERVE_ASSURANCES_RES_SHQ+BR_RESERVE_ASSURANCES_NRES_SHQ -> 0 | DA75: =1370 -> 1370
C76: Réserve pour pertes locatives | O76: 101 | P76: =IndicateurAjuste(BR_RESERVE_PERTES_LOCATIVES_RES_ORG_AJ) ->  | Q76: =Ajuster(BR_RESERVE_PERTES_LOCATIVES_RES_ORG_AJ,CalculerReservePourPertesLocatives(IP_LOYERS_MEDIAN_SS_SERVC_ORG,G_PROJET_MUN_2500)) -> 0 | U76: =IndicateurAjuste(BR_RESERVE_PERTES_LOCATIVES_RES_SHQ_AJ) ->  | V76: =Ajuster(BR_RESERVE_PERTES_LOCATIVES_RES_SHQ_AJ,CalculerReservePourPertesLocatives(IP_LOYERS_MEDIAN_SS_SERVC_SHQ,G_PROJET_MUN_2500)) -> 0 | AH76: 102 | AI76: =IndicateurAjuste(BR_RESERVE_PERTES_LOCATIVES_NRES_ORG_AJ) ->  | AN76: =IndicateurAjuste(BR_RESERVE_PERTES_LOCATIVES_NRES_SHQ_AJ) ->  | BA76: 103 | BB76: =BR_RESERVE_PERTES_LOCATIVES_RES_ORG+BR_RESERVE_PERTES_LOCATIVES_NRES_ORG -> 0 | BG76: =BR_RESERVE_PERTES_LOCATIVES_RES_SHQ+BR_RESERVE_PERTES_LOCATIVES_NRES_SHQ -> 0 | DA76: =1380 -> 1380
C77: Réserve capitalisée de gestion | O77: 104 | P77: =IndicateurAjuste(BR_RESERVE_GESTION_RES_ORG_AJ) ->  | Q77: =Ajuster(BR_RESERVE_GESTION_RES_ORG_AJ,IF(F_HYPOTHEQUE_TERME_ORG<PARM_RESERVE_GESTION_TERME_MAX,F_HYPOTHEQUE_PRET_RES_ORG * PARM_RESERVE_GESTION_TAUX,0)) -> 0 | U77: =IndicateurAjuste(BR_RESERVE_GESTION_RES_SHQ_AJ) ->  | V77: =Ajuster(BR_RESERVE_GESTION_RES_SHQ_AJ,IF(F_HYPOTHEQUE_TERME_SHQ<PARM_RESERVE_GESTION_TERME_MAX,F_HYPOTHEQUE_PRET_RES_SHQ * PARM_RESERVE_GESTION_TAUX,0)) -> 0 | AH77: 105 | AI77: =IndicateurAjuste(BR_RESERVE_GESTION_NRES_ORG_AJ) ->  | AN77: =IndicateurAjuste(BR_RESERVE_GESTION_NRES_SHQ_AJ) ->  | BA77: 106 | BB77: =BR_RESERVE_GESTION_RES_ORG+BR_RESERVE_GESTION_NRES_ORG -> 0 | BG77: =BR_RESERVE_GESTION_RES_SHQ+BR_RESERVE_GESTION_NRES_SHQ -> 0 | DA77: =1390 -> 1390
C80: Financement intérimaire | O80: 107 | P80: =IndicateurAjuste(BR_FINANCEMENT_INTERIMAIRE_RES_ORG_AJ) ->  | Q80: =Ajuster(BR_FINANCEMENT_INTERIMAIRE_RES_ORG_AJ,F_FINANCEMENT_INTERIMAIRE_RES_ORG) -> 0 | U80: =IndicateurAjuste(BR_FINANCEMENT_INTERIMAIRE_RES_SHQ_AJ) ->  | V80: =Ajuster(BR_FINANCEMENT_INTERIMAIRE_RES_SHQ_AJ,F_FINANCEMENT_INTERIMAIRE_RES_SHQ) -> 0 | AH80: 108 | AI80: =IndicateurAjuste(BR_FINANCEMENT_INTERIMAIRE_NRES_ORG_AJ) ->  | AJ80: =Ajuster(BR_FINANCEMENT_INTERIMAIRE_NRES_ORG_AJ,F_FINANCEMENT_INTERIMAIRE_NRES_ORG) -> 0 | AN80: =IndicateurAjuste(BR_FINANCEMENT_INTERIMAIRE_NRES_SHQ_AJ) ->  | AO80: =Ajuster(BR_FINANCEMENT_INTERIMAIRE_NRES_SHQ_AJ,F_FINANCEMENT_INTERIMAIRE_NRES_SHQ) -> 0 | BA80: 109 | BB80: =BR_FINANCEMENT_INTERIMAIRE_RES_ORG+BR_FINANCEMENT_INTERIMAIRE_NRES_ORG -> 0 | BG80: =BR_FINANCEMENT_INTERIMAIRE_RES_SHQ+BR_FINANCEMENT_INTERIMAIRE_NRES_SHQ -> 0 | DA80: =1150 -> 1150
C81: Intérêts marge de crédit après DAI | O81: 110 | P81: =IndicateurAjuste(BR_INTERET_REMB_TAXES_RES_ORG_AJ) ->  | Q81: =Ajuster(BR_INTERET_REMB_TAXES_RES_ORG_AJ,CalculerInteretsRembTPSTVQ(G_ORGANISME_ADMISSIBLE_REMBOURSEMENT,G_ORGANISME_FOURNITURE_SOI,G_ORGANISME_INSCRIT,BR_REMBOURSEMENT_TPS_RES_ORG,BR_REMBOURSEMENT_TVQ_RES_ORG,F_COUT_TAUX_RES_ORG)) -> 0 | U81: =IndicateurAjuste(BR_INTERET_REMB_TAXES_RES_SHQ_AJ) ->  | V81: =Ajuster(BR_INTERET_REMB_TAXES_RES_SHQ_AJ,CalculerInteretsRembTPSTVQ(G_ORGANISME_ADMISSIBLE_REMBOURSEMENT,G_ORGANISME_FOURNITURE_SOI,G_ORGANISME_INSCRIT,BR_REMBOURSEMENT_TPS_RES_SHQ,BR_REMBOURSEMENT_TVQ_RES_SHQ,F_COUT_TAUX_RES_SHQ)) -> 0 | AH81: 111 | AI81: =IndicateurAjuste(BR_INTERET_REMB_TAXES_NRES_ORG_AJ) ->  | AN81: =IndicateurAjuste(BR_INTERET_REMB_TAXES_NRES_SHQ_AJ) ->  | BA81: 112 | BB81: =BR_INTERET_REMB_TAXES_RES_ORG+BR_INTERET_REMB_TAXES_NRES_ORG -> 0 | BG81: =BR_INTERET_REMB_TAXES_RES_SHQ+BR_INTERET_REMB_TAXES_NRES_SHQ -> 0 | DA81: =1400 -> 1400
C84: ="Imprévus sur frais variables (" & PARM_IFV_TAUX * 100 & "%)" -> Imprévus sur frais variables (5%) | O84: 113 | P84: =IndicateurAjuste(BR_IMPREVUS_FRAIS_VARIABLES_RES_ORG_AJ) ->  | Q84: =Ajuster(BR_IMPREVUS_FRAIS_VARIABLES_RES_ORG_AJ,BR_TOTAL_POUR_IFV_RES_ORG * PARM_IFV_TAUX) -> 285 | U84: =IndicateurAjuste(BR_IMPREVUS_FRAIS_VARIABLES_RES_SHQ_AJ) ->  | V84: =Ajuster(BR_IMPREVUS_FRAIS_VARIABLES_RES_SHQ_AJ,BR_TOTAL_POUR_IFV_RES_SHQ * PARM_IFV_TAUX) -> 285 | AH84: 114 | AI84: =IndicateurAjuste(BR_IMPREVUS_FRAIS_VARIABLES_NRES_ORG_AJ) ->  | AN84: =IndicateurAjuste(BR_IMPREVUS_FRAIS_VARIABLES_NRES_SHQ_AJ) ->  | BA84: 115 | BB84: =BR_IMPREVUS_FRAIS_VARIABLES_RES_ORG+BR_IMPREVUS_FRAIS_VARIABLES_NRES_ORG -> 285 | BG84: =BR_IMPREVUS_FRAIS_VARIABLES_RES_SHQ+BR_IMPREVUS_FRAIS_VARIABLES_NRES_SHQ -> 285 | BZ84: Total des dépenses impliquées dans le calcul des IFV : | CA84: =BR_PERMIS_CONSTR_RES_ORG+BR_TAXE_SPECIALE_RES_ORG+BR_DROIT_COMPENS_RES_ORG+BR_DROIT_AUTRE_RES_ORG+BR_SALLE_LAVAGE_RES_ORG+BR_MOBILIER_SALLE_COMMUNE_RES_ORG+BR_MOBILIER_CLIENT_SPECIALE_RES_ORG+BR_ELECTROMENAGERS_ADAPTES_RES_ORG+BR_IMMOBILISATIONS_AUTRES_RES_ORG+BR_ARPENTEUR_RES_ORG+BR_ING_STRUC_RES_ORG+BR_ING_MECAL_RES_ORG+BR_ARCHITECTE_RES_ORG+BR_EVALUATEUR_RES_ORG+BR_VERIFICATEUR_RES_ORG+BR_ANALYSE_ENVIRONNEMENTALE_RES_ORG+BR_TEST_CAPACITE_PORTANTE_RES_ORG+BR_FRAIS_JURIDIQUES_RES_ORG+BR_HONORAIRES_DEVELOPPEURS_RES_ORG+BR_FRAIS_PROFESSIONNELS_DIVERS_RES_ORG+BR_ORGANISATION_RES_ORG+BR_RELOCALISATION_RES_ORG+BR_TAXES_AVANT_DAI_RES_ORG+BR_ASSURANCES_AVANT_DAI_RES_ORG+BR_AUTRES_AVANT_DAI_RES_ORG -> 5700 | CB84: =BR_PERMIS_CONSTR_RES_SHQ+BR_TAXE_SPECIALE_RES_SHQ+BR_DROIT_COMPENS_RES_SHQ+BR_DROIT_AUTRE_RES_SHQ+BR_SALLE_LAVAGE_RES_SHQ+BR_MOBILIER_SALLE_COMMUNE_RES_SHQ+BR_MOBILIER_CLIENT_SPECIALE_RES_SHQ+BR_ELECTROMENAGERS_ADAPTES_RES_SHQ+BR_IMMOBILISATIONS_AUTRES_RES_SHQ+BR_ARPENTEUR_RES_SHQ+BR_ING_STRUC_RES_SHQ+BR_ING_MECAL_RES_SHQ+BR_ARCHITECTE_RES_SHQ+BR_EVALUATEUR_RES_SHQ+BR_VERIFICATEUR_RES_SHQ+BR_ANALYSE_ENVIRONNEMENTALE_RES_SHQ+BR_TEST_CAPACITE_PORTANTE_RES_SHQ+BR_FRAIS_JURIDIQUES_RES_SHQ+BR_HONORAIRES_DEVELOPPEURS_RES_SHQ+BR_FRAIS_PROFESSIONNELS_DIVERS_RES_SHQ+BR_ORGANISATION_RES_SHQ+BR_RELOCALISATION_RES_SHQ+BR_TAXES_AVANT_DAI_RES_SHQ+BR_ASSURANCES_AVANT_DAI_RES_SHQ+BR_AUTRES_AVANT_DAI_RES_SHQ -> 5700 | CC84: =BR_PERMIS_CONSTR_NRES_ORG+BR_TAXE_SPECIALE_NRES_ORG+BR_DROIT_COMPENS_NRES_ORG+BR_DROIT_AUTRE_NRES_ORG+BR_SALLE_LAVAGE_NRES_ORG+BR_MOBILIER_SALLE_COMMUNE_NRES_ORG+BR_MOBILIER_CLIENT_SPECIALE_NRES_ORG+BR_ELECTROMENAGERS_ADAPTES_NRES_ORG+BR_IMMOBILISATIONS_AUTRES_NRES_ORG+BR_ARPENTEUR_NRES_ORG+BR_ING_STRUC_NRES_ORG+BR_ING_MECAL_NRES_ORG+BR_ARCHITECTE_NRES_ORG+BR_EVALUATEUR_NRES_ORG+BR_VERIFICATEUR_NRES_ORG+BR_ANALYSE_ENVIRONNEMENTALE_NRES_ORG+BR_TEST_CAPACITE_PORTANTE_NRES_ORG+BR_FRAIS_JURIDIQUES_NRES_ORG+BR_HONORAIRES_DEVELOPPEURS_NRES_ORG+BR_FRAIS_PROFESSIONNELS_DIVERS_NRES_ORG+BR_ORGANISATION_NRES_ORG+BR_RELOCALISATION_NRES_ORG+BR_TAXES_AVANT_DAI_NRES_ORG+BR_ASSURANCES_AVANT_DAI_NRES_ORG+BR_AUTRES_AVANT_DAI_NRES_ORG -> 0 | CD84: =BR_PERMIS_CONSTR_NRES_SHQ+BR_TAXE_SPECIALE_NRES_SHQ+BR_DROIT_COMPENS_NRES_SHQ+BR_DROIT_AUTRE_NRES_SHQ+BR_SALLE_LAVAGE_NRES_SHQ+BR_MOBILIER_SALLE_COMMUNE_NRES_SHQ+BR_MOBILIER_CLIENT_SPECIALE_NRES_SHQ+BR_ELECTROMENAGERS_ADAPTES_NRES_SHQ+BR_IMMOBILISATIONS_AUTRES_NRES_SHQ+BR_ARPENTEUR_NRES_SHQ+BR_ING_STRUC_NRES_SHQ+BR_ING_MECAL_NRES_SHQ+BR_ARCHITECTE_NRES_SHQ+BR_EVALUATEUR_NRES_SHQ+BR_VERIFICATEUR_NRES_SHQ+BR_ANALYSE_ENVIRONNEMENTALE_NRES_SHQ+BR_TEST_CAPACITE_PORTANTE_NRES_SHQ+BR_FRAIS_JURIDIQUES_NRES_SHQ+BR_HONORAIRES_DEVELOPPEURS_NRES_SHQ+BR_FRAIS_PROFESSIONNELS_DIVERS_NRES_SHQ+BR_ORGANISATION_NRES_SHQ+BR_RELOCALISATION_NRES_SHQ+BR_TAXES_AVANT_DAI_NRES_SHQ+BR_ASSURANCES_AVANT_DAI_NRES_SHQ+BR_AUTRES_AVANT_DAI_NRES_SHQ -> 0 | DA84: =1410 -> 1410
C85: ="Contribution au secteur (" & PARM_TAUX_CONTRIBUTION_SECTEUR * 100 & "%)" -> Contribution au secteur (1%) | O85: 116 | P85: =IndicateurAjuste(BR_CONTRIBUTION_SECTEUR_RES_ORG_AJ) ->  | Q85: =Ajuster(BR_CONTRIBUTION_SECTEUR_RES_ORG_AJ,ROUND(IF(G_PROGRAMME_LAQ,0,PARM_TAUX_CONTRIBUTION_SECTEUR*IF(ISERR(BR_TOTAL_POUR_CONTRIBUTION_SECTEUR_RES_ORG),0,BR_TOTAL_POUR_CONTRIBUTION_SECTEUR_RES_ORG+F_SUBVENTIONS_VALEUR_MARCHANDE_ORG+F_SUBVENTIONS_VALEUR_CORVEE_ORG+F_SUBVENTIONS_EMPHYTEOSE_ORG)),0)) -> 69 | U85: =IndicateurAjuste(BR_CONTRIBUTION_SECTEUR_RES_SHQ_AJ) ->  | V85: =Ajuster(BR_CONTRIBUTION_SECTEUR_RES_SHQ_AJ,ROUND(IF(G_PROGRAMME_LAQ,0,PARM_TAUX_CONTRIBUTION_SECTEUR*IF(ISERR(BR_TOTAL_POUR_CONTRIBUTION_SECTEUR_RES_SHQ),0,BR_TOTAL_POUR_CONTRIBUTION_SECTEUR_RES_SHQ+F_SUBVENTIONS_VALEUR_MARCHANDE_SHQ+F_SUBVENTIONS_VALEUR_CORVEE_SHQ+F_SUBVENTIONS_EMPHYTEOSE_SHQ)),0)) -> 69 | BA85: 117 | BB85: =BR_CONTRIBUTION_SECTEUR_RES_ORG -> 69 | BG85: =BR_CONTRIBUTION_SECTEUR_RES_SHQ -> 69 | BZ85: Total des dépenses impliquées dans le calcul de la contribution au secteur : | CA85: =SUM(Q23:Q84) -> 6881.2538 | CB85: =SUM(V23:V84) -> 6881.2538 | DA85: =1280 -> 1280
C89: Dépenses totales | O89: 118 | P89: =SUM(Q23:Q85) -> 6950.2538 | U89: =SUM(V23:V85) -> 6950.2538 | AH89: 119 | AI89: =SUM(AJ23:AJ85) -> 0 | AN89: =SUM(AO23:AO85) -> 0 | BA89: 120 | BB89: =BR_DEPENSES_TOTALES_RES_ORG+BR_DEPENSES_TOTALES_NRES_ORG -> 6950.2538 | BG89: =BR_DEPENSES_TOTALES_RES_SHQ+BR_DEPENSES_TOTALES_NRES_SHQ -> 6950.2538
C92: REVENUS DE RÉALISATION | P92: Résidentiel | AA92: Ajustement | AI92: Non résidentiel | AT92: Ajustement | BB92: Total
P93: Organisme | U93: SHQ | AA93: Organisme | AD93: SHQ | AI93: Organisme | AN93: SHQ | AT93: Organisme | AW93: SHQ | BB93: Organisme | BG93: SHQ
C95: Remboursement sur TPS | J95: =IF(BR_TPS_RES_ORG>0,BR_REMBOURSEMENT_TPS_RES_ORG/BR_TPS_RES_ORG,0) -> 0 | L95: =IF(BR_TPS_RES_SHQ>0,BR_REMBOURSEMENT_TPS_RES_SHQ/BR_TPS_RES_SHQ,0) -> 0 | O95: 121 | P95: =IndicateurAjuste(BR_REMBOURSEMENT_TPS_RES_ORG_AJ) ->  | Q95: =Ajuster(BR_REMBOURSEMENT_TPS_RES_ORG_AJ,IF(G_ORGANISME_ADMISSIBLE_REMBOURSEMENT,BR_TPS_RES_ORG * G_ORGANISME_TPS_RES,0)) -> 0 | U95: =IndicateurAjuste(BR_REMBOURSEMENT_TPS_RES_SHQ_AJ) ->  | V95: =Ajuster(BR_REMBOURSEMENT_TPS_RES_SHQ_AJ,IF(G_ORGANISME_ADMISSIBLE_REMBOURSEMENT,BR_TPS_RES_SHQ * G_ORGANISME_TPS_RES,0)) -> 0 | AH95: 122 | AI95: =IndicateurAjuste(BR_REMBOURSEMENT_TPS_NRES_ORG_AJ) ->  | AJ95: =Ajuster(BR_REMBOURSEMENT_TPS_NRES_ORG_AJ,IF(G_ORGANISME_ADMISSIBLE_REMBOURSEMENT,BR_TPS_NRES_ORG * G_ORGANISME_TPS_NRES,0)) -> 0 | AN95: =IndicateurAjuste(BR_REMBOURSEMENT_TPS_NRES_SHQ_AJ) ->  | AO95: =Ajuster(BR_REMBOURSEMENT_TPS_NRES_SHQ_AJ,IF(G_ORGANISME_ADMISSIBLE_REMBOURSEMENT,BR_TPS_NRES_SHQ * G_ORGANISME_TPS_NRES,0)) -> 0 | BA95: 123 | BB95: =BR_REMBOURSEMENT_TPS_RES_ORG+BR_REMBOURSEMENT_TPS_NRES_ORG -> 0 | BG95: =BR_REMBOURSEMENT_TPS_RES_SHQ+BR_REMBOURSEMENT_TPS_NRES_SHQ -> 0 | DA95: =2100 -> 2100
C96: Remboursement sur TVQ | J96: =IF(BR_TVQ_RES_ORG>0,BR_REMBOURSEMENT_TVQ_RES_ORG/BR_TVQ_RES_ORG,0) -> 0 | L96: =IF(BR_TVQ_RES_SHQ>0,BR_REMBOURSEMENT_TVQ_RES_SHQ/BR_TVQ_RES_SHQ,0) -> 0 | O96: 124 | P96: =IndicateurAjuste(BR_REMBOURSEMENT_TVQ_RES_ORG_AJ) ->  | Q96: =Ajuster(BR_REMBOURSEMENT_TVQ_RES_ORG_AJ,IF(G_ORGANISME_ADMISSIBLE_REMBOURSEMENT,BR_TVQ_RES_ORG * G_ORGANISME_TVQ_RES,0)) -> 0 | U96: =IndicateurAjuste(BR_REMBOURSEMENT_TVQ_RES_SHQ_AJ) ->  | V96: =Ajuster(BR_REMBOURSEMENT_TVQ_RES_SHQ_AJ,IF(G_ORGANISME_ADMISSIBLE_REMBOURSEMENT,BR_TVQ_RES_SHQ * G_ORGANISME_TVQ_RES,0)) -> 0 | AH96: 125 | AI96: =IndicateurAjuste(BR_REMBOURSEMENT_TVQ_NRES_ORG_AJ) ->  | AJ96: =Ajuster(BR_REMBOURSEMENT_TVQ_NRES_ORG_AJ,IF(G_ORGANISME_ADMISSIBLE_REMBOURSEMENT,BR_TVQ_NRES_ORG * G_ORGANISME_TVQ_NRES,0)) -> 0 | AN96: =IndicateurAjuste(BR_REMBOURSEMENT_TVQ_NRES_SHQ_AJ) ->  | AO96: =Ajuster(BR_REMBOURSEMENT_TVQ_NRES_SHQ_AJ,IF(G_ORGANISME_ADMISSIBLE_REMBOURSEMENT,BR_TVQ_NRES_SHQ * G_ORGANISME_TVQ_NRES,0)) -> 0 | BA96: 126 | BB96: =BR_REMBOURSEMENT_TVQ_RES_ORG+BR_REMBOURSEMENT_TVQ_NRES_ORG -> 0 | BG96: =BR_REMBOURSEMENT_TVQ_RES_SHQ+BR_REMBOURSEMENT_TVQ_NRES_SHQ -> 0 | DA96: =2110 -> 2110
C97: Revenus de loyer avant DAI | O97: 127 | P97: =IndicateurAjuste(BR_REVENU_LOYER_AVANT_DAI_RES_ORG_AJ) ->  | U97: =IndicateurAjuste(BR_REVENU_LOYER_AVANT_DAI_RES_SHQ_AJ) ->  | AH97: 128 | AI97: =IndicateurAjuste(BR_REVENU_LOYER_AVANT_DAI_NRES_ORG_AJ) ->  | AN97: =IndicateurAjuste(BR_REVENU_LOYER_AVANT_DAI_NRES_SHQ_AJ) ->  | BA97: 129 | BB97: =BR_REVENU_LOYER_AVANT_DAI_RES_ORG+BR_REVENU_LOYER_AVANT_DAI_NRES_ORG -> 0 | BG97: =BR_REVENU_LOYER_AVANT_DAI_RES_SHQ+BR_REVENU_LOYER_AVANT_DAI_NRES_SHQ -> 0 | DA97: =2120 -> 2120
C98: Autres revenus avant DAI (précisez) | O98: 130 | P98: =IndicateurAjuste(BR_REVENU_AUTRE_AVANT_DAI_RES_ORG_AJ) ->  | U98: =IndicateurAjuste(BR_REVENU_AUTRE_AVANT_DAI_RES_SHQ_AJ) ->  | AH98: 131 | AI98: =IndicateurAjuste(BR_REVENU_AUTRE_AVANT_DAI_NRES_ORG_AJ) ->  | AN98: =IndicateurAjuste(BR_REVENU_AUTRE_AVANT_DAI_NRES_SHQ_AJ) ->  | BA98: 132 | BB98: =BR_REVENU_AUTRE_AVANT_DAI_RES_ORG+BR_REVENU_AUTRE_AVANT_DAI_NRES_ORG -> 0 | BG98: =BR_REVENU_AUTRE_AVANT_DAI_RES_SHQ+BR_REVENU_AUTRE_AVANT_DAI_NRES_SHQ -> 0 | DA98: =2130 -> 2130
O99: 133
C102: Revenus totaux | O102: 134 | P102: =SUM(Q95:Q98) -> 0 | U102: =SUM(V95:V98) -> 0 | AH102: 135 | AI102: =SUM(AJ95:AJ98) -> 0 | AN102: =SUM(AO95:AO98) -> 0 | BA102: 136 | BB102: =BR_REVENUS_TOTAUX_RES_ORG+BR_REVENUS_TOTAUX_NRES_ORG -> 0 | BG102: =BR_REVENUS_TOTAUX_RES_SHQ+BR_REVENUS_TOTAUX_NRES_SHQ -> 0
C106: COÛTS DE RÉALISATION
O107: 137 | P107: =IF(ISERR(BR_DEPENSES_TOTALES_RES_ORG-BR_REVENUS_TOTAUX_RES_ORG),0,ROUND(BR_DEPENSES_TOTALES_RES_ORG-BR_REVENUS_TOTAUX_RES_ORG,0)) -> 6950 | U107: =IF(ISERR(BR_DEPENSES_TOTALES_RES_SHQ-BR_REVENUS_TOTAUX_RES_SHQ),0,ROUND(BR_DEPENSES_TOTALES_RES_SHQ-BR_REVENUS_TOTAUX_RES_SHQ,0)) -> 6950 | AH107: 138 | AI107: =IF(ISERR(BR_DEPENSES_TOTALES_NRES_ORG-BR_REVENUS_TOTAUX_NRES_ORG),0,ROUND(BR_DEPENSES_TOTALES_NRES_ORG-BR_REVENUS_TOTAUX_NRES_ORG,0)) -> 0 | AN107: =IF(ISERR(BR_DEPENSES_TOTALES_NRES_SHQ-BR_REVENUS_TOTAUX_NRES_SHQ),0,ROUND(BR_DEPENSES_TOTALES_NRES_SHQ-BR_REVENUS_TOTAUX_NRES_SHQ,0)) -> 0 | BA107: 139 | BB107: =BR_COUT_REALISATION_RES_ORG+BR_COUT_REALISATION_NRES_ORG -> 6950 | BG107: =BR_COUT_REALISATION_RES_SHQ+BR_COUT_REALISATION_NRES_SHQ -> 6950
C111: PRÉCISIONS - Page 4 - Budget de réalisation
D113: Durée des travaux jusqu'à la DAI | Q113: : | R113: Nombre de mois entre la date d'acquisition du terrain ou de l'immeuble et la date d'ajustement des intérêts.
D115: Mois d'ajustement | Q115: : | R115: Champ réservé à la SHQ ou à la ville mandataire.
D117: Taxes vertes, taxes spéciales | Q117: : | R117: Toute taxe inhérente à la réalisation du projet en vertu d'un programme municipal (Exemple : Taxes pour les espaces verts).
D119: Droits compensatoires | Q119: : | R119: Droits exigibles par une municipalité en regard à une dérogation à l'un de ses règlements (Exemple : nombre d'espaces de stationnement exigibles en fonction du nombre d'unités de logements).
D121: Adaptation SAD hors contrat | Q121: : | R121: Le coût des adaptations réalisées hors contrat de l'entrepreneur général doit être inscrit à ce poste.
D122: (ent. gén.) | R122: D'autre part, le coût des adaptations réalisées à l'intérieur du contrat de l'entrepreneur général doit être inclus au poste budgétaire « Travaux » - (champ no. 23)
R123: La somme de tous les coûts d'adaptation, au et hors contrat de l'entrepreneur général, doit correspondre à la somme des coûts d'adaptation saisis sur les fiches
R124: « Typologie et clientèle prévue » complétées pour les logements adaptés.
D126: ="Honoraires de l'" & PARM_OSD_ABRG -> Honoraires de l'OSD | Q126: : | R126: ="Honoraires de l'" & PARM_OSD & ", le cas échéant." -> Honoraires de l'Organisme de soutien au développement, le cas échéant.
D128: Déménagement - entreposage | Q128: : | R128: Dépenses relatives aux dépenses des ménages qui habitent un bâtiment et qui doivent être relogés temporairement.
R129: Elles couvrent le déménagement aller-retour, l'entreposage et le débranchement et rebranchement des services (téléphone, électricité, câble, etc.)
D131: Remboursement sur TPS | Q131: : | R131: Estimation du montant de TPS qui sera remboursé à l'organisme en fonction de son statut et des taux inscrits à l'onglet « Général ».
D133: Remboursement sur TVQ | Q133: : | R133: Estimation du montant de TVQ qui sera remboursé à l'organisme en fonction de son statut et des taux inscrits à l'onglet « Général ».

Sheet Contributions
CP1: C_PR_DESCRIPTIONS | CR1: C_PU_DESCRIPTIONS | CT1: C_PU_ORGANISMES
L3: Demande d'aide financière | CP3: Monétaire | CR3: Monétaire - subvention | CT3: Autre
L4: =MP_VERSION -> Version 12.2.00C | CP4: Équité / Don - Immeuble | CR4: Équité / Don - Immeuble | CT4: Agence de la santé et des services sociaux
F5: Formulaire en date du | G5: =TODAY() -> 2024-10-04 | CP5: Équité / Don - Bâtiment | CR5: Équité / Don - Bâtiment | CT5: Centre local de développement
B6: Page 5 - CONTRIBUTIONS - AIDES COMPLÉMENTAIRES | CP6: Équité / Don - Terrain | CR6: Équité / Don - Terrain | CT6: Centre local de services communautaires
CP7: Équité / Emphytéose | CR7: Équité / Emphytéose | CT7: Centre régional de développement
B8: PROJET | AP8: Date de la DAF : | AQ8: =G_PROJET_ETAPE_APPROUVE -> 00:00:00 | AR8: =G_APPRO_DATE -> 00:00:00 | CP8: Corvée | CR8: Autres formes | CT8: Comité d'expansion économique
CP9: Autres formes | CT9: Commission scolaire
B10: Numéro du projet | J10: : | K10: =G_PROJET_NO_COMPLET -> ACL-00000 | O10: 1 | AG10: Étape du projet : | AM10: =G_PROJET_ETAPE -> 0 | AU10: 2 | CT10: Communauté métropolitaine
CT11: Contribution additionnelle Ville de Montréal
B12: Nom du projet | J12: : | K12: =G_PROJET_NOM -> 0 | AU12: 3 | CT12: Députés
CT13: HQ - AEEQ - FEE - Novoclimat
CT14: Infrastructures - Québec
CT15: Ministère de la Santé et des Services sociaux
CT16: Ministère des Affaires municipales et des Régions
CT17: Ministère du Développement économique, de l'Innovation et de l'Exportation
B18: CONTRIBUTIONS DU MILIEU | CT18: Municipalité régionale de comté
CT19: Ressources humaines et développement social Canada (IPAC)
C20: Secteur Privé | CT20: SCHL - programmes exclusifs
C21: No | E21: Nom du donateur4 | Z21: Description de la contribution5 | AJ21: Organisme6 | AN21: SHQ7 | CT21: Secrétariat aux affaires autochtones | CY21: =CP3 -> Monétaire | DA21: =CP4 -> Équité / Don - Immeuble | DC21: =CP5 -> Équité / Don - Bâtiment | DE21: =CP6 -> Équité / Don - Terrain | DG21: =CP7 -> Équité / Emphytéose | DI21: =CP8 -> Corvée | DK21: Honoraires | DM21: =CP9 -> Autres formes
C22: 1 | AJ22: =IndicateurAjuste(C_PR_MONTANT_01_ORG_AJ) ->  | AN22: =IndicateurAjuste(C_PR_MONTANT_01_SHQ_AJ) ->  | CT22: Service Canada (IPLI) | CX22: 1 | CY22: =IF(LEFT(C_PR_DESCRIPTION_01,LEN(CY$21))=CY$21,C_PR_MONTANT_01_ORG,0) -> 0 | CZ22: =IF(LEFT(C_PR_DESCRIPTION_01,LEN(CY$21))=CY$21,C_PR_MONTANT_01_SHQ,0) -> 0 | DA22: =IF(C_PR_DESCRIPTION_01=DA$21,C_PR_MONTANT_01_ORG,0) -> 0 | DB22: =IF(C_PR_DESCRIPTION_01=DA$21,C_PR_MONTANT_01_SHQ,0) -> 0 | DC22: =IF(C_PR_DESCRIPTION_01=DC$21,C_PR_MONTANT_01_ORG,0) -> 0 | DD22: =IF(C_PR_DESCRIPTION_01=DC$21,C_PR_MONTANT_01_SHQ,0) -> 0 | DE22: =IF(C_PR_DESCRIPTION_01=DE$21,C_PR_MONTANT_01_ORG,0) -> 0 | DF22: =IF(C_PR_DESCRIPTION_01=DE$21,C_PR_MONTANT_01_SHQ,0) -> 0 | DG22: =IF(C_PR_DESCRIPTION_01=DG$21,C_PR_MONTANT_01_ORG,0) -> 0 | DH22: =IF(C_PR_DESCRIPTION_01=DG$21,C_PR_MONTANT_01_SHQ,0) -> 0 | DI22: =IF(C_PR_DESCRIPTION_01=DI$21,C_PR_MONTANT_01_ORG,0) -> 0 | DJ22: =IF(C_PR_DESCRIPTION_01=DI$21,C_PR_MONTANT_01_SHQ,0) -> 0 | DK22: =IF(C_PR_DESCRIPTION_01=DK$21,C_PR_MONTANT_01_ORG,0) -> 0 | DL22: =IF(C_PR_DESCRIPTION_01=DK$21,C_PR_MONTANT_01_SHQ,0) -> 0 | DM22: =IF(C_PR_DESCRIPTION_01=DM$21,C_PR_MONTANT_01_ORG,0) -> 0 | DN22: =IF(C_PR_DESCRIPTION_01=DM$21,C_PR_MONTANT_01_SHQ,0) -> 0
C23: 2 | AJ23: =IndicateurAjuste(C_PR_MONTANT_02_ORG_AJ) ->  | AN23: =IndicateurAjuste(C_PR_MONTANT_02_SHQ_AJ) ->  | CT23: Société d'aide au développement de la collectivité | CX23: 2 | CY23: =IF(LEFT(C_PR_DESCRIPTION_02,LEN(CY$21))=CY$21,C_PR_MONTANT_02_ORG,0) -> 0 | CZ23: =IF(LEFT(C_PR_DESCRIPTION_02,LEN(CY$21))=CY$21,C_PR_MONTANT_02_SHQ,0) -> 0 | DA23: =IF(C_PR_DESCRIPTION_02=DA$21,C_PR_MONTANT_02_ORG,0) -> 0 | DB23: =IF(C_PR_DESCRIPTION_02=DA$21,C_PR_MONTANT_02_SHQ,0) -> 0 | DC23: =IF(C_PR_DESCRIPTION_02=DC$21,C_PR_MONTANT_02_ORG,0) -> 0 | DD23: =IF(C_PR_DESCRIPTION_02=DC$21,C_PR_MONTANT_02_SHQ,0) -> 0 | DE23: =IF(C_PR_DESCRIPTION_02=DE$21,C_PR_MONTANT_02_ORG,0) -> 0 | DF23: =IF(C_PR_DESCRIPTION_02=DE$21,C_PR_MONTANT_02_SHQ,0) -> 0 | DG23: =IF(C_PR_DESCRIPTION_02=DG$21,C_PR_MONTANT_02_ORG,0) -> 0 | DH23: =IF(C_PR_DESCRIPTION_02=DG$21,C_PR_MONTANT_02_SHQ,0) -> 0 | DI23: =IF(C_PR_DESCRIPTION_02=DI$21,C_PR_MONTANT_02_ORG,0) -> 0 | DJ23: =IF(C_PR_DESCRIPTION_02=DI$21,C_PR_MONTANT_02_SHQ,0) -> 0 | DK23: =IF(C_PR_DESCRIPTION_02=DK$21,C_PR_MONTANT_02_ORG,0) -> 0 | DL23: =IF(C_PR_DESCRIPTION_02=DK$21,C_PR_MONTANT_02_SHQ,0) -> 0 | DM23: =IF(C_PR_DESCRIPTION_02=DM$21,C_PR_MONTANT_02_ORG,0) -> 0 | DN23: =IF(C_PR_DESCRIPTION_02=DM$21,C_PR_MONTANT_02_SHQ,0) -> 0
C24: 3 | AJ24: =IndicateurAjuste(C_PR_MONTANT_03_ORG_AJ) ->  | AN24: =IndicateurAjuste(C_PR_MONTANT_03_SHQ_AJ) ->  | CX24: 3 | CY24: =IF(LEFT(C_PR_DESCRIPTION_03,LEN(CY$21))=CY$21,C_PR_MONTANT_03_ORG,0) -> 0 | CZ24: =IF(LEFT(C_PR_DESCRIPTION_03,LEN(CY$21))=CY$21,C_PR_MONTANT_03_SHQ,0) -> 0 | DA24: =IF(C_PR_DESCRIPTION_03=DA$21,C_PR_MONTANT_03_ORG,0) -> 0 | DB24: =IF(C_PR_DESCRIPTION_03=DA$21,C_PR_MONTANT_03_SHQ,0) -> 0 | DC24: =IF(C_PR_DESCRIPTION_03=DC$21,C_PR_MONTANT_03_ORG,0) -> 0 | DD24: =IF(C_PR_DESCRIPTION_03=DC$21,C_PR_MONTANT_03_SHQ,0) -> 0 | DE24: =IF(C_PR_DESCRIPTION_03=DE$21,C_PR_MONTANT_03_ORG,0) -> 0 | DF24: =IF(C_PR_DESCRIPTION_03=DE$21,C_PR_MONTANT_03_SHQ,0) -> 0 | DG24: =IF(C_PR_DESCRIPTION_03=DG$21,C_PR_MONTANT_03_ORG,0) -> 0 | DH24: =IF(C_PR_DESCRIPTION_03=DG$21,C_PR_MONTANT_03_SHQ,0) -> 0 | DI24: =IF(C_PR_DESCRIPTION_03=DI$21,C_PR_MONTANT_03_ORG,0) -> 0 | DJ24: =IF(C_PR_DESCRIPTION_03=DI$21,C_PR_MONTANT_03_SHQ,0) -> 0 | DK24: =IF(C_PR_DESCRIPTION_03=DK$21,C_PR_MONTANT_03_ORG,0) -> 0 | DL24: =IF(C_PR_DESCRIPTION_03=DK$21,C_PR_MONTANT_03_SHQ,0) -> 0 | DM24: =IF(C_PR_DESCRIPTION_03=DM$21,C_PR_MONTANT_03_ORG,0) -> 0 | DN24: =IF(C_PR_DESCRIPTION_03=DM$21,C_PR_MONTANT_03_SHQ,0) -> 0
C25: 4 | AJ25: =IndicateurAjuste(C_PR_MONTANT_04_ORG_AJ) ->  | AN25: =IndicateurAjuste(C_PR_MONTANT_04_SHQ_AJ) ->  | CX25: 4 | CY25: =IF(LEFT(C_PR_DESCRIPTION_04,LEN(CY$21))=CY$21,C_PR_MONTANT_04_ORG,0) -> 0 | CZ25: =IF(LEFT(C_PR_DESCRIPTION_04,LEN(CY$21))=CY$21,C_PR_MONTANT_04_SHQ,0) -> 0 | DA25: =IF(C_PR_DESCRIPTION_04=DA$21,C_PR_MONTANT_04_ORG,0) -> 0 | DB25: =IF(C_PR_DESCRIPTION_04=DA$21,C_PR_MONTANT_04_SHQ,0) -> 0 | DC25: =IF(C_PR_DESCRIPTION_04=DC$21,C_PR_MONTANT_04_ORG,0) -> 0 | DD25: =IF(C_PR_DESCRIPTION_04=DC$21,C_PR_MONTANT_04_SHQ,0) -> 0 | DE25: =IF(C_PR_DESCRIPTION_04=DE$21,C_PR_MONTANT_04_ORG,0) -> 0 | DF25: =IF(C_PR_DESCRIPTION_04=DE$21,C_PR_MONTANT_04_SHQ,0) -> 0 | DG25: =IF(C_PR_DESCRIPTION_04=DG$21,C_PR_MONTANT_04_ORG,0) -> 0 | DH25: =IF(C_PR_DESCRIPTION_04=DG$21,C_PR_MONTANT_04_SHQ,0) -> 0 | DI25: =IF(C_PR_DESCRIPTION_04=DI$21,C_PR_MONTANT_04_ORG,0) -> 0 | DJ25: =IF(C_PR_DESCRIPTION_04=DI$21,C_PR_MONTANT_04_SHQ,0) -> 0 | DK25: =IF(C_PR_DESCRIPTION_04=DK$21,C_PR_MONTANT_04_ORG,0) -> 0 | DL25: =IF(C_PR_DESCRIPTION_04=DK$21,C_PR_MONTANT_04_SHQ,0) -> 0 | DM25: =IF(C_PR_DESCRIPTION_04=DM$21,C_PR_MONTANT_04_ORG,0) -> 0 | DN25: =IF(C_PR_DESCRIPTION_04=DM$21,C_PR_MONTANT_04_SHQ,0) -> 0
C26: 5 | AJ26: =IndicateurAjuste(C_PR_MONTANT_05_ORG_AJ) ->  | AN26: =IndicateurAjuste(C_PR_MONTANT_05_SHQ_AJ) ->  | CX26: 5 | CY26: =IF(LEFT(C_PR_DESCRIPTION_05,LEN(CY$21))=CY$21,C_PR_MONTANT_05_ORG,0) -> 0 | CZ26: =IF(LEFT(C_PR_DESCRIPTION_05,LEN(CY$21))=CY$21,C_PR_MONTANT_05_SHQ,0) -> 0 | DA26: =IF(C_PR_DESCRIPTION_05=DA$21,C_PR_MONTANT_05_ORG,0) -> 0 | DB26: =IF(C_PR_DESCRIPTION_05=DA$21,C_PR_MONTANT_05_SHQ,0) -> 0 | DC26: =IF(C_PR_DESCRIPTION_05=DC$21,C_PR_MONTANT_05_ORG,0) -> 0 | DD26: =IF(C_PR_DESCRIPTION_05=DC$21,C_PR_MONTANT_05_SHQ,0) -> 0 | DE26: =IF(C_PR_DESCRIPTION_05=DE$21,C_PR_MONTANT_05_ORG,0) -> 0 | DF26: =IF(C_PR_DESCRIPTION_05=DE$21,C_PR_MONTANT_05_SHQ,0) -> 0 | DG26: =IF(C_PR_DESCRIPTION_05=DG$21,C_PR_MONTANT_05_ORG,0) -> 0 | DH26: =IF(C_PR_DESCRIPTION_05=DG$21,C_PR_MONTANT_05_SHQ,0) -> 0 | DI26: =IF(C_PR_DESCRIPTION_05=DI$21,C_PR_MONTANT_05_ORG,0) -> 0 | DJ26: =IF(C_PR_DESCRIPTION_05=DI$21,C_PR_MONTANT_05_SHQ,0) -> 0 | DK26: =IF(C_PR_DESCRIPTION_05=DK$21,C_PR_MONTANT_05_ORG,0) -> 0 | DL26: =IF(C_PR_DESCRIPTION_05=DK$21,C_PR_MONTANT_05_SHQ,0) -> 0 | DM26: =IF(C_PR_DESCRIPTION_05=DM$21,C_PR_MONTANT_05_ORG,0) -> 0 | DN26: =IF(C_PR_DESCRIPTION_05=DM$21,C_PR_MONTANT_05_SHQ,0) -> 0
C27: 6 | AJ27: =IndicateurAjuste(C_PR_MONTANT_06_ORG_AJ) ->  | AN27: =IndicateurAjuste(C_PR_MONTANT_06_SHQ_AJ) ->  | CX27: 6 | CY27: =IF(LEFT(C_PR_DESCRIPTION_06,LEN(CY$21))=CY$21,C_PR_MONTANT_06_ORG,0) -> 0 | CZ27: =IF(LEFT(C_PR_DESCRIPTION_06,LEN(CY$21))=CY$21,C_PR_MONTANT_06_SHQ,0) -> 0 | DA27: =IF(C_PR_DESCRIPTION_06=DA$21,C_PR_MONTANT_06_ORG,0) -> 0 | DB27: =IF(C_PR_DESCRIPTION_06=DA$21,C_PR_MONTANT_06_SHQ,0) -> 0 | DC27: =IF(C_PR_DESCRIPTION_06=DC$21,C_PR_MONTANT_06_ORG,0) -> 0 | DD27: =IF(C_PR_DESCRIPTION_06=DC$21,C_PR_MONTANT_06_SHQ,0) -> 0 | DE27: =IF(C_PR_DESCRIPTION_06=DE$21,C_PR_MONTANT_06_ORG,0) -> 0 | DF27: =IF(C_PR_DESCRIPTION_06=DE$21,C_PR_MONTANT_06_SHQ,0) -> 0 | DG27: =IF(C_PR_DESCRIPTION_06=DG$21,C_PR_MONTANT_06_ORG,0) -> 0 | DH27: =IF(C_PR_DESCRIPTION_06=DG$21,C_PR_MONTANT_06_SHQ,0) -> 0 | DI27: =IF(C_PR_DESCRIPTION_06=DI$21,C_PR_MONTANT_06_ORG,0) -> 0 | DJ27: =IF(C_PR_DESCRIPTION_06=DI$21,C_PR_MONTANT_06_SHQ,0) -> 0 | DK27: =IF(C_PR_DESCRIPTION_06=DK$21,C_PR_MONTANT_06_ORG,0) -> 0 | DL27: =IF(C_PR_DESCRIPTION_06=DK$21,C_PR_MONTANT_06_SHQ,0) -> 0 | DM27: =IF(C_PR_DESCRIPTION_06=DM$21,C_PR_MONTANT_06_ORG,0) -> 0 | DN27: =IF(C_PR_DESCRIPTION_06=DM$21,C_PR_MONTANT_06_SHQ,0) -> 0
C28: 7 | AJ28: =IndicateurAjuste(C_PR_MONTANT_07_ORG_AJ) ->  | AN28: =IndicateurAjuste(C_PR_MONTANT_07_SHQ_AJ) ->  | CX28: 7 | CY28: =IF(LEFT(C_PR_DESCRIPTION_07,LEN(CY$21))=CY$21,C_PR_MONTANT_07_ORG,0) -> 0 | CZ28: =IF(LEFT(C_PR_DESCRIPTION_07,LEN(CY$21))=CY$21,C_PR_MONTANT_07_SHQ,0) -> 0 | DA28: =IF(C_PR_DESCRIPTION_07=DA$21,C_PR_MONTANT_07_ORG,0) -> 0 | DB28: =IF(C_PR_DESCRIPTION_07=DA$21,C_PR_MONTANT_07_SHQ,0) -> 0 | DC28: =IF(C_PR_DESCRIPTION_07=DC$21,C_PR_MONTANT_07_ORG,0) -> 0 | DD28: =IF(C_PR_DESCRIPTION_07=DC$21,C_PR_MONTANT_07_SHQ,0) -> 0 | DE28: =IF(C_PR_DESCRIPTION_07=DE$21,C_PR_MONTANT_07_ORG,0) -> 0 | DF28: =IF(C_PR_DESCRIPTION_07=DE$21,C_PR_MONTANT_07_SHQ,0) -> 0 | DG28: =IF(C_PR_DESCRIPTION_07=DG$21,C_PR_MONTANT_07_ORG,0) -> 0 | DH28: =IF(C_PR_DESCRIPTION_07=DG$21,C_PR_MONTANT_07_SHQ,0) -> 0 | DI28: =IF(C_PR_DESCRIPTION_07=DI$21,C_PR_MONTANT_07_ORG,0) -> 0 | DJ28: =IF(C_PR_DESCRIPTION_07=DI$21,C_PR_MONTANT_07_SHQ,0) -> 0 | DK28: =IF(C_PR_DESCRIPTION_07=DK$21,C_PR_MONTANT_07_ORG,0) -> 0 | DL28: =IF(C_PR_DESCRIPTION_07=DK$21,C_PR_MONTANT_07_SHQ,0) -> 0 | DM28: =IF(C_PR_DESCRIPTION_07=DM$21,C_PR_MONTANT_07_ORG,0) -> 0 | DN28: =IF(C_PR_DESCRIPTION_07=DM$21,C_PR_MONTANT_07_SHQ,0) -> 0
C29: 8 | AJ29: =IndicateurAjuste(C_PR_MONTANT_08_ORG_AJ) ->  | AN29: =IndicateurAjuste(C_PR_MONTANT_08_SHQ_AJ) ->  | CX29: 8 | CY29: =IF(LEFT(C_PR_DESCRIPTION_08,LEN(CY$21))=CY$21,C_PR_MONTANT_08_ORG,0) -> 0 | CZ29: =IF(LEFT(C_PR_DESCRIPTION_08,LEN(CY$21))=CY$21,C_PR_MONTANT_08_SHQ,0) -> 0 | DA29: =IF(C_PR_DESCRIPTION_08=DA$21,C_PR_MONTANT_08_ORG,0) -> 0 | DB29: =IF(C_PR_DESCRIPTION_08=DA$21,C_PR_MONTANT_08_SHQ,0) -> 0 | DC29: =IF(C_PR_DESCRIPTION_08=DC$21,C_PR_MONTANT_08_ORG,0) -> 0 | DD29: =IF(C_PR_DESCRIPTION_08=DC$21,C_PR_MONTANT_08_SHQ,0) -> 0 | DE29: =IF(C_PR_DESCRIPTION_08=DE$21,C_PR_MONTANT_08_ORG,0) -> 0 | DF29: =IF(C_PR_DESCRIPTION_08=DE$21,C_PR_MONTANT_08_SHQ,0) -> 0 | DG29: =IF(C_PR_DESCRIPTION_08=DG$21,C_PR_MONTANT_08_ORG,0) -> 0 | DH29: =IF(C_PR_DESCRIPTION_08=DG$21,C_PR_MONTANT_08_SHQ,0) -> 0 | DI29: =IF(C_PR_DESCRIPTION_08=DI$21,C_PR_MONTANT_08_ORG,0) -> 0 | DJ29: =IF(C_PR_DESCRIPTION_08=DI$21,C_PR_MONTANT_08_SHQ,0) -> 0 | DK29: =IF(C_PR_DESCRIPTION_08=DK$21,C_PR_MONTANT_08_ORG,0) -> 0 | DL29: =IF(C_PR_DESCRIPTION_08=DK$21,C_PR_MONTANT_08_SHQ,0) -> 0 | DM29: =IF(C_PR_DESCRIPTION_08=DM$21,C_PR_MONTANT_08_ORG,0) -> 0 | DN29: =IF(C_PR_DESCRIPTION_08=DM$21,C_PR_MONTANT_08_SHQ,0) -> 0
C30: 9 | AJ30: =IndicateurAjuste(C_PR_MONTANT_09_ORG_AJ) ->  | AN30: =IndicateurAjuste(C_PR_MONTANT_09_SHQ_AJ) ->  | CX30: 9 | CY30: =IF(LEFT(C_PR_DESCRIPTION_09,LEN(CY$21))=CY$21,C_PR_MONTANT_09_ORG,0) -> 0 | CZ30: =IF(LEFT(C_PR_DESCRIPTION_09,LEN(CY$21))=CY$21,C_PR_MONTANT_09_SHQ,0) -> 0 | DA30: =IF(C_PR_DESCRIPTION_09=DA$21,C_PR_MONTANT_09_ORG,0) -> 0 | DB30: =IF(C_PR_DESCRIPTION_09=DA$21,C_PR_MONTANT_09_SHQ,0) -> 0 | DC30: =IF(C_PR_DESCRIPTION_09=DC$21,C_PR_MONTANT_09_ORG,0) -> 0 | DD30: =IF(C_PR_DESCRIPTION_09=DC$21,C_PR_MONTANT_09_SHQ,0) -> 0 | DE30: =IF(C_PR_DESCRIPTION_09=DE$21,C_PR_MONTANT_09_ORG,0) -> 0 | DF30: =IF(C_PR_DESCRIPTION_09=DE$21,C_PR_MONTANT_09_SHQ,0) -> 0 | DG30: =IF(C_PR_DESCRIPTION_09=DG$21,C_PR_MONTANT_09_ORG,0) -> 0 | DH30: =IF(C_PR_DESCRIPTION_09=DG$21,C_PR_MONTANT_09_SHQ,0) -> 0 | DI30: =IF(C_PR_DESCRIPTION_09=DI$21,C_PR_MONTANT_09_ORG,0) -> 0 | DJ30: =IF(C_PR_DESCRIPTION_09=DI$21,C_PR_MONTANT_09_SHQ,0) -> 0 | DK30: =IF(C_PR_DESCRIPTION_09=DK$21,C_PR_MONTANT_09_ORG,0) -> 0 | DL30: =IF(C_PR_DESCRIPTION_09=DK$21,C_PR_MONTANT_09_SHQ,0) -> 0 | DM30: =IF(C_PR_DESCRIPTION_09=DM$21,C_PR_MONTANT_09_ORG,0) -> 0 | DN30: =IF(C_PR_DESCRIPTION_09=DM$21,C_PR_MONTANT_09_SHQ,0) -> 0
C31: 10 | AJ31: =IndicateurAjuste(C_PR_MONTANT_10_ORG_AJ) ->  | AN31: =IndicateurAjuste(C_PR_MONTANT_10_SHQ_AJ) ->  | CX31: 10 | CY31: =IF(LEFT(C_PR_DESCRIPTION_10,LEN(CY$21))=CY$21,C_PR_MONTANT_10_ORG,0) -> 0 | CZ31: =IF(LEFT(C_PR_DESCRIPTION_10,LEN(CY$21))=CY$21,C_PR_MONTANT_10_SHQ,0) -> 0 | DA31: =IF(C_PR_DESCRIPTION_10=DA$21,C_PR_MONTANT_10_ORG,0) -> 0 | DB31: =IF(C_PR_DESCRIPTION_10=DA$21,C_PR_MONTANT_10_SHQ,0) -> 0 | DC31: =IF(C_PR_DESCRIPTION_10=DC$21,C_PR_MONTANT_10_ORG,0) -> 0 | DD31: =IF(C_PR_DESCRIPTION_10=DC$21,C_PR_MONTANT_10_SHQ,0) -> 0 | DE31: =IF(C_PR_DESCRIPTION_10=DE$21,C_PR_MONTANT_10_ORG,0) -> 0 | DF31: =IF(C_PR_DESCRIPTION_10=DE$21,C_PR_MONTANT_10_SHQ,0) -> 0 | DG31: =IF(C_PR_DESCRIPTION_10=DG$21,C_PR_MONTANT_10_ORG,0) -> 0 | DH31: =IF(C_PR_DESCRIPTION_10=DG$21,C_PR_MONTANT_10_SHQ,0) -> 0 | DI31: =IF(C_PR_DESCRIPTION_10=DI$21,C_PR_MONTANT_10_ORG,0) -> 0 | DJ31: =IF(C_PR_DESCRIPTION_10=DI$21,C_PR_MONTANT_10_SHQ,0) -> 0 | DK31: =IF(C_PR_DESCRIPTION_10=DK$21,C_PR_MONTANT_10_ORG,0) -> 0 | DL31: =IF(C_PR_DESCRIPTION_10=DK$21,C_PR_MONTANT_10_SHQ,0) -> 0 | DM31: =IF(C_PR_DESCRIPTION_10=DM$21,C_PR_MONTANT_10_ORG,0) -> 0 | DN31: =IF(C_PR_DESCRIPTION_10=DM$21,C_PR_MONTANT_10_SHQ,0) -> 0
Z32: Total privé | AJ32: =SUM(AK22:AK31) -> 0 | AN32: =SUM(AO22:AO31) -> 0 | AR32: 8 | CX32: Total : | CY32: =SUM(CY22:CY31) -> 0 | CZ32: =SUM(CZ22:CZ31) -> 0 | DA32: =SUM(DA22:DA31) -> 0 | DB32: 0 | DC32: 0 | DD32: 0 | DE32: 0 | DF32: 0 | DG32: 0 | DH32: 0 | DI32: 0 | DJ32: 0 | DK32: =SUM(DK22:DK31) -> 0 | DL32: =SUM(DL22:DL31) -> 0 | DM32: =SUM(DM22:DM31) -> 0 | DN32: =SUM(DN22:DN31) -> 0
C34: Secteur Public | AJ34: Phase Réalisation | AR34: Phase Exploitation - Services
C35: No | E35: Nom du donateur9 | Z35: Description de la contribution10 | AJ35: Organisme12 | AN35: SHQ | AR35: Organisme13 | AT35: SHQ | CD35: Indic. Modif. | CY35: =CR3 -> Monétaire - subvention | DA35: =CR4 -> Équité / Don - Immeuble | DC35: =CR5 -> Équité / Don - Bâtiment | DE35: =CR6 -> Équité / Don - Terrain | DG35: Corvée | DI35: =CR7 -> Équité / Emphytéose | DK35: =CR8 -> Autres formes
C36: 1 | Y36: =IF(CD36="O",FncRetourneChrw(),"") ->  | CC36: =IF(C_PU_DESCRIPTION_01="","",SUB_CB_PUBL_DESC(C_PU_NOM_01,"")) ->  | CD36: =IF(CA36<>"",IF(ISNA(VLOOKUP(CA36,C_PU_ORGANISMES,1,FALSE)),"O","N"),"N") -> N | CU36: =C_PU_MONTANT_REAL_01_ORG -> 0 | CV36: =C_PU_MONTANT_REAL_01_SHQ -> 0 | CX36: 1 | CY36: =IF(C_PU_DESCRIPTION_01=CY$35,C_PU_MONTANT_REAL_01_ORG,0) -> 0 | CZ36: =IF(C_PU_DESCRIPTION_01=CY$35,C_PU_MONTANT_REAL_01_SHQ,0) -> 0 | DA36: =IF(C_PU_DESCRIPTION_01=DA$35,C_PU_MONTANT_01_ORG,0) -> 0 | DB36: =IF(C_PU_DESCRIPTION_01=DA$35,C_PU_MONTANT_01_SHQ,0) -> 0 | DC36: =IF(C_PU_DESCRIPTION_01=DC$35,C_PU_MONTANT_01_ORG,0) -> 0 | DD36: =IF(C_PU_DESCRIPTION_01=DC$35,C_PU_MONTANT_01_SHQ,0) -> 0 | DE36: =IF(C_PU_DESCRIPTION_01=DE$35,C_PU_MONTANT_01_ORG,0) -> 0 | DF36: =IF(C_PU_DESCRIPTION_01=DE$35,C_PU_MONTANT_01_SHQ,0) -> 0 | DI36: =IF(C_PU_DESCRIPTION_01=DI$35,C_PU_MONTANT_01_ORG,0) -> 0 | DJ36: =IF(C_PU_DESCRIPTION_01=DI$35,C_PU_MONTANT_01_SHQ,0) -> 0 | DK36: =IF(C_PU_DESCRIPTION_01=DK$35,C_PU_MONTANT_01_ORG,0) -> 0 | DL36: =IF(C_PU_DESCRIPTION_01=DK$35,C_PU_MONTANT_01_SHQ,0) -> 0
C37: 2 | Y37: =IF(CD37="O",FncRetourneChrw(),"") ->  | CC37: =IF(C_PU_DESCRIPTION_02="","",SUB_CB_PUBL_DESC(C_PU_NOM_02,"")) ->  | CD37: N | CU37: =C_PU_MONTANT_REAL_02_ORG -> 0 | CV37: =C_PU_MONTANT_REAL_02_SHQ -> 0 | CX37: 2 | CY37: =IF(C_PU_DESCRIPTION_02=CY$35,C_PU_MONTANT_REAL_02_ORG,0) -> 0 | CZ37: =IF(C_PU_DESCRIPTION_02=CY$35,C_PU_MONTANT_REAL_02_SHQ,0) -> 0 | DA37: =IF(C_PU_DESCRIPTION_02=DA$35,C_PU_MONTANT_02_ORG,0) -> 0 | DB37: =IF(C_PU_DESCRIPTION_02=DA$35,C_PU_MONTANT_02_SHQ,0) -> 0 | DC37: =IF(C_PU_DESCRIPTION_02=DC$35,C_PU_MONTANT_02_ORG,0) -> 0 | DD37: =IF(C_PU_DESCRIPTION_02=DC$35,C_PU_MONTANT_02_SHQ,0) -> 0 | DE37: =IF(C_PU_DESCRIPTION_02=DE$35,C_PU_MONTANT_02_ORG,0) -> 0 | DF37: =IF(C_PU_DESCRIPTION_02=DE$35,C_PU_MONTANT_02_SHQ,0) -> 0 | DI37: =IF(C_PU_DESCRIPTION_02=DI$35,C_PU_MONTANT_02_ORG,0) -> 0 | DJ37: =IF(C_PU_DESCRIPTION_02=DI$35,C_PU_MONTANT_02_SHQ,0) -> 0 | DK37: =IF(C_PU_DESCRIPTION_02=DK$35,C_PU_MONTANT_02_ORG,0) -> 0 | DL37: =IF(C_PU_DESCRIPTION_02=DK$35,C_PU_MONTANT_02_SHQ,0) -> 0
C38: 3 | Y38: =IF(CD38="O",FncRetourneChrw(),"") ->  | CC38: =IF(C_PU_DESCRIPTION_03="","",SUB_CB_PUBL_DESC(C_PU_NOM_03,"")) ->  | CD38: N | CU38: =C_PU_MONTANT_REAL_03_ORG -> 0 | CV38: =C_PU_MONTANT_REAL_03_SHQ -> 0 | CX38: 3 | CY38: =IF(C_PU_DESCRIPTION_03=CY$35,C_PU_MONTANT_REAL_03_ORG,0) -> 0 | CZ38: =IF(C_PU_DESCRIPTION_03=CY$35,C_PU_MONTANT_REAL_03_SHQ,0) -> 0 | DA38: =IF(C_PU_DESCRIPTION_03=DA$35,C_PU_MONTANT_03_ORG,0) -> 0 | DB38: =IF(C_PU_DESCRIPTION_03=DA$35,C_PU_MONTANT_03_SHQ,0) -> 0 | DC38: =IF(C_PU_DESCRIPTION_03=DC$35,C_PU_MONTANT_03_ORG,0) -> 0 | DD38: =IF(C_PU_DESCRIPTION_03=DC$35,C_PU_MONTANT_03_SHQ,0) -> 0 | DE38: =IF(C_PU_DESCRIPTION_03=DE$35,C_PU_MONTANT_03_ORG,0) -> 0 | DF38: =IF(C_PU_DESCRIPTION_03=DE$35,C_PU_MONTANT_03_SHQ,0) -> 0 | DI38: =IF(C_PU_DESCRIPTION_03=DI$35,C_PU_MONTANT_03_ORG,0) -> 0 | DJ38: =IF(C_PU_DESCRIPTION_03=DI$35,C_PU_MONTANT_03_SHQ,0) -> 0 | DK38: =IF(C_PU_DESCRIPTION_03=DK$35,C_PU_MONTANT_03_ORG,0) -> 0 | DL38: =IF(C_PU_DESCRIPTION_03=DK$35,C_PU_MONTANT_03_SHQ,0) -> 0
C39: 4 | Y39: =IF(CD39="O",FncRetourneChrw(),"") ->  | CC39: =IF(C_PU_DESCRIPTION_04="","",SUB_CB_PUBL_DESC(C_PU_NOM_04,"")) ->  | CD39: N | CU39: =C_PU_MONTANT_REAL_04_ORG -> 0 | CV39: =C_PU_MONTANT_REAL_04_SHQ -> 0 | CX39: 4 | CY39: =IF(C_PU_DESCRIPTION_04=CY$35,C_PU_MONTANT_REAL_04_ORG,0) -> 0 | CZ39: =IF(C_PU_DESCRIPTION_04=CY$35,C_PU_MONTANT_REAL_04_SHQ,0) -> 0 | DA39: =IF(C_PU_DESCRIPTION_04=DA$35,C_PU_MONTANT_04_ORG,0) -> 0 | DB39: =IF(C_PU_DESCRIPTION_04=DA$35,C_PU_MONTANT_04_SHQ,0) -> 0 | DC39: =IF(C_PU_DESCRIPTION_04=DC$35,C_PU_MONTANT_04_ORG,0) -> 0 | DD39: =IF(C_PU_DESCRIPTION_04=DC$35,C_PU_MONTANT_04_SHQ,0) -> 0 | DE39: =IF(C_PU_DESCRIPTION_04=DE$35,C_PU_MONTANT_04_ORG,0) -> 0 | DF39: =IF(C_PU_DESCRIPTION_04=DE$35,C_PU_MONTANT_04_SHQ,0) -> 0 | DI39: =IF(C_PU_DESCRIPTION_04=DI$35,C_PU_MONTANT_04_ORG,0) -> 0 | DJ39: =IF(C_PU_DESCRIPTION_04=DI$35,C_PU_MONTANT_04_SHQ,0) -> 0 | DK39: =IF(C_PU_DESCRIPTION_04=DK$35,C_PU_MONTANT_04_ORG,0) -> 0 | DL39: =IF(C_PU_DESCRIPTION_04=DK$35,C_PU_MONTANT_04_SHQ,0) -> 0
C40: 5 | Y40: =IF(CD40="O",FncRetourneChrw(),"") ->  | CC40: =IF(C_PU_DESCRIPTION_05="","",SUB_CB_PUBL_DESC(C_PU_NOM_05,"")) ->  | CD40: N | CU40: =C_PU_MONTANT_REAL_05_ORG -> 0 | CV40: =C_PU_MONTANT_REAL_05_SHQ -> 0 | CX40: 5 | CY40: =IF(C_PU_DESCRIPTION_05=CY$35,C_PU_MONTANT_REAL_05_ORG,0) -> 0 | CZ40: =IF(C_PU_DESCRIPTION_05=CY$35,C_PU_MONTANT_REAL_05_SHQ,0) -> 0 | DA40: =IF(C_PU_DESCRIPTION_05=DA$35,C_PU_MONTANT_05_ORG,0) -> 0 | DB40: =IF(C_PU_DESCRIPTION_05=DA$35,C_PU_MONTANT_05_SHQ,0) -> 0 | DC40: =IF(C_PU_DESCRIPTION_05=DC$35,C_PU_MONTANT_05_ORG,0) -> 0 | DD40: =IF(C_PU_DESCRIPTION_05=DC$35,C_PU_MONTANT_05_SHQ,0) -> 0 | DE40: =IF(C_PU_DESCRIPTION_05=DE$35,C_PU_MONTANT_05_ORG,0) -> 0 | DF40: =IF(C_PU_DESCRIPTION_05=DE$35,C_PU_MONTANT_05_SHQ,0) -> 0 | DI40: =IF(C_PU_DESCRIPTION_05=DI$35,C_PU_MONTANT_05_ORG,0) -> 0 | DJ40: =IF(C_PU_DESCRIPTION_05=DI$35,C_PU_MONTANT_05_SHQ,0) -> 0 | DK40: =IF(C_PU_DESCRIPTION_05=DK$35,C_PU_MONTANT_05_ORG,0) -> 0 | DL40: =IF(C_PU_DESCRIPTION_05=DK$35,C_PU_MONTANT_05_SHQ,0) -> 0
C41: 6 | Y41: =IF(CD41="O",FncRetourneChrw(),"") ->  | CC41: =IF(C_PU_DESCRIPTION_06="","",SUB_CB_PUBL_DESC(C_PU_NOM_06,"")) ->  | CD41: N | CU41: =C_PU_MONTANT_REAL_06_ORG -> 0 | CV41: =C_PU_MONTANT_REAL_06_SHQ -> 0 | CX41: 6 | CY41: =IF(C_PU_DESCRIPTION_06=CY$35,C_PU_MONTANT_REAL_06_ORG,0) -> 0 | CZ41: =IF(C_PU_DESCRIPTION_06=CY$35,C_PU_MONTANT_REAL_06_SHQ,0) -> 0 | DA41: =IF(C_PU_DESCRIPTION_06=DA$35,C_PU_MONTANT_06_ORG,0) -> 0 | DB41: =IF(C_PU_DESCRIPTION_06=DA$35,C_PU_MONTANT_06_SHQ,0) -> 0 | DC41: =IF(C_PU_DESCRIPTION_06=DC$35,C_PU_MONTANT_06_ORG,0) -> 0 | DD41: =IF(C_PU_DESCRIPTION_06=DC$35,C_PU_MONTANT_06_SHQ,0) -> 0 | DE41: =IF(C_PU_DESCRIPTION_06=DE$35,C_PU_MONTANT_06_ORG,0) -> 0 | DF41: =IF(C_PU_DESCRIPTION_06=DE$35,C_PU_MONTANT_06_SHQ,0) -> 0 | DI41: =IF(C_PU_DESCRIPTION_06=DI$35,C_PU_MONTANT_06_ORG,0) -> 0 | DJ41: =IF(C_PU_DESCRIPTION_06=DI$35,C_PU_MONTANT_06_SHQ,0) -> 0 | DK41: =IF(C_PU_DESCRIPTION_06=DK$35,C_PU_MONTANT_06_ORG,0) -> 0 | DL41: =IF(C_PU_DESCRIPTION_06=DK$35,C_PU_MONTANT_06_SHQ,0) -> 0
C42: 7 | Y42: =IF(CD42="O",FncRetourneChrw(),"") ->  | CC42: =IF(C_PU_DESCRIPTION_07="","",SUB_CB_PUBL_DESC(C_PU_NOM_07,"")) ->  | CD42: N | CU42: =C_PU_MONTANT_REAL_07_ORG -> 0 | CV42: =C_PU_MONTANT_REAL_07_SHQ -> 0 | CX42: 7 | CY42: =IF(C_PU_DESCRIPTION_07=CY$35,C_PU_MONTANT_REAL_07_ORG,0) -> 0 | CZ42: =IF(C_PU_DESCRIPTION_07=CY$35,C_PU_MONTANT_REAL_07_SHQ,0) -> 0 | DA42: =IF(C_PU_DESCRIPTION_07=DA$35,C_PU_MONTANT_07_ORG,0) -> 0 | DB42: =IF(C_PU_DESCRIPTION_07=DA$35,C_PU_MONTANT_07_SHQ,0) -> 0 | DC42: =IF(C_PU_DESCRIPTION_07=DC$35,C_PU_MONTANT_07_ORG,0) -> 0 | DD42: =IF(C_PU_DESCRIPTION_07=DC$35,C_PU_MONTANT_07_SHQ,0) -> 0 | DE42: =IF(C_PU_DESCRIPTION_07=DE$35,C_PU_MONTANT_07_ORG,0) -> 0 | DF42: =IF(C_PU_DESCRIPTION_07=DE$35,C_PU_MONTANT_07_SHQ,0) -> 0 | DI42: =IF(C_PU_DESCRIPTION_07=DI$35,C_PU_MONTANT_07_ORG,0) -> 0 | DJ42: =IF(C_PU_DESCRIPTION_07=DI$35,C_PU_MONTANT_07_SHQ,0) -> 0 | DK42: =IF(C_PU_DESCRIPTION_07=DK$35,C_PU_MONTANT_07_ORG,0) -> 0 | DL42: =IF(C_PU_DESCRIPTION_07=DK$35,C_PU_MONTANT_07_SHQ,0) -> 0
C43: 8 | Y43: =IF(CD43="O",FncRetourneChrw(),"") ->  | CC43: =IF(C_PU_DESCRIPTION_08="","",SUB_CB_PUBL_DESC(C_PU_NOM_08,"")) ->  | CD43: N | CU43: =C_PU_MONTANT_REAL_08_ORG -> 0 | CV43: =C_PU_MONTANT_REAL_08_SHQ -> 0 | CX43: 8 | CY43: =IF(C_PU_DESCRIPTION_08=CY$35,C_PU_MONTANT_REAL_08_ORG,0) -> 0 | CZ43: =IF(C_PU_DESCRIPTION_08=CY$35,C_PU_MONTANT_REAL_08_SHQ,0) -> 0 | DA43: =IF(C_PU_DESCRIPTION_08=DA$35,C_PU_MONTANT_08_ORG,0) -> 0 | DB43: =IF(C_PU_DESCRIPTION_08=DA$35,C_PU_MONTANT_08_SHQ,0) -> 0 | DC43: =IF(C_PU_DESCRIPTION_08=DC$35,C_PU_MONTANT_08_ORG,0) -> 0 | DD43: =IF(C_PU_DESCRIPTION_08=DC$35,C_PU_MONTANT_08_SHQ,0) -> 0 | DE43: =IF(C_PU_DESCRIPTION_08=DE$35,C_PU_MONTANT_08_ORG,0) -> 0 | DF43: =IF(C_PU_DESCRIPTION_08=DE$35,C_PU_MONTANT_08_SHQ,0) -> 0 | DI43: =IF(C_PU_DESCRIPTION_08=DI$35,C_PU_MONTANT_08_ORG,0) -> 0 | DJ43: =IF(C_PU_DESCRIPTION_08=DI$35,C_PU_MONTANT_08_SHQ,0) -> 0 | DK43: =IF(C_PU_DESCRIPTION_08=DK$35,C_PU_MONTANT_08_ORG,0) -> 0 | DL43: =IF(C_PU_DESCRIPTION_08=DK$35,C_PU_MONTANT_08_SHQ,0) -> 0
C44: 9 | Y44: =IF(CD44="O",FncRetourneChrw(),"") ->  | CC44: =IF(C_PU_DESCRIPTION_09="","",SUB_CB_PUBL_DESC(C_PU_NOM_09,"")) ->  | CD44: N | CU44: =C_PU_MONTANT_REAL_09_ORG -> 0 | CV44: =C_PU_MONTANT_REAL_09_SHQ -> 0 | CX44: 9 | CY44: =IF(C_PU_DESCRIPTION_09=CY$35,C_PU_MONTANT_REAL_09_ORG,0) -> 0 | CZ44: =IF(C_PU_DESCRIPTION_09=CY$35,C_PU_MONTANT_REAL_09_SHQ,0) -> 0 | DA44: =IF(C_PU_DESCRIPTION_09=DA$35,C_PU_MONTANT_09_ORG,0) -> 0 | DB44: =IF(C_PU_DESCRIPTION_09=DA$35,C_PU_MONTANT_09_SHQ,0) -> 0 | DC44: =IF(C_PU_DESCRIPTION_09=DC$35,C_PU_MONTANT_09_ORG,0) -> 0 | DD44: =IF(C_PU_DESCRIPTION_09=DC$35,C_PU_MONTANT_09_SHQ,0) -> 0 | DE44: =IF(C_PU_DESCRIPTION_09=DE$35,C_PU_MONTANT_09_ORG,0) -> 0 | DF44: =IF(C_PU_DESCRIPTION_09=DE$35,C_PU_MONTANT_09_SHQ,0) -> 0 | DI44: =IF(C_PU_DESCRIPTION_09=DI$35,C_PU_MONTANT_09_ORG,0) -> 0 | DJ44: =IF(C_PU_DESCRIPTION_09=DI$35,C_PU_MONTANT_09_SHQ,0) -> 0 | DK44: =IF(C_PU_DESCRIPTION_09=DK$35,C_PU_MONTANT_09_ORG,0) -> 0 | DL44: =IF(C_PU_DESCRIPTION_09=DK$35,C_PU_MONTANT_09_SHQ,0) -> 0
C45: 10 | Y45: =IF(CD45="O",FncRetourneChrw(),"") ->  | CC45: =IF(C_PU_DESCRIPTION_10="","",SUB_CB_PUBL_DESC(C_PU_NOM_10,"")) ->  | CD45: N | CU45: =C_PU_MONTANT_REAL_10_ORG -> 0 | CV45: =C_PU_MONTANT_REAL_10_SHQ -> 0 | CX45: 10 | CY45: =IF(C_PU_DESCRIPTION_10=CY$35,C_PU_MONTANT_REAL_10_ORG,0) -> 0 | CZ45: =IF(C_PU_DESCRIPTION_10=CY$35,C_PU_MONTANT_REAL_10_SHQ,0) -> 0 | DA45: =IF(C_PU_DESCRIPTION_10=DA$35,C_PU_MONTANT_10_ORG,0) -> 0 | DB45: =IF(C_PU_DESCRIPTION_10=DA$35,C_PU_MONTANT_10_SHQ,0) -> 0 | DC45: =IF(C_PU_DESCRIPTION_10=DC$35,C_PU_MONTANT_10_ORG,0) -> 0 | DD45: =IF(C_PU_DESCRIPTION_10=DC$35,C_PU_MONTANT_10_SHQ,0) -> 0 | DE45: =IF(C_PU_DESCRIPTION_10=DE$35,C_PU_MONTANT_10_ORG,0) -> 0 | DF45: =IF(C_PU_DESCRIPTION_10=DE$35,C_PU_MONTANT_10_SHQ,0) -> 0 | DI45: =IF(C_PU_DESCRIPTION_10=DI$35,C_PU_MONTANT_10_ORG,0) -> 0 | DJ45: =IF(C_PU_DESCRIPTION_10=DI$35,C_PU_MONTANT_10_SHQ,0) -> 0 | DK45: =IF(C_PU_DESCRIPTION_10=DK$35,C_PU_MONTANT_10_ORG,0) -> 0 | DL45: =IF(C_PU_DESCRIPTION_10=DK$35,C_PU_MONTANT_10_SHQ,0) -> 0
Z46: Total public (Gouvernements) | AJ46: =SUM(AJ36:AJ45) -> 0 | AN46: =SUM(AN36:AN45) -> 0 | AR46: 14 | AS46: (À titre informatif) | CX46: Total : | CY46: =SUM(CY36:CY45) -> 0 | CZ46: =SUM(CZ36:CZ45) -> 0 | DA46: 0 | DB46: 0 | DC46: 0 | DD46: 0 | DE46: 0 | DF46: 0 | DI46: 0 | DJ46: 0 | DK46: =SUM(DK36:DK45) -> 0 | DL46: =SUM(DL36:DL45) -> 0
C48: Municipalité | Z48: Organisme
C49: Description de la contribution | M49: Organisme | Q49: SHQ | U49: Ajustement | Z49: Description de la contribution | AJ49: Organisme | AN49: SHQ
C50: Monétaire(Collecte, don, comptant)15 | M50: =IndicateurAjuste(C_MUNI_MONETAIRE_ORG_AJ) ->  | Q50: =IndicateurAjuste(C_MUNI_MONETAIRE_SHQ_AJ) ->  | Z50: Monétaire(Collecte, don, comptant)29 | AJ50: =IndicateurAjuste(C_ORG_MONETAIRE_ORG_AJ) ->  | AN50: =IndicateurAjuste(C_ORG_MONETAIRE_SHQ_AJ) ->  | CY50: =CY35 -> Monétaire - subvention | DA50: =DA35 -> Équité / Don - Immeuble | DC50: =DC35 -> Équité / Don - Bâtiment | DE50: =DE35 -> Équité / Don - Terrain | DG50: =DG35 -> Corvée | DI50: =DI35 -> Équité / Emphytéose | DK50: =DK35 -> Autres formes
C51: Équité / don : | H51: Immeuble | L51: 16 | M51: =IndicateurAjuste(C_MUNI_EQUITE_IMMEUBLE_ORG_AJ) ->  | Q51: =IndicateurAjuste(C_MUNI_EQUITE_IMMEUBLE_SHQ_AJ) ->  | Z51: Équité / don : | AE51: Immeuble | AI51: 30 | AJ51: =IndicateurAjuste(C_ORG_EQUITE_IMMEUBLE_ORG_AJ) ->  | AN51: =IndicateurAjuste(C_ORG_EQUITE_IMMEUBLE_SHQ_AJ) ->  | CX51: Total : | CY51: =C_PR_TOTAL_MONETAIRE_ORG+C_PU_TOTAL_MONETAIRE_ORG+C_MUNI_MONETAIRE_ORG+C_ORG_MONETAIRE_ORG -> 0 | CZ51: =C_PR_TOTAL_MONETAIRE_SHQ+C_PU_TOTAL_MONETAIRE_SHQ+C_MUNI_MONETAIRE_SHQ+C_ORG_MONETAIRE_SHQ -> 0 | DA51: =C_PR_TOTAL_IMMEUBLE_ORG+C_PU_TOTAL_IMMEUBLE_ORG+C_MUNI_EQUITE_IMMEUBLE_ORG+C_ORG_EQUITE_IMMEUBLE_ORG -> 0 | DB51: =C_PR_TOTAL_IMMEUBLE_SHQ+C_PU_TOTAL_IMMEUBLE_SHQ+C_MUNI_EQUITE_IMMEUBLE_SHQ+C_ORG_EQUITE_IMMEUBLE_SHQ -> 0 | DC51: =C_PR_TOTAL_BATIMENT_ORG+C_PU_TOTAL_BATIMENT_ORG+C_MUNI_EQUITE_BATIMENT_ORG+C_ORG_EQUITE_BATIMENT_ORG -> 0 | DD51: =C_PR_TOTAL_BATIMENT_SHQ+C_PU_TOTAL_BATIMENT_SHQ+C_MUNI_EQUITE_BATIMENT_SHQ+C_ORG_EQUITE_BATIMENT_SHQ -> 0 | DE51: =C_PR_TOTAL_TERRAIN_ORG+C_PU_TOTAL_TERRAIN_ORG+C_MUNI_EQUITE_TERRAIN_ORG+C_ORG_EQUITE_TERRAIN_ORG -> 0 | DF51: =C_PR_TOTAL_TERRAIN_SHQ+C_PU_TOTAL_TERRAIN_SHQ+C_MUNI_EQUITE_TERRAIN_SHQ+C_ORG_EQUITE_TERRAIN_SHQ -> 0 | DG51: =C_PR_TOTAL_CORVEE_ORG+C_MUNI_CORVEE_ORG+C_ORG_CORVEE_ORG -> 0 | DH51: =C_PR_TOTAL_CORVEE_SHQ+C_MUNI_CORVEE_SHQ+C_ORG_CORVEE_SHQ -> 0 | DI51: =C_PR_TOTAL_EMPHYTEOSE_ORG+C_PU_TOTAL_EMPHYTEOSE_ORG+C_MUNI_EQUITE_EMPHYTEOSE_ORG+C_ORG_EQUITE_EMPHYTEOSE_ORG -> 0 | DJ51: =C_PR_TOTAL_EMPHYTEOSE_SHQ+C_PU_TOTAL_EMPHYTEOSE_SHQ+C_MUNI_EQUITE_EMPHYTEOSE_SHQ+C_ORG_EQUITE_EMPHYTEOSE_SHQ -> 0 | DK51: =C_PR_TOTAL_AUTRE_ORG+C_PU_TOTAL_AUTRE_ORG+C_MUNI_AUTRE_ORG+C_ORG_AUTRE_ORG -> 0 | DL51: =C_PR_TOTAL_AUTRE_SHQ+C_PU_TOTAL_AUTRE_SHQ+C_MUNI_AUTRE_SHQ+C_ORG_AUTRE_SHQ -> 0
H52: Bâtiment | L52: 17 | M52: =IndicateurAjuste(C_MUNI_EQUITE_BATIMENT_ORG_AJ) ->  | Q52: =IndicateurAjuste(C_MUNI_EQUITE_BATIMENT_SHQ_AJ) ->  | AE52: Bâtiment | AI52: 31 | AJ52: =IndicateurAjuste(C_ORG_EQUITE_BATIMENT_ORG_AJ) ->  | AN52: =IndicateurAjuste(C_ORG_EQUITE_BATIMENT_SHQ_AJ) -> 
H53: Terrain | L53: 18 | M53: =IndicateurAjuste(C_MUNI_EQUITE_TERRAIN_ORG_AJ) ->  | Q53: =IndicateurAjuste(C_MUNI_EQUITE_TERRAIN_SHQ_AJ) ->  | AE53: Terrain | AI53: 32 | AJ53: =IndicateurAjuste(C_ORG_EQUITE_TERRAIN_ORG_AJ) ->  | AN53: =IndicateurAjuste(C_ORG_EQUITE_TERRAIN_SHQ_AJ) -> 
H54: Emphytéose | L54: 19 | M54: =IndicateurAjuste(C_MUNI_EQUITE_EMPHYTEOSE_ORG_AJ) ->  | N54: =Ajuster(C_MUNI_EQUITE_EMPHYTEOSE_ORG_AJ,C_MUNI_EMPHYTEOSE_ORG) -> 0 | Q54: =IndicateurAjuste(C_MUNI_EQUITE_EMPHYTEOSE_SHQ_AJ) ->  | R54: =Ajuster(C_MUNI_EQUITE_EMPHYTEOSE_SHQ_AJ,C_MUNI_EMPHYTEOSE_SHQ) -> 0 | AE54: Emphytéose | AI54: 51 | AJ54: =IndicateurAjuste(C_ORG_EQUITE_EMPHYTEOSE_ORG_AJ) ->  | AK54: =Ajuster(C_ORG_EQUITE_EMPHYTEOSE_ORG_AJ,C_ORG_EMPHYTEOSE_ORG) -> 0 | AN54: =IndicateurAjuste(C_ORG_EQUITE_EMPHYTEOSE_SHQ_AJ) ->  | AO54: =Ajuster(C_ORG_EQUITE_EMPHYTEOSE_SHQ_AJ,C_ORG_EMPHYTEOSE_SHQ) -> 0 | CA54: 0 | CB54: 0 | CD54: 0 | CE54: 0
C55: Corvée - Services municipaux | L55: 20 | M55: =IndicateurAjuste(C_MUNI_CORVEE_ORG_AJ) ->  | Q55: =IndicateurAjuste(C_MUNI_CORVEE_SHQ_AJ) ->  | Z55: Corvée | AI55: 33 | AJ55: =IndicateurAjuste(C_ORG_CORVEE_ORG_AJ) ->  | AN55: =IndicateurAjuste(C_ORG_CORVEE_SHQ_AJ) -> 
C56: Rabais (crédit) de taxes | L56: 21 | M56: =IndicateurAjuste(C_MUNI_CREDIT_TAXE_FONCIERE_ORG_AJ) ->  | N56: =Ajuster(C_MUNI_CREDIT_TAXE_FONCIERE_ORG_AJ,C_MUNI_CREDIT_TAXE_FONCIERE_ORG) -> 0 | Q56: =IndicateurAjuste(C_MUNI_CREDIT_TAXE_FONCIERE_SHQ_AJ) ->  | R56: =Ajuster(C_MUNI_CREDIT_TAXE_FONCIERE_SHQ_AJ,C_MUNI_CREDIT_TAXE_FONCIERE_SHQ) -> 0 | Z56: Autres formes | AI56: 34 | AJ56: =IndicateurAjuste(C_ORG_AUTRE_ORG_AJ) ->  | AN56: =IndicateurAjuste(C_ORG_AUTRE_SHQ_AJ) ->  | CA56: =Ajuster(C_MUNI_CREDIT_TAXE_FONCIERE_ORG_AJ,-PV(F_HYPOTHEQUE_TAUX_ORG,C_MUNI_CREDIT_TAXE_FONCIERE_ANNEES_ORG,C_MUNI_CREDIT_TAXE_FONCIERE_MONTANT_ANNUEL_ORG)) -> 0 | CB56: =Ajuster(C_MUNI_CREDIT_TAXE_FONCIERE_SHQ_AJ,-PV(F_HYPOTHEQUE_TAUX_SHQ,C_MUNI_CREDIT_TAXE_FONCIERE_ANNEES_SHQ,C_MUNI_CREDIT_TAXE_FONCIERE_MONTANT_ANNUEL_SHQ)) -> 0
C57: Nombre d'années: | L57: 22 | M57: =IndicateurAjuste(C_MUNI_CREDIT_TAXE_FONCIERE_ANNEES_ORG_AJ) ->  | Q57: =IndicateurAjuste(C_MUNI_CREDIT_TAXE_FONCIERE_ANNEES_SHQ_AJ) ->  | Z57: Total organisme | AJ57: =SUM(AK50:AK56) -> 0 | AN57: =SUM(AO50:AO56) -> 0 | AR57: 35 | CB57: =Ajuster(C_MUNI_CREDIT_TAXE_FONCIERE_ANNEES_SHQ_AJ,C_MUNI_CREDIT_TAXE_FONCIERE_ANNEES_ORG) -> 0
C58: Montant annuel : | L58: 23 | M58: =IndicateurAjuste(C_MUNI_CREDIT_TAXE_FONCIERE_MONTANT_ANNUEL_ORG_AJ) ->  | Q58: =IndicateurAjuste(C_MUNI_CREDIT_TAXE_FONCIERE_MONTANT_ANNUEL_SHQ_AJ) ->  | AM58: Organisme | AR58: SHQ | CB58: =Ajuster(C_MUNI_CREDIT_TAXE_FONCIERE_MONTANT_ANNUEL_SHQ_AJ,C_MUNI_CREDIT_TAXE_FONCIERE_MONTANT_ANNUEL_ORG) -> 0
C59: Exemption de taxes | L59: 24 | M59: =IndicateurAjuste(C_MUNI_EXEMPTION_TAXE_FONCIERE_ORG_AJ) ->  | N59: =Ajuster(C_MUNI_EXEMPTION_TAXE_FONCIERE_ORG_AJ,IF((IP_TAXE_EXEMP=TRUE) * (C_MUNI_EXEMPTION_TAXE_FONCIERE_ANNEES_ORG>=PARM_EXEMP_TAXE_DUREE_MINIMALE),-PV(F_HYPOTHEQUE_TAUX_ORG,C_MUNI_EXEMPTION_TAXE_FONCIERE_ANNEES_ORG,C_MUNI_EXEMPTION_TAXE_FONCIERE_MONTANT_ANNUEL_ORG),0)) -> 0 | Q59: =IndicateurAjuste(C_MUNI_EXEMPTION_TAXE_FONCIERE_SHQ_AJ) ->  | R59: =Ajuster(C_MUNI_EXEMPTION_TAXE_FONCIERE_SHQ_AJ,IF((IP_TAXE_EXEMP=TRUE) * (C_MUNI_EXEMPTION_TAXE_FONCIERE_ANNEES_SHQ>=PARM_EXEMP_TAXE_DUREE_MINIMALE),-PV(F_HYPOTHEQUE_TAUX_SHQ,C_MUNI_EXEMPTION_TAXE_FONCIERE_ANNEES_SHQ,C_MUNI_EXEMPTION_TAXE_FONCIERE_MONTANT_ANNUEL_SHQ),0)) -> 0 | AA59: CONTRIBUTION DU MILIEU TOTALE : | AM59: =C_PU_MONTANT_TOTAL_ORG+C_PR_MONTANT_TOTAL_ORG+C_MUNI_MONTANT_TOTAL_ORG+C_ORG_MONTANT_TOTAL_ORG -> 0 | AR59: =C_PU_MONTANT_TOTAL_SHQ+C_PR_MONTANT_TOTAL_SHQ+C_MUNI_MONTANT_TOTAL_SHQ+C_ORG_MONTANT_TOTAL_SHQ -> 0 | AT59: 36 | AX59: =IF(AND(F_SUBVENTIONS_COUT_REALISATION_MAX_ORG_AJ_VIDE, F_SUBVENTIONS_COUT_REALISATION_MAX_SHQ_AJ_VIDE),"","Mixité d'intervention") -> 
C60: Nombre d'années: | L60: 25 | M60: =IndicateurAjuste(C_MUNI_EXEMPTION_TAXE_FONCIERE_ANNEES_ORG_AJ) ->  | Q60: =IndicateurAjuste(C_MUNI_EXEMPTION_TAXE_FONCIERE_ANNEES_SHQ_AJ) ->  | AX60: Ajustements forcés | CB60: =Ajuster(C_MUNI_EXEMPTION_TAXE_FONCIERE_ANNEES_SHQ_AJ,C_MUNI_EXEMPTION_TAXE_FONCIERE_ANNEES_ORG) -> 0
C61: Montant annuel : | L61: 26 | M61: =IndicateurAjuste(C_MUNI_EXEMPTION_TAXE_FONCIERE_MONTANT_ANNUEL_ORG_AJ) ->  | Q61: =IndicateurAjuste(C_MUNI_EXEMPTION_TAXE_FONCIERE_MONTANT_ANNUEL_SHQ_AJ) ->  | AY61: Organisme | BA61: SHQ | CB61: =Ajuster(C_MUNI_EXEMPTION_TAXE_FONCIERE_MONTANT_ANNUEL_SHQ_AJ,C_MUNI_EXEMPTION_TAXE_FONCIERE_MONTANT_ANNUEL_ORG) -> 0
C62: Autres formes | L62: 27 | M62: =IndicateurAjuste(C_MUNI_AUTRE_ORG_AJ) ->  | Q62: =IndicateurAjuste(C_MUNI_AUTRE_SHQ_AJ) ->  | AA62: CONTRIBUTION MINIMUM REQUISE : | AL62: =IndicateurAjuste(C_CONTRIBUTION_MINIMUM_ORG_AJ) ->  | AM62: =Ajuster(C_CONTRIBUTION_MINIMUM_ORG_AJ,IF(OR(NOT(G_PROGRAMME_LAQ),NOT(F_SUBVENTIONS_OBLIGE_ORG_AJ)),MIN(IP_MIN_CM_5_ORG,IP_MIN_CM_15_ORG),0)) -> 0 | AQ62: =IndicateurAjuste(C_CONTRIBUTION_MINIMUM_SHQ_AJ) ->  | AR62: =Ajuster(C_CONTRIBUTION_MINIMUM_SHQ_AJ,IF(OR(NOT(G_PROGRAMME_LAQ),NOT(F_SUBVENTIONS_OBLIGE_SHQ_AJ)),MIN(IP_MIN_CM_5_SHQ,IP_MIN_CM_15_SHQ),0)) -> 0 | AT62: 37
C63: ="Total municipalité" & IF(AND(G_PROJET_SUBVENTION_PAMH,OR(C_MUNI_MONTANT_TOTAL_INF_ORG > C_AIDE_MAX_PAMH_ORG,C_MUNI_MONTANT_TOTAL_INF_SHQ>C_AIDE_MAX_PAMH_SHQ))," reconnu","") -> Total municipalité | M63: =IF(G_PROJET_SUBVENTION_PAMH,MIN(C_AIDE_MAX_PAMH_ORG,C_MUNI_MONTANT_TOTAL_INF_ORG),C_MUNI_MONTANT_TOTAL_INF_ORG) -> 0 | Q63: =IF(G_PROJET_SUBVENTION_PAMH,MIN(C_AIDE_MAX_PAMH_SHQ,C_MUNI_MONTANT_TOTAL_INF_SHQ),C_MUNI_MONTANT_TOTAL_INF_SHQ) -> 0 | U63: 28 | CA63: =SUM(N50:N56)+C_MUNI_EXEMPTION_TAXE_FONCIERE_ORG+C_MUNI_AUTRE_ORG -> 0 | CB63: =SUM(R50:R56)+C_MUNI_EXEMPTION_TAXE_FONCIERE_SHQ+C_MUNI_AUTRE_SHQ -> 0
B70: AIDES COMPLÉMENTAIRES
C72: Municipalité
D74: PRQ | AG74: Contribution maximale : | AJ74: Org : | AK74: =Ajuster(C_AIDE_MAX_PRQ_ORG_AJ,IF(NOT(F_SUBVENTIONS_OBLIGE_ORG_AJ),(MIN(MIN_CM_V1_15_ORG+MIN_CM_V2_ORG+MIN_CM_V3_ORG,C_MONTANT_TOTAL_ORG)+F_SUBVENTIONS_TOTALE_ORG)*0.15,0)) -> 0 | AO74: SHQ : | AP74: =Ajuster(C_AIDE_MAX_PRQ_SHQ_AJ,IF(NOT(F_SUBVENTIONS_OBLIGE_SHQ_AJ),(MIN(MIN_CM_V1_15_SHQ+MIN_CM_V2_SHQ+MIN_CM_V3_SHQ,C_MONTANT_TOTAL_SHQ)+F_SUBVENTIONS_TOTALE_SHQ)*0.15,0)) -> 0 | AT74: 49
D76: Rabais (Crédit) de taxes - PRQ | Z76: Contribution monétaire - PRQ
M77: Organisme | Q77: SHQ | AJ77: Organisme | AN77: SHQ
D78: Nombre d'années | K78: : | L78: 38 | Z78: Montant de la subvention | AI78: : | AR78: 41
D80: Montant annuel | K80: : | L80: 39
D82: Valeur actualisée | K82: : | L82: 40 | M82: =IndicateurAjuste(C_AIDE_RABAIS_ACTUALISE_ORG_AJ) ->  | N82: =Ajuster(C_AIDE_RABAIS_ACTUALISE_ORG_AJ,-PV(F_HYPOTHEQUE_TAUX_ORG,C_AIDE_RABAIS_ANNEE_ORG,C_AIDE_RABAIS_MONTANT_ORG)) -> 0 | Q82: =IndicateurAjuste(C_AIDE_RABAIS_ACTUALISE_SHQ_AJ) ->  | R82: =Ajuster(C_AIDE_RABAIS_ACTUALISE_SHQ_AJ,-PV(F_HYPOTHEQUE_TAUX_SHQ,C_AIDE_RABAIS_ANNEE_SHQ,C_AIDE_RABAIS_MONTANT_SHQ)) -> 0 | Z82: Conservation du Patrimoine bâti - PRQ
Z84: Montant de la subvention | AI84: : | AR84: 42
Z86: Coûts des travaux afférents | AI86: : | AR86: 43
W91: TOTAL DE L'AIDE COMPLÉMENTAIRE PRQ : | X91: =C_AIDE_RABAIS_ACTUALISE_ORG+C_AIDE_CONTRIBUTION_MONTANT_ORG -> 0 | AC91: =C_AIDE_RABAIS_ACTUALISE_SHQ+C_AIDE_CONTRIBUTION_MONTANT_SHQ -> 0 | AH91: 45 | AT91: (N'inclut pas la Conservation du Patrimoine bâti - PRQ)
D94: PAMH - Excédent de l'aide maximale | AG94: Contribution maximale de la municipalité : | AJ94: Org : | AK94: =Ajuster(C_AIDE_MAX_PAMH_ORG_AJ,IF(NOT(F_SUBVENTIONS_OBLIGE_ORG_AJ),IF(G_PROJET_SUBVENTION_PAMH,(F_SUBVENTIONS_COUT_REALISATION_ADMISSIBLE_ORG + IF(AND(G_PROGRAMME_LAQ,F_CALC_SUBV_REG_ELOI_ORG),F_SUBVENTIONS_REGION_ELOIGNEE_ORG,0)+IF(AND(G_PROGRAMME_LAQ,F_CALC_SUBV_PETITE_MUN_ORG),F_SUBVENTIONS_PETITE_MUN_ORG,0)) * 0.15,0),0)) -> 0 | AO94: SHQ : | AP94: =Ajuster(C_AIDE_MAX_PAMH_SHQ_AJ,IF(NOT(F_SUBVENTIONS_OBLIGE_SHQ_AJ),IF(G_PROJET_SUBVENTION_PAMH,(F_SUBVENTIONS_COUT_REALISATION_ADMISSIBLE_SHQ + IF(AND(G_PROGRAMME_LAQ,F_CALC_SUBV_REG_ELOI_SHQ),F_SUBVENTIONS_REGION_ELOIGNEE_SHQ,0)+IF(AND(G_PROGRAMME_LAQ,F_CALC_SUBV_PETITE_MUN_SHQ),F_SUBVENTIONS_PETITE_MUN_SHQ,0)) * 0.15,0),0)) -> 0 | AT94: 50
X96: Organisme | AC96: SHQ
W97: Aide complémentaire de la municipalité : | X97: =MAX(0,C_MUNI_MONTANT_TOTAL_INF_ORG-C_MUNI_MONTANT_TOTAL_ORG) -> 0 | AC97: =MAX(0,C_MUNI_MONTANT_TOTAL_INF_SHQ-C_MUNI_MONTANT_TOTAL_SHQ) -> 0 | AH97: 46
W101: TOTAL DE L'AIDE COMPLÉMENTAIRE PAMH : | X101: =C_AIDE_PAMH_RABAIS_ORG -> 0 | AC101: =C_AIDE_PAMH_RABAIS_SHQ -> 0 | AH101: 47
W105: TOTAL DE L'AIDE COMPLÉMENTAIRE - MUNICIPALITÉ : | X105: =C_AIDE_TOTAL_ORG+C_AIDE_PAMH_TOTAL_ORG -> 0 | AC105: =C_AIDE_TOTAL_SHQ+C_AIDE_PAMH_TOTAL_SHQ -> 0 | AH105: 48
C110: PRÉCISIONS - Page 5 - Contributions et aides complémentaires
D112: Description de la contribution - Monétaire | X112: : | Y112: Contribution sous la forme de subventions ou de dons en espèces provenant de collectes ou autres sources.
D114: Description de la contribution - Équité / Don Immeuble | X114: : | Y114: Dans ce contexte, un « Immeuble » comporte un terrain et au moins un bâtiment.
D116: Description de la contribution - Équité / Don | X116: : | Y116: Dans le cas d'un projet comportant une partie non-résidentielle, le montant de l'équité ou du don ne
Y117: doit être établi qu'en fonction de la valeur marchande associée à la partie résidentielle du projet.
D119: Secteur public : Phase exploitation - Services | X119: : | Y119: Aide financière ou partie d'une aide financière versée à l'organisme en vue de défrayer
Y120: le coût de certains services en cours d'exploitation. Ces montants sont inscrits
Y121: à titre informatif seulement et ne sont pas considérés comme contributions du milieu.
D123: Municipalité : Exemption de taxes | X123: : | Y123: Référez-vous aux précisions de l'onglet « Immeubles-prévus ».
D125: Contribution du milieu total | X125: : | Y125: Somme des contributions du milieu inscrites au formulaire : organisme / SHQ (ville mandataire)
D127: Contribution minimum requise | X127: : | Y127: Contribution minimum exigible du milieu, établie sur les coûts de réalisation admissibles,
Y128: en fonction des normes du programme.
D130: PRQ - Conservation du patrimoine bâti - Montant de la subvention | X130: : | Y130: Montant de la subvention obtenue de la municipalité dans le cadre du volet
Y131: « Conservation du patrimoine bâti » du Programme Rénovation Québec (PRQ).
Y132: À titre informatif seulement, ne fait l'objet d'aucune opération au sein de la DAF.
D134: PRQ - Conservation du patrimoine bâti - Coûts des travaux afférents | X134: : | Y134: Coûts des travaux pour lesquels une subvention PRQ, sous le volet « Conservation du patrimoine bâti »,
Y135: a été obtenue.
Y136: Assurez-vous qu'ils sont exclus des coûts de réalisation qui font l'objet de la présente demande.
Y137: À titre informatif seulement, ne fait l'objet d'aucune opération au sein de la DAF.
D139: PAMH - Contribution maximale de la municipalité | X139: : | Y139: Dans le cadre d'un projet PAMH, montant maximum qui peut être reconnu en tant que contribution
Y140: du milieu de la part d'une municipalité.
D142: PAMH - Aide complémentaire de la municipalité | X142: : | Y142: Montant d'une aide financière municipale excédant le maximum pouvant être reconnu à titre
Y143: de contribution du milieu dans le cadre d'un projet PAMH.

Sheet Financement
CN2: Valeurs originales | CO2: ORG | CP2: SHQ
L3: Demande d'aide financière | CN3: Organisme (Capital)
L4: =MP_VERSION -> Version 12.2.00C | CN4: Municipalité (Capital) | CU4: VALEURS DAF | CZ4: CALCULS | DD4: VALIDATION VIABILITÉ
F5: Formulaire en date du | G5: =TODAY() -> 2024-10-04 | CN5: Public (Capital) | CZ5: Organisme | DA5: SHQ | DD5: Organisme | DE5: SHQ
B6: Page 6 - FINANCEMENT | CN6: Privé (Capital) | CS6: Hypothèque | CX6: Calcul remboursement & réserve
B8: PROJET | AP8: Date de la DAF : | AQ8: =G_PROJET_ETAPE_APPROUVE -> 00:00:00 | AR8: =G_APPRO_DATE -> 00:00:00 | CN8: Rabais taxe (Municipalité) | CS8: Taux hypothécaire | CU8: =((((1+(F_HYPOTHEQUE_TAUX_ORG/2))^2)^(1/12))-1)*12 -> 0 | CV8: =((((1+(F_HYPOTHEQUE_TAUX_SHQ/2))^2)^(1/12))-1)*12 -> 0 | CX8: Vacances - créances doûteuses | CY8: ZZ | CZ8: =Ajuster(BE_VACANCES_RES_ORG_AJ,MAX(CU21*CU84*CU86,CU25*CU84)) -> 0 | DA8: =Ajuster(BE_VACANCES_RES_SHQ_AJ,MAX(CV21*CV84*CV86,CV25*CV84)) -> 0 | DC8: Coût de réalisation | DD8: =CU41 -> 6950 | DE8: =CV41 -> 6950
B10: Numéro du projet | J10: : | K10: =G_PROJET_NO_COMPLET -> ACL-00000 | O10: 1 | AJ10: Étape du projet : | AK10: =G_PROJET_ETAPE -> 0 | AU10: 2 | CN10: Exemption taxe (Municipalité) | CS10: Taux réserve | CU10: =((((1+((F_HYPOTHEQUE_RESERVE_ORG+F_HYPOTHEQUE_TAUX_ORG)/2))^2)^(1/12))-1)*12 -> 0.01991717235 | CV10: =((((1+((F_HYPOTHEQUE_RESERVE_SHQ+F_HYPOTHEQUE_TAUX_SHQ)/2))^2)^(1/12))-1)*12 -> 0.01991717235 | CX10: Administration | CY10: YY | CZ10: =Ajuster(BE_ADMINISTRATION_RES_ORG_AJ,MAX(IP_NBRE_UNITES*PARM_ADMINISTRATION_MONTANT_UNITE,IF(G_ORGANISME_TYPE="COOP",CU25*0.04,CU25*0.05))) -> 0 | DA10: =Ajuster(BE_ADMINISTRATION_RES_SHQ_AJ,MAX(IP_NBRE_UNITES*PARM_ADMINISTRATION_MONTANT_UNITE,IF(G_ORGANISME_TYPE="COOP",CV25*0.04,CV25*0.05))) -> 0 | DC10: Montant d'emprunt viabilité | DD10: =CZ33 -> 0 | DE10: =DA33 -> 0
B12: Nom du projet | J12: : | K12: =G_PROJET_NOM -> 0 | AU12: 4 | CN12: Montant annuel Exemption taxe (Municipalité) | CS12: Période | CU12: =F_HYPOTHEQUE_AMORTISSEMENT_ORG -> 35 | CV12: =F_HYPOTHEQUE_AMORTISSEMENT_SHQ -> 35 | CX12: Sous-total (B + ZZ + YY) | CY12: XX | CZ12: =CU38+CZ8+CZ10 -> 1593.828415 | DA12: =CV38+DA8+DA10 -> 1593.828415 | DC12: Dépenses exploitation - Autres | DD12: =CU38-C_MUNI_EXEMPTION_TAXE_FONCIERE_MONTANT_ANNUEL_ORG -> 1593.828415 | DE12: =CV38-C_MUNI_EXEMPTION_TAXE_FONCIERE_MONTANT_ANNUEL_SHQ -> 1593.828415
CN14: Rabais taxe (PRQ) | CS14: Nb paiements | CU14: =CU12*12 -> 420 | CV14: =CV12*12 -> 420 | CX14: Remboursement + réserve (A - XX) | CZ14: =CU36-CZ12 -> -1593.828415 | DA14: =CV36-DA12 -> -1593.828415 | DC14: Administration | DD14: =CZ10 -> 0 | DE14: =DA10 -> 0
B16: CALCUL DES SUBVENTIONS - SHQ | AX16: Ajustements | CS16: Terme | CU16: =F_HYPOTHEQUE_TERME_ORG -> 5 | CV16: =F_HYPOTHEQUE_TERME_SHQ -> 5 | DC16: Vacances - créances doûteuses | DD16: =CZ8 -> 0 | DE16: =DA8 -> 0
AB17: Organisme | AH17: SHQ | AY17: Organisme | BB17: SHQ | CX17: Calcul remboursement par hypothèque | DC17: Réserve de gestion (hypothèque) | DD17: =CZ28 -> 0 | DE17: =DA28 -> 0
B19: Coût de réalisation | AB19: =IndicateurAjuste(F_SUBVENTIONS_COUT_REALISATION_ORG_AJ) ->  | AC19: =Ajuster(F_SUBVENTIONS_COUT_REALISATION_ORG_AJ,BR_COUT_REALISATION_RES_ORG) -> 6950 | AG19: 5 | AH19: =IndicateurAjuste(F_SUBVENTIONS_COUT_REALISATION_SHQ_AJ) ->  | AI19: =Ajuster(F_SUBVENTIONS_COUT_REALISATION_SHQ_AJ,BR_COUT_REALISATION_RES_SHQ) -> 6950 | AN19: Ratio : L.É. / L.M. | CN19: MRC éligible | CO19: =LEFT(G_PROJET_MRC,1)="9" -> FALSE | CS19: Résumé | CX19: Remboursement annuel | CZ19: =12*PMT(CU8/12,CU14,-CZ33,,0) -> 0 | DA19: =12*PMT(CV8/12,CV14,-DA33,,0) -> 0 | DC19: Sous-total | DD19: =DD12+DD14+DD16+DD17 -> 1593.828415 | DE19: =DE12+DE14+DE16+DE17 -> 1593.828415
B21: Valeur marchande du don / équité (Total ou partiel) du bâtiment et/ou terrain | AB21: =IndicateurAjuste(F_SUBVENTIONS_VALEUR_MARCHANDE_ORG_AJ) ->  | AC21: =Ajuster(F_SUBVENTIONS_VALEUR_MARCHANDE_ORG_AJ,C_TOTAL_EMPHYTEOSE_ORG+C_TOTAL_IMMEUBLE_ORG+C_TOTAL_BATIMENT_ORG+C_TOTAL_TERRAIN_ORG+C_PR_TOTAL_HONORAIRES_ORG) -> 0 | AG21: 7 | AH21: =IndicateurAjuste(F_SUBVENTIONS_VALEUR_MARCHANDE_SHQ_AJ) ->  | AI21: =Ajuster(F_SUBVENTIONS_VALEUR_MARCHANDE_SHQ_AJ,C_TOTAL_EMPHYTEOSE_SHQ+C_TOTAL_IMMEUBLE_SHQ+C_TOTAL_BATIMENT_SHQ+C_TOTAL_TERRAIN_SHQ+C_PR_TOTAL_HONORAIRES_SHQ) -> 0 | AN21: O: | AO21: =RATIO_LOYER_ECONO_VS_MEDIAN_ORG -> 0 | AQ21: S: | AR21: =RATIO_LOYER_ECONO_VS_MEDIAN_SHQ -> 0 | AT21: 9 | CN21: Petite municipalité | CO21: =G_PROJET_PETITE_MUN -> FALSE | CS21: Loyer médian sans service | CU21: =R_LOYER_MEDIAN_SS_SRVC_ORG -> 0 | CV21: =R_LOYER_MEDIAN_SS_SRVC_SHQ -> 0 | CX21: a | CZ21: =PMT(CU8/12,CU14,-CZ33,,0)*12 -> 0 | DA21: =PMT(CV8/12,CV14,-DA33,,0)*12 -> 0 | DC21: Remboursement annuel | DD21: =CZ19 -> 0 | DE21: =DA19 -> 0
B23: Valeur de la corvée | AB23: =IndicateurAjuste(F_SUBVENTIONS_VALEUR_CORVEE_ORG_AJ) ->  | AC23: =Ajuster(F_SUBVENTIONS_VALEUR_CORVEE_ORG_AJ,C_TOTAL_CORVEE_ORG) -> 0 | AG23: 10 | AH23: =IndicateurAjuste(F_SUBVENTIONS_VALEUR_CORVEE_SHQ_AJ) ->  | AI23: =Ajuster(F_SUBVENTIONS_VALEUR_CORVEE_SHQ_AJ,C_TOTAL_CORVEE_SHQ) -> 0 | CN23: Région éloignée | CO23: =EstRegionEloignee(G_PROJET_REGION) -> FALSE | CS23: Loyer économique sans service | CU23: =CU21*PARM_AOT_NORME_VIABILITE -> 0 | CV23: =CV21*PARM_AOT_NORME_VIABILITE -> 0 | CX23: b | CZ23: =PMT(CU10/12,CU14,-CZ33,,0)*12 -> 0 | DA23: =PMT(CV10/12,CV14,-DA33,,0)*12 -> 0 | DC23: Total | DD23: =DD19+DD21 -> 1593.828415 | DE23: =DE19+DE21 -> 1593.828415
B25: Résiduel de l'emphytéose | AB25: =IndicateurAjuste(F_SUBVENTIONS_EMPHYTEOSE_ORG_AJ) ->  | AC25: =Ajuster(F_SUBVENTIONS_EMPHYTEOSE_ORG_AJ,F_SUBVENTIONS_EMPHYTEOSE_VALEUR_ORG) -> 0 | AG25: 12 | AH25: =IndicateurAjuste(F_SUBVENTIONS_EMPHYTEOSE_SHQ_AJ) ->  | AI25: =Ajuster(F_SUBVENTIONS_EMPHYTEOSE_SHQ_AJ,F_SUBVENTIONS_EMPHYTEOSE_VALEUR_SHQ) -> 0 | CA25: 0 | CB25: 0 | CN25: Norme viabilité | CO25: =PARM_AOT_NORME_VIABILITE -> 0.95 | CS25: Loyers économiques annuels | CU25: =CU23+R_21_ORG+R_23_ORG+R_25_ORG-R_19_ORG -> 0 | CV25: =CV23+R_21_SHQ+R_23_SHQ+R_25_SHQ-R_19_SHQ -> 0 | CW25: CU23+R_21_ORG+R_23_ORG+R_25_ORG+R_27_ORG-R_19_ORG | CX25: Réserve capitalisée de gestion | CZ25: =IF(CU16<5,CZ33*0.015,0) -> 0 | DA25: =IF(CV16<5,DA33*0.015,0) -> 0 | DC25: Revenus sans service | DD25: =CU33 -> 0 | DE25: =CV33 -> 0
B28: COÛT DE RÉALISATION TOTAL | AB28: =IF(G_PROJET_SUBVENTION_PAMH,F_SUBVENTIONS_COUT_REALISATION_ORG,F_SUBVENTIONS_COUT_REALISATION_ORG+F_SUBVENTIONS_VALEUR_MARCHANDE_ORG+F_SUBVENTIONS_VALEUR_CORVEE_ORG+F_SUBVENTIONS_EMPHYTEOSE_ORG) -> 6950 | AG28: 14 | AH28: =IF(G_PROJET_SUBVENTION_PAMH,F_SUBVENTIONS_COUT_REALISATION_SHQ,F_SUBVENTIONS_COUT_REALISATION_SHQ+F_SUBVENTIONS_VALEUR_MARCHANDE_SHQ+F_SUBVENTIONS_VALEUR_CORVEE_SHQ+F_SUBVENTIONS_EMPHYTEOSE_SHQ) -> 6950 | AN28: Aides gouvernementales | CS28: Budget exploitation | CX28: Réserve de gestion (hypothèque) | CZ28: =MAX(((CZ23-CZ21)-(CZ25/((CU16*2)+1)))/((CU16*2)+1),0) -> 0 | DA28: =MAX(((DA23-DA21)-(DA25/((CV16*2)+1)))/((CV16*2)+1),0) -> 0 | DC28: Loyer économique | DD28: =DD23-DD25 -> 1593.828415 | DE28: =DE23-DE25 -> 1593.828415
B31: Moins : | F31: Coûts d'adaptation subventionnés à 100% - Unités SUAL | AB31: =IndicateurAjuste(F_COUT_ADAPTATION_SPH_ORG_AJ) ->  | AC31: =Ajuster(F_COUT_ADAPTATION_SPH_ORG_AJ,F_COUT_ADAPTATION_SPH_VALEUR_ORG) -> 0 | AG31: 13a | AH31: =IndicateurAjuste(F_COUT_ADAPTATION_SPH_SHQ_AJ) ->  | AI31: =Ajuster(F_COUT_ADAPTATION_SPH_SHQ_AJ,F_COUT_ADAPTATION_SPH_VALEUR_SHQ) -> 0 | AN31: O: | AO31: =IF(F_COUT_REALISATION_TOTAL_ORG=0,0,(C_PU_MONTANT_TOTAL_ORG+C_MUNI_MONTANT_TOTAL_ORG+C_AIDE_CONTRIBUTION_MONTANT_ORG+C_AIDE_CONSERVATION_MONTANT_ORG+C_AIDE_CONSERVATION_COUT_ORG+ROUND(F_SUBVENTIONS_TOTALE_ORG,0)-C_MUNI_CREDIT_TAXE_FONCIERE_INF_ORG-C_MUNI_EXEMPTION_TAXE_FONCIERE_ORG)/F_COUT_REALISATION_TOTAL_ORG) -> 0 | AQ31: S: | AR31: =IF(F_COUT_REALISATION_TOTAL_SHQ=0,0,(C_PU_MONTANT_TOTAL_SHQ+C_MUNI_MONTANT_TOTAL_SHQ+C_AIDE_CONTRIBUTION_MONTANT_SHQ+C_AIDE_CONSERVATION_MONTANT_SHQ+C_AIDE_CONSERVATION_COUT_SHQ+ROUND(F_SUBVENTIONS_TOTALE_SHQ,0)-C_MUNI_CREDIT_TAXE_FONCIERE_INF_SHQ-C_MUNI_EXEMPTION_TAXE_FONCIERE_SHQ)/F_COUT_REALISATION_TOTAL_SHQ) -> 0 | AT31: 9 | CA31: 0 | CB31: 0 | CS31: Total revenus de service | CU31: =BE_REVENU_SERVICE_01_RES_ORG+BE_REVENU_SERVICE_02_RES_ORG+BE_REVENU_SERVICE_03_RES_ORG -> 0 | CV31: =BE_REVENU_SERVICE_01_RES_SHQ+BE_REVENU_SERVICE_02_RES_SHQ+BE_REVENU_SERVICE_03_RES_SHQ -> 0 | CX31: Remboursement + réserve calc. | CZ31: =CZ19+CZ28 -> 0 | DA31: =DA19+DA28 -> 0 | DC31: Loyer économique sans service | DD31: =DD28+R_19_ORG-R_21_ORG-R_23_ORG-R_25_ORG -> 1593.828415 | DE31: =DE28+R_19_SHQ-R_21_SHQ-R_23_SHQ-R_25_SHQ -> 1593.828415 | DF31: DE28+R_19_SHQ-R_21_SHQ-R_23_SHQ-R_25_SHQ
F33: Coûts d'adaptation subventionnés à 100% - Unités SAD | AB33: =IndicateurAjuste(F_COUT_ADAPTATION_SAD_ORG_AJ) ->  | AC33: =Ajuster(F_COUT_ADAPTATION_SAD_ORG_AJ,IF(G_PROJET_INTERV_MIXTES,0,F_COUT_ADAPTATION_SAD_VALEUR_ORG)) -> 0 | AG33: 13b | AH33: =IndicateurAjuste(F_COUT_ADAPTATION_SAD_SHQ_AJ) ->  | AI33: =Ajuster(F_COUT_ADAPTATION_SAD_SHQ_AJ,IF(G_PROJET_INTERV_MIXTES,0,F_COUT_ADAPTATION_SAD_VALEUR_SHQ)) -> 0 | CA33: 0 | CB33: 0 | CC33: FALSE | CS33: Revenus sans service ni rabais taxe | CU33: =BE_REVENUS_TOTAUX_RES_ORG-(CU31+BE_AIDE_EXPLOITATION_RES_ORG) -> 0 | CV33: =BE_REVENUS_TOTAUX_RES_SHQ-(CV31+BE_AIDE_EXPLOITATION_RES_SHQ) -> 0 | CX33: Montant d'emprunt viabilité | DC33: Viabilité | DD33: =DD31/CU21 ->  | DE33: =DE31/CV21 -> 
B36: COÛT DE RÉALISATION TOTAL POUR SUBVENTION | AB36: =F_COUT_REALISATION_TOTAL_ORG-F_COUT_ADAPTATION_SPH_ORG-F_COUT_ADAPTATION_SAD_ORG -> 6950 | AG36: 16 | AH36: =F_COUT_REALISATION_TOTAL_SHQ-F_COUT_ADAPTATION_SPH_SHQ-F_COUT_ADAPTATION_SAD_SHQ -> 6950 | BB36: Volet I | CS36: Dépenses totales | CT36: A | CU36: =CU25+CU33 -> 0 | CV36: =CV25+CV33 -> 0 | CX36: Calcul subvention AOT
BB38: Volet II | CS38: Dépenses exploitation - Autres (non impactées) | CT38: B | CU38: =BE_REMB_RENTE_EMPHYTEOTIQUE_RES_ORG+BE_TAXE_FONCIERE_RES_ORG+BE_TAXE_SCOLAIRE_RES_ORG+BE_TAXE_SERVICES_RES_ORG+BE_TAXE_AMELIORATION_RES_ORG+BE_TAXE_ASSURANCE_RES_ORG+BE_ENERGIE_LOGEMENT_RES_ORG+BE_ENERGIE_COMMUN_RES_ORG+BE_ASCENCEUR_RES_ORG+BE_CONCIERGERIE_RES_ORG+BE_ENTRETIEN_RES_ORG+BE_DENEIGEMENT_RES_ORG+BE_VERIFICATION_RES_ORG+BE_FORMATION_RES_ORG+BE_COTISATION_RES_ORG+BE_RESERVE_REMPLACEMENT_IMMO_RES_ORG+BE_RESERVE_REMPLACEMENT_MO_RES_ORG+BE_RESERVE_GESTION_SUBVENTION_RES_ORG+C_MUNI_EXEMPTION_TAXE_FONCIERE_MONTANT_ANNUEL_ORG-BE_AIDE_EXPLOITATION_RES_ORG -> 1593.828415 | CV38: =BE_REMB_RENTE_EMPHYTEOTIQUE_RES_SHQ+BE_TAXE_FONCIERE_RES_SHQ+BE_TAXE_SCOLAIRE_RES_SHQ+BE_TAXE_SERVICES_RES_SHQ+BE_TAXE_AMELIORATION_RES_SHQ+BE_TAXE_ASSURANCE_RES_SHQ+BE_ENERGIE_LOGEMENT_RES_SHQ+BE_ENERGIE_COMMUN_RES_SHQ+BE_ASCENCEUR_RES_SHQ+BE_CONCIERGERIE_RES_SHQ+BE_ENTRETIEN_RES_SHQ+BE_DENEIGEMENT_RES_SHQ+BE_VERIFICATION_RES_SHQ+BE_FORMATION_RES_SHQ+BE_COTISATION_RES_SHQ+BE_RESERVE_REMPLACEMENT_IMMO_RES_SHQ+BE_RESERVE_REMPLACEMENT_MO_RES_SHQ+BE_RESERVE_GESTION_SUBVENTION_RES_SHQ+C_MUNI_EXEMPTION_TAXE_FONCIERE_MONTANT_ANNUEL_SHQ-BE_AIDE_EXPLOITATION_RES_SHQ -> 1593.828415 | CX38: Écart (C - D - Montant d'emprunt viabilité) | CY38: WW | CZ38: =(CU51-CU53)-F_AOT_MONTANT_EMPRUNT_VIABILITE_ORG -> 6950 | DA38: =(CV51-CV53)-F_AOT_MONTANT_EMPRUNT_VIABILITE_SHQ -> 6950
B39: Coût maximal de réalisation admissible pour fins de subvention | AB39: =IndicateurAjuste(F_SUBVENTIONS_COUT_REALISATION_MAX_I_ORG_AJ,F_SUBVENTIONS_COUT_REALISATION_MAX_II_ORG_AJ,F_SUBVENTIONS_COUT_REALISATION_MAX_III_REG_ORG_AJ,F_SUBVENTIONS_COUT_REALISATION_MAX_III_URG_ORG_AJ) ->  | AC39: =IF(AND(G_PROJET_SUBVENTION_PAMH,IP_VOLET_I_ET_II_SEULEMENT),0,IP_CRAS_ORG) -> 0 | AG39: 18 | AH39: =IndicateurAjuste(F_SUBVENTIONS_COUT_REALISATION_MAX_I_SHQ_AJ,F_SUBVENTIONS_COUT_REALISATION_MAX_II_SHQ_AJ,F_SUBVENTIONS_COUT_REALISATION_MAX_III_REG_SHQ_AJ,F_SUBVENTIONS_COUT_REALISATION_MAX_III_URG_SHQ_AJ) ->  | AI39: =IF(AND(G_PROJET_SUBVENTION_PAMH,IP_VOLET_I_ET_II_SEULEMENT),0,IP_CRAS_SHQ) -> 0 | BB39: Volet III Reg | CA39: =IF(AND(ISBLANK(F_SUBVENTIONS_COUT_REALISATION_MAX_I_ORG_AJ),ISBLANK(F_SUBVENTIONS_COUT_REALISATION_MAX_II_ORG_AJ),ISBLANK(F_SUBVENTIONS_COUT_REALISATION_MAX_III_REG_ORG_AJ),ISBLANK(F_SUBVENTIONS_COUT_REALISATION_MAX_III_URG_ORG_AJ)),TRUE,FALSE) -> TRUE | CB39: =IF(AND(ISBLANK(F_SUBVENTIONS_COUT_REALISATION_MAX_I_SHQ_AJ),ISBLANK(F_SUBVENTIONS_COUT_REALISATION_MAX_II_SHQ_AJ),ISBLANK(F_SUBVENTIONS_COUT_REALISATION_MAX_III_REG_SHQ_AJ),ISBLANK(F_SUBVENTIONS_COUT_REALISATION_MAX_III_URG_SHQ_AJ)),TRUE,FALSE) -> TRUE | CC39: =AND(G_PROJET_INTERV_MIXTES,OR(F_CALC_SUBV_REG_ELOI_ORG,F_CALC_SUBV_PETITE_MUN_ORG),(F_SUBVENTIONS_COUT_REALISATION_MAX_ORG<=F_SUBVENTIONS_COUT_REAL_TOTAL_ORG)) -> FALSE | CD39: =AND(G_PROJET_INTERV_MIXTES,OR(F_CALC_SUBV_REG_ELOI_SHQ,F_CALC_SUBV_PETITE_MUN_SHQ),(F_SUBVENTIONS_COUT_REALISATION_MAX_SHQ<=F_SUBVENTIONS_COUT_REAL_TOTAL_SHQ)) -> FALSE | CS39: Financement | CX39: Écart net (WW - E) | CY39: VV | CZ39: =CZ38 -> 6950 | DA39: =DA38 -> 6950 | DB39: =DA38-CV55 -> 6950
B41: Coût de réalisation admissible (SHQ) | AC41: =MIN(F_SUBVENTIONS_COUT_REALISATION_MAX_ORG,F_SUBVENTIONS_COUT_REAL_TOTAL_ORG) -> 0 | AG41: 20 | AI41: =MIN(F_SUBVENTIONS_COUT_REALISATION_MAX_SHQ,F_SUBVENTIONS_COUT_REAL_TOTAL_SHQ) -> 0 | BB41: Volet III Urg | CA41: =ISBLANK(F_SUBVENTIONS_COUT_REALISATION_MAX_III_URG_ORG_AJ) -> TRUE | CB41: =ISBLANK(F_SUBVENTIONS_COUT_REALISATION_MAX_III_URG_SHQ_AJ) -> TRUE | CS41: Coût de réalisation | CU41: =F_COUT_REALISATION_TOTAL_ORG -> 6950 | CV41: =F_COUT_REALISATION_TOTAL_SHQ -> 6950 | CX41: Subvention AOT - Vers. Compt. au ED (VV * G) | CZ41: =CZ39*CU90 -> 0 | DA41: =DA39*CV90 -> 0
B43: Subvention de base | AB43: =IndicateurAjuste(F_SUBVENTIONS_BASE_ORG_AJ) ->  | AC43: =Ajuster(F_SUBVENTIONS_BASE_ORG_AJ,IF(NOT(F_SUBVENTIONS_OBLIGE_ORG_AJ),IF(G_PROJET_SUBVENTION_PAMH,F_SUBVENTIONS_COUT_REALISATION_ADMISSIBLE_ORG,F_SUBVENTION_BASE_CALCUL_ORG),0)) -> 0 | AG43: 23 | AH43: =IndicateurAjuste(F_SUBVENTIONS_BASE_SHQ_AJ) ->  | AI43: =Ajuster(F_SUBVENTIONS_BASE_SHQ_AJ,IF(NOT(F_SUBVENTIONS_OBLIGE_SHQ_AJ),IF(G_PROJET_SUBVENTION_PAMH,F_SUBVENTIONS_COUT_REALISATION_ADMISSIBLE_SHQ,F_SUBVENTION_BASE_CALCUL_SHQ),0)) -> 0 | BE43: Unités AJ, CN ou TR | CA43: FALSE | CB43: FALSE | CN43: Subvention de base - Volet 1 | CO43: =IF(ISBLANK(F_SUBVENTIONS_COUT_REALISATION_MAX_I_ORG_AJ),SubventionBaseParVolet(G_PROGRAMME,G_PROJET_TYPE_INTERVENTION,1,G_PROJET_TERRITOIRE,G_PROGRAMME_LAQ,G_PROJET_SUBVENTION_PAMH,0,IP_TYPOLOGIE_CH_1,IP_TYPOLOGIE_ST_1,IP_TYPOLOGIE_1C_1,IP_TYPOLOGIE_2C_1,IP_TYPOLOGIE_3C_1,IP_TYPOLOGIE_4C_1,IP_TYPOLOGIE_5C_1,"ORG",F_TAUX_MAJ_CMA_ORG),F_SUBVENTIONS_COUT_REALISATION_MAX_I_ORG_AJ*IF(G_PROGRAMME_LAQ,PARM_TAUX_SUBVENTION_BASE_LAQ,PARM_TAUX_SUBVENTION_BASE_ACL)) ->  | CP43: =IF(ISBLANK(F_SUBVENTIONS_COUT_REALISATION_MAX_I_SHQ_AJ),SubventionBaseParVolet(G_PROGRAMME,G_PROJET_TYPE_INTERVENTION,1,G_PROJET_TERRITOIRE,G_PROGRAMME_LAQ,G_PROJET_SUBVENTION_PAMH,0,IP_TYPOLOGIE_CH_1,IP_TYPOLOGIE_ST_1,IP_TYPOLOGIE_1C_1,IP_TYPOLOGIE_2C_1,IP_TYPOLOGIE_3C_1,IP_TYPOLOGIE_4C_1,IP_TYPOLOGIE_5C_1,"SHQ",F_TAUX_MAJ_CMA_SHQ),F_SUBVENTIONS_COUT_REALISATION_MAX_I_SHQ_AJ*IF(G_PROGRAMME_LAQ,PARM_TAUX_SUBVENTION_BASE_LAQ,PARM_TAUX_SUBVENTION_BASE_ACL)) ->  | CS43: Subventions totales autres (non impactées) | CU43: =F_SUBVENTIONS_TOTALE_ORG-F_SUBVENTION_AOT_ORG -> 0 | CV43: =F_SUBVENTIONS_TOTALE_SHQ-F_SUBVENTION_AOT_SHQ -> 0 | CX43: Contrepartie AOT-Org | CZ43: =CZ39*CU93 -> 6950 | DA43: =DA39*CV93 -> 6950
B45: Subvention - Régions éloignées | AB45: =IndicateurAjuste(F_SUBVENTIONS_REGION_ELOIGNEE_ORG_AJ) ->  | AC45: =Ajuster(F_SUBVENTIONS_REGION_ELOIGNEE_ORG_AJ,IF(NOT(F_SUBVENTIONS_OBLIGE_ORG_AJ),SubventionRegionEloignee(G_PROJET_TYPE_INTERVENTION,G_PROJET_REGION,F_SUBVENTIONS_COUT_REAL_TOTAL_ORG,F_SUBVENTIONS_COUT_REALISATION_MAX_ORG,IP_TOT_SUBV_COUT_SUPP_ADM_EXE_MAX_ORG),0)) -> 0 | AG45: 25 | AH45: =IndicateurAjuste(F_SUBVENTIONS_REGION_ELOIGNEE_SHQ_AJ) ->  | AI45: =Ajuster(F_SUBVENTIONS_REGION_ELOIGNEE_SHQ_AJ,IF(NOT(F_SUBVENTIONS_OBLIGE_SHQ_AJ),SubventionRegionEloignee(G_PROJET_TYPE_INTERVENTION,G_PROJET_REGION,F_SUBVENTIONS_COUT_REAL_TOTAL_SHQ,F_SUBVENTIONS_COUT_REALISATION_MAX_SHQ,IP_TOT_SUBV_COUT_SUPP_ADM_EXE_MAX_SHQ),0)) -> 0 | BF45: 96 | CA45: =IF(AND(EstRegionEloignee(G_PROJET_REGION),OR(F_SUBV_REG_ACCPT_ORG=TRUE,LEFT(G_PROJET_TYPE_INTERVENTION,2)="CN",LEFT(G_PROJET_TYPE_INTERVENTION,2)="TR",LEFT(G_PROJET_TYPE_INTERVENTION,2)="AJ")),TRUE,FALSE) -> FALSE | CB45: =IF(AND(EstRegionEloignee(G_PROJET_REGION),OR(F_SUBV_REG_ACCPT_SHQ=TRUE,LEFT(G_PROJET_TYPE_INTERVENTION,2)="CN",LEFT(G_PROJET_TYPE_INTERVENTION,2)="TR",LEFT(G_PROJET_TYPE_INTERVENTION,2)="AJ")),TRUE,FALSE) -> FALSE | CN45: Subvention de base - Volet 2 | CO45: =IF(ISBLANK(F_SUBVENTIONS_COUT_REALISATION_MAX_II_ORG_AJ),SubventionBaseParVolet(G_PROGRAMME,G_PROJET_TYPE_INTERVENTION,2,G_PROJET_TERRITOIRE,G_PROGRAMME_LAQ,G_PROJET_SUBVENTION_PAMH,0,IP_TYPOLOGIE_CH_2,IP_TYPOLOGIE_ST_2,IP_TYPOLOGIE_1C_2,IP_TYPOLOGIE_2C_2,IP_TYPOLOGIE_3C_2,IP_TYPOLOGIE_4C_2,IP_TYPOLOGIE_5C_2,"ORG",F_TAUX_MAJ_CMA_ORG),F_SUBVENTIONS_COUT_REALISATION_MAX_II_ORG_AJ*IF(G_PROGRAMME_LAQ,PARM_TAUX_SUBVENTION_BASE_LAQ,PARM_TAUX_SUBVENTION_BASE_ACL)) ->  | CP45: =IF(ISBLANK(F_SUBVENTIONS_COUT_REALISATION_MAX_II_SHQ_AJ),SubventionBaseParVolet(G_PROGRAMME,G_PROJET_TYPE_INTERVENTION,2,G_PROJET_TERRITOIRE,G_PROGRAMME_LAQ,G_PROJET_SUBVENTION_PAMH,0,IP_TYPOLOGIE_CH_2,IP_TYPOLOGIE_ST_2,IP_TYPOLOGIE_1C_2,IP_TYPOLOGIE_2C_2,IP_TYPOLOGIE_3C_2,IP_TYPOLOGIE_4C_2,IP_TYPOLOGIE_5C_2,"SHQ",F_TAUX_MAJ_CMA_SHQ),F_SUBVENTIONS_COUT_REALISATION_MAX_II_SHQ_AJ*IF(G_PROGRAMME_LAQ,PARM_TAUX_SUBVENTION_BASE_LAQ,PARM_TAUX_SUBVENTION_BASE_ACL)) ->  | CS45: Coût de réalisation après subvention | CU45: =CU41-CU43 -> 6950 | CV45: =CV41-CV43 -> 6950
B47: Subvention - Municipalité de moins de 2500 habitants | AB47: =IndicateurAjuste(F_SUBVENTIONS_PETITE_MUN_ORG_AJ) ->  | AC47: =Ajuster(F_SUBVENTIONS_PETITE_MUN_ORG_AJ,IF(NOT(F_SUBVENTIONS_OBLIGE_ORG_AJ),SubventionMunMoins2500(G_PROJET_TYPE_INTERVENTION,G_PROJET_PETITE_MUN,G_PROJET_REGION,F_SUBVENTIONS_COUT_REAL_TOTAL_ORG,F_SUBVENTIONS_COUT_REALISATION_MAX_ORG,IP_TOT_SUBV_COUT_SUPP_ADM_EXE_MAX_ORG),0)) -> 0 | AG47: 99 | AH47: =IndicateurAjuste(F_SUBVENTIONS_PETITE_MUN_SHQ_AJ) ->  | AI47: =Ajuster(F_SUBVENTIONS_PETITE_MUN_SHQ_AJ,IF(NOT(F_SUBVENTIONS_OBLIGE_SHQ_AJ),SubventionMunMoins2500(G_PROJET_TYPE_INTERVENTION,G_PROJET_PETITE_MUN,G_PROJET_REGION,F_SUBVENTIONS_COUT_REAL_TOTAL_SHQ,F_SUBVENTIONS_COUT_REALISATION_MAX_SHQ,IP_TOT_SUBV_COUT_SUPP_ADM_EXE_MAX_SHQ),0)) -> 0 | CA47: =IF(AND(G_PROJET_PETITE_MUN,OR(F_SUBV_REG_ACCPT_ORG=TRUE,LEFT(G_PROJET_TYPE_INTERVENTION,2)="CN",LEFT(G_PROJET_TYPE_INTERVENTION,2)="TR",LEFT(G_PROJET_TYPE_INTERVENTION,2)="AJ")),TRUE,FALSE) -> FALSE | CB47: =IF(AND(G_PROJET_PETITE_MUN,OR(F_SUBV_REG_ACCPT_SHQ=TRUE,LEFT(G_PROJET_TYPE_INTERVENTION,2)="CN",LEFT(G_PROJET_TYPE_INTERVENTION,2)="TR",LEFT(G_PROJET_TYPE_INTERVENTION,2)="AJ")),TRUE,FALSE) -> FALSE | CN47: Subvention de base - Volet 3 | CO47: =IF(AND(ISBLANK(F_SUBVENTIONS_COUT_REALISATION_MAX_III_REG_ORG_AJ),ISBLANK(F_SUBVENTIONS_COUT_REALISATION_MAX_III_URG_ORG_AJ)),SubventionBaseParVolet(G_PROGRAMME,G_PROJET_TYPE_INTERVENTION,3,G_PROJET_TERRITOIRE,G_PROGRAMME_LAQ,G_PROJET_SUBVENTION_PAMH,IP_NBRE_CHAMBRE_URGENCE,IP_TYPOLOGIE_CH_3,IP_TYPOLOGIE_ST_3,IP_TYPOLOGIE_1C_3,IP_TYPOLOGIE_2C_3,IP_TYPOLOGIE_3C_3,IP_TYPOLOGIE_4C_3,IP_TYPOLOGIE_5C_3,"ORG",F_TAUX_MAJ_CMA_ORG),(F_SUBVENTIONS_COUT_REALISATION_MAX_III_REG_ORG_AJ*IF(G_PROGRAMME_LAQ,PARM_TAUX_SUBVENTION_BASE_LAQ,PARM_TAUX_SUBVENTION_BASE_ACL))+(F_SUBVENTIONS_COUT_REALISATION_MAX_III_URG_ORG_AJ*PARM_TAUX_SUBVENTION_BASE_URGENCE)) ->  | CP47: =IF(AND(ISBLANK(F_SUBVENTIONS_COUT_REALISATION_MAX_III_REG_SHQ_AJ),ISBLANK(F_SUBVENTIONS_COUT_REALISATION_MAX_III_URG_SHQ_AJ)),SubventionBaseParVolet(G_PROGRAMME,G_PROJET_TYPE_INTERVENTION,3,G_PROJET_TERRITOIRE,G_PROGRAMME_LAQ,G_PROJET_SUBVENTION_PAMH,IP_NBRE_CHAMBRE_URGENCE,IP_TYPOLOGIE_CH_3,IP_TYPOLOGIE_ST_3,IP_TYPOLOGIE_1C_3,IP_TYPOLOGIE_2C_3,IP_TYPOLOGIE_3C_3,IP_TYPOLOGIE_4C_3,IP_TYPOLOGIE_5C_3,"SHQ",F_TAUX_MAJ_CMA_SHQ),(F_SUBVENTIONS_COUT_REALISATION_MAX_III_REG_SHQ_AJ*IF(G_PROGRAMME_LAQ,PARM_TAUX_SUBVENTION_BASE_LAQ,PARM_TAUX_SUBVENTION_BASE_ACL))+(F_SUBVENTIONS_COUT_REALISATION_MAX_III_URG_SHQ_AJ*PARM_TAUX_SUBVENTION_BASE_URGENCE)) ->  | CS47: ="Contribution " & CU88*100 & "%" -> Contribution 15% | CU47: =F_SUBVENTIONS_COUT_REALISATION_ADMISSIBLE_ORG*CU88 -> 0 | CV47: =F_SUBVENTIONS_COUT_REALISATION_ADMISSIBLE_SHQ*CV88 -> 0 | CX47: Cont. Min (15%)-Équités, corvées, résiduel emphytéose | CZ47: =CU47-CU55 -> 0 | DA47: =CV47-CV55 -> 0
B49: Subvention - Aide à l'occupation du territoire (AOT) | AB49: =IndicateurAjuste(F_SUBVENTION_AOT_ORG_AJ) ->  | AC49: =Ajuster(F_SUBVENTION_AOT_ORG_AJ,F_SUBVENTION_AOT_MNT_ORG) -> 0 | AG49: 105 | AH49: =IndicateurAjuste(F_SUBVENTION_AOT_SHQ_AJ) ->  | AI49: =Ajuster(F_SUBVENTION_AOT_SHQ_AJ,F_SUBVENTION_AOT_MNT_SHQ) -> 0 | CS49: ="Contribution " & CU98 *100 & "%" -> Contribution 20% | CU49: =F_SUBVENTIONS_COUT_REALISATION_ADMISSIBLE_ORG*CU98 -> 0 | CV49: =F_SUBVENTIONS_COUT_REALISATION_ADMISSIBLE_SHQ*CV98 -> 0 | CX49: ="Balance " & CV88*100 & " %+ Contrepartie AOT-Org" -> Balance 15 %+ Contrepartie AOT-Org | CZ49: =CZ43+CZ47 -> 6950 | DA49: =DA43+DA47 -> 6950
B51: Subvention Projet novateur | M51: Réf : | W51: 101 | AG51: 102 | CN51: Subvention de base - Total | CO51: =SUM($CO$47,$CO$45,$CO$43) *IP_RATIO_CR_CMR_ORG ->  | CP51: =SUM($CP$47,$CP$45,$CP$43) *IP_RATIO_CR_CMR_SHQ ->  | CS51: ="Coût de réalisation après subvention et contribution " & CU88*100 & "%" -> Coût de réalisation après subvention et contribution 15% | CT51: C | CU51: =CU45-CU47 -> 6950 | CV51: =CV45-CV47 -> 6950 | CX51: Manque / Excédent (-) | CZ51: =CZ49-F_SUBVENTIONS_APPORT_TOTAL_ORG -> 6950 | DA51: =DA49-F_SUBVENTIONS_APPORT_TOTAL_SHQ -> 6950
B53: Subvention (100%) - Adaptabilité du logement (SUAL) | AB53: =IndicateurAjuste(F_SUBVENTIONS_SPH_ORG_AJ) ->  | AC53: =Ajuster(F_SUBVENTIONS_SPH_ORG_AJ,F_COUT_ADAPTATION_SPH_ORG) -> 0 | AG53: 27 | AH53: =IndicateurAjuste(F_SUBVENTIONS_SPH_SHQ_AJ) ->  | AI53: =Ajuster(F_SUBVENTIONS_SPH_SHQ_AJ,F_COUT_ADAPTATION_SPH_SHQ) -> 0 | AN53: Prêt de démarrage | CS53: Aide complémentaire | CT53: D | CU53: =F_SUBVENTIONS_TOTALE_PRQ_ORG -> 0 | CV53: =F_SUBVENTIONS_TOTALE_PRQ_SHQ -> 0
B55: Subvention (100%) - Adaptation de domicile (SAD) | AB55: =IndicateurAjuste(F_SUBVENTIONS_SAD_ORG_AJ) ->  | AC55: =Ajuster(F_SUBVENTIONS_SAD_ORG_AJ,F_COUT_ADAPTATION_SAD_ORG) -> 0 | AG55: 29 | AH55: =IndicateurAjuste(F_SUBVENTIONS_SAD_SHQ_AJ) ->  | AI55: =Ajuster(F_SUBVENTIONS_SAD_SHQ_AJ,F_COUT_ADAPTATION_SAD_SHQ) -> 0 | AO55: =Ajuster(F_SUBVENTIONS_PRET_DEMARRAGE_AJ,CalculerPretDemarrage(G_PROGRAMME, IP_NBRE_UNITES)) -> 56000 | AT55: 31 | CS55: Équités, corvées, résiduel emphytéose | CT55: E | CU55: =F_SUBVENTIONS_VALEUR_MARCHANDE_ORG+F_SUBVENTIONS_VALEUR_CORVEE_ORG+F_SUBVENTIONS_EMPHYTEOSE_ORG -> 0 | CV55: =F_SUBVENTIONS_VALEUR_MARCHANDE_SHQ+F_SUBVENTIONS_VALEUR_CORVEE_SHQ+F_SUBVENTIONS_EMPHYTEOSE_SHQ -> 0
B57: Subvention Comité aviseur | M57: Réf : | W57: 103 | AB57: =F_SUBVENTION_COMITE_AVISEUR_SHQ -> 0 | AG57: 104 | CS57: Subvention calculée AOT exclus Vers. Compt au ED | CT57: F | CU57: =F_SUBVENTION_AOT_ORG -> 0 | CV57: =F_SUBVENTION_AOT_SHQ -> 0 | CX57: SUBVENTION AOT | CZ57: 0 | DA57: 0
B59: Subvention Stratégie Aluminium | M59: Réf : | W59: 149 | AG59: 150
B61: Subv. Plan inclusion économique | M61: Réf : | W61: 152 | AB61: =IndicateurAjuste(F_SUBVENTION_INCLUSION_ECONO_ORG_AJ) ->  | AC61: =Ajuster(F_SUBVENTION_INCLUSION_ECONO_ORG_AJ,IF(OR(PARM_CODE_MANDATAIRE="M06100",AND(Général!CE18<>"AJ",Général!CE18<>"CN",Général!CE18<>"TR")),0,F_SUBVENTIONS_BASE_ORG*0.0917)) -> 0 | AG61: 153 | AH61: =IndicateurAjuste(F_SUBVENTION_INCLUSION_ECONO_SHQ_AJ) ->  | AI61: =Ajuster(F_SUBVENTION_INCLUSION_ECONO_SHQ_AJ,IF(OR(PARM_CODE_MANDATAIRE="M06100",AND(Général!CE18<>"AJ",Général!CE18<>"CN",Général!CE18<>"TR")),0,F_SUBVENTIONS_BASE_SHQ*0.0917)) -> 0
B63: Subvention - Volet I | M63: Réf : | W63: 154 | AB63: =IndicateurAjuste(F_SUBVENTION_TYP_VOLET_1_ORG_AJ) ->  | AC63: =Ajuster(F_SUBVENTION_TYP_VOLET_1_ORG_AJ, IF( AND(G_PROJET_TERRITOIRE<>"Territoire de Montréal", F_RATIO_E_ORG>=20%, F_SUBVENTIONS_COUT_REALISATION_MAX_ORG<=F_SUBVENTIONS_COUT_REAL_TOTAL_ORG), IP_MAJORATION_TYP, 0) ) -> 0 | AG63: 155 | AH63: =IndicateurAjuste(F_SUBVENTION_TYP_VOLET_1_SHQ_AJ) ->  | AI63: =Ajuster(F_SUBVENTION_TYP_VOLET_1_SHQ_AJ, IF( AND(G_PROJET_TERRITOIRE<>"Territoire de Montréal", F_RATIO_E_SHQ>=20%, F_SUBVENTIONS_COUT_REALISATION_MAX_SHQ<=F_SUBVENTIONS_COUT_REAL_TOTAL_SHQ), IP_MAJORATION_TYP, 0) ) -> 0 | AN63: Avance prêt de démarrage
B65: Subvention - Loyers médians | M65: Réf : | W65: 156 | AB65: =IndicateurAjuste(F_SUBVENTION_LOYERS_MEDIAN_ORG_AJ) ->  | AC65: =Ajuster(F_SUBVENTION_LOYERS_MEDIAN_ORG_AJ, IF(F_RATIO_E_ORG>=20%,T_LMM_MAJORATION, 0) ) -> 0 | AG65: 157 | AH65: =IndicateurAjuste(F_SUBVENTION_LOYERS_MEDIAN_SHQ_AJ) ->  | AI65: =Ajuster(F_SUBVENTION_LOYERS_MEDIAN_SHQ_AJ, IF(F_RATIO_E_SHQ>=20%,T_LMM_MAJORATION, 0) ) -> 0 | AN65: =IndicateurAjuste(F_SUBVENTIONS_AVANCE_PRET_DEMARRAGE_AJ) ->  | AO65: =Ajuster(F_SUBVENTIONS_AVANCE_PRET_DEMARRAGE_AJ,IF(21200+(830*(IP_NBRE_UNITES_I+IP_NBRE_UNITES_II+IP_NBRE_UNITES_III))>75000,75000,21200+(830*(IP_NBRE_UNITES_I+IP_NBRE_UNITES_II+IP_NBRE_UNITES_III)))) -> 21200 | AT65: =AG65+1 -> 158
B67: Subvention - Patrimoine Religieux | M67: Réf : | W67: 158 | AG67: 159
B69: Subvention - Projet Démonstration | M69: Réf : | W69: 160 | AG69: 161
B72: SUBVENTION TOTALE: | AB72: =F_SUBVENTIONS_BASE_ORG+F_SUBVENTIONS_REGION_ELOIGNEE_ORG+F_SUBVENTIONS_PETITE_MUN_ORG+F_SUBVENTION_AOT_ORG+F_SUBVENTION_PROJET_NOVATEUR_ORG+F_SUBVENTIONS_SPH_ORG+F_SUBVENTIONS_SAD_ORG+F_SUBVENTION_COMITE_AVISEUR_ORG+F_SUBVENTION_STRATEGIE_ALUMINIUM_ORG+F_SUBVENTION_INCLUSION_ECONO_ORG+F_SUBVENTION_TYP_VOLET_1_ORG+F_SUBVENTION_LOYERS_MEDIAN_ORG+F_SUBVENTION_PATRIMOINE_RELIGIEUX_ORG+F_SUBVENTION_PROG_DEMO_ORG -> 0 | AG72: 31 | AH72: =F_SUBVENTIONS_BASE_SHQ+F_SUBVENTIONS_REGION_ELOIGNEE_SHQ+F_SUBVENTIONS_PETITE_MUN_SHQ+F_SUBVENTION_AOT_SHQ+F_SUBVENTION_PROJET_NOVATEUR_SHQ+F_SUBVENTIONS_SPH_SHQ+F_SUBVENTIONS_SAD_SHQ+F_SUBVENTION_COMITE_AVISEUR_SHQ+F_SUBVENTION_STRATEGIE_ALUMINIUM_SHQ+F_SUBVENTION_INCLUSION_ECONO_SHQ+F_SUBVENTION_TYP_VOLET_1_SHQ+F_SUBVENTION_LOYERS_MEDIAN_SHQ+F_SUBVENTION_PATRIMOINE_RELIGIEUX_SHQ+F_SUBVENTION_PROG_DEMO_SHQ -> 0 | CS72: ="Coût de réalisation après subvention sans contribution " & CU98*100 & "%" -> Coût de réalisation après subvention sans contribution 20% | CU72: =CU45-CU49 -> 6950 | CV72: =CV45-CV49 -> 6950
B80: APPORTS EN CAPITAL - RÉALISATION | AN80: Ratio : C. Milieu | CS80: Pourcentages | CX80: ="Paramètre: contribution > " & CU98*100 & "%" -> Paramètre: contribution > 20%
C82: Contributions du milieu - Contributions monétaires uniquement | AN82: Réel : | AP82: =C_MONTANT_TOTAL_SHQ -> 0 | AT82: 45 | CS82: Pourcentage administration | CU82: 0.05 | CV82: 0.05 | CX82: Montant emprunt | CZ82: =CU72 -> 6950 | DA82: =CV72 -> 6950
D84: Organisme | AB84: =IndicateurAjuste(F_SUBVENTIONS_APPORT_ORGANISME_ORG_AJ) ->  | AC84: =Ajuster(F_SUBVENTIONS_APPORT_ORGANISME_ORG_AJ,C_ORG_MONETAIRE_ORG) -> 0 | AG84: 37 | AH84: =IndicateurAjuste(F_SUBVENTIONS_APPORT_ORGANISME_SHQ_AJ) ->  | AI84: =Ajuster(F_SUBVENTIONS_APPORT_ORGANISME_SHQ_AJ,C_ORG_MONETAIRE_SHQ) -> 0 | AN84: Min : | AP84: =C_CONTRIBUTION_MINIMUM_SHQ -> 0 | AT84: 45a | CS84: Pourcentage 1 VD | CU84: 0.04 | CV84: 0.04 | CX84: Remboursement annuel | CZ84: =12*PMT(CU8/12,CU14,-CZ82,,0) -> 198.5714286 | DA84: =12*PMT(CV8/12,CV14,-DA82,,0) -> 198.5714286
D86: Municipalité | AB86: =IndicateurAjuste(F_SUBVENTIONS_APPORT_MUNICIPALITE_ORG_AJ) ->  | AC86: =Ajuster(F_SUBVENTIONS_APPORT_MUNICIPALITE_ORG_AJ,C_MUNI_MONETAIRE_ORG) -> 0 | AG86: 39 | AH86: =IndicateurAjuste(F_SUBVENTIONS_APPORT_MUNICIPALITE_SHQ_AJ) ->  | AI86: =Ajuster(F_SUBVENTIONS_APPORT_MUNICIPALITE_SHQ_AJ,C_MUNI_MONETAIRE_SHQ) -> 0 | AN86: O: | AO86: =Ajuster(F_RATIO_E_ORG_AJ,IF( NOT(F_SUBVENTIONS_OBLIGE_ORG_AJ), IF(F_SUBVENTIONS_COUT_REALISATION_ADMISSIBLE_ORG=0,0,ROUND(C_MONTANT_TOTAL_ORG/(F_SUBVENTIONS_COUT_REALISATION_ADMISSIBLE_ORG),4)),0)) -> 0 | AQ86: S: | AR86: =Ajuster(F_RATIO_E_SHQ_AJ,IF( NOT(F_SUBVENTIONS_OBLIGE_SHQ_AJ), IF(F_SUBVENTIONS_COUT_REALISATION_ADMISSIBLE_SHQ=0,0,ROUND(C_MONTANT_TOTAL_SHQ/(F_SUBVENTIONS_COUT_REALISATION_ADMISSIBLE_SHQ),4)),0)) -> 0 | AT86: 48 | CS86: Pourcentage 2 VD | CU86: 0.8 | CV86: 0.8 | CX86: a | CZ86: =PMT(CU8/12,CU14,-CZ82,,0)*12 -> 198.5714286 | DA86: =PMT(CV8/12,CV14,-DA82,,0)*12 -> 198.5714286
D88: Public | AB88: =IndicateurAjuste(F_SUBVENTIONS_APPORT_PUBLIC_ORG_AJ) ->  | AC88: =Ajuster(F_SUBVENTIONS_APPORT_PUBLIC_ORG_AJ,C_PU_TOTAL_MONETAIRE_ORG) -> 0 | AG88: 41 | AH88: =IndicateurAjuste(F_SUBVENTIONS_APPORT_PUBLIC_SHQ_AJ) ->  | AI88: =Ajuster(F_SUBVENTIONS_APPORT_PUBLIC_SHQ_AJ,C_PU_TOTAL_MONETAIRE_SHQ) -> 0 | AN88: O: | AQ88: S: | CS88: Pourcentage Contribution | CU88: 0.15 | CV88: 0.15 | CX88: b | CZ88: =PMT(CU10/12,CU14,-CZ82,,0)*12 -> 275.9187702 | DA88: =PMT(CV10/12,CV14,-DA82,,0)*12 -> 275.9187702
D90: Privé | AB90: =IndicateurAjuste(F_SUBVENTIONS_APPORT_PRIVE_ORG_AJ) ->  | AC90: =Ajuster(F_SUBVENTIONS_APPORT_PRIVE_ORG_AJ,C_PR_TOTAL_MONETAIRE_ORG) -> 0 | AG90: 43 | AH90: =IndicateurAjuste(F_SUBVENTIONS_APPORT_PRIVE_SHQ_AJ) ->  | AI90: =Ajuster(F_SUBVENTIONS_APPORT_PRIVE_SHQ_AJ,C_PR_TOTAL_MONETAIRE_SHQ) -> 0 | AN90: Ratio : C. Milieu initial | CS90: Pourcentage AOT | CT90: G | CU90: =IF(OR($CO$19,AND($CO$23,$CO$21)),0.75,IF($CO$23,0.5,0)) -> 0 | CV90: =IF(OR($CO$19,AND($CO$23,$CO$21)),0.75,IF($CO$23,0.5,0)) -> 0 | CX90: Réserve capitalisée de gestion | CZ90: =IF(CU16<5,CZ82*0.015,0) -> 0 | DA90: =IF(CV16<5,DA82*0.015,0) -> 0
B93: TOTAL DES CONTRIBUTIONS DU MILIEU - MONÉTAIRES | AB93: =F_SUBVENTIONS_APPORT_ORGANISME_ORG+F_SUBVENTIONS_APPORT_MUNICIPALITE_ORG+F_SUBVENTIONS_APPORT_PUBLIC_ORG+F_SUBVENTIONS_APPORT_PRIVE_ORG -> 0 | AG93: 46 | AH93: =F_SUBVENTIONS_APPORT_ORGANISME_SHQ+F_SUBVENTIONS_APPORT_MUNICIPALITE_SHQ+F_SUBVENTIONS_APPORT_PUBLIC_SHQ+F_SUBVENTIONS_APPORT_PRIVE_SHQ -> 0 | AN93: O: | AO93: =CA93 -> 0 | AQ93: S: | AR93: =CB93 -> 0 | AT93: 109 | CA93: 0 | CS93: Pourcentage_Complément AOT-Org | CT93: H | CU93: =1-CU90 -> 1 | CV93: =1-CV90 -> 1 | CX93: Réserve de gestion (hypothèque) | CZ93: =MAX(((CZ88-CZ86)-(CZ90/((CU16*2)+1)))/((CU16*2)+1)) -> 7.03157651 | DA93: =MAX(((DA88-DA86)-(DA90/((CV16*2)+1)))/((CV16*2)+1)) -> 7.03157651
B96: Subvention PRQ - Monétaire (autre que Conservation du Patrimoine bâti) | AB96: =IndicateurAjuste(F_SUBVENTIONS_TOTALE_PRQ_ORG_AJ) ->  | AC96: =Ajuster(F_SUBVENTIONS_TOTALE_PRQ_ORG_AJ,C_AIDE_CONTRIBUTION_MONTANT_ORG) -> 0 | AG96: 49 | AH96: =IndicateurAjuste(F_SUBVENTIONS_TOTALE_PRQ_SHQ_AJ) ->  | AI96: =Ajuster(F_SUBVENTIONS_TOTALE_PRQ_SHQ_AJ,C_AIDE_CONTRIBUTION_MONTANT_SHQ) -> 0 | AN96: Majoration CMA | CS96: Pourcentage_Complément AOT-Org | CU96: =CU93 -> 1 | CV96: =CV93 -> 1 | CX96: Administration | CZ96: =Ajuster(BE_ADMINISTRATION_RES_ORG_AJ,CalculerAdministration(IF(ISERR(CZ101),0,CZ101), CU33, IP_NBRE_UNITES, G_ORGANISME_TYPE)) -> 98.8699 | DA96: =Ajuster(BE_ADMINISTRATION_RES_SHQ_AJ,CalculerAdministration(IF(ISERR(DA101),0,DA101), CV33, IP_NBRE_UNITES, G_ORGANISME_TYPE)) -> 98.8699
B98: Emprunt - Aide à l'exploitation capitalisée (Rabais de taxes) | AB98: =IndicateurAjuste(F_SUBVENTIONS_EMPRUNT_AEC_ORG_AJ) ->  | AC98: =Ajuster(F_SUBVENTIONS_EMPRUNT_AEC_ORG_AJ,F_EMPRUNT_MONTANT_PRET_ORG) -> 0 | AG98: 51 | AH98: =IndicateurAjuste(F_SUBVENTIONS_EMPRUNT_AEC_SHQ_AJ) ->  | AI98: =Ajuster(F_SUBVENTIONS_EMPRUNT_AEC_SHQ_AJ,F_EMPRUNT_MONTANT_PRET_SHQ) -> 0 | AN98: O: | AO98: =Ajuster(F_TAUX_MAJ_CMA_ORG_AJ,IF(G_MAJ_CMA,F_TAUX_MAJ_CMA_CALC_ORG,0)) -> 0 | AQ98: S: | AR98: =Ajuster(F_TAUX_MAJ_CMA_SHQ_AJ,IF(G_MAJ_CMA,F_TAUX_MAJ_CMA_CALC_SHQ,0)) -> 0 | AT98: 110 | CA98: 0 | CS98: Pourcentage maximal Contribution | CU98: 0.2 | CV98: 0.2 | CX98: Vacances et mauvaises créances | CZ98: =Ajuster(BE_VACANCES_RES_ORG_AJ,CalculerMauvaisesCreances(IF(ISERR(CZ103),0,CZ103),IP_LOYERS_MEDIAN_SS_SERVC_ORG)) -> 79.0959 | DA98: =Ajuster(BE_VACANCES_RES_SHQ_AJ,CalculerMauvaisesCreances(IF(ISERR(DA103),0,DA103),IP_LOYERS_MEDIAN_SS_SERVC_SHQ)) -> 79.0959
B101: TOTAL DES APPORTS EN CAPITAL | AB101: =F_SUBVENTIONS_APPORT_TOTAL_ORG+F_SUBVENTIONS_TOTALE_PRQ_ORG+F_SUBVENTIONS_EMPRUNT_AEC_ORG -> 0 | AG101: 53 | AH101: =F_SUBVENTIONS_APPORT_TOTAL_SHQ+F_SUBVENTIONS_TOTALE_PRQ_SHQ+F_SUBVENTIONS_EMPRUNT_AEC_SHQ -> 0 | AN101: O: | AQ101: S: | CX101: Dépenses totales | CZ101: =CU38+CZ84+CZ93+CZ96+CZ98 -> 1977.39722 | DA101: =CV38+DA84+DA93+DA96+DA98 -> 1977.39722
CX103: Loyers économiques annuels | CZ103: =CZ101-CU33 -> 1977.39722 | DA103: =DA101-CV33 -> 1977.39722
B104: Dépenses totales de réalisation | AB104: =IndicateurAjuste(F_DEPENSES_REALISATION_TOTALES_ORG_AJ) ->  | AC104: =Ajuster(F_DEPENSES_REALISATION_TOTALES_ORG_AJ,BR_DEPENSES_TOTALES_TOT_ORG) -> 6950.2538 | AG104: 54 | AH104: =IndicateurAjuste(F_DEPENSES_REALISATION_TOTALES_SHQ_AJ) ->  | AI104: =Ajuster(F_DEPENSES_REALISATION_TOTALES_SHQ_AJ,BR_DEPENSES_TOTALES_TOT_SHQ) -> 6950.2538
B106: Versement comptant à l'engagement définitif | AG106: 55 | CX106: Loyer économique sans service | CZ106: =CZ103+R_19_ORG-R_21_ORG-R_23_ORG-R_25_ORG -> 1977.39722 | DA106: =DA103+R_19_SHQ-R_21_SHQ-R_23_SHQ-R_25_SHQ -> 1977.39722
B109: MONTANT GLOBAL DU FINANCEMENT INTÉRIMAIRE | AB109: =F_DEPENSES_REALISATION_TOTALES_ORG-F_SUBVENTIONS_COMPTANT_ORG -> 6950.2538 | AG109: 57 | AH109: =F_DEPENSES_REALISATION_TOTALES_SHQ-F_SUBVENTIONS_COMPTANT_SHQ -> 6950.2538 | CX109: ="Ratio viabilité " & CU98 *100 & "%" -> Ratio viabilité 20% | CZ109: =CZ106/CU21 ->  | DA109: =DA106/CV21 -> 
CN111: CALCUL DE LA CONTRIBUTION FQHC | CX111: Dernier ratio viabilité utilisé pour décision
B113: HYPOTHÈQUE | AX113: Ajustements forcés | CO113: ORG | CP113: SHQ
C114: TERMES | AB114: Organisme | AH114: SHQ | AY114: Organisme | BB114: SHQ | CN114: Taux du prêt hypothécaire pour le 1er terme | CO114: =G_TAUX_LT_ORG -> 0 | CP114: =G_TAUX_LT_SHQ -> 0 | CQ114: A
D116: Taux d'intérêt pour le financement à long terme | AC116: =G_TAUX_LT_ORG -> 0 | AG116: 60 | AI116: =G_TAUX_LT_SHQ -> 0 | AN116: Ratio C : Prêt / JVM | CN116: Taux référence FQHC - obligations 5 ans | CO116: =G_TAUX_OBLIGATION_5_ANS_ORG -> 0 | CP116: =G_TAUX_OBLIGATION_5_ANS_SHQ -> 0 | CQ116: B
E118: Réserve de gestion (% d'augmentation du taux) | AB118: =IndicateurAjuste(F_HYPOTHEQUE_RESERVE_ORG_AJ) ->  | AC118: =Ajuster(F_HYPOTHEQUE_RESERVE_ORG_AJ,0.02) -> 0.02 | AG118: 62 | AH118: =IndicateurAjuste(F_HYPOTHEQUE_RESERVE_SHQ_AJ) ->  | AI118: =Ajuster(F_HYPOTHEQUE_RESERVE_SHQ_AJ,0.02) -> 0.02 | AN118: O: | AO118: =RATIO_C_ORG -> S/O | AQ118: S: | AR118: =RATIO_C_SHQ -> S/O | AT118: 64 | CN118: Taux référence FQHC - obligations 10 ans | CO118: =G_TAUX_OBLIGATION_10_ANS_ORG -> 0 | CP118: =G_TAUX_OBLIGATION_10_ANS_SHQ -> 0 | CQ118: C
D120: Terme du prêt hypothécaire (nombre d'années) | AB120: =IndicateurAjuste(F_HYPOTHEQUE_TERME_ORG_AJ) ->  | AC120: =Ajuster(F_HYPOTHEQUE_TERME_ORG_AJ,5) -> 5 | AG120: 65 | AH120: =IndicateurAjuste(F_HYPOTHEQUE_TERME_SHQ_AJ) ->  | AI120: =Ajuster(F_HYPOTHEQUE_TERME_SHQ_AJ,5) -> 5 | CN120: Taux du prêt hypothécaire pour le 2e terme | CO120: =G_TAUX_LT_ORG+(10*G_TAUX_OBLIGATION_10_ANS_ORG-5*G_TAUX_OBLIGATION_5_ANS_ORG)/5-G_TAUX_OBLIGATION_5_ANS_ORG -> 0 | CP120: =G_TAUX_LT_SHQ+(10*G_TAUX_OBLIGATION_10_ANS_SHQ-5*G_TAUX_OBLIGATION_5_ANS_SHQ)/5-G_TAUX_OBLIGATION_5_ANS_SHQ -> 0 | CQ120: D
D122: Amortissement (nombre d'années) | AB122: =IndicateurAjuste(F_HYPOTHEQUE_AMORTISSEMENT_ORG_AJ) ->  | AC122: =Ajuster(F_HYPOTHEQUE_AMORTISSEMENT_ORG_AJ,IF(G_CAPITAL_PATIENT,PARM_CAP_PAT_TERME,35)) -> 35 | AG122: 67 | AH122: =IndicateurAjuste(F_HYPOTHEQUE_AMORTISSEMENT_SHQ_AJ) ->  | AI122: =Ajuster(F_HYPOTHEQUE_AMORTISSEMENT_SHQ_AJ,IF(G_CAPITAL_PATIENT,PARM_CAP_PAT_TERME,35)) -> 35 | CN122: Montant de l'emprunt hypothécaire | CO122: =F_HYPOTHEQUE_PRET_ORIG_ORG -> 6950 | CP122: =F_HYPOTHEQUE_PRET_ORIG_SHQ -> 6950 | CQ122: E
C124: EMPRUNT | AN124: Coût par mois | CN124: Durée de l'amortissement | CO124: =IF(G_CAPITAL_PATIENT,PARM_CAP_PAT_TERME+PARM_CAP_PAT_AM_EMP_HYP,F_HYPOTHEQUE_AMORTISSEMENT_ORG) -> 35 | CP124: =IF(G_CAPITAL_PATIENT,PARM_CAP_PAT_TERME+PARM_CAP_PAT_AM_EMP_HYP,F_HYPOTHEQUE_AMORTISSEMENT_SHQ) -> 35 | CQ124: F
D126: Résidentiel | AO126: =PMT((1+F_HYPOTHEQUE_TAUX_SHQ/2)^(1/6)-1,F_HYPOTHEQUE_AMORTISSEMENT_SHQ*12,-1000) -> 2.380952381 | AR126: / 1000$ 73 | CN126: Valeur de la contribution au FQHC | CO126: =-CUMPRINC((1+0.5*G_TAUX_LT_ORG)^(1/6)-1,12*F_HYPOTHEQUE_AMORTISSEMENT_FQHC_ORG,F_HYPOTHEQUE_PRET_ORIG_ORG,1,60,0)+-CUMPRINC((1+0.5*F_TAUX_PRET_2E_TERME_ORG)^(1/6)-1,12*(F_HYPOTHEQUE_AMORTISSEMENT_FQHC_ORG-5),F_HYPOTHEQUE_PRET_ORIG_ORG+CUMPRINC((1+0.5*G_TAUX_LT_ORG)^(1/6)-1,12*F_HYPOTHEQUE_AMORTISSEMENT_FQHC_ORG,F_HYPOTHEQUE_PRET_ORIG_ORG,1,60,0),1,60,0) ->  | CP126: =-CUMPRINC((1+0.5*G_TAUX_LT_SHQ)^(1/6)-1,12*F_HYPOTHEQUE_AMORTISSEMENT_FQHC_SHQ,F_HYPOTHEQUE_PRET_ORIG_SHQ,1,60,0)+-CUMPRINC((1+0.5*F_TAUX_PRET_2E_TERME_SHQ)^(1/6)-1,12*(F_HYPOTHEQUE_AMORTISSEMENT_FQHC_SHQ-5),F_HYPOTHEQUE_PRET_ORIG_SHQ+CUMPRINC((1+0.5*G_TAUX_LT_SHQ)^(1/6)-1,12*F_HYPOTHEQUE_AMORTISSEMENT_FQHC_SHQ,F_HYPOTHEQUE_PRET_ORIG_SHQ,1,60,0),1,60,0) ->  | CQ126: G
D128: Montant d'emprunt initial | AB128: =IndicateurAjuste(F_HYPOTHEQUE_PRET_ORIG_ORG_AJ) ->  | AC128: =Ajuster(F_HYPOTHEQUE_PRET_ORIG_ORG_AJ,F_SUBVENTIONS_COUT_REALISATION_ORG-F_SUBVENTIONS_TOTALE_ORG-F_SUBVENTIONS_APPORT_CAPITAL_TOTAL_ORG) -> 6950 | AG128: 106 | AH128: =IndicateurAjuste(F_HYPOTHEQUE_PRET_ORIG_SHQ_AJ) ->  | AI128: =Ajuster(F_HYPOTHEQUE_PRET_ORIG_SHQ_AJ,F_SUBVENTIONS_COUT_REALISATION_SHQ-F_SUBVENTIONS_TOTALE_SHQ-F_SUBVENTIONS_APPORT_CAPITAL_TOTAL_SHQ) -> 6950 | CN128: Valeur de la contribution au FQHC (nommée pour extraction) | CO128: =IF(ISERROR(CO126),0,CO126) -> 0 | CP128: =IF(ISERROR(CP126),0,CP126) -> 0 | CQ128: G
D130: Contribution au FQHC | AB130: =IndicateurAjuste(F_HYPOTHEQUE_CONTRIB_FQHC_ORG_AJ) ->  | AC130: =0 -> 0 | AG130: 107 | AH130: =IndicateurAjuste(F_HYPOTHEQUE_CONTRIB_FQHC_SHQ_AJ) ->  | AI130: =0 -> 0 | CN130: Valeur actualisée de la contribution au FQHC | CO130: =IF(ISERROR(F_VAL_CONTRIBUTION_FQHC_ORG),0, F_VAL_CONTRIBUTION_FQHC_ORG/((1+0.5*G_TAUX_LT_ORG)^10*(1+0.5*F_TAUX_PRET_2E_TERME_ORG)^10)) -> 0 | CP130: =IF(ISERROR(F_VAL_CONTRIBUTION_FQHC_SHQ),0, F_VAL_CONTRIBUTION_FQHC_SHQ/((1+0.5*G_TAUX_LT_SHQ)^10*(1+0.5*F_TAUX_PRET_2E_TERME_SHQ)^10)) -> 0 | CQ130: H
D132: Contribution FQHC versée hors hypothèque | AG132: 108
D134: Montant du prêt résidentiel | AB134: =IndicateurAjuste(F_HYPOTHEQUE_PRET_RES_ORG_AJ) ->  | AC134: =Ajuster(F_HYPOTHEQUE_PRET_RES_ORG_AJ,F_HYPOTHEQUE_PRET_ORIG_ORG+F_HYPOTHEQUE_CONTRIB_FQHC_ORG-F_HYPOTHEQUE_CONTRIB_FQHC_HORS_HYP_ORG-IF(G_CAPITAL_PATIENT, F_CAP_PAT_RES_ORG, 0)) -> 6950 | AG134: 69 | AH134: =IndicateurAjuste(F_HYPOTHEQUE_PRET_RES_SHQ_AJ) ->  | AI134: =Ajuster(F_HYPOTHEQUE_PRET_RES_SHQ_AJ,F_HYPOTHEQUE_PRET_ORIG_SHQ+F_HYPOTHEQUE_CONTRIB_FQHC_SHQ-F_HYPOTHEQUE_CONTRIB_FQHC_HORS_HYP_SHQ-IF(G_CAPITAL_PATIENT, F_CAP_PAT_RES_SHQ, 0)) -> 6950 | CN134: Montant de l'emprunt (Rabais taxe Contribution) | CO134: =-PV((1+0.5*G_TAUX_LT_ORG)^(1/6)-1,C_MUNI_CREDIT_TAXE_FONCIERE_ANNEES_ORG*12,C_MUNI_CREDIT_TAXE_FONCIERE_MONTANT_ANNUEL_ORG/12) -> 0 | CP134: =-PV((1+0.5*G_TAUX_LT_SHQ)^(1/6)-1,C_MUNI_CREDIT_TAXE_FONCIERE_ANNEES_SHQ*12,C_MUNI_CREDIT_TAXE_FONCIERE_MONTANT_ANNUEL_SHQ/12) -> 0
D136: Non résidentiel | CN136: Montant de l'emprunt (Rabais taxe PRQ) | CO136: =-PV((1+0.5*G_TAUX_LT_ORG)^(1/6)-1,C_AIDE_RABAIS_ANNEE_ORG*12,C_AIDE_RABAIS_MONTANT_ORG/12) -> 0 | CP136: =-PV((1+0.5*G_TAUX_LT_SHQ)^(1/6)-1,C_AIDE_RABAIS_ANNEE_SHQ*12,C_AIDE_RABAIS_MONTANT_SHQ/12) -> 0
D138: Montant du prêt non résidentiel initial | AB138: =IndicateurAjuste(F_HYPOTHEQUE_PRET_ORIG_NRES_ORG_AJ) ->  | AC138: =Ajuster(F_HYPOTHEQUE_PRET_ORIG_NRES_ORG_AJ,BR_COUT_REALISATION_NRES_ORG) -> 0 | AG138: 109 | AH138: =IndicateurAjuste(F_HYPOTHEQUE_PRET_ORIG_NRES_SHQ_AJ) ->  | AI138: =Ajuster(F_HYPOTHEQUE_PRET_ORIG_NRES_SHQ_AJ,BR_COUT_REALISATION_NRES_SHQ) -> 0
D140: Montant du prêt non résidentiel | AB140: =IndicateurAjuste(F_HYPOTHEQUE_PRET_NRES_ORG_AJ) ->  | AC140: =Ajuster(F_HYPOTHEQUE_PRET_NRES_ORG_AJ,F_HYPOTHEQUE_PRET_ORIG_NRES_ORG-F_CAP_PAT_NRES_ORG) -> 0 | AG140: 71 | AH140: =IndicateurAjuste(F_HYPOTHEQUE_PRET_NRES_SHQ_AJ) ->  | AI140: =Ajuster(F_HYPOTHEQUE_PRET_NRES_SHQ_AJ,F_HYPOTHEQUE_PRET_ORIG_NRES_SHQ-F_CAP_PAT_NRES_SHQ) -> 0 | CN140: Montant de l'emprunt (Rabais taxe Total | CO140: =SUM(CO133:CO136) -> 0 | CP140: =SUM(CP133:CP136) -> 0
B143: MONTANT TOTAL DU PRÊT | AB143: =F_HYPOTHEQUE_PRET_RES_ORG+F_HYPOTHEQUE_PRET_NRES_ORG -> 6950 | AG143: 74 | AH143: =F_HYPOTHEQUE_PRET_RES_SHQ+F_HYPOTHEQUE_PRET_NRES_SHQ -> 6950 | CN143: Valeur de l'emprunt (Rabais taxes Total) | CO143: =-CUMPRINC((1+0.5*G_TAUX_LT_ORG)^(1/6)-1,12*F_HYPOTHEQUE_AMORTISSEMENT_FQHC_ORG,F_EMPRUNT_RABAIS_TAXE_TOTAL_ORG,1,60,0)+-CUMPRINC((1+0.5*F_TAUX_PRET_2E_TERME_ORG)^(1/6)-1,12*(F_HYPOTHEQUE_AMORTISSEMENT_FQHC_ORG-5),F_EMPRUNT_RABAIS_TAXE_TOTAL_ORG+CUMPRINC((1+0.5*G_TAUX_LT_ORG)^(1/6)-1,12*F_HYPOTHEQUE_AMORTISSEMENT_FQHC_ORG,F_EMPRUNT_RABAIS_TAXE_TOTAL_ORG,1,60,0),1,60,0) ->  | CP143: =-CUMPRINC((1+0.5*G_TAUX_LT_SHQ)^(1/6)-1,12*F_HYPOTHEQUE_AMORTISSEMENT_FQHC_SHQ,F_EMPRUNT_RABAIS_TAXE_TOTAL_SHQ,1,60,0)+-CUMPRINC((1+0.5*F_TAUX_PRET_2E_TERME_SHQ)^(1/6)-1,12*(F_HYPOTHEQUE_AMORTISSEMENT_FQHC_SHQ-5),F_EMPRUNT_RABAIS_TAXE_TOTAL_SHQ+CUMPRINC((1+0.5*G_TAUX_LT_SHQ)^(1/6)-1,12*F_HYPOTHEQUE_AMORTISSEMENT_FQHC_SHQ,F_EMPRUNT_RABAIS_TAXE_TOTAL_SHQ,1,60,0),1,60,0) -> 
CN145: Valeur de la contribution au FQHC (nommée pour extraction) | CO145: =IF(ISERROR(CO143),0,CO143) -> 0 | CP145: =IF(ISERROR(CP143),0,CP143) -> 0
B146: CAPITAL PATIENT | AX146: Ajustements forcés
AB147: Organisme | AH147: SHQ | AY147: Organisme | BB147: SHQ
B149: Ratio | AB149: =0 -> 0 | AG149: 110 | AH149: =0 -> 0 | CN149: Taux d'intérêt - 2e terme | CO149: =G_TAUX_LT_ORG+1/100 -> 0.01 | CP149: =G_TAUX_LT_SHQ+1/100 -> 0.01
B151: Terme | AB151: =IndicateurAjuste(F_CAP_PAT_TERME_ORG_AJ) ->  | AC151: =Ajuster(F_CAP_PAT_TERME_ORG_AJ,IF(G_CAPITAL_PATIENT,PARM_CAP_PAT_TERME,0)) -> 0 | AG151: 111 | AH151: =IndicateurAjuste(F_CAP_PAT_TERME_SHQ_AJ) ->  | AI151: =Ajuster(F_CAP_PAT_TERME_SHQ_AJ,IF(G_CAPITAL_PATIENT,PARM_CAP_PAT_TERME,0)) -> 0 | CN151: Taux d'intérêt - 3e terme | CO151: =F_TAUX_CAP_PAT_2E_TERME_ORG+1/100 -> 0.02 | CP151: =F_TAUX_CAP_PAT_2E_TERME_SHQ+1/100 -> 0.02
B153: Montant résidentiel | AB153: =IndicateurAjuste(F_CAP_PAT_RES_ORG_AJ) ->  | AC153: =Ajuster(F_CAP_PAT_RES_ORG_AJ,ROUND((BR_COUT_REALISATION_RES_ORG-BR_ADMIN_CAP_PAT_RES_ORG)*F_CAP_PAT_RATIO_ORG,0)) -> 0 | AG153: 112 | AH153: =IndicateurAjuste(F_CAP_PAT_RES_SHQ_AJ) ->  | AI153: =Ajuster(F_CAP_PAT_RES_SHQ_AJ,ROUND((BR_COUT_REALISATION_RES_SHQ-BR_ADMIN_CAP_PAT_RES_SHQ)*F_CAP_PAT_RATIO_SHQ,0)) -> 0 | CN153: Taux d'intérêt - 4e terme | CO153: =F_TAUX_CAP_PAT_3E_TERME_ORG+1/100 -> 0.03 | CP153: =F_TAUX_CAP_PAT_3E_TERME_SHQ+1/100 -> 0.03
B155: Montant non résidentiel | AB155: =IndicateurAjuste(F_CAP_PAT_NRES_ORG_AJ) ->  | AC155: =Ajuster(F_CAP_PAT_NRES_ORG_AJ,ROUND((BR_COUT_REALISATION_NRES_ORG-BR_ADMIN_CAP_PAT_NRES_ORG)*F_CAP_PAT_RATIO_ORG,0)) -> 0 | AG155: 113 | AH155: =IndicateurAjuste(F_CAP_PAT_NRES_SHQ_AJ) ->  | AI155: =Ajuster(F_CAP_PAT_NRES_SHQ_AJ,ROUND((BR_COUT_REALISATION_NRES_SHQ-BR_ADMIN_CAP_PAT_NRES_SHQ)*F_CAP_PAT_RATIO_SHQ,0)) -> 0 | CN155: Valeur - résidentielle - 15 ans | CO155: =F_CAP_PAT_RES_ORG*(1+G_TAUX_PRET_CAP_PAT_ORG)^F_CAP_PAT_TERME_ORG -> 0 | CP155: =F_CAP_PAT_RES_SHQ*(1+G_TAUX_PRET_CAP_PAT_SHQ)^F_CAP_PAT_TERME_SHQ -> 0
B157: Montant total | AC157: =F_CAP_PAT_RES_ORG + F_CAP_PAT_NRES_ORG -> 0 | AG157: 114 | AI157: =F_CAP_PAT_RES_SHQ + F_CAP_PAT_NRES_SHQ -> 0 | CN157: Ratio remb. hypo rés prêt 20 ans vs prêt 15 | CO157: 0 | CP157: 0
B159: Capital et intérêts à échéance | AB159: =IndicateurAjuste(F_CAP_PAT_ECHEANCE_ORG_AJ) ->  | AC159: =Ajuster(F_CAP_PAT_ECHEANCE_ORG_AJ,ROUND(F_CAP_PAT_TOT_ORG*(1+F_CAP_PAT_TAUX_INT_SEM_ORG)^(F_CAP_PAT_TERME_ORG*2),0)) -> 0 | AG159: 115 | AH159: =IndicateurAjuste(F_CAP_PAT_ECHEANCE_SHQ_AJ) ->  | AI159: =Ajuster(F_CAP_PAT_ECHEANCE_SHQ_AJ,ROUND(F_CAP_PAT_TOT_SHQ*(1+F_CAP_PAT_TAUX_INT_SEM_SHQ)^(F_CAP_PAT_TERME_SHQ*2),0)) -> 0 | CN159: Projet admissible au Capital patient | CO159: =IF(ISERROR(F_RATIO_REMB_HYP_20_VS_15_ORG),FALSE,IF(F_RATIO_REMB_HYP_20_VS_15_ORG<=PARM_CAP_PAT_PCT_MAJ_MAX_MENS,TRUE,FALSE)) -> TRUE | CP159: =IF(ISERROR(F_RATIO_REMB_HYP_20_VS_15_SHQ),FALSE,IF(F_RATIO_REMB_HYP_20_VS_15_SHQ<=PARM_CAP_PAT_PCT_MAJ_MAX_MENS,TRUE,FALSE)) -> TRUE
B161: Financement total - Capital patient et prêt hypothécaire | AC161: =F_HYPOTHEQUE_PRET_TOTAL_ORG + F_CAP_PAT_TOT_ORG -> 6950 | AG161: 116 | AI161: =F_HYPOTHEQUE_PRET_TOTAL_SHQ + F_CAP_PAT_TOT_SHQ -> 6950 | CN161: Taux d'intérêt semestriel pour calcul | CO161: =(1+G_TAUX_PRET_CAP_PAT_ORG)^(1/2)-1 -> 0 | CP161: =(1+G_TAUX_PRET_CAP_PAT_SHQ)^(1/2)-1 -> 0
B165: COÛT DU FINANCEMENT INTÉRIMAIRE | AX165: Ajustements forcés | CN165: Valeur actualisée de l'emprunt (Rabais taxes Total) | CO165: =IF(OR(ISERROR(F_VAL_EMPRUNT_RABAIS_TAXE_FQHC_ORG),AND(C_MUNI_CREDIT_TAXE_FONCIERE_INF_ORG=0,C_AIDE_RABAIS_ACTUALISE_ORG=0)),0, F_VAL_EMPRUNT_RABAIS_TAXE_FQHC_ORG/((1+0.5*G_TAUX_LT_ORG)^10*(1+0.5*F_TAUX_PRET_2E_TERME_ORG)^10)) -> 0 | CP165: =IF(OR(ISERROR(F_VAL_EMPRUNT_RABAIS_TAXE_FQHC_SHQ),AND(C_MUNI_CREDIT_TAXE_FONCIERE_INF_SHQ=0,C_AIDE_RABAIS_ACTUALISE_SHQ=0)),0, F_VAL_EMPRUNT_RABAIS_TAXE_FQHC_SHQ/((1+0.5*G_TAUX_LT_SHQ)^10*(1+0.5*F_TAUX_PRET_2E_TERME_SHQ)^10)) -> 0
V167: Résidentiel | AH167: Non résidentiel | AY167: Résidentiel | BE167: Non résidentiel
V168: Organisme | AB168: SHQ | AH168: Organisme | AN168: SHQ | AY168: Organisme | BB168: SHQ | BE168: Organisme | BH168: SHQ | CO168: Calculs théoriques
B170: Estimation des déboursés progressifs à financer | V170: =IndicateurAjuste(F_FINANCEMENT_DEBOURSES_FINANCE_RES_ORG_AJ) ->  | W170: =Ajuster(F_FINANCEMENT_DEBOURSES_FINANCE_RES_ORG_AJ,DeboursesProgressifsAFinancerRes(G_ORGANISME_INSCRIT,G_ORGANISME_FOURNITURE_SOI,BR_ACQUISITION_RES_ORG,F_SUBVENTIONS_COMPTANT_ORG,BR_DEPENSES_TOTALES_RES_ORG,BR_REVENU_LOYER_AVANT_DAI_RES_ORG,BR_REMBOURSEMENT_TPS_RES_ORG,BR_REMBOURSEMENT_TVQ_RES_ORG)) -> 4170.1523 | AA170: 76 | AB170: =IndicateurAjuste(F_FINANCEMENT_DEBOURSES_FINANCE_RES_SHQ_AJ) ->  | AC170: =Ajuster(F_FINANCEMENT_DEBOURSES_FINANCE_RES_SHQ_AJ,DeboursesProgressifsAFinancerRes(G_ORGANISME_INSCRIT,G_ORGANISME_FOURNITURE_SOI,BR_ACQUISITION_RES_SHQ,F_SUBVENTIONS_COMPTANT_SHQ,BR_DEPENSES_TOTALES_RES_SHQ,BR_REVENU_LOYER_AVANT_DAI_RES_SHQ,BR_REMBOURSEMENT_TPS_RES_SHQ,BR_REMBOURSEMENT_TVQ_RES_SHQ)) -> 4170.1523 | AH170: =IndicateurAjuste(F_FINANCEMENT_DEBOURSES_FINANCE_NRES_ORG_AJ) ->  | AI170: =Ajuster(F_FINANCEMENT_DEBOURSES_FINANCE_NRES_ORG_AJ,DeboursesProgressifsAFinancerNRes(G_ORGANISME_INSCRIT,G_ORGANISME_FOURNITURE_SOI,BR_ACQUISITION_NRES_ORG,IA_EVAL_MARCHANDE_NRES_ORG,IA_EVAL_FONCIERE_NRES_ORG,BR_DEPENSES_TOTALES_NRES_ORG,BR_REVENU_LOYER_AVANT_DAI_NRES_ORG,BR_REMBOURSEMENT_TPS_NRES_ORG,BR_REMBOURSEMENT_TVQ_NRES_ORG)) -> 0 | AM170: 77 | AN170: =IndicateurAjuste(F_FINANCEMENT_DEBOURSES_FINANCE_NRES_SHQ_AJ) ->  | AO170: =Ajuster(F_FINANCEMENT_DEBOURSES_FINANCE_NRES_SHQ_AJ,DeboursesProgressifsAFinancerNRes(G_ORGANISME_INSCRIT,G_ORGANISME_FOURNITURE_SOI,BR_ACQUISITION_NRES_SHQ,IA_EVAL_MARCHANDE_NRES_SHQ,IA_EVAL_FONCIERE_NRES_SHQ,BR_DEPENSES_TOTALES_NRES_SHQ,BR_REVENU_LOYER_AVANT_DAI_NRES_SHQ,BR_REMBOURSEMENT_TPS_NRES_SHQ,BR_REMBOURSEMENT_TVQ_NRES_SHQ)) -> 0 | CO170: =DeboursesProgressifsAFinancerRes(G_ORGANISME_INSCRIT,G_ORGANISME_FOURNITURE_SOI,BR_ACQUISITION_RES_ORG,F_SUBVENTIONS_COMPTANT_ORG,BR_DEPENSES_TOTALES_RES_ORG,BR_REVENU_LOYER_AVANT_DAI_RES_ORG,BR_REMBOURSEMENT_TPS_RES_ORG,BR_REMBOURSEMENT_TVQ_RES_ORG) -> 4170.1523 | CP170: =DeboursesProgressifsAFinancerRes(G_ORGANISME_INSCRIT,G_ORGANISME_FOURNITURE_SOI,BR_ACQUISITION_RES_SHQ,F_SUBVENTIONS_COMPTANT_SHQ,BR_DEPENSES_TOTALES_RES_SHQ,BR_REVENU_LOYER_AVANT_DAI_RES_SHQ,BR_REMBOURSEMENT_TPS_RES_SHQ,BR_REMBOURSEMENT_TVQ_RES_SHQ) -> 4170.1523 | CQ170: =DeboursesProgressifsAFinancerNRes(G_ORGANISME_INSCRIT,G_ORGANISME_FOURNITURE_SOI,BR_ACQUISITION_NRES_ORG,IA_EVAL_MARCHANDE_NRES_ORG,IA_EVAL_FONCIERE_NRES_ORG,BR_DEPENSES_TOTALES_NRES_ORG,BR_REVENU_LOYER_AVANT_DAI_NRES_ORG,BR_REMBOURSEMENT_TPS_NRES_ORG,BR_REMBOURSEMENT_TVQ_NRES_ORG) -> 0 | CR170: =DeboursesProgressifsAFinancerNRes(G_ORGANISME_INSCRIT,G_ORGANISME_FOURNITURE_SOI,BR_ACQUISITION_NRES_SHQ,IA_EVAL_MARCHANDE_NRES_SHQ,IA_EVAL_FONCIERE_NRES_SHQ,BR_DEPENSES_TOTALES_NRES_SHQ,BR_REVENU_LOYER_AVANT_DAI_NRES_SHQ,BR_REMBOURSEMENT_TPS_NRES_SHQ,BR_REMBOURSEMENT_TVQ_NRES_SHQ) -> 0
B172: Versement comptant à l'engagement définitif | W172: =F_SUBVENTIONS_COMPTANT_ORG -> 0 | AA172: 78 | AC172: =F_SUBVENTIONS_COMPTANT_SHQ -> 0
B174: Taux d'intérêt du financement intérimaire | W174: =G_TAUX_CT_ORG -> 0 | AA174: 80 | AC174: =G_TAUX_CT_SHQ -> 0 | AH174: =IndicateurAjuste(F_COUT_TAUX_NRES_ORG_AJ) ->  | AI174: =Ajuster(F_COUT_TAUX_NRES_ORG_AJ,F_COUT_TAUX_RES_ORG) -> 0 | AM174: 81 | AN174: =IndicateurAjuste(F_COUT_TAUX_NRES_SHQ_AJ) ->  | AO174: =Ajuster(F_COUT_TAUX_NRES_SHQ_AJ,F_COUT_TAUX_RES_SHQ) -> 0
B176: Période de financement intérimaire (en mois) | V176: =IndicateurAjuste(F_FINANCEMENT_DUREE_RES_ORG_AJ) ->  | W176: =Ajuster(F_FINANCEMENT_DUREE_RES_ORG_AJ,BR_DUREE_ORG) -> 0 | AA176: 82 | AB176: =IndicateurAjuste(F_FINANCEMENT_DUREE_RES_SHQ_AJ) ->  | AC176: =Ajuster(F_FINANCEMENT_DUREE_RES_SHQ_AJ,BR_DUREE_SHQ) -> 0 | AH176: =IndicateurAjuste(F_FINANCEMENT_DUREE_NRES_ORG_AJ) ->  | AI176: =Ajuster(F_FINANCEMENT_DUREE_NRES_ORG_AJ,BR_DUREE_ORG) -> 0 | AM176: 83 | AN176: =IndicateurAjuste(F_FINANCEMENT_DUREE_NRES_SHQ_AJ) ->  | AO176: =Ajuster(F_FINANCEMENT_DUREE_NRES_SHQ_AJ,BR_DUREE_SHQ) -> 0
B179: COÛT DU FINANCEMENT INTÉRIMAIRE (1) | V179: =Ajuster(BR_FINANCEMENT_INTERIMAIRE_RES_ORG_AJ,IF(ISERR(F_FINANCEMENT_DEBOURSES_FINANCE_RES_ORG),0,F_FINANCEMENT_DEBOURSES_FINANCE_RES_ORG)*F_COUT_TAUX_RES_ORG*F_FINANCEMENT_DUREE_RES_ORG/12) -> 0 | AA179: 84 | AB179: =Ajuster(BR_FINANCEMENT_INTERIMAIRE_RES_SHQ_AJ,IF(ISERR(F_FINANCEMENT_DEBOURSES_FINANCE_RES_SHQ),0,F_FINANCEMENT_DEBOURSES_FINANCE_RES_SHQ)*F_COUT_TAUX_RES_SHQ*F_FINANCEMENT_DUREE_RES_SHQ/12) -> 0 | AH179: =Ajuster(BR_FINANCEMENT_INTERIMAIRE_NRES_ORG_AJ,IF(ISERR(F_FINANCEMENT_DEBOURSES_FINANCE_NRES_ORG),0,F_FINANCEMENT_DEBOURSES_FINANCE_NRES_ORG)*F_COUT_TAUX_NRES_ORG*F_FINANCEMENT_DUREE_NRES_ORG/12) -> 0 | AM179: 85 | AN179: =Ajuster(BR_FINANCEMENT_INTERIMAIRE_NRES_SHQ_AJ,IF(ISERR(F_FINANCEMENT_DEBOURSES_FINANCE_NRES_SHQ),0,F_FINANCEMENT_DEBOURSES_FINANCE_NRES_SHQ)*F_COUT_TAUX_NRES_SHQ*F_FINANCEMENT_DUREE_NRES_SHQ/12) -> 0 | CO179: =IF(ISERR(F_FINANCEMENT_DEBOURSES_FINANCE_THEO_RES_ORG),0,F_FINANCEMENT_DEBOURSES_FINANCE_THEO_RES_ORG)*F_COUT_TAUX_RES_ORG*BR_DUREE_ORG/12 -> 0 | CP179: =IF(ISERR(F_FINANCEMENT_DEBOURSES_FINANCE_THEO_RES_SHQ),0,F_FINANCEMENT_DEBOURSES_FINANCE_THEO_RES_SHQ)*F_COUT_TAUX_RES_SHQ*BR_DUREE_SHQ/12 -> 0 | CQ179: =IF(ISERR(F_FINANCEMENT_DEBOURSES_FINANCE_THEO_NRES_ORG),0,F_FINANCEMENT_DEBOURSES_FINANCE_THEO_NRES_ORG)*F_COUT_TAUX_RES_ORG*BR_DUREE_ORG/12 -> 0 | CR179: =IF(ISERR(F_FINANCEMENT_DEBOURSES_FINANCE_THEO_NRES_SHQ),0,F_FINANCEMENT_DEBOURSES_FINANCE_THEO_NRES_SHQ)*F_COUT_TAUX_RES_SHQ*BR_DUREE_SHQ/12 -> 0
B181: (1) Note: Le coût du financement intérimaire a pu faire l'objet d'un ajustement à l'onglet <Budget de réalisation>
B183: EMPRUNT - AIDE À L'EXPLOITATION CAPITALISÉE | AX183: Ajustements forcés
AB184: Organisme | AH184: SHQ | AY184: Organisme | BB184: SHQ
B186: Montant du rabais de taxes (Valeur actualisée) | AB186: =IndicateurAjuste(F_EMPRUNT_RABAIS_TAXE_ORG_AJ) ->  | AC186: =Ajuster(F_EMPRUNT_RABAIS_TAXE_ORG_AJ,C_MUNI_CREDIT_TAXE_FONCIERE_ORG+C_AIDE_RABAIS_ACTUALISE_ORG) -> 0 | AG186: 86 | AH186: =IndicateurAjuste(F_EMPRUNT_RABAIS_TAXE_SHQ_AJ) ->  | AI186: =Ajuster(F_EMPRUNT_RABAIS_TAXE_SHQ_AJ,C_MUNI_CREDIT_TAXE_FONCIERE_SHQ+C_AIDE_RABAIS_ACTUALISE_SHQ) -> 0
B188: Conversion du rabais de taxe en emprunt (court terme) | AB188: =IndicateurAjuste(F_EMPRUNT_MONTANT_PRET_ORG_AJ) ->  | AC188: =Ajuster(F_EMPRUNT_MONTANT_PRET_ORG_AJ,IF(F_EMPRUNT_CONVERSION_NON=TRUE,0,F_EMPRUNT_RABAIS_TAXE_ORG)) -> 0 | AG188: 88 | AH188: =IndicateurAjuste(F_EMPRUNT_MONTANT_PRET_SHQ_AJ) ->  | AI188: =Ajuster(F_EMPRUNT_MONTANT_PRET_SHQ_AJ,IF(F_EMPRUNT_CONVERSION_NON=TRUE,0,F_EMPRUNT_RABAIS_TAXE_SHQ)) -> 0 | CA188: FALSE | CB188: TRUE
B190: Durée de l'emprunt à court terme (années) | AB190: =IndicateurAjuste(F_EMPRUNT_DUREE_ORG_AJ) ->  | AC190: =Ajuster(F_EMPRUNT_DUREE_ORG_AJ,C_MUNI_CREDIT_TAXE_FONCIERE_ANNEES_ORG) -> 0 | AG190: 90 | AH190: =IndicateurAjuste(F_EMPRUNT_DUREE_SHQ_AJ) ->  | AI190: =Ajuster(F_EMPRUNT_DUREE_SHQ_AJ,C_MUNI_CREDIT_TAXE_FONCIERE_ANNEES_SHQ) -> 0
B192: Taux d'intérêt | AB192: =IndicateurAjuste(F_EMPRUNT_TAUX_ORG_AJ) ->  | AC192: =Ajuster(F_EMPRUNT_TAUX_ORG_AJ,F_HYPOTHEQUE_TAUX_ORG) -> 0 | AG192: 92 | AH192: =IndicateurAjuste(F_EMPRUNT_TAUX_SHQ_AJ) ->  | AI192: =Ajuster(F_EMPRUNT_TAUX_SHQ_AJ,F_HYPOTHEQUE_TAUX_SHQ) -> 0
B195: REMBOURSEMENT ANNUEL | AB195: =BE_REMB_PRET_CAPITAL_RES_ORG+BE_REMB_PRET_INTERET_RES_ORG -> 0 | AG195: 94 | AH195: =BE_REMB_PRET_CAPITAL_RES_SHQ+BE_REMB_PRET_INTERET_RES_SHQ -> 0
B200: PRÉCISIONS - Page 6 - Financement
C202: Calculs des subventions - SHQ
D204: Emphytéose | S204: : | T204: a) Si le bailleur est l'Immobilière SHQ, le montant inscrit correspond à la valeur de l'actif
U205: (voir la fiche de saisie « Terrain actuel » de l'onglet « Immeubles Actuels »).
T206: b) Si le bailleur est une municipalité, le montant inscrit correspond, le cas échéant, à la différence entre
U207: l'équité dégagée par l'emphytéose et la valeur reconnue de l'actif.
D209: Coût de réalisation total pour subvention | S209: : | T209: Ce montant sert à établir le coût de réalisation admissible SHQ pour le calcul de la subvention de base.
T210: Il représente le coût de réalisation total réduit du coût des travaux d'adaptation subventionnés
T211: (unités adaptées SUAL et unités adaptées SAD) à un taux de 100 %.
D213: Prêt de démarrage | S213: : | T213: Montant maximum du prêt de démarrage inclus dans le montant de la subvention totale (champ no. 31).

Sheet Budget d'exploitation
L3: Demande d'aide financière
L4: =MP_VERSION -> Version 12.2.00C
F5: Formulaire en date du | G5: =TODAY() -> 2024-10-04
B6: Page 7 - BUDGET D'EXPLOITATION
B8: PROJET | BF8: Date de la DAF : | BG8: =G_PROJET_ETAPE_APPROUVE -> 00:00:00 | BH8: =G_APPRO_DATE -> 00:00:00
B10: Numéro du projet | J10: : | K10: =G_PROJET_NO_COMPLET -> ACL-00000 | O10: 1 | V10: Étape du projet : | BD10: =G_PROJET_ETAPE -> 0 | BL10: 2
B12: Nom du projet | J12: : | K12: =G_PROJET_NOM -> 0 | BL12: 3
B15: BUDGET
C18: DÉPENSES D'EXPLOITATION | P18: Résidentiel | AA18: Ajustement | AI18: Non résidentiel | AT18: Ajustement | BB18: Total | DA18: No Compte GL
P19: Organisme | U19: SHQ | AA19: Organisme | AD19: SHQ | AI19: Organisme | AN19: SHQ | AT19: Organisme | AW19: SHQ | BB19: Organisme | BG19: SHQ
C22: Remboursement hypothécaire
C23: Capital | O23: 4 | P23: =IndicateurAjuste(BE_REMB_HYPOTHEQUE_CAPITAL_RES_ORG_AJ) ->  | Q23: =Ajuster(BE_REMB_HYPOTHEQUE_CAPITAL_RES_ORG_AJ,CalculerRemboursementHypothecaire(F_HYPOTHEQUE_TAUX_ORG,F_HYPOTHEQUE_AMORTISSEMENT_ORG,F_HYPOTHEQUE_PRET_RES_ORG)) -> 198.6 | U23: =IndicateurAjuste(BE_REMB_HYPOTHEQUE_CAPITAL_RES_SHQ_AJ) ->  | V23: =Ajuster(BE_REMB_HYPOTHEQUE_CAPITAL_RES_SHQ_AJ,CalculerRemboursementHypothecaire(F_HYPOTHEQUE_TAUX_SHQ,F_HYPOTHEQUE_AMORTISSEMENT_SHQ,F_HYPOTHEQUE_PRET_RES_SHQ)) -> 198.6 | AH23: 5 | AI23: =IndicateurAjuste(BE_REMB_HYPOTHEQUE_CAPITAL_NRES_ORG_AJ) ->  | AJ23: =Ajuster(BE_REMB_HYPOTHEQUE_CAPITAL_NRES_ORG_AJ,CalculerRemboursementHypothecaire(F_HYPOTHEQUE_TAUX_ORG,F_HYPOTHEQUE_AMORTISSEMENT_ORG,F_HYPOTHEQUE_PRET_NRES_ORG)) -> 0 | AN23: =IndicateurAjuste(BE_REMB_HYPOTHEQUE_CAPITAL_NRES_SHQ_AJ) ->  | AO23: =Ajuster(BE_REMB_HYPOTHEQUE_CAPITAL_NRES_SHQ_AJ,CalculerRemboursementHypothecaire(F_HYPOTHEQUE_TAUX_SHQ,F_HYPOTHEQUE_AMORTISSEMENT_SHQ,F_HYPOTHEQUE_PRET_NRES_SHQ)) -> 0 | BA23: 6 | BB23: =BE_REMB_HYPOTHEQUE_CAPITAL_RES_ORG+BE_REMB_HYPOTHEQUE_CAPITAL_NRES_ORG -> 198.6 | BG23: =BE_REMB_HYPOTHEQUE_CAPITAL_RES_SHQ+BE_REMB_HYPOTHEQUE_CAPITAL_NRES_SHQ -> 198.6 | DA23: =65851 -> 65851
C24: Intérêts | O24: 7 | P24: =IndicateurAjuste(BE_REMB_HYPOTHEQUE_INTERET_RES_ORG_AJ) ->  | Q24: =Ajuster(BE_REMB_HYPOTHEQUE_INTERET_RES_ORG_AJ,CalculerInteretsRemboursementHypothecaire(F_HYPOTHEQUE_TAUX_ORG,F_HYPOTHEQUE_AMORTISSEMENT_ORG,F_HYPOTHEQUE_PRET_RES_ORG)) -> 0 | U24: =IndicateurAjuste(BE_REMB_HYPOTHEQUE_INTERET_RES_SHQ_AJ) ->  | V24: =Ajuster(BE_REMB_HYPOTHEQUE_INTERET_RES_SHQ_AJ,CalculerInteretsRemboursementHypothecaire(F_HYPOTHEQUE_TAUX_SHQ,F_HYPOTHEQUE_AMORTISSEMENT_SHQ,F_HYPOTHEQUE_PRET_RES_SHQ)) -> 0 | AH24: 8 | AI24: =IndicateurAjuste(BE_REMB_HYPOTHEQUE_INTERET_NRES_ORG_AJ) ->  | AJ24: =Ajuster(BE_REMB_HYPOTHEQUE_INTERET_NRES_ORG_AJ,CalculerInteretsRemboursementHypothecaire(F_HYPOTHEQUE_TAUX_ORG,F_HYPOTHEQUE_AMORTISSEMENT_ORG,F_HYPOTHEQUE_PRET_NRES_ORG)) -> 0 | AN24: =IndicateurAjuste(BE_REMB_HYPOTHEQUE_INTERET_NRES_SHQ_AJ) ->  | AO24: =Ajuster(BE_REMB_HYPOTHEQUE_INTERET_NRES_SHQ_AJ,CalculerInteretsRemboursementHypothecaire(F_HYPOTHEQUE_TAUX_SHQ,F_HYPOTHEQUE_AMORTISSEMENT_SHQ,F_HYPOTHEQUE_PRET_NRES_SHQ)) -> 0 | BA24: 9 | BB24: =BE_REMB_HYPOTHEQUE_INTERET_RES_ORG+BE_REMB_HYPOTHEQUE_INTERET_NRES_ORG -> 0 | BG24: =BE_REMB_HYPOTHEQUE_INTERET_RES_SHQ+BE_REMB_HYPOTHEQUE_INTERET_NRES_SHQ -> 0 | DA24: =65751 -> 65751
C27: Remboursement de l'emprunt (rabais de taxe)
C28: Capital | O28: 10 | P28: =IndicateurAjuste(BE_REMB_PRET_CAPITAL_RES_ORG_AJ) ->  | Q28: =Ajuster(BE_REMB_PRET_CAPITAL_RES_ORG_AJ,CalculerRemboursementHypothecaire(F_EMPRUNT_TAUX_ORG,F_EMPRUNT_DUREE_ORG,F_EMPRUNT_MONTANT_PRET_ORG)) -> 0 | U28: =IndicateurAjuste(BE_REMB_PRET_CAPITAL_RES_SHQ_AJ) ->  | V28: =Ajuster(BE_REMB_PRET_CAPITAL_RES_SHQ_AJ,CalculerRemboursementHypothecaire(F_EMPRUNT_TAUX_SHQ,F_EMPRUNT_DUREE_SHQ,F_EMPRUNT_MONTANT_PRET_SHQ)) -> 0 | BA28: 11 | BB28: =BE_REMB_PRET_CAPITAL_RES_ORG -> 0 | BG28: =BE_REMB_PRET_CAPITAL_RES_SHQ -> 0 | DA28: =65852 -> 65852
C29: Intérêts | O29: 12 | P29: =IndicateurAjuste(BE_REMB_PRET_INTERET_RES_ORG_AJ) ->  | Q29: =Ajuster(BE_REMB_PRET_INTERET_RES_ORG_AJ,CalculerInteretsRemboursementHypothecaire(F_EMPRUNT_TAUX_ORG,F_EMPRUNT_DUREE_ORG,F_EMPRUNT_MONTANT_PRET_ORG)) -> 0 | U29: =IndicateurAjuste(BE_REMB_PRET_INTERET_RES_SHQ_AJ) ->  | V29: =Ajuster(BE_REMB_PRET_INTERET_RES_SHQ_AJ,CalculerInteretsRemboursementHypothecaire(F_EMPRUNT_TAUX_SHQ,F_EMPRUNT_DUREE_SHQ,F_EMPRUNT_MONTANT_PRET_SHQ)) -> 0 | BA29: 13 | BB29: =BE_REMB_PRET_INTERET_RES_ORG -> 0 | BG29: =BE_REMB_PRET_INTERET_RES_SHQ -> 0 | DA29: =65752 -> 65752
C32: Rente emphytéotique | O32: 14 | P32: =IndicateurAjuste(BE_REMB_RENTE_EMPHYTEOTIQUE_RES_ORG_AJ) ->  | U32: =IndicateurAjuste(BE_REMB_RENTE_EMPHYTEOTIQUE_RES_SHQ_AJ) ->  | AH32: 15 | AI32: =IndicateurAjuste(BE_REMB_RENTE_EMPHYTEOTIQUE_NRES_ORG_AJ) ->  | AN32: =IndicateurAjuste(BE_REMB_RENTE_EMPHYTEOTIQUE_NRES_SHQ_AJ) ->  | BA32: 16 | BB32: =BE_REMB_RENTE_EMPHYTEOTIQUE_RES_ORG+BE_REMB_RENTE_EMPHYTEOTIQUE_NRES_ORG -> 0 | BG32: =BE_REMB_RENTE_EMPHYTEOTIQUE_RES_SHQ+BE_REMB_RENTE_EMPHYTEOTIQUE_NRES_SHQ -> 0 | DA32: =63691 -> 63691
C35: Taxes et assurances
C36: Taxes foncières | O36: 17 | P36: =IndicateurAjuste(BE_TAXE_FONCIERE_RES_ORG_AJ) ->  | Q36: =Ajuster(BE_TAXE_FONCIERE_RES_ORG_AJ,CalculerTaxesFoncieres(G_ORGANISME_CHARITE,G_ORGANISME_NO_ENREGISTREMENT,G_ORGANISME_REC_EXEMP_TFONC,G_ORGANISME_NO_DOSSIER,IP_TAXE_EXEMP,IA_TAXES_SERVICES_ANNUEL,IP_TAXE_SERVICES_PREVU_ORG,IP_VALEUR_FONC_AP_TRAVAUX_RES_ORG,IP_TAUX_FONCIER_PREVU_ORG,C_MUNI_EXEMPTION_TAXE_FONCIERE_MONTANT_ANNUEL_ORG,C_MUNI_EXEMPTION_TAXE_FONCIERE_ANNEES_ORG,G_ORGANISME_DATE_ENTREE_VIGUEUR, G_ORGANISME_NO_RESOLUTION)) -> 0 | U36: =IndicateurAjuste(BE_TAXE_FONCIERE_RES_SHQ_AJ) ->  | V36: =Ajuster(BE_TAXE_FONCIERE_RES_SHQ_AJ,CalculerTaxesFoncieres(G_ORGANISME_CHARITE,G_ORGANISME_NO_ENREGISTREMENT,G_ORGANISME_REC_EXEMP_TFONC,G_ORGANISME_NO_DOSSIER,IP_TAXE_EXEMP,IA_TAXES_SERVICES_ANNUEL,IP_TAXE_SERVICES_PREVU_SHQ,IP_VALEUR_FONC_AP_TRAVAUX_RES_SHQ,IP_TAUX_FONCIER_PREVU_SHQ,C_MUNI_EXEMPTION_TAXE_FONCIERE_MONTANT_ANNUEL_SHQ,C_MUNI_EXEMPTION_TAXE_FONCIERE_ANNEES_SHQ,G_ORGANISME_DATE_ENTREE_VIGUEUR, G_ORGANISME_NO_RESOLUTION)) -> 0 | AH36: 18 | AI36: =IndicateurAjuste(BE_TAXE_FONCIERE_NRES_ORG_AJ) ->  | AN36: =IndicateurAjuste(BE_TAXE_FONCIERE_NRES_SHQ_AJ) ->  | BA36: 19 | BB36: =BE_TAXE_FONCIERE_RES_ORG+BE_TAXE_FONCIERE_NRES_ORG -> 0 | BG36: =BE_TAXE_FONCIERE_RES_SHQ+BE_TAXE_FONCIERE_NRES_SHQ -> 0 | DA36: =63713 -> 63713
C37: Taxes scolaires | O37: 124 | P37: =IndicateurAjuste(BE_TAXE_SCOLAIRE_RES_ORG_AJ) ->  | Q37: =Ajuster(BE_TAXE_SCOLAIRE_RES_ORG_AJ,CalculerTaxesScolaires(IP_VALEUR_FONC_AP_TRAVAUX_RES_ORG,IP_TAUX_SCOLAIRE_PREVU_ORG)) -> 0 | U37: =IndicateurAjuste(BE_TAXE_SCOLAIRE_RES_SHQ_AJ) ->  | V37: =Ajuster(BE_TAXE_SCOLAIRE_RES_SHQ_AJ,CalculerTaxesScolaires(IP_VALEUR_FONC_AP_TRAVAUX_RES_SHQ,IP_TAUX_SCOLAIRE_PREVU_SHQ)) -> 0 | AH37: 125 | AI37: =IndicateurAjuste(BE_TAXE_SCOLAIRE_NRES_ORG_AJ) ->  | AN37: =IndicateurAjuste(BE_TAXE_SCOLAIRE_NRES_SHQ_AJ) ->  | BA37: 126 | BB37: =BE_TAXE_SCOLAIRE_RES_ORG+BE_TAXE_SCOLAIRE_NRES_ORG -> 0 | BG37: =BE_TAXE_SCOLAIRE_RES_SHQ+BE_TAXE_SCOLAIRE_NRES_SHQ -> 0 | DA37: =63713 -> 63713
C38: Taxes de services | O38: 20 | P38: =IndicateurAjuste(BE_TAXE_SERVICES_RES_ORG_AJ) ->  | Q38: =Ajuster(BE_TAXE_SERVICES_RES_ORG_AJ,IP_TAXE_SERVICES_PREVU_ORG) -> 0 | U38: =IndicateurAjuste(BE_TAXE_SERVICES_RES_SHQ_AJ) ->  | V38: =Ajuster(BE_TAXE_SERVICES_RES_SHQ_AJ,IP_TAXE_SERVICES_PREVU_SHQ) -> 0 | AH38: 21 | AI38: =IndicateurAjuste(BE_TAXE_SERVICES_NRES_ORG_AJ) ->  | AN38: =IndicateurAjuste(BE_TAXE_SERVICES_NRES_SHQ_AJ) ->  | BA38: 22 | BB38: =BE_TAXE_SERVICES_RES_ORG+BE_TAXE_SERVICES_NRES_ORG -> 0 | BG38: =BE_TAXE_SERVICES_RES_SHQ+BE_TAXE_SERVICES_NRES_SHQ -> 0 | DA38: =63714 -> 63714
C39: Taxes d'amélioration | O39: 23 | P39: =IndicateurAjuste(BE_TAXE_AMELIORATION_RES_ORG_AJ) ->  | U39: =IndicateurAjuste(BE_TAXE_AMELIORATION_RES_SHQ_AJ) ->  | AH39: 24 | AI39: =IndicateurAjuste(BE_TAXE_AMELIORATION_NRES_ORG_AJ) ->  | AN39: =IndicateurAjuste(BE_TAXE_AMELIORATION_NRES_SHQ_AJ) ->  | BA39: 25 | BB39: =BE_TAXE_AMELIORATION_RES_ORG+BE_TAXE_AMELIORATION_NRES_ORG -> 0 | BG39: =BE_TAXE_AMELIORATION_RES_SHQ+BE_TAXE_AMELIORATION_NRES_SHQ -> 0 | DA39: =63715 -> 63715
C40: Assurances (Tx Ass. 9% Sans Tps/Tvq) | O40: 26 | P40: =IndicateurAjuste(BE_TAXE_ASSURANCE_RES_ORG_AJ) ->  | Q40: =Ajuster(BE_TAXE_ASSURANCE_RES_ORG_AJ,CalculerAssurancesAnnuelle(G_PROJET_TERRITOIRE_FEDERATION,G_ORGANISME_TYPE,IP_VALEUR_REMPL_1+IP_VALEUR_REMPL_2,IP_VALEUR_REMPL_3,IP_NBRE_UNITES_I+IP_NBRE_UNITES_II,IP_NBRE_UNITES_III)) -> 0 | U40: =IndicateurAjuste(BE_TAXE_ASSURANCE_RES_SHQ_AJ) ->  | V40: =Ajuster(BE_TAXE_ASSURANCE_RES_SHQ_AJ,CalculerAssurancesAnnuelle(G_PROJET_TERRITOIRE_FEDERATION,G_ORGANISME_TYPE,IP_VALEUR_REMPL_1+IP_VALEUR_REMPL_2,IP_VALEUR_REMPL_3,IP_NBRE_UNITES_I+IP_NBRE_UNITES_II,IP_NBRE_UNITES_III)) -> 0 | AH40: 27 | AI40: =IndicateurAjuste(BE_TAXE_ASSURANCE_NRES_ORG_AJ) ->  | AN40: =IndicateurAjuste(BE_TAXE_ASSURANCE_NRES_SHQ_AJ) ->  | BA40: 28 | BB40: =BE_TAXE_ASSURANCE_RES_ORG+BE_TAXE_ASSURANCE_NRES_ORG -> 0 | BG40: =BE_TAXE_ASSURANCE_RES_SHQ+BE_TAXE_ASSURANCE_NRES_SHQ -> 0 | DA40: =63813 -> 63813
C43: Énergie, logements (Élec,Chauf,Eau..) | O43: 29 | P43: =IndicateurAjuste(BE_ENERGIE_LOGEMENT_RES_ORG_AJ) ->  | Q43: =Ajuster(BE_ENERGIE_LOGEMENT_RES_ORG_AJ,12*(IP_CH_FRAIS*IP_CH_NBRE_UNITES+IP_ST_FRAIS*IP_ST_NBRE_UNITES+IP_1C_FRAIS*IP_1C_NBRE_UNITES+IP_2C_FRAIS*IP_2C_NBRE_UNITES+IP_3C_FRAIS*IP_3C_NBRE_UNITES+IP_4C_FRAIS*IP_4C_NBRE_UNITES+IP_5C_FRAIS*IP_5C_NBRE_UNITES)) -> 0 | U43: =IndicateurAjuste(BE_ENERGIE_LOGEMENT_RES_SHQ_AJ) ->  | V43: =Ajuster(BE_ENERGIE_LOGEMENT_RES_SHQ_AJ,12*(IP_CH_FRAIS*IP_CH_NBRE_UNITES+IP_ST_FRAIS*IP_ST_NBRE_UNITES+IP_1C_FRAIS*IP_1C_NBRE_UNITES+IP_2C_FRAIS*IP_2C_NBRE_UNITES+IP_3C_FRAIS*IP_3C_NBRE_UNITES+IP_4C_FRAIS*IP_4C_NBRE_UNITES+IP_5C_FRAIS*IP_5C_NBRE_UNITES)) -> 0 | AH43: 30 | AI43: =IndicateurAjuste(BE_ENERGIE_LOGEMENT_NRES_ORG_AJ) ->  | AN43: =IndicateurAjuste(BE_ENERGIE_LOGEMENT_NRES_SHQ_AJ) ->  | BA43: 31 | BB43: =BE_ENERGIE_LOGEMENT_RES_ORG+BE_ENERGIE_LOGEMENT_NRES_ORG -> 0 | BG43: =BE_ENERGIE_LOGEMENT_RES_SHQ+BE_ENERGIE_LOGEMENT_NRES_SHQ -> 0 | DA43: =63123 -> 63123
C44: Énergie, parties communes | O44: 32 | P44: =IndicateurAjuste(BE_ENERGIE_COMMUN_RES_ORG_AJ) ->  | Q44: =Ajuster(BE_ENERGIE_COMMUN_RES_ORG_AJ,IP_SUP_AIRES_COMMUNES * PARM_COUT_ENERGIE_PAR_M2) -> 0 | U44: =IndicateurAjuste(BE_ENERGIE_COMMUN_RES_SHQ_AJ) ->  | V44: =Ajuster(BE_ENERGIE_COMMUN_RES_SHQ_AJ,IP_SUP_AIRES_COMMUNES * PARM_COUT_ENERGIE_PAR_M2) -> 0 | AH44: 33 | AI44: =IndicateurAjuste(BE_ENERGIE_COMMUN_NRES_ORG_AJ) ->  | AN44: =IndicateurAjuste(BE_ENERGIE_COMMUN_NRES_SHQ_AJ) ->  | BA44: 34 | BB44: =BE_ENERGIE_COMMUN_RES_ORG+BE_ENERGIE_COMMUN_NRES_ORG -> 0 | BG44: =BE_ENERGIE_COMMUN_RES_SHQ+BE_ENERGIE_COMMUN_NRES_SHQ -> 0 | DA44: =63153 -> 63153
C47: Ascenseur | O47: 35 | P47: =IndicateurAjuste(BE_ASCENCEUR_RES_ORG_AJ) ->  | Q47: =Ajuster(BE_ASCENCEUR_RES_ORG_AJ,CalculerAscenseur(G_PROJET_REGION, BIDON)) -> 0 | U47: =IndicateurAjuste(BE_ASCENCEUR_RES_SHQ_AJ) ->  | V47: =Ajuster(BE_ASCENCEUR_RES_SHQ_AJ,CalculerAscenseur(G_PROJET_REGION, BIDON)) -> 0 | AH47: 36 | AI47: =IndicateurAjuste(BE_ASCENCEUR_NRES_ORG_AJ) ->  | AN47: =IndicateurAjuste(BE_ASCENCEUR_NRES_SHQ_AJ) ->  | BA47: 37 | BB47: =BE_ASCENCEUR_RES_ORG+BE_ASCENCEUR_NRES_ORG -> 0 | BG47: =BE_ASCENCEUR_RES_SHQ+BE_ASCENCEUR_NRES_SHQ -> 0 | DA47: =62389 -> 62389
C48: Conciergerie | O48: 38 | P48: =IndicateurAjuste(BE_CONCIERGERIE_RES_ORG_AJ) ->  | Q48: =Ajuster(BE_CONCIERGERIE_RES_ORG_AJ,IF(LEFT(G_ORGANISME_TYPE,4)="COOP",0,PARM_COUT_CONCIERGERIE * IP_NBRE_UNITES)) -> 0 | U48: =IndicateurAjuste(BE_CONCIERGERIE_RES_SHQ_AJ) ->  | V48: =Ajuster(BE_CONCIERGERIE_RES_SHQ_AJ,IF(LEFT(G_ORGANISME_TYPE,4)="COOP",0,PARM_COUT_CONCIERGERIE * IP_NBRE_UNITES)) -> 0 | AH48: 39 | AI48: =IndicateurAjuste(BE_CONCIERGERIE_NRES_ORG_AJ) ->  | AN48: =IndicateurAjuste(BE_CONCIERGERIE_NRES_SHQ_AJ) ->  | BA48: 40 | BB48: =BE_CONCIERGERIE_RES_ORG+BE_CONCIERGERIE_NRES_ORG -> 0 | BG48: =BE_CONCIERGERIE_RES_SHQ+BE_CONCIERGERIE_NRES_SHQ -> 0 | DA48: =62174 -> 62174
C49: Entretien | O49: 41 | P49: =IndicateurAjuste(BE_ENTRETIEN_RES_ORG_AJ) ->  | Q49: =Ajuster(BE_ENTRETIEN_RES_ORG_AJ,CalculerEntretien(IP_CH_NBRE_UNITES,IP_NBRE_UNITES,BR_TRAVAUX_RES_ORG,BR_TRAVAUX_IMPREVUS_RES_ORG, BIDON)) -> 0 | U49: =IndicateurAjuste(BE_ENTRETIEN_RES_SHQ_AJ) ->  | V49: =Ajuster(BE_ENTRETIEN_RES_SHQ_AJ,CalculerEntretien(IP_CH_NBRE_UNITES,IP_NBRE_UNITES,BR_TRAVAUX_RES_SHQ,BR_TRAVAUX_IMPREVUS_RES_SHQ, BIDON)) -> 0 | AH49: 42 | AI49: =IndicateurAjuste(BE_ENTRETIEN_NRES_ORG_AJ) ->  | AN49: =IndicateurAjuste(BE_ENTRETIEN_NRES_SHQ_AJ) ->  | BA49: 43 | BB49: =BE_ENTRETIEN_RES_ORG+BE_ENTRETIEN_NRES_ORG -> 0 | BG49: =BE_ENTRETIEN_RES_SHQ+BE_ENTRETIEN_NRES_SHQ -> 0 | DA49: =62384 -> 62384
C50: Déneigement | H50: Aire(m2) | K50: 123 | O50: 44 | P50: =IndicateurAjuste(BE_DENEIGEMENT_RES_ORG_AJ) ->  | Q50: =Ajuster(BE_DENEIGEMENT_RES_ORG_AJ,CalculerDeneigement(G_PROJET_REGION, BE_AIRE_DENEIGEMENT)) -> 0 | U50: =IndicateurAjuste(BE_DENEIGEMENT_RES_SHQ_AJ) ->  | V50: =Ajuster(BE_DENEIGEMENT_RES_SHQ_AJ,CalculerDeneigement(G_PROJET_REGION, BE_AIRE_DENEIGEMENT)) -> 0 | AH50: 45 | AI50: =IndicateurAjuste(BE_DENEIGEMENT_NRES_ORG_AJ) ->  | AN50: =IndicateurAjuste(BE_DENEIGEMENT_NRES_SHQ_AJ) ->  | BA50: 46 | BB50: =BE_DENEIGEMENT_RES_ORG+BE_DENEIGEMENT_NRES_ORG -> 0 | BG50: =BE_DENEIGEMENT_RES_SHQ+BE_DENEIGEMENT_NRES_SHQ -> 0 | DA50: =62341 -> 62341
P51: =IndicateurAjuste(BE_DENEIGEMENT_RES_ORG_AJ) ->  | U51: =IndicateurAjuste(BE_DENEIGEMENT_RES_SHQ_AJ) ->  | AI51: =IndicateurAjuste(BE_DENEIGEMENT_NRES_ORG_AJ) ->  | AN51: =IndicateurAjuste(BE_DENEIGEMENT_NRES_SHQ_AJ) ->  | DA51: =62341 -> 62341
C53: Administration (%) | O53: 47 | P53: =IndicateurAjuste(BE_ADMINISTRATION_RES_ORG_AJ) ->  | Q53: =Ajuster(BE_ADMINISTRATION_RES_ORG_AJ,CalculerAdministration(IF(ISERR(BE_DEPENSES_TOTALES_RES_ORG),0,BE_DEPENSES_TOTALES_RES_ORG)-BE_DEPENSE_SERVICE_01_RES_ORG-BE_DEPENSE_SERVICE_02_RES_ORG-BE_DEPENSE_SERVICE_03_RES_ORG, BE_REVENUS_TOTAUX_RES_ORG-BE_REVENU_SERVICE_01_RES_ORG-BE_REVENU_SERVICE_02_RES_ORG-BE_REVENU_SERVICE_03_RES_ORG, IP_NBRE_UNITES, G_ORGANISME_TYPE)) -> 98.8713 | U53: =IndicateurAjuste(BE_ADMINISTRATION_RES_SHQ_AJ) ->  | V53: =Ajuster(BE_ADMINISTRATION_RES_SHQ_AJ,CalculerAdministration(IF(ISERR(BE_DEPENSES_TOTALES_RES_SHQ),0,BE_DEPENSES_TOTALES_RES_SHQ)-BE_DEPENSE_SERVICE_01_RES_SHQ-BE_DEPENSE_SERVICE_02_RES_SHQ-BE_DEPENSE_SERVICE_03_RES_SHQ, BE_REVENUS_TOTAUX_RES_SHQ-BE_REVENU_SERVICE_01_RES_SHQ-BE_REVENU_SERVICE_02_RES_SHQ-BE_REVENU_SERVICE_03_RES_SHQ, IP_NBRE_UNITES, G_ORGANISME_TYPE)) -> 98.8713 | AH53: 48 | AI53: =IndicateurAjuste(BE_ADMINISTRATION_NRES_ORG_AJ) ->  | AN53: =IndicateurAjuste(BE_ADMINISTRATION_NRES_SHQ_AJ) ->  | BA53: 49 | BB53: =BE_ADMINISTRATION_RES_ORG+BE_ADMINISTRATION_NRES_ORG -> 98.8713 | BG53: =BE_ADMINISTRATION_RES_SHQ+BE_ADMINISTRATION_NRES_SHQ -> 98.8713 | DA53: =61192 -> 61192
C54: Vérification | O54: 50 | P54: =IndicateurAjuste(BE_VERIFICATION_RES_ORG_AJ) ->  | Q54: =Ajuster(BE_VERIFICATION_RES_ORG_AJ,CalculerHonorairesVerification(G_PROJET_REGION, IP_NBRE_UNITES)) -> 1500 | U54: =IndicateurAjuste(BE_VERIFICATION_RES_SHQ_AJ) ->  | V54: =Ajuster(BE_VERIFICATION_RES_SHQ_AJ,CalculerHonorairesVerification(G_PROJET_REGION, IP_NBRE_UNITES)) -> 1500 | AH54: 51 | AI54: =IndicateurAjuste(BE_VERIFICATION_NRES_ORG_AJ) ->  | AN54: =IndicateurAjuste(BE_VERIFICATION_NRES_SHQ_AJ) ->  | BA54: 52 | BB54: =BE_VERIFICATION_RES_ORG+BE_VERIFICATION_NRES_ORG -> 1500 | BG54: =BE_VERIFICATION_RES_SHQ+BE_VERIFICATION_NRES_SHQ -> 1500 | DA54: =61252 -> 61252
C55: Formation et perfectionnement | O55: 53 | P55: =IndicateurAjuste(BE_FORMATION_RES_ORG_AJ) ->  | Q55: =Ajuster(BE_FORMATION_RES_ORG_AJ,IF(LEFT(G_ORGANISME_TYPE,4)="COOP",PARM_FORMATION_COOP,PARM_FORMATION_AUTRE) * IP_NBRE_UNITES) -> 0 | U55: =IndicateurAjuste(BE_FORMATION_RES_SHQ_AJ) ->  | V55: =Ajuster(BE_FORMATION_RES_SHQ_AJ,IF(LEFT(G_ORGANISME_TYPE,4)="COOP",PARM_FORMATION_COOP,PARM_FORMATION_AUTRE) * IP_NBRE_UNITES) -> 0 | BA55: 55 | BB55: =BE_FORMATION_RES_ORG -> 0 | BG55: =BE_FORMATION_RES_SHQ -> 0 | DA55: =61222 -> 61222
C56: Cotisation à la fédération | O56: 56 | P56: =IndicateurAjuste(BE_COTISATION_RES_ORG_AJ) ->  | Q56: =Ajuster(BE_COTISATION_RES_ORG_AJ,IF(LEFT(G_ORGANISME_TYPE,2)="OH",0,IF(G_PROJET_TERRITOIRE_FEDERATION,IF(LEFT(G_ORGANISME_TYPE,4)="COOP",PARM_COTISATION_COOP,PARM_COTISATION_AUTRE) * IP_NBRE_UNITES,0))) -> 0 | U56: =IndicateurAjuste(BE_COTISATION_RES_SHQ_AJ) ->  | V56: =Ajuster(BE_COTISATION_RES_SHQ_AJ,IF(LEFT(G_ORGANISME_TYPE,2)="OH",0,IF(G_PROJET_TERRITOIRE_FEDERATION,IF(LEFT(G_ORGANISME_TYPE,4)="COOP",PARM_COTISATION_COOP,PARM_COTISATION_AUTRE) * IP_NBRE_UNITES,0))) -> 0 | BA56: 58 | BB56: =BE_COTISATION_RES_ORG -> 0 | BG56: =BE_COTISATION_RES_SHQ -> 0 | DA56: =61742 -> 61742
C57: Frais de suivi - Capital patient | O57: 127 | P57: =IndicateurAjuste(BE_SUIVI_CAP_PAT_RES_ORG_AJ) ->  | Q57: =Ajuster(BE_SUIVI_CAP_PAT_RES_ORG_AJ,PARM_CAP_PAT_TAUX_SUIV_ADMIN_BE*F_CAP_PAT_RES_ORG) -> 0 | U57: =IndicateurAjuste(BE_SUIVI_CAP_PAT_RES_SHQ_AJ) ->  | V57: =Ajuster(BE_SUIVI_CAP_PAT_RES_SHQ_AJ,PARM_CAP_PAT_TAUX_SUIV_ADMIN_BE*F_CAP_PAT_RES_SHQ) -> 0 | AH57: 128 | AI57: =IndicateurAjuste(BE_SUIVI_CAP_PAT_NRES_ORG_AJ) ->  | AJ57: =Ajuster(BE_SUIVI_CAP_PAT_NRES_ORG_AJ,PARM_CAP_PAT_TAUX_SUIV_ADMIN_BE*F_CAP_PAT_NRES_ORG) -> 0 | AN57: =IndicateurAjuste(BE_SUIVI_CAP_PAT_NRES_SHQ_AJ) ->  | AO57: =Ajuster(BE_SUIVI_CAP_PAT_NRES_SHQ_AJ,PARM_CAP_PAT_TAUX_SUIV_ADMIN_BE*F_CAP_PAT_NRES_SHQ) -> 0 | BA57: 129 | BB57: =BE_SUIVI_CAP_PAT_RES_ORG+BE_SUIVI_CAP_PAT_NRES_ORG -> 0 | BG57: =BE_SUIVI_CAP_PAT_RES_SHQ+BE_SUIVI_CAP_PAT_NRES_SHQ -> 0 | DA57: =61242 -> 61242
C60: Réserve de remplacement immobilière | O60: 59 | P60: =IndicateurAjuste(BE_RESERVE_REMPLACEMENT_IMMO_RES_ORG_AJ) ->  | Q60: =Ajuster(BE_RESERVE_REMPLACEMENT_IMMO_RES_ORG_AJ,(SUM(Q23:Q56)+BE_VACANCES_RES_ORG)*5%) -> 93.828415 | U60: =IndicateurAjuste(BE_RESERVE_REMPLACEMENT_IMMO_RES_SHQ_AJ) ->  | V60: =Ajuster(BE_RESERVE_REMPLACEMENT_IMMO_RES_SHQ_AJ,(SUM(V23:V56)+BE_VACANCES_RES_SHQ)*5%) -> 93.828415 | AH60: 60 | AI60: =IndicateurAjuste(BE_RESERVE_REMPLACEMENT_IMMO_NRES_ORG_AJ) ->  | AN60: =IndicateurAjuste(BE_RESERVE_REMPLACEMENT_IMMO_NRES_SHQ_AJ) ->  | BA60: 61 | BB60: =BE_RESERVE_REMPLACEMENT_IMMO_RES_ORG+BE_RESERVE_REMPLACEMENT_IMMO_NRES_ORG -> 93.828415 | BG60: =BE_RESERVE_REMPLACEMENT_IMMO_RES_SHQ+BE_RESERVE_REMPLACEMENT_IMMO_NRES_SHQ -> 93.828415 | DA60: =64671 -> 64671
C61: Réserve de remplacement mobilière | O61: 62 | P61: =IndicateurAjuste(BE_RESERVE_REMPLACEMENT_MO_RES_ORG_AJ) ->  | Q61: =Ajuster(BE_RESERVE_REMPLACEMENT_MO_RES_ORG_AJ,(BR_SALLE_LAVAGE_RES_ORG+BR_MOBILIER_SALLE_COMMUNE_RES_ORG+BR_MOBILIER_CLIENT_SPECIALE_RES_ORG+BR_ELECTROMENAGERS_ADAPTES_RES_ORG+BR_IMMOBILISATIONS_AUTRES_RES_ORG)*PARM_TAUX_REMPLACEMENT_MOBILIER) -> 0 | U61: =IndicateurAjuste(BE_RESERVE_REMPLACEMENT_MO_RES_SHQ_AJ) ->  | V61: =Ajuster(BE_RESERVE_REMPLACEMENT_MO_RES_SHQ_AJ,(BR_SALLE_LAVAGE_RES_SHQ+BR_MOBILIER_SALLE_COMMUNE_RES_SHQ+BR_MOBILIER_CLIENT_SPECIALE_RES_SHQ+BR_ELECTROMENAGERS_ADAPTES_RES_SHQ+BR_IMMOBILISATIONS_AUTRES_RES_SHQ)*PARM_TAUX_REMPLACEMENT_MOBILIER) -> 0 | AH61: 63 | AI61: =IndicateurAjuste(BE_RESERVE_REMPLACEMENT_MO_NRES_ORG_AJ) ->  | AN61: =IndicateurAjuste(BE_RESERVE_REMPLACEMENT_MO_NRES_SHQ_AJ) ->  | BA61: 64 | BB61: =BE_RESERVE_REMPLACEMENT_MO_RES_ORG+BE_RESERVE_REMPLACEMENT_MO_NRES_ORG -> 0 | BG61: =BE_RESERVE_REMPLACEMENT_MO_RES_SHQ+BE_RESERVE_REMPLACEMENT_MO_NRES_SHQ -> 0 | DA61: =64641 -> 64641
C62: Réserve de gestion (Hypothèque) | O62: 65 | P62: =IndicateurAjuste(BE_RESERVE_GESTION_HYPOTHEQUE_RES_ORG_AJ) ->  | Q62: =Ajuster(BE_RESERVE_GESTION_HYPOTHEQUE_RES_ORG_AJ,CalculerReserveGestionHypotheque(BE_REMB_HYPOTHEQUE_CAPITAL_RES_ORG,BE_REMB_HYPOTHEQUE_INTERET_RES_ORG,F_HYPOTHEQUE_TAUX_ORG,F_HYPOTHEQUE_RESERVE_ORG,F_HYPOTHEQUE_AMORTISSEMENT_ORG,F_HYPOTHEQUE_TERME_ORG,BR_RESERVE_GESTION_RES_ORG,F_HYPOTHEQUE_PRET_RES_ORG)) -> 7.028981818 | U62: =IndicateurAjuste(BE_RESERVE_GESTION_HYPOTHEQUE_RES_SHQ_AJ) ->  | V62: =Ajuster(BE_RESERVE_GESTION_HYPOTHEQUE_RES_SHQ_AJ,CalculerReserveGestionHypotheque(BE_REMB_HYPOTHEQUE_CAPITAL_RES_SHQ,BE_REMB_HYPOTHEQUE_INTERET_RES_SHQ,F_HYPOTHEQUE_TAUX_SHQ,F_HYPOTHEQUE_RESERVE_SHQ,F_HYPOTHEQUE_AMORTISSEMENT_SHQ,F_HYPOTHEQUE_TERME_SHQ,BR_RESERVE_GESTION_RES_SHQ,F_HYPOTHEQUE_PRET_RES_SHQ)) -> 7.028981818 | AH62: 66 | AI62: =IndicateurAjuste(BE_RESERVE_GESTION_HYPOTHEQUE_NRES_ORG_AJ) ->  | AN62: =IndicateurAjuste(BE_RESERVE_GESTION_HYPOTHEQUE_NRES_SHQ_AJ) ->  | BA62: 67 | BB62: =BE_RESERVE_GESTION_HYPOTHEQUE_RES_ORG+BE_RESERVE_GESTION_HYPOTHEQUE_NRES_ORG -> 7.028981818 | BG62: =BE_RESERVE_GESTION_HYPOTHEQUE_RES_SHQ+BE_RESERVE_GESTION_HYPOTHEQUE_NRES_SHQ -> 7.028981818 | DA62: =64681 -> 64681
C63: Réserve de gestion (Subv. à l'exploit.) | O63: 68 | P63: =IndicateurAjuste(BE_RESERVE_GESTION_SUBVENTION_RES_ORG_AJ) ->  | Q63: =Ajuster(BE_RESERVE_GESTION_SUBVENTION_RES_ORG_AJ,CalculerReserveGestionSubvExpl(IP_TAXE_EXEMP,C_MUNI_CREDIT_TAXE_FONCIERE_ORG,C_AIDE_RABAIS_ACTUALISE_ORG,F_EMPRUNT_MONTANT_PRET_ORG,C_MUNI_CREDIT_TAXE_FONCIERE_ANNEES_ORG,C_AIDE_RABAIS_ANNEE_ORG,C_MUNI_CREDIT_TAXE_FONCIERE_MONTANT_ANNUEL_ORG,C_AIDE_RABAIS_MONTANT_ORG)) -> 0 | U63: =IndicateurAjuste(BE_RESERVE_GESTION_SUBVENTION_RES_SHQ_AJ) ->  | V63: =Ajuster(BE_RESERVE_GESTION_SUBVENTION_RES_SHQ_AJ,CalculerReserveGestionSubvExpl(IP_TAXE_EXEMP,C_MUNI_CREDIT_TAXE_FONCIERE_SHQ,C_AIDE_RABAIS_ACTUALISE_SHQ,F_EMPRUNT_MONTANT_PRET_SHQ,C_MUNI_CREDIT_TAXE_FONCIERE_ANNEES_SHQ,C_AIDE_RABAIS_ANNEE_SHQ,C_MUNI_CREDIT_TAXE_FONCIERE_MONTANT_ANNUEL_SHQ,C_AIDE_RABAIS_MONTANT_SHQ)) -> 0 | BA63: 70 | BB63: =BE_RESERVE_GESTION_SUBVENTION_RES_ORG -> 0 | BG63: =BE_RESERVE_GESTION_SUBVENTION_RES_SHQ -> 0 | DA63: =64691 -> 64691
C66: Dépenses de services - Volets II et III | BA66: 71 | BB66: =BE_DEPENSE_SERVICE_01_TOT_ORG+BE_DEPENSE_SERVICE_02_TOT_ORG+BE_DEPENSE_SERVICE_03_TOT_ORG -> 0 | BG66: =BE_DEPENSE_SERVICE_01_TOT_SHQ+BE_DEPENSE_SERVICE_02_TOT_SHQ+BE_DEPENSE_SERVICE_03_TOT_SHQ -> 0 | DA66: =66800 -> 66800
C67: 1 | N67: 72 | O67: 73 | P67: =IndicateurAjuste(BE_DEPENSE_SERVICE_01_RES_ORG_AJ) ->  | U67: =IndicateurAjuste(BE_DEPENSE_SERVICE_01_RES_SHQ_AJ) ->  | AH67: 74 | AI67: =IndicateurAjuste(BE_DEPENSE_SERVICE_01_NRES_ORG_AJ) ->  | AN67: =IndicateurAjuste(BE_DEPENSE_SERVICE_01_NRES_SHQ_AJ) ->  | BA67: 75 | BB67: =BE_DEPENSE_SERVICE_01_RES_ORG+BE_DEPENSE_SERVICE_01_NRES_ORG -> 0 | BG67: =BE_DEPENSE_SERVICE_01_RES_SHQ+BE_DEPENSE_SERVICE_01_NRES_SHQ -> 0 | DA67: =66800 -> 66800
C68: 2 | N68: 76 | O68: 77 | P68: =IndicateurAjuste(BE_DEPENSE_SERVICE_02_RES_ORG_AJ) ->  | U68: =IndicateurAjuste(BE_DEPENSE_SERVICE_02_RES_SHQ_AJ) ->  | AH68: 78 | AI68: =IndicateurAjuste(BE_DEPENSE_SERVICE_02_NRES_ORG_AJ) ->  | AN68: =IndicateurAjuste(BE_DEPENSE_SERVICE_02_NRES_SHQ_AJ) ->  | BA68: 79 | BB68: =BE_DEPENSE_SERVICE_02_RES_ORG+BE_DEPENSE_SERVICE_02_NRES_ORG -> 0 | BG68: =BE_DEPENSE_SERVICE_02_RES_SHQ+BE_DEPENSE_SERVICE_02_NRES_SHQ -> 0 | DA68: =66800 -> 66800
C69: 3 | N69: 80 | O69: 81 | P69: =IndicateurAjuste(BE_DEPENSE_SERVICE_03_RES_ORG_AJ) ->  | U69: =IndicateurAjuste(BE_DEPENSE_SERVICE_03_RES_SHQ_AJ) ->  | AH69: 82 | AI69: =IndicateurAjuste(BE_DEPENSE_SERVICE_03_NRES_ORG_AJ) ->  | AN69: =IndicateurAjuste(BE_DEPENSE_SERVICE_03_NRES_SHQ_AJ) ->  | BA69: 83 | BB69: =BE_DEPENSE_SERVICE_03_RES_ORG+BE_DEPENSE_SERVICE_03_NRES_ORG -> 0 | BG69: =BE_DEPENSE_SERVICE_03_RES_SHQ+BE_DEPENSE_SERVICE_03_NRES_SHQ -> 0 | DA69: =66800 -> 66800
C72: Vacances et mauvaises créances | O72: 84 | P72: =IndicateurAjuste(BE_VACANCES_RES_ORG_AJ) ->  | Q72: =Ajuster(BE_VACANCES_RES_ORG_AJ,CalculerMauvaisesCreances(IF(ISERR(BE_TOTAL_RES_ORG),0,BE_TOTAL_RES_ORG),IP_LOYERS_MEDIAN_SS_SERVC_ORG)) -> 79.097 | U72: =IndicateurAjuste(BE_VACANCES_RES_SHQ_AJ) ->  | V72: =Ajuster(BE_VACANCES_RES_SHQ_AJ,CalculerMauvaisesCreances(IF(ISERR(BE_TOTAL_RES_SHQ),0,BE_TOTAL_RES_SHQ),IP_LOYERS_MEDIAN_SS_SERVC_SHQ)) -> 79.097 | AH72: 85 | AI72: =IndicateurAjuste(BE_VACANCES_NRES_ORG_AJ) ->  | AN72: =IndicateurAjuste(BE_VACANCES_NRES_SHQ_AJ) ->  | BA72: 86 | BB72: =BE_VACANCES_RES_ORG+BE_VACANCES_NRES_ORG -> 79.097 | BG72: =BE_VACANCES_RES_SHQ+BE_VACANCES_NRES_SHQ -> 79.097 | DA72: =51652 -> 51652
C76: Dépenses totales | O76: 87 | P76: =SUM(Q23:Q72) -> 1977.425697 | U76: =SUM(V23:V72) -> 1977.425697 | AH76: 88 | AI76: =SUM(AJ23:AJ72) -> 0 | AN76: =SUM(AO23:AO72) -> 0 | BA76: 89 | BB76: =BE_DEPENSES_TOTALES_RES_ORG+BE_DEPENSES_TOTALES_NRES_ORG -> 1977.425697 | BG76: =BE_DEPENSES_TOTALES_RES_SHQ+BE_DEPENSES_TOTALES_NRES_SHQ -> 1977.425697
C79: REVENUS D'EXPLOITATION | P79: Résidentiel | AA79: Ajustement | AI79: Non résidentiel | BB79: Total
P80: Organisme | U80: SHQ | AA80: Organisme | AD80: SHQ | AI80: Organisme | AN80: SHQ | BB80: Organisme | BG80: SHQ
C83: Aide à l'exploitation 1re année (Sans SLO) | O83: 90 | P83: =IndicateurAjuste(BE_AIDE_EXPLOITATION_RES_ORG_AJ) ->  | Q83: =Ajuster(BE_AIDE_EXPLOITATION_RES_ORG_AJ,CalculerAideExploitation(IP_TAXE_EXEMP, C_MUNI_CREDIT_TAXE_FONCIERE_ORG, C_AIDE_RABAIS_ACTUALISE_ORG, F_EMPRUNT_MONTANT_PRET_ORG, C_MUNI_CREDIT_TAXE_FONCIERE_MONTANT_ANNUEL_ORG, C_AIDE_RABAIS_MONTANT_ORG, BE_REMB_PRET_CAPITAL_RES_ORG, BE_REMB_PRET_INTERET_RES_ORG)) -> 0 | U83: =IndicateurAjuste(BE_AIDE_EXPLOITATION_RES_SHQ_AJ) ->  | V83: =Ajuster(BE_AIDE_EXPLOITATION_RES_SHQ_AJ,CalculerAideExploitation(IP_TAXE_EXEMP, C_MUNI_CREDIT_TAXE_FONCIERE_SHQ, C_AIDE_RABAIS_ACTUALISE_SHQ, F_EMPRUNT_MONTANT_PRET_SHQ, C_MUNI_CREDIT_TAXE_FONCIERE_MONTANT_ANNUEL_SHQ, C_AIDE_RABAIS_MONTANT_SHQ, BE_REMB_PRET_CAPITAL_RES_SHQ, BE_REMB_PRET_INTERET_RES_SHQ)) -> 0 | BA83: 92 | BB83: =BE_AIDE_EXPLOITATION_RES_ORG -> 0 | BG83: =BE_AIDE_EXPLOITATION_RES_SHQ -> 0 | DA83: =63724 -> 63724
C86: Revenus de services - Volets II et III | BA86: 93 | BB86: =BE_REVENU_SERVICE_01_TOT_ORG+BE_REVENU_SERVICE_02_TOT_ORG+BE_REVENU_SERVICE_03_TOT_ORG -> 0 | BG86: =BE_REVENU_SERVICE_01_TOT_SHQ+BE_REVENU_SERVICE_02_TOT_SHQ+BE_REVENU_SERVICE_03_TOT_SHQ -> 0 | DA86: =51700 -> 51700
C87: 1 | N87: 94 | O87: 95 | P87: =IndicateurAjuste(BE_REVENU_SERVICE_01_RES_ORG_AJ) ->  | U87: =IndicateurAjuste(BE_REVENU_SERVICE_01_RES_SHQ_AJ) ->  | AH87: 96 | AI87: =IndicateurAjuste(BE_REVENU_SERVICE_01_NRES_ORG_AJ) ->  | AN87: =IndicateurAjuste(BE_REVENU_SERVICE_01_NRES_SHQ_AJ) ->  | BA87: 97 | BB87: =BE_REVENU_SERVICE_01_RES_ORG+BE_REVENU_SERVICE_01_NRES_ORG -> 0 | BG87: =BE_REVENU_SERVICE_01_RES_SHQ+BE_REVENU_SERVICE_01_NRES_SHQ -> 0 | DA87: =51700 -> 51700
C88: 2 | N88: 98 | O88: 99 | P88: =IndicateurAjuste(BE_REVENU_SERVICE_02_RES_ORG_AJ) ->  | U88: =IndicateurAjuste(BE_REVENU_SERVICE_02_RES_SHQ_AJ) ->  | AH88: 100 | AI88: =IndicateurAjuste(BE_REVENU_SERVICE_02_NRES_ORG_AJ) ->  | AN88: =IndicateurAjuste(BE_REVENU_SERVICE_02_NRES_SHQ_AJ) ->  | BA88: 101 | BB88: =BE_REVENU_SERVICE_02_RES_ORG+BE_REVENU_SERVICE_02_NRES_ORG -> 0 | BG88: =BE_REVENU_SERVICE_02_RES_SHQ+BE_REVENU_SERVICE_02_NRES_SHQ -> 0 | DA88: =51700 -> 51700
C89: 3 | N89: 102 | O89: 103 | P89: =IndicateurAjuste(BE_REVENU_SERVICE_03_RES_ORG_AJ) ->  | U89: =IndicateurAjuste(BE_REVENU_SERVICE_03_RES_SHQ_AJ) ->  | AH89: 104 | AI89: =IndicateurAjuste(BE_REVENU_SERVICE_03_NRES_ORG_AJ) ->  | AN89: =IndicateurAjuste(BE_REVENU_SERVICE_03_NRES_SHQ_AJ) ->  | BA89: 105 | BB89: =BE_REVENU_SERVICE_03_RES_ORG+BE_REVENU_SERVICE_03_NRES_ORG -> 0 | BG89: =BE_REVENU_SERVICE_03_RES_SHQ+BE_REVENU_SERVICE_03_NRES_SHQ -> 0 | DA89: =51700 -> 51700
C92: Autres revenus | BA92: 106 | BB92: =BE_REVENU_LOCATION_AUTRE_TOT_ORG+BE_REVENU_INTERET_TOT_ORG+BE_REVENU_DIVERS_TOT_ORG -> 0 | BG92: =BE_REVENU_LOCATION_AUTRE_TOT_SHQ+BE_REVENU_INTERET_TOT_SHQ+BE_REVENU_DIVERS_TOT_SHQ -> 0
C95: Autres revenus de location (stationnement, etc) | O95: 107 | P95: =IndicateurAjuste(BE_REVENU_LOCATION_AUTRE_RES_ORG_AJ) ->  | U95: =IndicateurAjuste(BE_REVENU_LOCATION_AUTRE_RES_SHQ_AJ) ->  | AH95: 108 | AI95: =IndicateurAjuste(BE_REVENU_LOCATION_AUTRE_NRES_ORG_AJ) ->  | AN95: =IndicateurAjuste(BE_REVENU_LOCATION_AUTRE_NRES_SHQ_AJ) ->  | BA95: 109 | BB95: =BE_REVENU_LOCATION_AUTRE_RES_ORG+BE_REVENU_LOCATION_AUTRE_NRES_ORG -> 0 | BG95: =BE_REVENU_LOCATION_AUTRE_RES_SHQ+BE_REVENU_LOCATION_AUTRE_NRES_SHQ -> 0 | DA95: =51632 -> 51632
C96: Revenus d'intérêts | O96: 110 | P96: =IndicateurAjuste(BE_REVENU_INTERET_RES_ORG_AJ) ->  | U96: =IndicateurAjuste(BE_REVENU_INTERET_RES_SHQ_AJ) ->  | AH96: 111 | AI96: =IndicateurAjuste(BE_REVENU_INTERET_NRES_ORG_AJ) ->  | AN96: =IndicateurAjuste(BE_REVENU_INTERET_NRES_SHQ_AJ) ->  | BA96: 112 | BB96: =BE_REVENU_INTERET_RES_ORG+BE_REVENU_INTERET_NRES_ORG -> 0 | BG96: =BE_REVENU_INTERET_RES_SHQ+BE_REVENU_INTERET_NRES_SHQ -> 0 | DA96: =51861 -> 51861
C97: Revenus divers (laveuses, sécheuses, etc.) | O97: 113 | P97: =IndicateurAjuste(BE_REVENU_DIVERS_RES_ORG_AJ) ->  | U97: =IndicateurAjuste(BE_REVENU_DIVERS_RES_SHQ_AJ) ->  | AH97: 114 | AI97: =IndicateurAjuste(BE_REVENU_DIVERS_NRES_ORG_AJ) ->  | AN97: =IndicateurAjuste(BE_REVENU_DIVERS_NRES_SHQ_AJ) ->  | BA97: 115 | BB97: =BE_REVENU_DIVERS_RES_ORG+BE_REVENU_DIVERS_NRES_ORG -> 0 | BG97: =BE_REVENU_DIVERS_RES_SHQ+BE_REVENU_DIVERS_NRES_SHQ -> 0 | DA97: =51864 -> 51864
C101: Revenus totaux | O101: 116 | P101: =SUM(Q83:Q97) -> 0 | U101: =SUM(V83:V97) -> 0 | AH101: 117 | AI101: =SUM(AJ83:AJ97) -> 0 | AN101: =SUM(AO83:AO97) -> 0 | BA101: 118 | BB101: =BE_REVENUS_TOTAUX_RES_ORG+BE_REVENUS_TOTAUX_NRES_ORG -> 0 | BG101: =BE_REVENUS_TOTAUX_RES_SHQ+BE_REVENUS_TOTAUX_NRES_SHQ -> 0
C105: LOYERS ÉCONOMIQUES ANNUELS
O106: 119 | P106: =BE_DEPENSES_TOTALES_RES_ORG-BE_REVENUS_TOTAUX_RES_ORG -> 1977.425697 | U106: =BE_DEPENSES_TOTALES_RES_SHQ-BE_REVENUS_TOTAUX_RES_SHQ -> 1977.425697 | AH106: 120 | AI106: =BE_DEPENSES_TOTALES_NRES_ORG-BE_REVENUS_TOTAUX_NRES_ORG -> 0 | AN106: =BE_DEPENSES_TOTALES_NRES_SHQ-BE_REVENUS_TOTAUX_NRES_SHQ -> 0 | BA106: 121 | BB106: =BE_TOTAL_RES_ORG+BE_TOTAL_NRES_ORG -> 1977.425697 | BG106: =BE_TOTAL_RES_SHQ+BE_TOTAL_NRES_SHQ -> 1977.425697
C109: VENTILATION - LOYERS ÉCONOMIQUES122
C110: Typologie | H110: Loyer économique mensuel / unité | T110: Nombre d'unités | AH110: Loyer économique mensuel / typologie | AZ110: Loyer économique annuel
H111: Organisme | N111: SHQ | AH111: Organisme | AN111: SHQ | AZ111: Organisme | BF111: SHQ
C112: Chambre | H112: =BE_TOTAL_RES_ORG/R_LOYER_ECONO_NET_ORG*R_LOY_ECON_NET_CH_ORG -> 0 | N112: =BE_TOTAL_RES_SHQ/R_LOYER_ECONO_NET_SHQ*R_LOY_ECON_NET_CH -> 0 | T112: =IP_CH_NBRE_UNITES -> 0 | AH112: =BE_LOYER_ECONOMIQUE_MENS_CH_ORG * IP_CH_NBRE_UNITES -> 0 | AN112: =BE_LOYER_ECONOMIQUE_MENS_CH_SHQ * IP_CH_NBRE_UNITES -> 0 | AZ112: =12*BE_LOYER_ECONOMIQUE_MENS_TOT_CH_ORG -> 0 | BF112: =12*BE_LOYER_ECONOMIQUE_MENS_TOT_CH_SHQ -> 0
C113: Studio | H113: =BE_TOTAL_RES_ORG/R_LOYER_ECONO_NET_ORG*R_LOY_ECON_NET_ST_ORG -> 0 | N113: =BE_TOTAL_RES_SHQ/R_LOYER_ECONO_NET_SHQ*R_LOY_ECON_NET_ST -> 0 | T113: =IP_ST_NBRE_UNITES -> 0 | AH113: =BE_LOYER_ECONOMIQUE_MENS_ST_ORG * IP_ST_NBRE_UNITES -> 0 | AN113: =BE_LOYER_ECONOMIQUE_MENS_ST_SHQ * IP_ST_NBRE_UNITES -> 0 | AZ113: =12*BE_LOYER_ECONOMIQUE_MENS_TOT_ST_ORG -> 0 | BF113: =12*BE_LOYER_ECONOMIQUE_MENS_TOT_ST_SHQ -> 0
C114: 1CC | H114: =BE_TOTAL_RES_ORG/R_LOYER_ECONO_NET_ORG*R_LOY_ECON_NET_1C_ORG -> 0 | N114: =BE_TOTAL_RES_SHQ/R_LOYER_ECONO_NET_SHQ*R_LOY_ECON_NET_1C -> 0 | T114: =IP_1C_NBRE_UNITES -> 0 | AH114: =BE_LOYER_ECONOMIQUE_MENS_1C_ORG * IP_1C_NBRE_UNITES -> 0 | AN114: =BE_LOYER_ECONOMIQUE_MENS_1C_SHQ * IP_1C_NBRE_UNITES -> 0 | AZ114: =12*BE_LOYER_ECONOMIQUE_MENS_TOT_1C_ORG -> 0 | BF114: =12*BE_LOYER_ECONOMIQUE_MENS_TOT_1C_SHQ -> 0
C115: 2CC | H115: =BE_TOTAL_RES_ORG/R_LOYER_ECONO_NET_ORG*R_LOY_ECON_NET_2C_ORG -> 0 | N115: =BE_TOTAL_RES_SHQ/R_LOYER_ECONO_NET_SHQ*R_LOY_ECON_NET_2C -> 0 | T115: =IP_2C_NBRE_UNITES -> 0 | AH115: =BE_LOYER_ECONOMIQUE_MENS_2C_ORG * IP_2C_NBRE_UNITES -> 0 | AN115: =BE_LOYER_ECONOMIQUE_MENS_2C_SHQ * IP_2C_NBRE_UNITES -> 0 | AZ115: =12*BE_LOYER_ECONOMIQUE_MENS_TOT_2C_ORG -> 0 | BF115: =12*BE_LOYER_ECONOMIQUE_MENS_TOT_2C_SHQ -> 0
C116: 3CC | H116: =BE_TOTAL_RES_ORG/R_LOYER_ECONO_NET_ORG*R_LOY_ECON_NET_3C_ORG -> 0 | N116: =BE_TOTAL_RES_SHQ/R_LOYER_ECONO_NET_SHQ*R_LOY_ECON_NET_3C -> 0 | T116: =IP_3C_NBRE_UNITES -> 0 | AH116: =BE_LOYER_ECONOMIQUE_MENS_3C_ORG * IP_3C_NBRE_UNITES -> 0 | AN116: =BE_LOYER_ECONOMIQUE_MENS_3C_SHQ * IP_3C_NBRE_UNITES -> 0 | AZ116: =12*BE_LOYER_ECONOMIQUE_MENS_TOT_3C_ORG -> 0 | BF116: =12*BE_LOYER_ECONOMIQUE_MENS_TOT_3C_SHQ -> 0
C117: 4CC | H117: =BE_TOTAL_RES_ORG/R_LOYER_ECONO_NET_ORG*R_LOY_ECON_NET_4C_ORG -> 0 | N117: =BE_TOTAL_RES_SHQ/R_LOYER_ECONO_NET_SHQ*R_LOY_ECON_NET_4C -> 0 | T117: =IP_4C_NBRE_UNITES -> 0 | AH117: =BE_LOYER_ECONOMIQUE_MENS_4C_ORG * IP_4C_NBRE_UNITES -> 0 | AN117: =BE_LOYER_ECONOMIQUE_MENS_4C_SHQ * IP_4C_NBRE_UNITES -> 0 | AZ117: =12*BE_LOYER_ECONOMIQUE_MENS_TOT_4C_ORG -> 0 | BF117: =12*BE_LOYER_ECONOMIQUE_MENS_TOT_4C_SHQ -> 0
C118: 5CC | H118: =BE_TOTAL_RES_ORG/R_LOYER_ECONO_NET_ORG*R_LOY_ECON_NET_5C_ORG -> 0 | N118: =BE_TOTAL_RES_SHQ/R_LOYER_ECONO_NET_SHQ*R_LOY_ECON_NET_5C -> 0 | T118: =IP_5C_NBRE_UNITES -> 0 | AH118: =BE_LOYER_ECONOMIQUE_MENS_5C_ORG * IP_5C_NBRE_UNITES -> 0 | AN118: =BE_LOYER_ECONOMIQUE_MENS_5C_SHQ * IP_5C_NBRE_UNITES -> 0 | AZ118: =12*BE_LOYER_ECONOMIQUE_MENS_TOT_5C_ORG -> 0 | BF118: =12*BE_LOYER_ECONOMIQUE_MENS_TOT_5C_SHQ -> 0
T119: Revenus totaux : | AH119: =BE_LOYER_ECONOMIQUE_MENS_TOT_CH_ORG+BE_LOYER_ECONOMIQUE_MENS_TOT_ST_ORG+BE_LOYER_ECONOMIQUE_MENS_TOT_1C_ORG+BE_LOYER_ECONOMIQUE_MENS_TOT_2C_ORG+BE_LOYER_ECONOMIQUE_MENS_TOT_3C_ORG+BE_LOYER_ECONOMIQUE_MENS_TOT_4C_ORG+BE_LOYER_ECONOMIQUE_MENS_TOT_5C_ORG -> 0 | AN119: =BE_LOYER_ECONOMIQUE_MENS_TOT_CH_SHQ+BE_LOYER_ECONOMIQUE_MENS_TOT_ST_SHQ+BE_LOYER_ECONOMIQUE_MENS_TOT_1C_SHQ+BE_LOYER_ECONOMIQUE_MENS_TOT_2C_SHQ+BE_LOYER_ECONOMIQUE_MENS_TOT_3C_SHQ+BE_LOYER_ECONOMIQUE_MENS_TOT_4C_SHQ+BE_LOYER_ECONOMIQUE_MENS_TOT_5C_SHQ -> 0 | AZ119: =BE_LOYER_ECONOMIQUE_AN_TOT_CH_ORG+BE_LOYER_ECONOMIQUE_AN_TOT_ST_ORG+BE_LOYER_ECONOMIQUE_AN_TOT_1C_ORG+BE_LOYER_ECONOMIQUE_AN_TOT_2C_ORG+BE_LOYER_ECONOMIQUE_AN_TOT_3C_ORG+BE_LOYER_ECONOMIQUE_AN_TOT_4C_ORG+BE_LOYER_ECONOMIQUE_AN_TOT_5C_ORG -> 0 | BF119: =BE_LOYER_ECONOMIQUE_AN_TOT_CH_SHQ+BE_LOYER_ECONOMIQUE_AN_TOT_ST_SHQ+BE_LOYER_ECONOMIQUE_AN_TOT_1C_SHQ+BE_LOYER_ECONOMIQUE_AN_TOT_2C_SHQ+BE_LOYER_ECONOMIQUE_AN_TOT_3C_SHQ+BE_LOYER_ECONOMIQUE_AN_TOT_4C_SHQ+BE_LOYER_ECONOMIQUE_AN_TOT_5C_SHQ -> 0
C122: PRÉCISIONS - Page 7 - Budget d'exploitation
D124: Dépenses d'exploitation
E126: Remboursement de l'emprunt (rabais de taxes) | X126: : | Y126: Remboursement de l'emprunt à court terme contracté dans le cadre de la conversion d'un rabais de taxes consenti par une municipalité.
E128: Rente emphytéotique | X128: : | Y128: Redevance annuelle dans le cadre d'une emphytéose.
E130: Aire (de déneigement) | X130: : | Y130: Superficie totale en mètres carrés des espaces de stationnement et des allées piétonnières à déneiger.
E132: Réserve de gestion (Hypothèque) | X132: : | Y132: Cette réserve doit être constituée annuellement au cours des 5 années suivant la DAI. Elle vise à atténuer l'augmentation importante de loyer
Y133: qu'entraînerait une hausse sensible du taux d'intérêt lors du 1er renouvellement hypothécaire.
E135: Réserve de gestion (Subvention à l'exploitation) | X135: : | Y135: Cette réserve est consituée si le rabais de taxes n'est pas converti en emprunt à court terme.
Y136: Elle a pour but d'éviter une hausse importante de loyer lorsque le rabais de taxes prendra fin.
D138: Revenus d'exploitation
E140: Aide à l'exploitation - 1re année (sans PSL) | X140: : | Y140: Montant du rabais de taxes applicable à la première année d'exploitation, s'il n'y a pas conversion du rabais en emprunt à court terme.
E142: Autres revenus de location | X142: : | Y142: Revenus générés par la location d'espaces autres que résidentiels (Exemple : espaces de stationnement).
E144: Revenus d'intérêt | X144: : | Y144: Revenus d'intérêt générés par le compte bancaire, les réserves, les dépôts à terme, etc.
E146: Revenus divers | X146: : | Y146: Tout autre revenu, hors les revenus de services et de location (Exemple : laveuse, sécheuse, etc.)

Sheet Résumé
L3: Demande d'aide financière
L4: =MP_VERSION -> Version 12.2.00C
F5: Formulaire en date du | G5: =TODAY() -> 2024-10-04
B6: Page 8 - RÉSUMÉ
B8: PROJET | AP8: Date de la DAF : | AQ8: =G_PROJET_ETAPE_APPROUVE -> 00:00:00 | AR8: =G_APPRO_DATE -> 00:00:00
B10: Numéro du projet | J10: : | K10: =G_PROGRAMME -> ACL | M10: - | N10: =G_PROJET_NUMERO -> 00000 | Q10: 1 | AB10: Étape du projet : | AD10: =G_PROJET_ETAPE -> 0 | AP10: 2 | AU10: 3 | CA10: =G_PROJET_APPROUVE -> FALSE
B12: Nom du projet | J12: : | K12: =G_PROJET_NOM -> 0 | AU12: 4
B14: Municipalité | J14: : | K14: =G_PROJET_MUNICIPALITE -> 0 | AL14: =AU12+1 -> 5 | AQ14: Arrondissement | AR14: : | AS14: =G_PROJET_ARRONDISSEMENT -> 0 | AU14: 6
B16: Adresse principale | J16: : | Z16: 7 | AA16: Code postal | AG16: : | AL16: =Z16+1 -> 8
K18: Municipalité participante | S18: : | Y18: 9 | AA18: Type d'intervention | AG18: : | AH18: =G_PROJET_TYPE_INTERVENTION -> 0 | AU18: 10 | CA18: =G_PROJET_MUN_PARTICIPANTE -> FALSE | CB18: =G_PROJET_MUN_PARTICIPANTE_NON -> FALSE
K20: Moins de 2000 habitants | S20: : | Y20: 11 | AA20: Subvention PAMH | AG20: : | AI20: 12 | AJ20: 14 | AK20: Nb Unités | AO20: Unités SPH | AR20: Unités SAD | AV20: FALSE | CA20: =G_PROJET_MUN_2500 -> FALSE | CB20: =G_PROJET_MUN_2500_NON -> FALSE | CC20: =G_PROJET_TERRITOIRE_FEDERATION_NON -> FALSE
K22: Territoire de Fédération | S22: : | Y22: 13 | AG22: Unités / volet : | AH22: Volet I | AK22: =IP_NBRE_UNITES_I -> 0 | AO22: =G_UNITES_SPH_I -> 0 | AR22: =G_UNITES_SAD_I -> 0 | CA22: =G_PROJET_TERRITOIRE_FEDERATION -> FALSE | CB22: =G_PROJET_TERRITOIRE_FEDERATION_NON -> FALSE | CC22: =G_PROJET_SUBVENTION_PAMH -> FALSE
B24: Région administrative | J24: : | K24: =G_PROJET_REGION -> 0 | AD24: 15 | AH24: Volet II | AK24: =IP_NBRE_UNITES_II -> 0 | AO24: =G_UNITES_SPH_II -> 0 | AR24: =G_UNITES_SAD_II -> 0
B26: Territoire | J26: : | K26: =G_PROJET_TERRITOIRE -> 0 | AD26: 16 | AH26: Volet III | AK26: =IP_NBRE_UNITES_III -> 0 | AO26: =G_UNITES_SPH_III -> 0 | AR26: =G_UNITES_SAD_III -> 0
B28: Date d'occupation | J28: : | K28: =IF(ISBLANK(G_PROJET_DATE_OCCUPATION),"",G_PROJET_DATE_OCCUPATION) ->  | AD28: 16b | AH28: Total | AK28: =IP_NBRE_UNITES -> 0 | AO28: =G_UNITES_SPH -> 0 | AR28: =G_UNITES_SAD -> 0
B30: Date ajust. intérêts | J30: : | K30: =IF(ISBLANK(G_PROJET_DATE_DAI),"",G_PROJET_DATE_DAI) ->  | AD30: 79
B32: Capital patient | J32: : | L32: 84 | P32: Indice 16/15 : | Q32: =IF(ISERROR(F_RATIO_REMB_HYP_20_VS_15_ORG),"S/O",F_RATIO_REMB_HYP_20_VS_15_ORG) -> 0 | U32: 86 | V32: =IF(ISERROR(F_RATIO_REMB_HYP_20_VS_15_SHQ),"S/O",F_RATIO_REMB_HYP_20_VS_15_SHQ) -> 0 | AG32: Montant total : | AJ32: =F_CAP_PAT_TOT_ORG -> 0 | AO32: 85 | AP32: =F_CAP_PAT_TOT_SHQ -> 0 | CC32: =G_CAPITAL_PATIENT -> FALSE
B35: RATIOS
C38: Calcul du ratio loyer économique / loyer médian (résidentiel) | AK38: Organisme | AP38: SHQ
C40: Loyers économiques annuels | AJ40: =BE_TOTAL_RES_ORG -> 1977.425697 | AO40: 17 | AP40: =BE_TOTAL_RES_SHQ -> 1977.425697
C42: + | D42: Aide à l'exploitation de la 1ère année (Sans SLO) | AJ42: =BE_AIDE_EXPLOITATION_RES_ORG -> 0 | AO42: 19 | AP42: =BE_AIDE_EXPLOITATION_RES_SHQ -> 0
C43: - | D43: Réserves de gestion pour l'aide à l'exploitation | AJ43: =BE_RESERVE_GESTION_SUBVENTION_RES_ORG -> 0 | AO43: 21 | AP43: =BE_RESERVE_GESTION_SUBVENTION_RES_SHQ -> 0
C44: - | D44: Remboursement hypothécaire (aide à l'exploitation capitalisée & rabais de taxes PRQ) | AJ44: =IF(IP_TAXE_EXEMP,0,-PMT((1+0.5*G_TAUX_LT_ORG)^(1/6)-1,(F_HYPOTHEQUE_AMORTISSEMENT_ORG+IF(G_CAPITAL_PATIENT,PARM_CAP_PAT_AM_EMP_HYP,0))*12,F_EMPRUNT_RABAIS_TAXE_TOTAL_ORG)*12) -> 0 | AO44: 23 | AP44: =IF(IP_TAXE_EXEMP,0,-PMT((1+0.5*G_TAUX_LT_SHQ)^(1/6)-1,(F_HYPOTHEQUE_AMORTISSEMENT_SHQ+IF(G_CAPITAL_PATIENT,PARM_CAP_PAT_AM_EMP_HYP,0))*12,F_EMPRUNT_RABAIS_TAXE_TOTAL_SHQ)*12) -> 0
C45: - | D45: Énergie des logements | AJ45: =BE_ENERGIE_LOGEMENT_RES_ORG -> 0 | AO45: 25 | AP45: =BE_ENERGIE_LOGEMENT_RES_SHQ -> 0
C46: - | D46: Services de soutien: Dépenses moins revenus | AJ46: =CalculerResumeServicesSoutien(BE_DEPENSE_SERVICE_01_RES_ORG+BE_DEPENSE_SERVICE_02_RES_ORG+BE_DEPENSE_SERVICE_03_RES_ORG,BE_REVENU_SERVICE_01_RES_ORG+BE_REVENU_SERVICE_02_RES_ORG+BE_REVENU_SERVICE_03_RES_ORG) -> 0 | AO46: 27 | AP46: =CalculerResumeServicesSoutien(BE_DEPENSE_SERVICE_01_RES_SHQ+BE_DEPENSE_SERVICE_02_RES_SHQ+BE_DEPENSE_SERVICE_03_RES_SHQ,BE_REVENU_SERVICE_01_RES_SHQ+BE_REVENU_SERVICE_02_RES_SHQ+BE_REVENU_SERVICE_03_RES_SHQ) -> 0
C48: Loyer économique (net) sans service | AJ48: =MAX(0.01,R_17_ORG+R_19_ORG-R_21_ORG-R_23_ORG-R_25_ORG-R_27_ORG) -> 1977.425697 | AO48: 29 | AP48: =MAX(0.01,R_17_SHQ+R_19_SHQ-R_21_SHQ-R_23_SHQ-R_25_SHQ-R_27_SHQ) -> 1977.425697
C50: Loyer médian sans service | AJ50: =IP_LOYERS_MEDIAN_SS_SERVC_ORG*12 -> 0 | AO50: 31 | AP50: =IP_LOYERS_MEDIAN_SS_SERVC_SHQ*12 -> 0
C53: Ratio loyer économique (net) / loyer médian sans service | AJ53: =IF(R_LOYER_MEDIAN_SS_SRVC_ORG=0,0,R_LOYER_ECONO_NET_ORG/R_LOYER_MEDIAN_SS_SRVC_ORG) -> 0 | AO53: 33 | AP53: =IF(R_LOYER_MEDIAN_SS_SRVC_SHQ=0,0,R_LOYER_ECONO_NET_SHQ/R_LOYER_MEDIAN_SS_SRVC_SHQ) -> 0
C57: Ventilation des loyers économiques (NET)
P59: Organisme | V59: SHQ | AP59: RATIO
C60: 35 | D60: Type de logement | K60: Nombre | N60: Cout moy | P60: Loyer économique | V60: Loyer économique | AB60: Loyer économique | AI60: Loyer médian | AP60: Loyer É. /
K61: d'unités | N61: Réal. | P61: Mensuel/unité | V61: =P61 -> Mensuel/unité | AB61: NET sans service | AI61: sans service (SHQ) | AP61: Loyer M.
D62: Chambre | K62: =IP_CH_NBRE_UNITES -> 0 | N62: =IF(IP_SUPERFICIE_TOTALE=0,0,BR_COUT_REALISATION_RES_SHQ * IP_CH_SUPERFICIE/IP_SUPERFICIE_TOTALE) -> 0 | P62: =BE_LOYER_ECONOMIQUE_MENS_CH_ORG -> 0 | V62: =BE_TOTAL_RES_SHQ/R_LOYER_ECONO_NET_SHQ*R_LOY_ECON_NET_CH -> 0 | AB62: =RATIO_LOYER_ECONO_VS_MEDIAN_SHQ*R_LOY_MEDIAN_CH -> 0 | AI62: =IF(IP_CH_NBRE_UNITES<=0,0,IP_CH_SS_SERVC_SHQ) -> 0 | AP62: =IF(R_LOY_MEDIAN_CH=0,0,R_LOY_ECON_NET_CH/R_LOY_MEDIAN_CH) -> 0 | CA62: =RATIO_LOYER_ECONO_VS_MEDIAN_ORG*R_LOY_MEDIAN_CH_ORG -> 0 | CB62: =IF(IP_CH_NBRE_UNITES<=0,0,IP_CH_SS_SERVC_ORG) -> 0
D63: Studio | K63: =IP_ST_NBRE_UNITES -> 0 | N63: =IF(IP_SUPERFICIE_TOTALE=0,0,BR_COUT_REALISATION_RES_SHQ * IP_ST_SUPERFICIE/IP_SUPERFICIE_TOTALE) -> 0 | P63: =BE_LOYER_ECONOMIQUE_MENS_ST_ORG -> 0 | V63: =BE_TOTAL_RES_SHQ/R_LOYER_ECONO_NET_SHQ*R_LOY_ECON_NET_ST -> 0 | AB63: =RATIO_LOYER_ECONO_VS_MEDIAN_SHQ*R_LOY_MEDIAN_ST -> 0 | AI63: =IF(IP_ST_NBRE_UNITES<=0,0,IP_ST_SS_SERVC_SHQ) -> 0 | AP63: =IF(R_LOY_MEDIAN_ST=0,0,R_LOY_ECON_NET_ST/R_LOY_MEDIAN_ST) -> 0 | CA63: =RATIO_LOYER_ECONO_VS_MEDIAN_ORG*R_LOY_MEDIAN_ST_ORG -> 0 | CB63: =IF(IP_ST_NBRE_UNITES<=0,0,IP_ST_SS_SERVC_ORG) -> 0
D64: 1 CC | K64: =IP_1C_NBRE_UNITES -> 0 | N64: =IF(IP_SUPERFICIE_TOTALE=0,0,BR_COUT_REALISATION_RES_SHQ * IP_1C_SUPERFICIE/IP_SUPERFICIE_TOTALE) -> 0 | P64: =BE_LOYER_ECONOMIQUE_MENS_1C_ORG -> 0 | V64: =BE_TOTAL_RES_SHQ/R_LOYER_ECONO_NET_SHQ*R_LOY_ECON_NET_1C -> 0 | AB64: =RATIO_LOYER_ECONO_VS_MEDIAN_SHQ*R_LOY_MEDIAN_1C -> 0 | AI64: =IF(IP_1C_NBRE_UNITES<=0,0,IP_1C_SS_SERVC_SHQ) -> 0 | AP64: =IF(R_LOY_MEDIAN_1C=0,0,R_LOY_ECON_NET_1C/R_LOY_MEDIAN_1C) -> 0 | CA64: =RATIO_LOYER_ECONO_VS_MEDIAN_ORG*R_LOY_MEDIAN_1C_ORG -> 0 | CB64: =IF(IP_1C_NBRE_UNITES<=0,0,IP_1C_SS_SERVC_ORG) -> 0
D65: 2 CC | K65: =IP_2C_NBRE_UNITES -> 0 | N65: =IF(IP_SUPERFICIE_TOTALE=0,0,BR_COUT_REALISATION_RES_SHQ * IP_2C_SUPERFICIE/IP_SUPERFICIE_TOTALE) -> 0 | P65: =BE_LOYER_ECONOMIQUE_MENS_2C_ORG -> 0 | V65: =BE_TOTAL_RES_SHQ/R_LOYER_ECONO_NET_SHQ*R_LOY_ECON_NET_2C -> 0 | AB65: =RATIO_LOYER_ECONO_VS_MEDIAN_SHQ*R_LOY_MEDIAN_2C -> 0 | AI65: =IF(IP_2C_NBRE_UNITES<=0,0,IP_2C_SS_SERVC_SHQ) -> 0 | AP65: =IF(R_LOY_MEDIAN_2C=0,0,R_LOY_ECON_NET_2C/R_LOY_MEDIAN_2C) -> 0 | CA65: =RATIO_LOYER_ECONO_VS_MEDIAN_ORG*R_LOY_MEDIAN_2C_ORG -> 0 | CB65: =IF(IP_2C_NBRE_UNITES<=0,0,IP_2C_SS_SERVC_ORG) -> 0
D66: 3 CC | K66: =IP_3C_NBRE_UNITES -> 0 | N66: =IF(IP_SUPERFICIE_TOTALE=0,0,BR_COUT_REALISATION_RES_SHQ * IP_3C_SUPERFICIE/IP_SUPERFICIE_TOTALE) -> 0 | P66: =BE_LOYER_ECONOMIQUE_MENS_3C_ORG -> 0 | V66: =BE_TOTAL_RES_SHQ/R_LOYER_ECONO_NET_SHQ*R_LOY_ECON_NET_3C -> 0 | AB66: =RATIO_LOYER_ECONO_VS_MEDIAN_SHQ*R_LOY_MEDIAN_3C -> 0 | AI66: =IF(IP_3C_NBRE_UNITES<=0,0,IP_3C_SS_SERVC_SHQ) -> 0 | AP66: =IF(R_LOY_MEDIAN_3C=0,0,R_LOY_ECON_NET_3C/R_LOY_MEDIAN_3C) -> 0 | CA66: =RATIO_LOYER_ECONO_VS_MEDIAN_ORG*R_LOY_MEDIAN_3C_ORG -> 0 | CB66: =IF(IP_3C_NBRE_UNITES<=0,0,IP_3C_SS_SERVC_ORG) -> 0
D67: 4 CC | K67: =IP_4C_NBRE_UNITES -> 0 | N67: =IF(IP_SUPERFICIE_TOTALE=0,0,BR_COUT_REALISATION_RES_SHQ * IP_4C_SUPERFICIE/IP_SUPERFICIE_TOTALE) -> 0 | P67: =BE_LOYER_ECONOMIQUE_MENS_4C_ORG -> 0 | V67: =BE_TOTAL_RES_SHQ/R_LOYER_ECONO_NET_SHQ*R_LOY_ECON_NET_4C -> 0 | AB67: =RATIO_LOYER_ECONO_VS_MEDIAN_SHQ*R_LOY_MEDIAN_4C -> 0 | AI67: =IF(IP_4C_NBRE_UNITES<=0,0,IP_4C_SS_SERVC_SHQ) -> 0 | AP67: =IF(R_LOY_MEDIAN_4C=0,0,R_LOY_ECON_NET_4C/R_LOY_MEDIAN_4C) -> 0 | CA67: =RATIO_LOYER_ECONO_VS_MEDIAN_ORG*R_LOY_MEDIAN_4C_ORG -> 0 | CB67: =IF(IP_4C_NBRE_UNITES<=0,0,IP_4C_SS_SERVC_ORG) -> 0
D68: 5 CC | K68: =IP_5C_NBRE_UNITES -> 0 | N68: =IF(IP_SUPERFICIE_TOTALE=0,0,BR_COUT_REALISATION_RES_SHQ * IP_5C_SUPERFICIE/IP_SUPERFICIE_TOTALE) -> 0 | P68: =BE_LOYER_ECONOMIQUE_MENS_5C_ORG -> 0 | V68: =BE_TOTAL_RES_SHQ/R_LOYER_ECONO_NET_SHQ*R_LOY_ECON_NET_5C -> 0 | AB68: =RATIO_LOYER_ECONO_VS_MEDIAN_SHQ*R_LOY_MEDIAN_5C -> 0 | AI68: =IF(IP_5C_NBRE_UNITES<=0,0,IP_5C_SS_SERVC_SHQ) -> 0 | AP68: =IF(R_LOY_MEDIAN_5C=0,0,R_LOY_ECON_NET_5C/R_LOY_MEDIAN_5C) -> 0 | CA68: =RATIO_LOYER_ECONO_VS_MEDIAN_ORG*R_LOY_MEDIAN_5C_ORG -> 0 | CB68: =IF(IP_5C_NBRE_UNITES<=0,0,IP_5C_SS_SERVC_ORG) -> 0
D69: Revenus mensuels | P69: =IP_CH_NBRE_UNITES * R_LOY_ECON_MENS_UNITE_CH_ORG + IP_ST_NBRE_UNITES * R_LOY_ECON_MENS_UNITE_ST_ORG + IP_1C_NBRE_UNITES * R_LOY_ECON_MENS_UNITE_1C_ORG + IP_2C_NBRE_UNITES * R_LOY_ECON_MENS_UNITE_2C_ORG + IP_3C_NBRE_UNITES * R_LOY_ECON_MENS_UNITE_3C_ORG + IP_4C_NBRE_UNITES * R_LOY_ECON_MENS_UNITE_4C_ORG + IP_5C_NBRE_UNITES * R_LOY_ECON_MENS_UNITE_5C_ORG -> 0 | V69: =IP_CH_NBRE_UNITES * R_LOY_ECON_MENS_UNITE_CH_SHQ + IP_ST_NBRE_UNITES * R_LOY_ECON_MENS_UNITE_ST_SHQ + IP_1C_NBRE_UNITES * R_LOY_ECON_MENS_UNITE_1C_SHQ + IP_2C_NBRE_UNITES * R_LOY_ECON_MENS_UNITE_2C_SHQ + IP_3C_NBRE_UNITES * R_LOY_ECON_MENS_UNITE_3C_SHQ + IP_4C_NBRE_UNITES * R_LOY_ECON_MENS_UNITE_4C_SHQ + IP_5C_NBRE_UNITES * R_LOY_ECON_MENS_UNITE_5C_SHQ -> 0 | AB69: =IP_CH_NBRE_UNITES * R_LOY_ECON_NET_CH + IP_ST_NBRE_UNITES * R_LOY_ECON_NET_ST + IP_1C_NBRE_UNITES * R_LOY_ECON_NET_1C + IP_2C_NBRE_UNITES * R_LOY_ECON_NET_2C + IP_3C_NBRE_UNITES * R_LOY_ECON_NET_3C + IP_4C_NBRE_UNITES * R_LOY_ECON_NET_4C + IP_5C_NBRE_UNITES * R_LOY_ECON_NET_5C -> 0 | AI69: =IP_CH_NBRE_UNITES * R_LOY_MEDIAN_CH + IP_ST_NBRE_UNITES * R_LOY_MEDIAN_ST + IP_1C_NBRE_UNITES * R_LOY_MEDIAN_1C + IP_2C_NBRE_UNITES * R_LOY_MEDIAN_2C + IP_3C_NBRE_UNITES * R_LOY_MEDIAN_3C + IP_4C_NBRE_UNITES * R_LOY_MEDIAN_4C + IP_5C_NBRE_UNITES * R_LOY_MEDIAN_5C -> 0 | AP69: =IF(R_LOY_MEDIAN_TOT=0,0,R_LOY_ECON_NET_TOT/R_LOY_MEDIAN_TOT) -> 0
D70: Revenus annuels | P70: =R_LOY_ECON_MENS_UNITE_TOT_ORG*12 -> 0 | V70: =R_LOY_ECON_MENS_UNITE_TOT_SHQ*12 -> 0 | AB70: =R_LOY_ECON_NET_TOT*12 -> 0 | AI70: =R_LOY_MEDIAN_TOT*12 -> 0 | AP70: N/D
C73: Respect des ratios
D75: Partie résidentielle seulement | Y75: Organisme | AF75: SHQ | AM75: Norme
D76: Acquisition / Évaluation foncière | Y76: =IF(PresenceCleEnMain(BIDON),"S/O",IF(IA_EVAL_FONCIERE_RES_ORG=0,"S/O",ROUND(BR_ACQUISITION_RES_ORG/IA_EVAL_FONCIERE_RES_ORG,4))) -> S/O | AD76: 36 | AF76: =IF(PresenceCleEnMain(BIDON),"S/O",IF(IA_EVAL_FONCIERE_RES_SHQ=0,"S/O",ROUND(BR_ACQUISITION_RES_SHQ/IA_EVAL_FONCIERE_RES_SHQ,4))) -> S/O | AM76: =Norme(0,1,TRUE,TRUE) -> [ 0%, 100% ] | AS76: A
D77: Acquisition / Valeur marchande avant travaux | Y77: =IF(PresenceCleEnMain(BIDON),"S/O",IF(IA_EVAL_MARCHANDE_RES_ORG=0,"S/O",ROUND(BR_ACQUISITION_RES_ORG/IA_EVAL_MARCHANDE_RES_ORG,4))) -> S/O | AD77: 38 | AF77: =IF(PresenceCleEnMain(BIDON),"S/O",IF(IA_EVAL_MARCHANDE_RES_SHQ=0,"S/O",ROUND(BR_ACQUISITION_RES_SHQ/IA_EVAL_MARCHANDE_RES_SHQ,4))) -> S/O | AM77: =Norme(0,1,TRUE,TRUE) -> [ 0%, 100% ] | AS77: B
D78: Prêt / Valeur marchande après travaux | Y78: =IF(IP_VALEUR_AP_TRAVAUX_RES_ORG=0,"S/O",ROUND(F_HYPOTHEQUE_PRET_RES_ORG/IP_VALEUR_AP_TRAVAUX_RES_ORG,4)) -> S/O | AD78: 40 | AF78: =IF(IP_VALEUR_AP_TRAVAUX_RES_SHQ=0,"S/O",ROUND(F_HYPOTHEQUE_PRET_RES_SHQ/IP_VALEUR_AP_TRAVAUX_RES_SHQ,4)) -> S/O | AM78: =Norme(-1,-1) -> S/O | AS78: C
D79: Loyers économiques / Loyer médian | Y79: =RATIO_LOYER_ECONO_VS_MEDIAN_ORG -> 0 | AD79: 42 | AF79: =RATIO_LOYER_ECONO_VS_MEDIAN_SHQ -> 0 | AM79: =DeterminerNormeD(G_PROGRAMME,G_PROJET_SUBVENTION_PAMH,IP_VOLET_III_SEULEMENT,IP_CHAMBRE_URGENCE_SEULEMENT,IP_CHAMBRE_URGENCE,IP_PLUS_D_UN_VOLET) -> [ 75%, 95% ] | AS79: D
D80: Contribution du milieu / Coûts admissibles SHQ | Y80: =F_RATIO_E_ORG -> 0 | AD80: 44 | AF80: =F_RATIO_E_SHQ -> 0 | AM80: =DeterminerNormeE(G_PROGRAMME,G_PROJET_SUBVENTION_PAMH,IP_VOLET_I_SEULEMENT,IP_VOLET_I_AUCUN,IP_PLUS_D_UN_VOLET) -> S/O | AS80: E
D81: Proportion des unités de supplément au loyer | S81: ( | T81: =IP_UNITES_NOMBRE -> 0 | V81: unités) 46 | Y81: =IP_PROPORTION -> 0 | AD81: 47 | AF81: =IP_PROPORTION -> 0 | AM81: =DeterminerNormeF(G_PROGRAMME,G_PROJET_SUBVENTION_PAMH,IP_NBRE_UNITES_I,IP_NBRE_UNITES_II,IP_NBRE_UNITES_III,IP_NBRE_CHAMBRE_URGENCE,IP_NBRE_UNITES) -> [ 50%, 80% ] | AS81: F
D82: Coûts des travaux par unité | Y82: =IF(IP_NBRE_UNITES=0,0,(BR_TRAVAUX_RES_ORG+BR_TRAVAUX_IMPREVUS_RES_ORG) * PARM_TAUX_COMBINE_TPS_TVQ / IP_NBRE_UNITES) -> 0 | AD82: 49 | AF82: =IF(IP_NBRE_UNITES=0,0,(BR_TRAVAUX_RES_SHQ+BR_TRAVAUX_IMPREVUS_RES_SHQ) * PARM_TAUX_COMBINE_TPS_TVQ / IP_NBRE_UNITES) -> 0 | AM82: =NORME_H=Norme(-1,-1) -> FALSE | AS82: G
D84: Partie non résidentielle seulement | Y84: Organisme | AF84: SHQ | AM84: Norme
D85: Acquisition / Évaluation foncière | Y85: =IF(OR(IA_EVAL_FONCIERE_NRES_ORG=0,PresenceCleEnMain(BIDON)),"S/O",ROUND(BR_ACQUISITION_NRES_ORG/IA_EVAL_FONCIERE_NRES_ORG,4)) -> S/O | AD85: 51 | AF85: =IF(OR(IA_EVAL_FONCIERE_NRES_SHQ=0,PresenceCleEnMain(BIDON)),"S/O",ROUND(BR_ACQUISITION_NRES_SHQ/IA_EVAL_FONCIERE_NRES_SHQ,4)) -> S/O | AM85: =Norme(0,1,TRUE,TRUE) -> [ 0%, 100% ] | AS85: H
D86: Acquisition / Valeur marchande avant travaux | Y86: =IF(OR(IA_EVAL_MARCHANDE_NRES_ORG=0,PresenceCleEnMain(BIDON)),"S/O",ROUND(BR_ACQUISITION_NRES_ORG/IA_EVAL_MARCHANDE_NRES_ORG,4)) -> S/O | AD86: 53 | AF86: =IF(OR(IA_EVAL_MARCHANDE_NRES_SHQ=0,PresenceCleEnMain(BIDON)),"S/O",ROUND(BR_ACQUISITION_NRES_SHQ/IA_EVAL_MARCHANDE_NRES_SHQ,4)) -> S/O | AM86: =Norme(0,1,TRUE,TRUE) -> [ 0%, 100% ] | AS86: I
D87: Prêt / Valeur marchande après travaux | Y87: =IF(IP_VALEUR_AP_TRAVAUX_NRES_ORG=0,"S/O",ROUND(F_HYPOTHEQUE_PRET_NRES_ORG/IP_VALEUR_AP_TRAVAUX_NRES_ORG,4)) -> S/O | AD87: 55 | AF87: =IF(IP_VALEUR_AP_TRAVAUX_NRES_SHQ=0,"S/O",ROUND(F_HYPOTHEQUE_PRET_NRES_SHQ/IP_VALEUR_AP_TRAVAUX_NRES_SHQ,4)) -> S/O | AM87: =Norme(-1,-1) -> S/O | AS87: J
D89: Global (Partie résidentielle et non résidentielle) | Y89: Organisme | AF89: SHQ | AM89: Norme
D90: Acquisition / Évaluation foncière | Y90: =IF(OR(IA_EVAL_FONCIERE_ORG=0,PresenceCleEnMain(BIDON)),"S/O",ROUND(BR_ACQUISITION_TOT_ORG/IA_EVAL_FONCIERE_ORG,4)) -> S/O | AD90: 57 | AF90: =IF(OR(IA_EVAL_FONCIERE_SHQ=0,PresenceCleEnMain(BIDON)),"S/O",ROUND(BR_ACQUISITION_TOT_SHQ/IA_EVAL_FONCIERE_SHQ,4)) -> S/O | AM90: =Norme(0,1,TRUE,TRUE) -> [ 0%, 100% ] | AS90: K
D91: Acquisition / Valeur marchande avant travaux | Y91: =IF(OR(IA_EVAL_MARCHANDE_ORG=0,PresenceCleEnMain(BIDON)),"S/O",ROUND(BR_ACQUISITION_TOT_ORG/IA_EVAL_MARCHANDE_ORG,4)) -> S/O | AD91: 59 | AF91: =IF(OR(IA_EVAL_MARCHANDE_SHQ=0,PresenceCleEnMain(BIDON)),"S/O",ROUND(BR_ACQUISITION_TOT_SHQ/IA_EVAL_MARCHANDE_SHQ,4)) -> S/O | AM91: =Norme(0,1,TRUE,TRUE) -> [ 0%, 100% ] | AS91: L
D92: Prêt / Valeur marchande après travaux | Y92: =IF(IP_VALEUR_AP_TRAVAUX_RES_ORG+IP_VALEUR_AP_TRAVAUX_NRES_ORG=0,"S/O",ROUND((F_HYPOTHEQUE_PRET_RES_ORG+F_HYPOTHEQUE_PRET_NRES_ORG)/(IP_VALEUR_AP_TRAVAUX_RES_ORG+IP_VALEUR_AP_TRAVAUX_NRES_ORG),4)) -> S/O | AD92: 61 | AF92: =IF(IP_VALEUR_AP_TRAVAUX_RES_SHQ+IP_VALEUR_AP_TRAVAUX_NRES_SHQ=0,"S/O",ROUND((F_HYPOTHEQUE_PRET_RES_SHQ+F_HYPOTHEQUE_PRET_NRES_SHQ)/(IP_VALEUR_AP_TRAVAUX_RES_SHQ+IP_VALEUR_AP_TRAVAUX_NRES_SHQ),4)) -> S/O | AM92: =Norme(-1,-1) -> S/O | AS92: M
D94: Subvention PRQ & PRVQ / Subvention ACL & LAQ | Y94: Organisme | AF94: SHQ | AM94: Norme
D95: Subvention PRQ & PRVQ / Subvention ACL & LAQ | Y95: =IF(MIN(MIN_CM_V1_15_ORG+MIN_CM_V2_ORG+MIN_CM_V3_ORG,C_MONTANT_TOTAL_ORG)+F_SUBVENTIONS_TOTALE_ORG=0,"S/O",ROUND((C_AIDE_RABAIS_ACTUALISE_ORG + C_AIDE_CONTRIBUTION_MONTANT_ORG)/(MIN(MIN_CM_V1_15_ORG+MIN_CM_V2_ORG+MIN_CM_V3_ORG,C_MONTANT_TOTAL_ORG)+F_SUBVENTIONS_TOTALE_ORG),4)) -> S/O | AD95: 63 | AF95: =IF(MIN(MIN_CM_V1_15_SHQ+MIN_CM_V2_SHQ+MIN_CM_V3_SHQ,C_MONTANT_TOTAL_SHQ)+F_SUBVENTIONS_TOTALE_SHQ=0,"S/O",ROUND((C_AIDE_RABAIS_ACTUALISE_SHQ + C_AIDE_CONTRIBUTION_MONTANT_SHQ)/(MIN(MIN_CM_V1_15_SHQ+MIN_CM_V2_SHQ+MIN_CM_V3_SHQ,C_MONTANT_TOTAL_SHQ)+F_SUBVENTIONS_TOTALE_SHQ),4)) -> S/O | AM95: =Norme(0,0.15) -> [ 0%, 15% ] | AS95: N
D96: Montant PRQ & PRVQ | Y96: =ROUND(C_AIDE_RABAIS_ACTUALISE_ORG + C_AIDE_CONTRIBUTION_MONTANT_ORG,4) -> 0 | AD96: 65 | AF96: =ROUND(C_AIDE_RABAIS_ACTUALISE_SHQ + C_AIDE_CONTRIBUTION_MONTANT_SHQ,4) -> 0 | AM96: =Norme(-1,-1) -> S/O | AS96: O
B99: CONTRIBUTIONS ET AIDES COMPLÉMENTAIRES
C101: Contributions du milieu | N101: Organisme | S101: SHQ | Y101: Aides complémentaires | AL101: Organisme | AR101: SHQ
D103: Secteur privé | L103: =C_PR_MONTANT_TOTAL_ORG -> 0 | P103: 66 | Q103: =C_PR_MONTANT_TOTAL_SHQ -> 0 | Y103: PRQ | AB103: Rabais de taxe (VA) | AJ103: =C_AIDE_RABAIS_ACTUALISE_ORG -> 0 | AO103: 72 | AP103: =C_AIDE_RABAIS_ACTUALISE_SHQ -> 0
D104: Secteur public | L104: =C_PU_MONTANT_TOTAL_ORG -> 0 | P104: 67 | Q104: =C_PU_MONTANT_TOTAL_SHQ -> 0 | AB104: Mnt. de la subvention | AJ104: =C_AIDE_CONTRIBUTION_MONTANT_ORG -> 0 | AO104: 73 | AP104: =C_AIDE_CONTRIBUTION_MONTANT_SHQ -> 0
D105: Municipalité | L105: =C_MUNI_MONTANT_TOTAL_ORG -> 0 | P105: 68 | Q105: =C_MUNI_MONTANT_TOTAL_SHQ -> 0 | AB105: Total | AJ105: =C_AIDE_RABAIS_ACTUALISE_ORG+C_AIDE_CONTRIBUTION_MONTANT_ORG -> 0 | AO105: 74 | AP105: =C_AIDE_RABAIS_ACTUALISE_SHQ+C_AIDE_CONTRIBUTION_MONTANT_SHQ -> 0
D106: Organisme | L106: =C_ORG_MONTANT_TOTAL_ORG -> 0 | P106: 69 | Q106: =C_ORG_MONTANT_TOTAL_SHQ -> 0 | AB106: Conserv. du patr. bâti | AJ106: =C_AIDE_CONSERVATION_MONTANT_ORG -> 0 | AO106: 75 | AP106: =C_AIDE_CONSERVATION_MONTANT_SHQ -> 0
D107: Total | L107: =C_MONTANT_TOTAL_ORG -> 0 | P107: 70 | Q107: =C_MONTANT_TOTAL_SHQ -> 0 | AB107: Contribution max. | AJ107: =C_AIDE_MAX_PRQ_ORG -> 0 | AO107: 76 | AP107: =C_AIDE_MAX_PRQ_SHQ -> 0
D109: Contrib. Min. requise | L109: =C_CONTRIBUTION_MINIMUM_ORG -> 0 | P109: 71 | Q109: =C_CONTRIBUTION_MINIMUM_SHQ -> 0 | Y109: PAMH | AB109: Total | AJ109: =C_AIDE_PAMH_TOTAL_ORG -> 0 | AO109: 77 | AP109: =C_AIDE_PAMH_TOTAL_SHQ -> 0
AB110: Contribution max. | AJ110: =C_AIDE_MAX_PAMH_ORG -> 0 | AO110: 78 | AP110: =C_AIDE_MAX_PAMH_SHQ -> 0
B115: BUDGETS
C117: Budget de réalisation 64 | L117: Résidentiel | X117: Non résidentiel | AJ117: Total
L118: Organisme | R118: SHQ | X118: Organisme | AD118: SHQ | AJ118: Organisme | AP118: SHQ
C119: Dépenses totales | L119: =BR_DEPENSES_TOTALES_RES_ORG -> 6950.2538 | R119: =BR_DEPENSES_TOTALES_RES_SHQ -> 6950.2538 | X119: =BR_DEPENSES_TOTALES_NRES_ORG -> 0 | AD119: =BR_DEPENSES_TOTALES_NRES_SHQ -> 0 | AJ119: =BR_DEPENSES_TOTALES_TOT_ORG -> 6950.2538 | AP119: =BR_DEPENSES_TOTALES_TOT_SHQ -> 6950.2538
C120: Revenus totaux | L120: =BR_REVENUS_TOTAUX_RES_ORG -> 0 | R120: =BR_REVENUS_TOTAUX_RES_SHQ -> 0 | X120: =BR_REVENUS_TOTAUX_NRES_ORG -> 0 | AD120: =BR_REVENUS_TOTAUX_NRES_SHQ -> 0 | AJ120: =BR_REVENUS_TOTAUX_TOT_ORG -> 0 | AP120: =BR_REVENUS_TOTAUX_TOT_SHQ -> 0
C121: Total | L121: =BR_COUT_REALISATION_RES_ORG -> 6950 | R121: =BR_COUT_REALISATION_RES_SHQ -> 6950 | X121: =BR_COUT_REALISATION_NRES_ORG -> 0 | AD121: =BR_COUT_REALISATION_NRES_SHQ -> 0 | AJ121: =BR_COUT_REALISATION_TOT_ORG -> 6950 | AP121: =BR_COUT_REALISATION_TOT_SHQ -> 6950
C124: Budget d'exploitation 65 | L124: Résidentiel | X124: Non résidentiel | AJ124: Total
L125: Organisme | R125: SHQ | X125: Organisme | AD125: SHQ | AJ125: Organisme | AP125: SHQ
C126: Dépenses générales | L126: =BE_DEPENSES_TOTALES_RES_ORG-(BE_DEPENSE_SERVICE_01_RES_ORG+BE_DEPENSE_SERVICE_02_RES_ORG+BE_DEPENSE_SERVICE_03_RES_ORG) -> 1977.425697 | R126: =BE_DEPENSES_TOTALES_RES_SHQ-(BE_DEPENSE_SERVICE_01_RES_SHQ+BE_DEPENSE_SERVICE_02_RES_SHQ+BE_DEPENSE_SERVICE_03_RES_SHQ) -> 1977.425697 | X126: =BE_DEPENSES_TOTALES_NRES_ORG-(BE_DEPENSE_SERVICE_01_NRES_ORG+BE_DEPENSE_SERVICE_02_NRES_ORG+BE_DEPENSE_SERVICE_03_NRES_ORG) -> 0 | AD126: =BE_DEPENSES_TOTALES_NRES_SHQ-(BE_DEPENSE_SERVICE_01_NRES_SHQ+BE_DEPENSE_SERVICE_02_NRES_SHQ+BE_DEPENSE_SERVICE_03_NRES_SHQ) -> 0 | AJ126: =BE_DEPENSES_TOTALES_TOT_ORG-(BE_DEPENSE_SERVICE_01_TOT_ORG+BE_DEPENSE_SERVICE_02_TOT_ORG+BE_DEPENSE_SERVICE_03_TOT_ORG) -> 1977.425697 | AP126: =BE_DEPENSES_TOTALES_TOT_SHQ-(BE_DEPENSE_SERVICE_01_TOT_SHQ+BE_DEPENSE_SERVICE_02_TOT_SHQ+BE_DEPENSE_SERVICE_03_TOT_SHQ) -> 1977.425697
C127: Dépenses de services | L127: =BE_DEPENSE_SERVICE_01_RES_ORG+BE_DEPENSE_SERVICE_02_RES_ORG+BE_DEPENSE_SERVICE_03_RES_ORG -> 0 | R127: =BE_DEPENSE_SERVICE_01_RES_SHQ+BE_DEPENSE_SERVICE_02_RES_SHQ+BE_DEPENSE_SERVICE_03_RES_SHQ -> 0 | X127: =BE_DEPENSE_SERVICE_01_NRES_ORG+BE_DEPENSE_SERVICE_02_NRES_ORG+BE_DEPENSE_SERVICE_03_NRES_ORG -> 0 | AD127: =BE_DEPENSE_SERVICE_01_NRES_SHQ+BE_DEPENSE_SERVICE_02_NRES_SHQ+BE_DEPENSE_SERVICE_03_NRES_SHQ -> 0 | AJ127: =BE_DEPENSE_SERVICE_01_TOT_ORG+BE_DEPENSE_SERVICE_02_TOT_ORG+BE_DEPENSE_SERVICE_03_TOT_ORG -> 0 | AP127: =BE_DEPENSE_SERVICE_01_TOT_SHQ+BE_DEPENSE_SERVICE_02_TOT_SHQ+BE_DEPENSE_SERVICE_03_TOT_SHQ -> 0
C128: Revenus généraux | L128: =BE_REVENUS_TOTAUX_RES_ORG-(BE_REVENU_SERVICE_01_RES_ORG+BE_REVENU_SERVICE_02_RES_ORG+BE_REVENU_SERVICE_03_RES_ORG) -> 0 | R128: =BE_REVENUS_TOTAUX_RES_SHQ-(BE_REVENU_SERVICE_01_RES_SHQ+BE_REVENU_SERVICE_02_RES_SHQ+BE_REVENU_SERVICE_03_RES_SHQ) -> 0 | X128: =BE_REVENUS_TOTAUX_NRES_ORG-(BE_REVENU_SERVICE_01_NRES_ORG+BE_REVENU_SERVICE_02_NRES_ORG+BE_REVENU_SERVICE_03_NRES_ORG) -> 0 | AD128: =BE_REVENUS_TOTAUX_NRES_SHQ-(BE_REVENU_SERVICE_01_NRES_SHQ+BE_REVENU_SERVICE_02_NRES_SHQ+BE_REVENU_SERVICE_03_NRES_SHQ) -> 0 | AJ128: =BE_REVENUS_TOTAUX_TOT_ORG-(BE_REVENU_SERVICE_01_TOT_ORG+BE_REVENU_SERVICE_02_TOT_ORG+BE_REVENU_SERVICE_03_TOT_ORG) -> 0 | AP128: =BE_REVENUS_TOTAUX_TOT_SHQ-(BE_REVENU_SERVICE_01_TOT_SHQ+BE_REVENU_SERVICE_02_TOT_SHQ+BE_REVENU_SERVICE_03_TOT_SHQ) -> 0
C129: Revenus de services | L129: =BE_REVENU_SERVICE_01_RES_ORG+BE_REVENU_SERVICE_02_RES_ORG+BE_REVENU_SERVICE_03_RES_ORG -> 0 | R129: =BE_REVENU_SERVICE_01_RES_SHQ+BE_REVENU_SERVICE_02_RES_SHQ+BE_REVENU_SERVICE_03_RES_SHQ -> 0 | X129: =BE_REVENU_SERVICE_01_NRES_ORG+BE_REVENU_SERVICE_02_NRES_ORG+BE_REVENU_SERVICE_03_NRES_ORG -> 0 | AD129: =BE_REVENU_SERVICE_01_NRES_SHQ+BE_REVENU_SERVICE_02_NRES_SHQ+BE_REVENU_SERVICE_03_NRES_SHQ -> 0 | AJ129: =BE_REVENU_SERVICE_01_TOT_ORG+BE_REVENU_SERVICE_02_TOT_ORG+BE_REVENU_SERVICE_03_TOT_ORG -> 0 | AP129: =BE_REVENU_SERVICE_01_TOT_SHQ+BE_REVENU_SERVICE_02_TOT_SHQ+BE_REVENU_SERVICE_03_TOT_SHQ -> 0
C130: Total | L130: =BE_TOTAL_RES_ORG -> 1977.425697 | R130: =BE_TOTAL_RES_SHQ -> 1977.425697 | X130: =BE_TOTAL_NRES_ORG -> 0 | AD130: =BE_TOTAL_NRES_SHQ -> 0 | AJ130: =BE_TOTAL_TOT_ORG -> 1977.425697 | AP130: =BE_TOTAL_TOT_SHQ -> 1977.425697
B133: SIGNATURE
C134: Chargé de projet (mandataire) | W134: Date | AD134: Signature
B136: Nom | L136: 80 | N136: Prénom | V136: 82 | AC136: 83
H139: Téléphone | I139: : | Q139: 81
B141: PRÉCISIONS - Page 8 - Résumé
C143: Calcul du ratio: | Q143: : | R143: S'il y a conversion des rabais de taxes en emprunts à court terme, les postes suivants
C144: loyer économique / loyer médian (résidentiel) | R144: sont mis à zéro :
R145: - Aide à l'exploitation de la 1ère année (Sans PSL)
R146: - Réserve de gestion pour l'aide à l'exploitation
R147: - Remboursement hypothécaire, aide à l'exploitation capitalisée & rabais de taxes PRQ

Sheet Paramètres
A1: Paramètres généraux | N1: État du cheminement de la DAF
I2: Code date d'ouverture au changement de rôle dans le menu de la DAF : | K2: 0 | N2: Statut de transmission | T2: Valeurs possibles: À transmettre / Transmis
A3: Version - DAF | B3: 12.2.00 | N3: Code dernière transmission à la SHQ
A4: Version - fichers d'exportation | B4: 11.1 | C4: <-- SHQSBB 20200212 - Utilisé lors de l'importation de la DAF dans Débours (peut-être ailleurs, je ne sais pas). | N4: Code dernière intégration
A5: Répertoire de transfert | B5: N:\ACL\TRANSFER | C5: M:\ACL-SYS\ACL\TRANSFER | N5: Profil actuel de l'intervenant | R5: Organisme | T5: Valeurs possibles: Organisme, Mandataire, Société d'habitation (selon base de registre)
A6: Version minimale d'Excel | B6: 12 | G6: Transfert de la DAF du mandataire vers la SHQ | N6: Statut d'envoi de l'organisme | R6: À transmettre | T6: ORG
A7: Taux de la TPS | B7: 0.05 | H7: Nom | J7: Adresse courriel | N7: Code d'envoi de l'organisme
A8: Taux de la TVQ | B8: 0.09975 | C8: =(1+PARM_TAUX_TPS+PARM_TAUX_TVQ) -> 1.14975 | F8: Registre utilisée--> | G8: Expéditeur | H8: DAF transmise par un mandataire | J8: acceslogis@shq.gouv.qc.ca | N8: Fichier d'exportation | T8: Code mandataire
A9: Taux de la taxe d'assurances | B9: 0.09 | G9: Destinataire - production | H9: Programme Accès-Logis | J9: acceslogis@shq.gouv.qc.ca | N9: MAJ Logiciel | R9: TRUE
G10: Destinataire - développement | H10: Développeur | J10: hcs.essais-acceptation@shq.gouv.qc.ca
A11: Organisme de soutien au développement | C11: OSD | G11: Texte du courriel | H11: <p>Le mandataire vous transmet les données de base pour le projet %PROJET%.</p><p>Ce projet a été traité avec la version %VERSION% de la DAF</p>
G12: Mandataire
A13: Assurances BE#26, BR#83
A14: Montant Responsabilité civile - chantier | B14: 600 | C14: (pour la durée du chantier) | G14: Organisme | H14: <p>L'organisme vous transmet les données de base pour le projet %PROJET%.</p><p>Ce projet a été traité avec la version %VERSION% de la DAF</p> | M14: Répertoire de destination des fichiers .daf pour HCS | Q14: Répertoire de destination pour les fichiers de simulation
A15: Taux assurance tout risque COOP/OBNL (PAPB) | B15: 0.28 | C15: /100 $ | M15: Prod | N15: O:\2420-fic\entree | Q15: Prod | R15: O:\2420-fic\simul
A16: Taux assurance tout risque autres | B16: 0.4 | C16: /100 $ | M16: Test | N16: O:\3200-HCS\tst01\fichiers\entree | Q16: Test | R16: O:\3200-HCS\tst01\fichiers\simul
A17: Montant par unité responsabilité civile - exploitation (PARC) | B17: 13 | C17: /unités
A18: Montant par unité Responsabilité administrateur (PARA) | B18: 8.5 | C18: /unités | H18: Minimum : | I18: 300 | K18: Maximum : | L18: 750 | Q18: Courriel Intervenant
A19: Montant par unité chaudière/mach. Av DAI BR#83 (PACM) | B19: 5.5 | C19: /unités | H19: Minimum : | I19: 100 | K19: Maximum : | Q19: Organisme
A20: Montant par unité chaudière/mach. BE#26 (PACM) | B20: 5.5 | C20: /unités | H20: Minimum : | I20: 100 | K20: Maximum : | Q20: Mandataire
A21: Facteur ajustement SHQ | B21: 1
A22: Tableau des fraudes par nombre d'unités - assurances 3D (PA3D) | F22: [Seuil minimal | G22: Seuil maximal[ | H22: Montant | I22: Minimum : | J22: 300 | K22: Maximum :
F23: 1 | G23: 11 | H23: 95
F24: =G23+1 -> 12 | G24: 20 | H24: 110
F25: =G24+1 -> 21 | H25: 120
A28: Taux de remboursement de TPS G#25 | F28: 100
F29: 50
F30: 36
F31: 0
A34: Taux de remboursement de TVQ G#28 | F34: 50
F35: 36
F36: 0
A39: Paramètres - Immeubles prévus
A41: Frais mensuel des services pour le calcul du loyer médian sans services par typologie IP#7 | E41: Frais mensuel des services - AR_2021 Taxes incluses
G42: Eau
F43: Chauffage | G43: Chaude | H43: Électricité | I43: Total
E44: Chambres | F44: 26 | G44: 13 | H44: 9 | I44: 48
E45: Studio | F45: 31 | G45: 15 | H45: 11 | I45: 57
E46: 1cc | F46: 36 | G46: 17 | H46: 14 | I46: 67
E47: 2cc | F47: 45 | G47: 22 | H47: 17 | I47: 84
E48: 3cc | F48: 55 | G48: 27 | H48: 20 | I48: 102
E49: 4cc | F49: 61 | G49: 29 | H49: 22 | I49: 112
E50: 5cc | F50: 69 | G50: 33 | H50: 25 | I50: 127
A52: Tableau des facteurs de calcul pour établir la valeur marchande après travaux (IP#14-17) | E52: AR | F52: AJ | G52: AS | H52: CN | I52: TR
E53: 0.5 | F53: 0.5 | G53: N/A | H53: 0.6 | I53: 0.6
A58: Paramètres - Budget de réalisation
A60: Barèmes et taux de droit de mutation. BR#8,9 | F60: Borne minimale | G60: Borne maximale | H60: Taux
F61: 0 | G61: 53200 | H61: 0.005
F62: =G61 -> 53200 | G62: 266200 | H62: 0.01
F63: =G62 -> 266200 | G63: 527900 | H63: 0.015
F64: =G63 -> 527900 | G64: 1055800 | H64: 0.02 | J64: Tranches pour Mtl uniquement
F65: =G64 -> 1055800 | G65: 2041900 | H65: 0.025 | J65: Tranches pour Mtl uniquement
F66: =G65 -> 2041900 | H66: 0.03 | J66: Tranches pour Mtl uniquement
A67: Validation du montant des travaux BR#23 | B67: Montant par Unité - ACL | F67: 2000 | G67: maximum pour achat simple
B68: Montant par Unité - LAQ | F68: 35000 | G68: minimum pour admissibilité
A71: Tableau de calcul du pourcentage à affecter aux imprévus en fonction du type d'intervention BR#29 | E71: Type d'intervention | H71: Taux
E72: =INDEX(G_PROJET_TYPES_INTERVENTION,2,1) -> AJ : Achat rénovation - Majeure | H72: 0.1
E73: =INDEX(G_PROJET_TYPES_INTERVENTION,3,1) -> AR : Achat rénovation - Mineure | H73: 0.1
E74: =INDEX(G_PROJET_TYPES_INTERVENTION,4,1) -> CN : Construction neuve | H74: 0.2
E75: =INDEX(G_PROJET_TYPES_INTERVENTION,5,1) -> TR : Transformation-recyclage | H75: 0.05
E76: TR : Transformation rénovation | H76: 0.1
A78: Coût par certificat de localisation | B78: 660 | C78: (BR#44)
F80: Honoraires des ingénieurs
F81: Selon le décret - Grille des pourcentages / Services professionnels des ingénieurs.
F82: 1er avril 2006_ C.T. 203348 du 7 mars 2006
F83: Structure : Catégorie I
F84: Mécanique et électricité : Catégorie III
A85: Tableau de calcul des honoraires des ingénieurs BR#47 | F85: [ Seuil minimal | G85: Seuil maximal [ | H85: Taux structure | I85: Taux mécanique
F86: 0 | G86: =F87 -> 150000 | H86: 0.07 | I86: 0.088
F87: 150000 | G87: =F88 -> 300000 | H87: 0.064 | I87: 0.082
F88: 300000 | G88: =F89 -> 600000 | H88: 0.057 | I88: 0.07
F89: 600000 | G89: =F90 -> 1600000 | H89: 0.053 | I89: 0.062
F90: 1600000 | G90: =F91 -> 4000000 | H90: 0.05 | I90: 0.056
F91: 4000000 | G91: 10000000 | H91: 0.044 | I91: 0.052
A93: Facteur et taux de calcul des frais d'honoraires d'ingénieur en structure | E93: AR | F93: AJ | G93: AS | H93: CN | I93: TR
E94: 1 | F94: 1 | G94: 0 | H94: 1 | I94: 1
E95: 0.25 | F95: 0.25 | G95: 0 | H95: 0.25 | I95: 0
A97: Facteur et taux de calcul des frais d'honoraires d'ingénieur en mécanique | E97: AR | F97: AJ | G97: AS | H97: CN | I97: TR
E98: 0.2 | F98: 0.2 | G98: 0 | H98: 0.2 | I98: 0.2
A101: Facteur de la SHQ pour le calcul des honoraires d'ingénieurs | E101: 0.8
A105: Montant par unité pour ingénieurs - AR ou AJ | E105: Structure | G105: 200
E106: Meca & Elec | G106: 900
F108: Honoraires des architectes
F109: Selon l'Association des Architectes en pratique privée
F110: Mars 2005
F111: Catégorie III
A112: Tableau de calcul des honoraires des architectes BR#50 | F112: ] Seuil minimal | G112: Seuil maximal ] | H112: Taux
F113: 0 | G113: 300000 | H113: 0.065
F114: 300000 | G114: =F115 -> 600000 | H114: 0.065
F115: 600000 | G115: =F116 -> 1250000 | H115: 0.0525
F116: 1250000 | G116: =F117 -> 2500000 | H116: 0.047
F117: 2500000 | G117: =F118 -> 5000000 | H117: 0.045
F118: 5000000 | G118: =F119 -> 10000000 | H118: 0.043
F119: 10000000 | G119: 50000000 | H119: 0.0425
M120: PG 20060217 anciennes valeurs pour Montréal
A121: Facteur de calcul des frais d'architecte | E121: AR | F121: AJ | G121: AS | H121: CN | I121: TR | L121: AR | M121: AJ | O121: AS | Q121: CN | R121: TR
B122: Autre | E122: 1.5 | F122: 1.5 | G122: 0 | H122: 1 | I122: 1.5 | L122: 1.5 | M122: 1.5 | O122: 0 | Q122: 1 | R122: 1.5
B123: Montréal | E123: =E122 -> 1.5 | F123: =F122 -> 1.5 | G123: =G122 -> 0 | H123: 1 | I123: =I122 -> 1.5 | L123: 1.5 | M123: 1.5 | O123: 0 | Q123: 0.9 | R123: 1.5
A125: Facteur de la SHQ pour le calcul des honoraires d'architecte | G125: 0.8
A128: Montants pour le calcul des honoraires d'architecte - Achat simple (AS) | G128: Base | H128: 1500
G129: Par Unité | H129: 60
A131: Frais d'évaluateur | F131: 500 | G131: (BR#53)
A132: Frais de vérificateur (BR #56) | F132: 1200
A133: Frais juridiques (BR#65) | G133: Base | H133: 2500
G134: Par lot | H134: 800
A136: ="Taux de calcul des honoraires de l'" & PARM_OSD_ABRG & " BR#68" -> Taux de calcul des honoraires de l'OSD BR#68 | G136: Développement (DEV) | I136: 0.5
G137: Développement et Acc. (DAC) | I137: 1
F139: Honoraires des OSD
A140: Tableau de calcul des honoraires des développeurs BR#68 | F140: [ Seuil minimal | G140: Seuil maximal [ | H140: Taux COOP | I140: Montant COOP | J140: Montant OBNL
F141: 0 | G141: =F142 -> 750000 | H141: 0.06 | J141: 0
F142: 750000 | G142: =F143 -> 1000000 | H142: 0.04 | J142: 0
F143: 1000000 | G143: =F144 -> 1500000 | H143: 0.04 | J143: 0
F144: 1500000 | G144: =F145 -> 3000000 | H144: 0.03 | J144: 0 | M144: PG 20060217 anciennes formule dans la 2e colonne pour Montréal
F145: 3000000 | G145: -1 | H145: 0.02 | J145: 0 | M145: 3000000 | N145: =IF(estMontreal(G_PROJET_REGION,IP_NOM_TABLE_LOYER_MEDIAN),$F$146,-1) -> -1 | P145: 0.02 | R145: 0.01
F146: 6000000 | G146: =F147 -> 9000000 | H146: 0.015 | J146: 0
F147: 9000000 | G147: -1 | H147: 0.01 | J147: 0
J148: PG 20060217 anciennes valeurs pour Montréal
A149: Nombre de plages à considérer dans le tableau Honoraires des développeurs | F149: Montréal | G149: 5 | M149: Montréal | N149: 7
F150: Autres | G150: 5 | M150: Autres | N150: 5
A152: Barème - organisation BR#74 | F152: Maximum | G152: Minimum | H152: Par Unité
F153: 2000 | G153: 1500 | H153: 30
A155: Valeurs de remplacement et frais de relogement par typologie BR#77 | F155: Valeur de remplacement et de relogement
G156: Valeurs | H156: Frais
G157: unitaires | H157: relogement
F158: Chambres | G158: 60000 | H158: 306
F159: Studio | G159: 60000 | H159: 766
F160: 1cc | G160: 65000 | H160: 946
F161: 2cc | G161: 70000 | H161: 1076
F162: 3cc | G162: 75000 | H162: 1216
F163: 4cc | G163: 80000 | H163: 1346
F164: 5cc | G164: 90000 | H164: 1400
A166: Réserve pour perte locative BR#101 | F166: Pondération | G166: Taux d'innocupation | H166: Nbre Mois | I166: Nbre Mois Moins de 2000
F167: 0.85 | G167: 0.25 | H167: 3 | I167: 6
A169: Réserve capitalisée de gestion BR#104 | F169: Terme max de l'hypotheque | H169: Taux
F170: 5 | G170: ans | H170: 0.015
A172: Facteur - Financement Interimaire BR#108 | F172: 0.6
A174: Facteur - Imprévus sur frais variables BR#113 | F174: 0.05
A177: Taux de la contribution au secteur (ACLQ) BR#116
B178: 0.01
A181: Paramètres - Contributions
A183: Ajustement - Référence Facteur de risque à long terme C#19 | B183: -0.01
A187: Équité sur l'emphytéose C#19 | B187: Durée minimale | E187: 50 | F187: ans
A189: Crédit de taxe foncière C#21, C#44 | B189: Durée maximale | E189: 0 | F189: ans
A191: Exemption de taxe foncière C#24 | B191: Durée minimale | E191: 25 | F191: ans
A193: Subvention de base C#37, F#22 | E193: ACL | F193: LAQ | G193: PAMH | H193: Urgence
E194: 0.5 | F194: 0.6 | G194: 1 | H194: 0.66
C196: Tableaux des coûts de réalisation maximum admissibles de la SHQ
C197: ACLQ : Selon CT numéro 208195 en date du 15 septembre 2009 et modifications permanentes selon CT numéro 208937 en date du 4 mai 2010.
C198: LAQ : Selon le Décret numéro 833-2008 du 3 septembre 2008.
A199: Tableau des coûts de réalisation maximum admissibles de la SHQ C#37 | E199: (AR) - Achat Rénovation mineure | L199: (CN) - Construction neuve | S199: (TR) - Transformation et recyclage | Y199: (AJ) - Achat Rénovation majeure
C202: LAQ Volet I | E202: Volet I : AR | F202: Tout territoire | I202: Villes centres | L202: Volet I : CN | M202: Tout territoire | Q202: Villes centres | S202: Volet I : TR | T202: Tout territoire | W202: Villes centres | Y202: Volet I : AR | Z202: Tout territoire | AC202: Villes centres
E203: Chambre | F203: 50490 | I203: 51810 | L203: Chambre | M203: 59400 | N203: 59400 | O203: 59400 | Q203: 59400 | S203: Chambre | T203: 59400 | U203: 59400 | V203: 59400 | W203: 59400 | Y203: Chambre | Z203: 50490 | AC203: 51810
E204: Studio | F204: 61820 | I204: 63580 | L204: Studio | M204: 71500 | Q204: 76670 | S204: Studio | T204: 71500 | W204: 76670 | Y204: Studio | Z204: 61820 | AC204: 63580
E205: 1cc | F205: 78100 | I205: 81620 | L205: 1cc | M205: 89980 | Q205: 98340 | S205: 1cc | T205: 89980 | W205: 98340 | Y205: 1cc | Z205: 78100 | AC205: 81620
E206: 2cc | F206: 96690 | I206: 101090 | L206: 2cc | M206: 110000 | Q206: 121660 | S206: 2cc | T206: 110000 | W206: 121660 | Y206: 2cc | Z206: 96690 | AC206: 101090
E207: 3cc | F207: 110330 | I207: 121330 | L207: 3cc | M207: 132660 | Q207: 145970 | S207: 3cc | T207: 132660 | W207: 145970 | Y207: 3cc | Z207: 110330 | AC207: 121330
E208: 4cc | F208: 126610 | I208: 140140 | L208: 4cc | M208: 153340 | Q208: 168850 | S208: 4cc | T208: 153340 | W208: 168850 | Y208: 4cc | Z208: 126610 | AC208: 140140
E209: 5cc | F209: 141900 | I209: 156970 | L209: 5cc | M209: 171820 | Q209: 189090 | S209: 5cc | T209: 171820 | W209: 189090 | Y209: 5cc | Z209: 141900 | AC209: 156970
C212: LAQ Volet II | E212: Volet II : AR | F212: Tout territoire | I212: Villes centres | L212: Volet II : CN | M212: Tout territoire | Q212: Villes centres | S212: Volet II : TR | T212: Tout territoire | W212: Villes centres | Y212: Volet II : AR | Z212: Tout territoire | AC212: Villes centres
E213: Chambre | F213: 79200 | I213: 87230 | L213: Chambre | M213: 93280 | Q213: 102520 | S213: Chambre | T213: 93280 | W213: 102520 | Y213: Chambre | Z213: 79200 | AC213: 87230
E214: Studio | F214: 88220 | I214: 91080 | L214: Studio | M214: 97460 | Q214: 107140 | S214: Studio | T214: 97460 | W214: 107140 | Y214: Studio | Z214: 88220 | AC214: 91080
E215: 1cc | F215: 101310 | I215: 106810 | L215: 1cc | M215: 114290 | Q215: 125730 | S215: 1cc | T215: 114290 | W215: 125730 | Y215: 1cc | Z215: 101310 | AC215: 106810
E216: 2cc | F216: 113410 | I216: 121660 | L216: 2cc | M216: 130240 | Q216: 143000 | S216: 2cc | T216: 130240 | W216: 143000 | Y216: 2cc | Z216: 113410 | AC216: 121660
E217: 3cc | F217: 113410 | I217: 121660 | L217: 3cc | M217: 130240 | Q217: 143000 | S217: 3cc | T217: 130240 | W217: 143000 | Y217: 3cc | Z217: 113410 | AC217: 121660
E218: 4cc | F218: 113410 | I218: 121660 | L218: 4cc | M218: 130240 | Q218: 143000 | S218: 4cc | T218: 130240 | W218: 143000 | Y218: 4cc | Z218: 113410 | AC218: 121660
E219: 5cc | F219: 113410 | I219: 121660 | L219: 5cc | M219: 130240 | Q219: 143000 | S219: 5cc | T219: 130240 | W219: 143000 | Y219: 5cc | Z219: 113410 | AC219: 121660
C222: LAQ Volet III | E222: Volet III : AR | F222: Tout territoire | I222: Villes centres | L222: Volet III : CN | M222: Tout territoire | Q222: Villes centres | S222: Volet III : TR | T222: Tout territoire | W222: Villes centres | Y222: Volet III : AR | Z222: Tout territoire | AC222: Villes centres
E223: Chambre | F223: 79200 | I223: 87230 | L223: Chambre | M223: 93280 | Q223: 102520 | S223: Chambre | T223: 93280 | W223: 102520 | Y223: Chambre | Z223: 79200 | AC223: 87230 | CY223: Taux de majoration des CMA
E224: Studio | F224: 88220 | I224: 91080 | L224: Studio | M224: 97460 | Q224: 107140 | S224: Studio | T224: 97460 | W224: 107140 | Y224: Studio | Z224: 88220 | AC224: 91080 | CY224: Ratio CM/CMA
E225: 1cc | F225: 101310 | I225: 106810 | L225: 1cc | M225: 114290 | Q225: 125730 | S225: 1cc | T225: 114290 | W225: 125730 | Y225: 1cc | Z225: 101310 | AC225: 106810 | CY225: Seuil minimal | CZ225: Seuil maximal | DA225: Taux
E226: 2cc | F226: 113410 | I226: 121660 | L226: 2cc | M226: 130240 | Q226: 143000 | S226: 2cc | T226: 130240 | W226: 143000 | Y226: 2cc | Z226: 113410 | AC226: 121660 | CY226: 0 | CZ226: 0.2 | DA226: 0
E227: 3cc | F227: 113410 | I227: 121660 | L227: 3cc | M227: 130240 | Q227: 143000 | S227: 3cc | T227: 130240 | W227: 143000 | Y227: 3cc | Z227: 113410 | AC227: 121660 | CY227: 0.2 | CZ227: 0.22 | DA227: 0.01
E228: 4cc | F228: 113410 | I228: 121660 | L228: 4cc | M228: 130240 | Q228: 143000 | S228: 4cc | T228: 130240 | W228: 143000 | Y228: 4cc | Z228: 113410 | AC228: 121660 | CY228: 0.22 | CZ228: 0.24 | DA228: 0.02
E229: 5cc | F229: 113410 | I229: 121660 | L229: 5cc | M229: 130240 | Q229: 143000 | S229: 5cc | T229: 130240 | W229: 143000 | Y229: 5cc | Z229: 113410 | AC229: 121660 | CY229: 0.24 | CZ229: 0.26 | DA229: 0.03
CY230: 0.26 | CZ230: 0.28 | DA230: 0.04
CY231: 0.28 | CZ231: 10 | DA231: 0.05
C232: Tableaux des coûts de réalisation maximum admissibles de la SHQ | AD232: Coûts de réalisation maximum admissibles (BASE) | BC232: Coûts de réalisation maximum admissibles (MAJORÉS ORG) | CA232: Coûts de réalisation maximum admissibles (MAJORÉS SHQ)
E233: =AD233 -> (AR) - Achat Rénovation mineure | K233: =AJ233 -> (CN) - Construction neuve | Q233: =AP233 -> (TR) - Transformation et recyclage | W233: =AV233 -> (AJ) - Achat Rénovation majeure | AD233: (AR) - Achat Rénovation mineure | AJ233: (CN) - Construction neuve | AP233: (TR) - Transformation et recyclage | AV233: (AJ) - Achat Rénovation majeure | BC233: =AD233 -> (AR) - Achat Rénovation mineure | BI233: =AJ233 -> (CN) - Construction neuve | BO233: =AP233 -> (TR) - Transformation et recyclage | BU233: =AV233 -> (AJ) - Achat Rénovation majeure | CA233: =AD233 -> (AR) - Achat Rénovation mineure | CG233: =AJ233 -> (CN) - Construction neuve | CM233: =AP233 -> (TR) - Transformation et recyclage | CS233: =AV233 -> (AJ) - Achat Rénovation majeure
C236: ACL Volet I | E236: =AD236 -> Volet I : AR | F236: =AE236 -> Tout territoire | G236: =AF236 -> Plan nord/ Îles-de-la-Madeleine | H236: =AG236 -> Québec/ Gatineau/ Laval/ Longueil/ Lévis | I236: =AH236 -> Territoire de Montréal | K236: =AJ236 -> Volet I : CN | L236: =AE236 -> Tout territoire | M236: =AF236 -> Plan nord/ Îles-de-la-Madeleine | N236: =AG236 -> Québec/ Gatineau/ Laval/ Longueil/ Lévis | O236: =AH236 -> Territoire de Montréal | Q236: =AP236 -> Volet I : TR | R236: =AE236 -> Tout territoire | S236: =AF236 -> Plan nord/ Îles-de-la-Madeleine | T236: =AG236 -> Québec/ Gatineau/ Laval/ Longueil/ Lévis | U236: =AH236 -> Territoire de Montréal | W236: =AV236 -> Volet I : AJ | X236: =AE236 -> Tout territoire | Y236: =AF236 -> Plan nord/ Îles-de-la-Madeleine | Z236: =AG236 -> Québec/ Gatineau/ Laval/ Longueil/ Lévis | AA236: =AH236 -> Territoire de Montréal | AD236: Volet I : AR | AE236: Tout territoire | AF236: Plan nord/ Îles-de-la-Madeleine | AG236: Québec/ Gatineau/ Laval/ Longueil/ Lévis | AH236: Territoire de Montréal | AJ236: Volet I : CN | AK236: =AE236 -> Tout territoire | AL236: =AF236 -> Plan nord/ Îles-de-la-Madeleine | AM236: =AG236 -> Québec/ Gatineau/ Laval/ Longueil/ Lévis | AN236: =AH236 -> Territoire de Montréal | AP236: Volet I : TR | AQ236: =AE236 -> Tout territoire | AR236: =AF236 -> Plan nord/ Îles-de-la-Madeleine | AS236: =AG236 -> Québec/ Gatineau/ Laval/ Longueil/ Lévis | AT236: =AH236 -> Territoire de Montréal | AV236: Volet I : AJ | AW236: =AE236 -> Tout territoire | AX236: =AF236 -> Plan nord/ Îles-de-la-Madeleine | AY236: =AG236 -> Québec/ Gatineau/ Laval/ Longueil/ Lévis | AZ236: =AH236 -> Territoire de Montréal | BC236: =AD236 -> Volet I : AR | BD236: =AE236 -> Tout territoire | BE236: =AF236 -> Plan nord/ Îles-de-la-Madeleine | BF236: =AG236 -> Québec/ Gatineau/ Laval/ Longueil/ Lévis | BG236: =AH236 -> Territoire de Montréal | BI236: =AJ236 -> Volet I : CN | BJ236: =AE236 -> Tout territoire | BK236: =AF236 -> Plan nord/ Îles-de-la-Madeleine | BL236: =AG236 -> Québec/ Gatineau/ Laval/ Longueil/ Lévis | BM236: =AH236 -> Territoire de Montréal | BO236: =AP236 -> Volet I : TR | BP236: =AE236 -> Tout territoire | BQ236: =AF236 -> Plan nord/ Îles-de-la-Madeleine | BR236: =AG236 -> Québec/ Gatineau/ Laval/ Longueil/ Lévis | BS236: =AH236 -> Territoire de Montréal | BU236: =AV236 -> Volet I : AJ | BV236: =AE236 -> Tout territoire | BW236: =AF236 -> Plan nord/ Îles-de-la-Madeleine | BX236: =AG236 -> Québec/ Gatineau/ Laval/ Longueil/ Lévis | BY236: =AH236 -> Territoire de Montréal | CA236: =AD236 -> Volet I : AR | CB236: =AE236 -> Tout territoire | CC236: =AF236 -> Plan nord/ Îles-de-la-Madeleine | CD236: =AG236 -> Québec/ Gatineau/ Laval/ Longueil/ Lévis | CE236: =AH236 -> Territoire de Montréal | CG236: =AJ236 -> Volet I : CN | CH236: =AE236 -> Tout territoire | CI236: =AF236 -> Plan nord/ Îles-de-la-Madeleine | CJ236: =AG236 -> Québec/ Gatineau/ Laval/ Longueil/ Lévis | CK236: =AH236 -> Territoire de Montréal | CM236: =AP236 -> Volet I : TR | CN236: =AE236 -> Tout territoire | CO236: =AF236 -> Plan nord/ Îles-de-la-Madeleine | CP236: =AG236 -> Québec/ Gatineau/ Laval/ Longueil/ Lévis | CQ236: =AH236 -> Territoire de Montréal | CS236: =AV236 -> Volet I : AJ | CT236: =AE236 -> Tout territoire | CU236: =AF236 -> Plan nord/ Îles-de-la-Madeleine | CV236: =AG236 -> Québec/ Gatineau/ Laval/ Longueil/ Lévis | CW236: =AH236 -> Territoire de Montréal
E237: =AD237 -> Chambre | F237: =IF(ProfilActuelCode()="ORG",BD237,CB237) -> 66375 | G237: =IF(ProfilActuelCode()="ORG",BE237,CC237) -> 69750 | H237: =IF(ProfilActuelCode()="ORG",BF237,CD237) -> 68000 | I237: =IF(ProfilActuelCode()="ORG",BG237,CE237) -> 54400 | K237: =AD237 -> Chambre | L237: =IF(ProfilActuelCode()="ORG",BJ237,CH237) -> 78000 | M237: =IF(ProfilActuelCode()="ORG",BK237,CI237) -> 82000 | N237: =IF(ProfilActuelCode()="ORG",BL237,CJ237) -> 81875 | O237: =IF(ProfilActuelCode()="ORG",BM237,CK237) -> 65500 | Q237: =AD237 -> Chambre | R237: =IF(ProfilActuelCode()="ORG",BP237,CN237) -> 78000 | S237: =IF(ProfilActuelCode()="ORG",BQ237,CO237) -> 82000 | T237: =IF(ProfilActuelCode()="ORG",BR237,CP237) -> 81875 | U237: =IF(ProfilActuelCode()="ORG",BS237,CQ237) -> 65500 | W237: =AD237 -> Chambre | X237: =IF(ProfilActuelCode()="ORG",BV237,CT237) -> 78000 | Y237: =IF(ProfilActuelCode()="ORG",BW237,CU237) -> 82000 | Z237: =IF(ProfilActuelCode()="ORG",BX237,CV237) -> 81875 | AA237: =IF(ProfilActuelCode()="ORG",BY237,CW237) -> 65500 | AD237: Chambre | AE237: 66375 | AF237: 69750 | AG237: 68000 | AH237: 54400 | AJ237: =AD237 -> Chambre | AK237: 78000 | AL237: 82000 | AM237: 81875 | AN237: 65500 | AP237: =AD237 -> Chambre | AQ237: 78000 | AR237: 82000 | AS237: 81875 | AT237: 65500 | AV237: =AD237 -> Chambre | AW237: 78000 | AX237: 82000 | AY237: 81875 | AZ237: 65500 | BC237: Chambre | BD237: =ROUNDUP(AE237*(1+F_TAUX_MAJ_CMA_ORG),0) -> 66375 | BE237: 69750 | BF237: 68000 | BG237: 54400 | BI237: Chambre | BJ237: =ROUNDUP(AK237*(1+F_TAUX_MAJ_CMA_ORG),0) -> 78000 | BK237: 82000 | BL237: 81875 | BM237: 65500 | BO237: Chambre | BP237: =ROUNDUP(AQ237*(1+F_TAUX_MAJ_CMA_ORG),0) -> 78000 | BQ237: 82000 | BR237: 81875 | BS237: 65500 | BU237: Chambre | BV237: =ROUNDUP(AW237*(1+F_TAUX_MAJ_CMA_ORG),0) -> 78000 | BW237: 82000 | BX237: 81875 | BY237: 65500 | CA237: Chambre | CB237: =ROUNDUP(AE237*(1+F_TAUX_MAJ_CMA_SHQ),0) -> 66375 | CC237: 69750 | CD237: 68000 | CE237: 54400 | CG237: Chambre | CH237: =ROUNDUP(AK237*(1+F_TAUX_MAJ_CMA_SHQ),0) -> 78000 | CI237: 82000 | CJ237: 81875 | CK237: 65500 | CM237: Chambre | CN237: =ROUNDUP(AQ237*(1+F_TAUX_MAJ_CMA_SHQ),0) -> 78000 | CO237: 82000 | CP237: 81875 | CQ237: 65500 | CS237: Chambre | CT237: =ROUNDUP(AW237*(1+F_TAUX_MAJ_CMA_SHQ),0) -> 78000 | CU237: 82000 | CV237: 81875 | CW237: 65500
E238: Studio | F238: =IF(ProfilActuelCode()="ORG",BD238,CB238) -> 81250 | G238: =IF(ProfilActuelCode()="ORG",BE238,CC238) -> 85375 | H238: =IF(ProfilActuelCode()="ORG",BF238,CD238) -> 83500 | I238: =IF(ProfilActuelCode()="ORG",BG238,CE238) -> 66800 | K238: Studio | L238: =IF(ProfilActuelCode()="ORG",BJ238,CH238) -> 93875 | M238: =IF(ProfilActuelCode()="ORG",BK238,CI238) -> 98625 | N238: =IF(ProfilActuelCode()="ORG",BL238,CJ238) -> 100750 | O238: =IF(ProfilActuelCode()="ORG",BM238,CK238) -> 80600 | Q238: Studio | R238: =IF(ProfilActuelCode()="ORG",BP238,CN238) -> 93875 | S238: =IF(ProfilActuelCode()="ORG",BQ238,CO238) -> 98625 | T238: =IF(ProfilActuelCode()="ORG",BR238,CP238) -> 100750 | U238: =IF(ProfilActuelCode()="ORG",BS238,CQ238) -> 80600 | W238: =AD238 -> Studio | X238: =IF(ProfilActuelCode()="ORG",BV238,CT238) -> 93875 | Y238: =IF(ProfilActuelCode()="ORG",BW238,CU238) -> 98625 | Z238: =IF(ProfilActuelCode()="ORG",BX238,CV238) -> 100750 | AA238: =IF(ProfilActuelCode()="ORG",BY238,CW238) -> 80600 | AD238: Studio | AE238: 81250 | AF238: 85375 | AG238: 83500 | AH238: 66800 | AJ238: =AD238 -> Studio | AK238: 93875 | AL238: 98625 | AM238: 100750 | AN238: 80600 | AP238: =AD238 -> Studio | AQ238: 93875 | AR238: 98625 | AS238: 100750 | AT238: 80600 | AV238: =AD238 -> Studio | AW238: 93875 | AX238: 98625 | AY238: 100750 | AZ238: 80600 | BC238: Studio | BD238: 81250 | BE238: 85375 | BF238: 83500 | BG238: 66800 | BI238: Studio | BJ238: 93875 | BK238: 98625 | BL238: 100750 | BM238: 80600 | BO238: Studio | BP238: 93875 | BQ238: 98625 | BR238: 100750 | BS238: 80600 | BU238: Studio | BV238: 93875 | BW238: 98625 | BX238: 100750 | BY238: 80600 | CA238: Studio | CB238: 81250 | CC238: 85375 | CD238: 83500 | CE238: 66800 | CG238: Studio | CH238: 93875 | CI238: 98625 | CJ238: 100750 | CK238: 80600 | CM238: Studio | CN238: 93875 | CO238: 98625 | CP238: 100750 | CQ238: 80600 | CS238: Studio | CT238: 93875 | CU238: 98625 | CV238: 100750 | CW238: 80600
E239: 1cc | F239: =IF(ProfilActuelCode()="ORG",BD239,CB239) -> 102500 | G239: =IF(ProfilActuelCode()="ORG",BE239,CC239) -> 107625 | H239: =IF(ProfilActuelCode()="ORG",BF239,CD239) -> 107125 | I239: =IF(ProfilActuelCode()="ORG",BG239,CE239) -> 85700 | K239: 1cc | L239: =IF(ProfilActuelCode()="ORG",BJ239,CH239) -> 118125 | M239: =IF(ProfilActuelCode()="ORG",BK239,CI239) -> 124125 | N239: =IF(ProfilActuelCode()="ORG",BL239,CJ239) -> 129125 | O239: =IF(ProfilActuelCode()="ORG",BM239,CK239) -> 103300 | Q239: 1cc | R239: =IF(ProfilActuelCode()="ORG",BP239,CN239) -> 118125 | S239: =IF(ProfilActuelCode()="ORG",BQ239,CO239) -> 124125 | T239: =IF(ProfilActuelCode()="ORG",BR239,CP239) -> 129125 | U239: =IF(ProfilActuelCode()="ORG",BS239,CQ239) -> 103300 | W239: 1cc | X239: =IF(ProfilActuelCode()="ORG",BV239,CT239) -> 118125 | Y239: =IF(ProfilActuelCode()="ORG",BW239,CU239) -> 124125 | Z239: =IF(ProfilActuelCode()="ORG",BX239,CV239) -> 129125 | AA239: =IF(ProfilActuelCode()="ORG",BY239,CW239) -> 103300 | AD239: 1cc | AE239: 102500 | AF239: 107625 | AG239: 107125 | AH239: 85700 | AJ239: 1cc | AK239: 118125 | AL239: 124125 | AM239: 129125 | AN239: 103300 | AP239: 1cc | AQ239: 118125 | AR239: 124125 | AS239: 129125 | AT239: 103300 | AV239: 1cc | AW239: 118125 | AX239: 124125 | AY239: 129125 | AZ239: 103300 | BC239: 1cc | BD239: 102500 | BE239: 107625 | BF239: 107125 | BG239: 85700 | BI239: 1cc | BJ239: 118125 | BK239: 124125 | BL239: 129125 | BM239: 103300 | BO239: 1cc | BP239: 118125 | BQ239: 124125 | BR239: 129125 | BS239: 103300 | BU239: 1cc | BV239: 118125 | BW239: 124125 | BX239: 129125 | BY239: 103300 | CA239: 1cc | CB239: 102500 | CC239: 107625 | CD239: 107125 | CE239: 85700 | CG239: 1cc | CH239: 118125 | CI239: 124125 | CJ239: 129125 | CK239: 103300 | CM239: 1cc | CN239: 118125 | CO239: 124125 | CP239: 129125 | CQ239: 103300 | CS239: 1cc | CT239: 118125 | CU239: 124125 | CV239: 129125 | CW239: 103300
E240: 2cc | F240: =IF(ProfilActuelCode()="ORG",BD240,CB240) -> 127000 | G240: =IF(ProfilActuelCode()="ORG",BE240,CC240) -> 133375 | H240: =IF(ProfilActuelCode()="ORG",BF240,CD240) -> 132750 | I240: =IF(ProfilActuelCode()="ORG",BG240,CE240) -> 106200 | K240: 2cc | L240: =IF(ProfilActuelCode()="ORG",BJ240,CH240) -> 144375 | M240: =IF(ProfilActuelCode()="ORG",BK240,CI240) -> 151625 | N240: =IF(ProfilActuelCode()="ORG",BL240,CJ240) -> 159750 | O240: =IF(ProfilActuelCode()="ORG",BM240,CK240) -> 127800 | Q240: 2cc | R240: =IF(ProfilActuelCode()="ORG",BP240,CN240) -> 144375 | S240: =IF(ProfilActuelCode()="ORG",BQ240,CO240) -> 151625 | T240: =IF(ProfilActuelCode()="ORG",BR240,CP240) -> 159750 | U240: =IF(ProfilActuelCode()="ORG",BS240,CQ240) -> 127800 | W240: 2cc | X240: =IF(ProfilActuelCode()="ORG",BV240,CT240) -> 144375 | Y240: =IF(ProfilActuelCode()="ORG",BW240,CU240) -> 151625 | Z240: =IF(ProfilActuelCode()="ORG",BX240,CV240) -> 159750 | AA240: =IF(ProfilActuelCode()="ORG",BY240,CW240) -> 127800 | AD240: 2cc | AE240: 127000 | AF240: 133375 | AG240: 132750 | AH240: 106200 | AJ240: 2cc | AK240: 144375 | AL240: 151625 | AM240: 159750 | AN240: 127800 | AP240: 2cc | AQ240: 144375 | AR240: 151625 | AS240: 159750 | AT240: 127800 | AV240: 2cc | AW240: 144375 | AX240: 151625 | AY240: 159750 | AZ240: 127800 | BC240: 2cc | BD240: 127000 | BE240: 133375 | BF240: 132750 | BG240: 106200 | BI240: 2cc | BJ240: 144375 | BK240: 151625 | BL240: 159750 | BM240: 127800 | BO240: 2cc | BP240: 144375 | BQ240: 151625 | BR240: 159750 | BS240: 127800 | BU240: 2cc | BV240: 144375 | BW240: 151625 | BX240: 159750 | BY240: 127800 | CA240: 2cc | CB240: 127000 | CC240: 133375 | CD240: 132750 | CE240: 106200 | CG240: 2cc | CH240: 144375 | CI240: 151625 | CJ240: 159750 | CK240: 127800 | CM240: 2cc | CN240: 144375 | CO240: 151625 | CP240: 159750 | CQ240: 127800 | CS240: 2cc | CT240: 144375 | CU240: 151625 | CV240: 159750 | CW240: 127800
